{"text_format":"1","workbook":"xlsx","n_sheets":17,"sheets":["Cover","SECTION A","SECTION B","SECTION C","SECTION D","SECTION E","SECTION F","SECTION G","SECTION H","SECTION I","SECTION J","SECTION K","SECTION L","Info","Labels","Settings","ورقة1"],"not_rendered":{"charts":0,"images":0,"macros":1,"external_links":0,"defined_names":1870,"comments":0,"pivot_tables":0},"unopened":[],"bounds":{"document_bytes":16777216,"sheet_cells":100000,"rows_first":2000,"rows_last":500,"rows_between":2000,"halvings":0,"cell_chars":16384,"cell_head_chars":4096},"cells_cut":0,"cells_raw":0,"read":"whole","date_system":"1900"}

{"sheet":"Cover","index":0,"n_rows":24,"n_cols":10,"rows_kept":24,"cut":false,"hidden":false,"merged":[[24,15,24,19],[6,1,6,10],[23,15,23,19],[2,12,2,21],[7,1,7,10],[8,1,8,10],[9,1,9,10],[22,15,22,19],[16,13,16,16],[16,19,16,21],[17,13,17,16],[17,19,17,21],[18,13,18,16],[18,19,18,21]]}
[]
[]
[null,null,"MoE",null,null,null,null,null,null,"EMIS"]
[]
[]
[]
[null,"إدارة التوثيق والمعلوماتية"]
[null,"منظومة معلومات الادارة التعليمية"]
[null,"نموذج تجميع بيانات  رياض الاطفال ومدارس التعليم الاساسي "]
[null,"الخاص بمنظومة معلومات الادارة التعليمية"]
[]
[]
[null,null," القسم أ: التعريف بالمدرسة"]
[null,null," القسم ب: عنوان المدرسة ومديرها"]
[null,null,"القسم ت: وصف المدرسة"]
[null,null,"القسم ث: تقنية المعلومات والاتصالات بالمدرسة"]
[null,null,"القسم جـ: القيد والالتحاق برياض الاطفال"]
[null,null,"القسم حـ: القيد والالتحاق بالتعليم الاساسي"]
[null,null,"القسم ر.: الكتاب المدرسي"]
[null,null,"القسم ز.: نتائج الامتحانات"]
[null,null,"القسم س: القوى العاملة والمعلمون"]
[null,null,"القسم ش: المباني والمرافق التعليمية"]
[null,null,"القسم ص: البيئة والصحة المدرسية"]
[null,null,"القسم ض: الشؤون المالية للمدرسة والانفاق"]

{"sheet":"SECTION A","index":1,"n_rows":25,"n_cols":27,"rows_kept":25,"cut":false,"hidden":false,"merged":[[6,26,6,30],[12,0,12,6],[18,32,18,35],[18,22,18,31],[0,0,0,31],[7,26,7,30],[10,0,10,24],[7,0,7,24],[18,8,18,14],[18,16,18,20],[15,0,16,31],[1,0,1,31],[2,0,4,31],[6,0,6,24],[9,0,9,24],[18,0,18,6],[24,32,24,34],[13,0,13,6],[25,0,25,6],[25,8,25,14],[25,16,25,20],[25,22,25,28],[19,0,19,6],[19,8,19,14],[24,0,24,6],[24,8,24,14],[24,16,24,20],[19,16,19,20],[19,22,19,28],[21,0,22,31],[24,22,24,31]]}
[{"$f":"IF(Settings_Language = \"English\",SectionA_Title,SectionA_Title_Arabic)","v":" القسم أ: التعريف بالمدرسة"}]
[{"$f":"IF(Settings_Language = \"English\",SectionA_Instruction,SectionA_Instruction_Arabic)","v":"التعليمات"}]
[{"$f":"IF(Settings_Language = \"English\",SectionA_InstructionDesc,SectionA_InstructionDesc_Arabic)","v":"يرجى كتابة إسم المدرسة بالكامل و السنة الفعلية التي بدأت فيها المدرسة بالعمل حتى وإن حدث تغيير في مكان المدرسة لو ان المدرسة كان لها إسم أخر يرجى تعبئة الخانة رقم 3 و 4  والخاصة بالاسم السابق للمدرسة ورمزها"}]
[]
[]
[]
[{"$f":"IF(Settings_Language = \"English\",SectionA_1,SectionA_1_Arabic)","v":"إسم المدرسة"},null,null,null,null,null,null,null,null,null,null,null,null,null,null,null,null,null,null,null,null,null,null,null,null,null,{"$f":"IF(Settings_Language = \"English\",SectionA_2,SectionA_2_Arabic)","v":"سنة الافتتاح"}]
[]
[]
[{"$f":"IF(Settings_Language = \"English\",SectionA_3,SectionA_3_Arabic)","v":"الاسم السابق للمدرسة"}]
[]
[]
[{"$f":"IF(Settings_Language = \"English\",SectionA_4,SectionA_4_Arabic)","v":"الرمز السابق للمدرسة"}]
[]
[]
[{"$f":"IF(Settings_Language = \"English\",SectionA_5,SectionA_5_Arabic)","v":"معلومات تسجيل المدرسة"}]
[]
[]
[{"$f":"IF(Settings_Language = \"English\",SectionA_EMISCode,SectionA_EMISCode_Arabic)","v":"رمز منظومة المعلومات"},null,null,null,null,null,null,null,{"$f":"IF(Settings_Language = \"English\",SectionA_SchoolRegNo,SectionA_SchoolRegNo_Arabic)","v":"رقم تسجيل المدرسة"},null,null,null,null,null,null,null,{"$f":"IF(Settings_Language = \"English\",SectionA_CensusYear,SectionA_CensusYear_Arabic)","v":"سنة الاحصاء"},null,null,null,null,null,{"$f":"IF(Settings_Language = \"English\",SectionA_SchoolExamDeptReg,SectionA_SchoolExamDeptReg_Arabic)","v":"رقم تسجيل المدرسة بمنظومة الامتحانات"}]
[]
[]
[{"$f":"IF(Settings_Language = \"English\",SectionA_6,SectionA_6_Arabic)","v":"لو ان المدرسة فرعية، يتم إدخال رمز منظومة الملومات و رقم تسجيل المدرسة الام"}]
[]
[]
[{"$f":"IF(Settings_Language = \"English\",SectionA_EMISCode,SectionA_EMISCode_Arabic)","v":"رمز منظومة المعلومات"},null,null,null,null,null,null,null,{"$f":"IF(Settings_Language = \"English\",SectionA_SchoolRegNo,SectionA_SchoolRegNo_Arabic)","v":"رقم تسجيل المدرسة"},null,null,null,null,null,null,null,{"$f":"IF(Settings_Language = \"English\",SectionA_CensusYear,SectionA_CensusYear_Arabic)","v":"سنة الاحصاء"},null,null,null,null,null,{"$f":"IF(Settings_Language = \"English\",SectionA_SchoolExamDeptReg,SectionA_SchoolExamDeptReg_Arabic)","v":"رقم تسجيل المدرسة بمنظومة الامتحانات"}]

{"sheet":"SECTION B","index":2,"n_rows":77,"n_cols":17,"rows_kept":77,"cut":false,"hidden":false,"merged":[[76,0,76,31],[62,7,62,31],[65,0,65,31],[68,0,68,31],[70,0,70,31],[73,0,73,20],[42,0,42,31],[45,0,45,15],[45,16,45,31],[48,0,48,31],[50,0,50,8],[43,0,43,31],[46,0,46,4],[46,16,46,22],[19,0,19,31],[22,0,22,31],[25,0,25,31],[28,0,28,31],[30,0,30,6],[30,7,30,31],[20,0,20,31],[0,0,0,31],[5,0,5,31],[11,0,11,31],[14,0,14,31],[17,0,17,31],[8,0,8,31],[2,0,2,31],[4,0,4,31],[7,0,7,31],[10,0,10,31],[13,0,13,31],[16,0,16,31],[51,0,51,8],[54,0,54,31],[77,0,77,31],[57,0,57,31],[60,0,60,5],[60,7,60,31],[63,0,63,5],[63,7,63,31],[66,0,66,31],[71,0,71,31],[74,0,74,20],[53,0,53,31],[56,0,56,31],[59,0,59,6],[59,7,59,31],[62,0,62,5],[31,0,31,5],[31,7,31,31],[37,0,37,20],[40,0,40,31],[23,0,23,31],[26,0,26,31],[34,0,34,5],[34,7,34,31],[33,0,33,5],[33,7,33,31],[36,0,36,20],[39,0,39,31]]}
[{"$f":"IF(Settings_Language = \"English\",SectionB_Title,SectionB_Title_Arabic)","v":" القسم ب: عنوان المدرسة ومديرها"}]
[]
[{"$f":"IF(Settings_Language = \"English\",SectionB_B1,SectionB_B1_Arabic)","v":"ب.1: عنوان المدرسة  و صندوق البريد"}]
[]
[{"$f":"IF(Settings_Language = \"English\",SectionB_B1_1,SectionB_B1_1_Arabic)","v":"1- العنوان الفعلي للمدرسة (الرقم ، إسم الشارع، الخ)"}]
[]
[]
[{"$f":"IF(Settings_Language = \"English\",SectionB_B1_2,SectionB_B1_2_Arabic)","v":"2- المحلة"}]
[]
[]
[{"$f":"IF(Settings_Language = \"English\",SectionB_B1_3,SectionB_B1_3_Arabic)","v":"3- العنوان البريدي (لو انه يختلف)"}]
[]
[]
[{"$f":"IF(Settings_Language = \"English\",SectionB_B1_4,SectionB_B1_4_Arabic)","v":"4- القرية"}]
[]
[]
[{"$f":"IF(Settings_Language = \"English\",SectionB_B1,SectionB_B1_5_Arabic)","v":"5- المنطقة"}]
[]
[]
[{"$f":"IF(Settings_Language = \"English\",SectionB_B1_6,SectionB_B1_6_Arabic)","v":"6- المحافظة"}]
[]
[]
[{"$f":"IF(Settings_Language = \"English\",SectionB_B1_7,SectionB_B1_7_Arabic)","v":"7- البلدية"}]
[]
[]
[{"$f":"IF(Settings_Language = \"English\",SectionB_B1_8,SectionB_B1_8_Arabic)","v":"8-  المراقبة التعليمية"}]
[]
[]
[{"$f":"IF(Settings_Language = \"English\",SectionB_B2,SectionB_B2_Arabic)","v":"ب.2: تفاصيل الاتصال بالمدرسة"}]
[]
[{"$f":"IF(Settings_Language = \"English\",SectionB_B2_1,SectionB_B2_1_Arabic)","v":"1- مفتاح هاتف المدينة"},null,null,null,null,null,null,{"$f":"IF(Settings_Language = \"English\",SectionB_PhoneNumber,SectionB_PhoneNumber_Arabic)","v":" رقم الهاتف"}]
[]
[]
[{"$f":"IF(Settings_Language = \"English\",SectionB_B2_2,SectionB_B2_2_Arabic)","v":"1- مفتاح هاتف المدينة"},null,null,null,null,null,null,{"$f":"IF(Settings_Language = \"English\",SectionB_FaxNumber,SectionB_FaxNumber_Arabic)","v":"رقم الفاكس"}]
[]
[]
[{"$f":"IF(Settings_Language = \"English\",SectionB_B2_3,SectionB_B2_3_Arabic)","v":"3- رقم الهاتف النقال للمدرسة"}]
[]
[]
[{"$f":"IF(Settings_Language = \"English\",SectionB_B2_4,SectionB_B2_4_Arabic)","v":"4- الاسم المسجل به هاتف المدرسة النقال"}]
[]
[]
[{"$f":"IF(Settings_Language = \"English\",SectionB_B2_5,SectionB_B2_5_Arabic)","v":"5- البريد الالكتروني للمدرسة"}]
[]
[]
[{"$f":"IF(Settings_Language = \"English\",SectionB_B2_6,SectionB_B2_6_Arabic)","v":"6- المسافة بين المدرسة ومكتب الخدمات التعليمية"},null,null,null,null,null,null,null,null,null,null,null,null,null,null,null,{"$f":"IF(Settings_Language = \"English\",SectionB_B2_7,SectionB_B2_7_Arabic)","v":"7- رمز منظومات المعلومات لاقرب مدرسة"}]
[null,null,null,null,null," Km"]
[]
[{"$f":"IF(Settings_Language = \"English\",SectionB_B3,SectionB_B3_Arabic)","v":"ب.3: الجهة المسؤولة على المدرسة"}]
[]
[{"$f":"IF(Settings_Language = \"English\",SectionB_B3_1,SectionB_B3_1_Arabic)","v":"1- نوع الجهة المسؤولة على المدرسة"}]
[]
[]
[{"$f":"IF(Settings_Language = \"English\",SectionB_B3_2,SectionB_B3_2_Arabic)","v":"2- إسم الجهة المسؤولة على المدرسة"}]
[]
[]
[{"$f":"IF(Settings_Language = \"English\",SectionB_B3_3,SectionB_B3_3_Arabic)","v":"3- عنوان الجهة المسؤولة"}]
[]
[]
[{"$f":"IF(Settings_Language = \"English\",SectionB_B3_4,SectionB_B3_4_Arabic)","v":"4- رمز الهاتف للمنطقة"},null,null,null,null,null,null,{"$f":"IF(Settings_Language = \"English\",SectionB_PhoneNumber,SectionB_PhoneNumber_Arabic)","v":" رقم الهاتف"}]
[]
[]
[{"$f":"IF(Settings_Language = \"English\",SectionB_B3_5,SectionB_B3_5_Arabic)","v":"5-رمز الفاكس"},null,null,null,null,null,null,{"$f":"IF(Settings_Language = \"English\",SectionB_FaxNumber,SectionB_FaxNumber_Arabic)","v":"رقم الفاكس"}]
[]
[]
[{"$f":"IF(Settings_Language = \"English\",SectionB_B3_6,SectionB_B3_6_Arabic)","v":"6- البريد الالكتروني "}]
[]
[]
[{"$f":"IF(Settings_Language = \"English\",SectionB_B4,SectionB_B4_Arabic)","v":"ب.4: معلومات التواصل مع مدير المدرسة"}]
[]
[{"$f":"IF(Settings_Language = \"English\",SectionB_B4_1,SectionB_B4_1_Arabic)","v":"1- إسم مدير المدرسة بالكامل"}]
[]
[]
[{"$f":"IF(Settings_Language = \"English\",SectionB_B4_2,SectionB_B4_2_Arabic)","v":"2- رقم الهاتف النقال لمدير المدرسة"}]
[]
[]
[{"$f":"IF(Settings_Language = \"English\",SectionB_B4_3,SectionB_B4_3_Arabic)","v":"3- البريد الالكتروني لمدير المدرسة"}]

{"sheet":"SECTION C","index":3,"n_rows":28,"n_cols":26,"rows_kept":28,"cut":false,"hidden":false,"merged":[[15,16,15,20],[16,16,16,20],[15,23,15,27],[18,0,18,15],[25,0,25,31],[21,0,21,31],[22,0,24,31],[19,0,19,8],[11,0,11,8],[14,0,14,8],[15,1,15,5],[16,1,16,5],[15,8,15,13],[16,8,16,13],[12,0,12,8],[0,0,0,31],[6,0,6,8],[6,15,6,23],[9,0,9,8],[9,15,9,23],[2,0,2,23],[3,2,3,6],[3,10,3,15],[3,17,3,23],[5,0,5,10],[5,15,5,23],[8,15,8,23],[8,0,8,8]]}
[{"$f":"IF(Settings_Language = \"English\",SectionC_Title,SectionC_Title_Arabic)","v":"القسم ت: وصف المدرسة"}]
[]
[{"$f":"IF(Settings_Language = \"English\",SectionC_1,SectionC_1_Arabic)","v":"1- مستويات الدراسة بالمدرسة (إختر الصناديق المناسبة)"}]
[null,null,{"$f":"IF(Settings_Language = \"English\",SectionC_KG1AndKG2,SectionC_KG1AndKG2_Arabic)","v":"رياض الاطفال (1،2)"},null,null,null,null,null,null,null,{"$f":"IF(Settings_Language = \"English\",SectionC_Primary16,SectionC_Primary16_Arabic)","v":"إبتدائي (1-6)"},null,null,null,null,null,null,{"$f":"IF(Settings_Language = \"English\",SectionC_Intermediate79,SectionC_Intermediate79_Arabic)","v":"أعدادي (7-9)"}]
[]
[{"$f":"IF(Settings_Language = \"English\",SectionC_2,SectionC_2_Arabic)","v":"2- عدد فترات الدراسة بالمدرسة"},null,null,null,null,null,null,null,null,null,null,null,null,null,null,{"$f":"IF(Settings_Language = \"English\",SectionC_3,SectionC_3_Arabic)","v":"3- نوع الخدمات"}]
[]
[]
[{"$f":"IF(Settings_Language = \"English\",SectionC_4,SectionC_4_Arabic)","v":"4- موقع المدرسة"},null,null,null,null,null,null,null,null,null,null,null,null,null,null,{"$f":"IF(Settings_Language = \"English\",SectionC_5,SectionC_5_Arabic)","v":"5- تصنيف المدرسة"}]
[]
[]
[{"$f":"IF(Settings_Language = \"English\",SectionC_6,SectionC_6_Arabic)","v":"6- منتسبوا  المدرسة"}]
[]
[]
[{"$f":"IF(Settings_Language = \"English\",SectionC_7,SectionC_7_Arabic)","v":"7-الخدمات التي تقدمها المدرسة"}]
[null,{"$f":"IF(Settings_Language = \"English\",SectionC_KG,SectionC_KG_Arabic)","v":"رياض الاطفال"},null,null,null,null,null,null,{"$f":"IF(Settings_Language = \"English\",SectionC_PrimaryPart1,SectionC_PrimaryPart1_Arabic)","v":"إبتدائي الشق الاول (1-3)"},null,null,null,null,null,null,null,{"$f":"IF(Settings_Language = \"English\",SectionC_PrimaryPart2,SectionC_PrimaryPart2_Arabic)","v":"إيتدائ الشق الثاني (4-6)"},null,null,null,null,null,null,{"$f":"IF(Settings_Language = \"English\",SectionC_Intermediate,SectionC_Intermediate_Arabic)","v":"أعدادي"}]
[null,{"$f":"IF(Settings_Language = \"English\",SectionC_HomeStudy,SectionC_HomeStudy_Arabic)","v":"منزلية التعليم"},null,null,null,null,null,null,{"$f":"IF(Settings_Language = \"English\",SectionC_AdultEducation,SectionC_AdultEducation_Arabic)","v":"تعليم الكبار"},null,null,null,null,null,null,null,{"$f":"IF(Settings_Language = \"English\",SectionC_Literacy,SectionC_Literacy_Arabic)","v":"محو الامية"}]
[]
[{"$f":"IF(Settings_Language = \"English\",SectionC_8,SectionC_8_Arabic)","v":"8- هل تقوم المدرسة  بتدريس مستويات تعليمية مختلفه"}]
[]
[]
[{"$f":"IF(Settings_Language = \"English\",SectionC_Instruction,SectionC_Instruction_Arabic)","v":"التعليمات"}]
[{"$f":"IF(Settings_Language = \"English\",SectionC_InstructionDesc,SectionC_InstructionDesc_Arabic)","v":"لو ان المدرسة تقوم بتعليم مستويات مختلفة، يرجى إختيار السنوات الدراسية الممنوحة من قبل المدرسة"}]
[]
[]
[{"$f":"IF(Settings_Language = \"English\",SectionC_9,SectionC_9_Arabic)","v":"8- إختر سنوات الدراسة بالمدرسة"}]
[null,{"$f":"IF(Settings_Language = \"English\",SectionC_Grade1,SectionC_Grade1_Arabic)","v":"الصف الاول"},null,null,null,null,null,{"$f":"IF(Settings_Language = \"English\",SectionC_Grade2,SectionC_Grade2_Arabic)","v":"الصف الثاني"},null,null,null,null,null,{"$f":"IF(Settings_Language = \"English\",SectionC_Grade3,SectionC_Grade3_Arabic)","v":"الصف الثالث"},null,null,null,null,null,{"$f":"IF(Settings_Language = \"English\",SectionC_Grade4,SectionC_Grade4_Arabic)","v":"الصف الرابع"},null,null,null,null,null,{"$f":"IF(Settings_Language = \"English\",SectionC_Grade5,SectionC_Grade5_Arabic)","v":"الصف الخامس"}]
[null,{"$f":"IF(Settings_Language = \"English\",SectionC_Grade6,SectionC_Grade6_Arabic)","v":"الصف السادس"},null,null,null,null,null,{"$f":"IF(Settings_Language = \"English\",SectionC_Grade7,SectionC_Grade7_Arabic)","v":"الصف السابع"},null,null,null,null,null,{"$f":"IF(Settings_Language = \"English\",SectionC_Grade8,SectionC_Grade8_Arabic)","v":"الصف الثامن"},null,null,null,null,null,{"$f":"IF(Settings_Language = \"English\",SectionC_Grade9,SectionC_Grade9_Arabic)","v":"الصف التاسع"}]

{"sheet":"SECTION D","index":4,"n_rows":37,"n_cols":20,"rows_kept":37,"cut":false,"hidden":false,"merged":[[12,0,12,18],[15,0,15,18],[18,0,18,18],[21,0,21,22],[25,1,25,3],[25,5,25,7],[25,9,25,12],[25,14,25,17],[25,19,25,22],[0,0,0,31],[6,19,6,25],[8,19,8,25],[10,19,10,25],[4,19,4,25],[2,0,2,29],[4,0,4,18],[6,0,6,18],[8,0,8,18],[10,0,10,18],[34,24,34,30],[13,0,13,8],[16,0,16,8],[19,0,19,8],[36,0,38,22],[36,24,36,30],[29,0,30,22],[29,24,29,30],[27,24,27,30],[32,0,33,22],[34,0,35,22],[32,24,32,30],[22,0,22,31],[23,0,23,31],[27,0,27,23]]}
[{"$f":"IF(Settings_Language = \"English\",SectionD_Title,SectionD_Title_Arabic)","v":"القسم ث: تقنية المعلومات والاتصالات بالمدرسة"}]
[]
[{"$f":"IF(Settings_Language = \"English\",SectionD_PleaseEnter,SectionD_PleaseEnter_Arabic)","v":"يرجى إدخال اعداد الحواسيب"}]
[]
[{"$f":"IF(Settings_Language = \"English\",SectionD_1,SectionD_1_Arabic)","v":"1- إجمالي عدد الحواسيب العاملة بالمدرسة (الاجمالي الكلي)"}]
[]
[{"$f":"IF(Settings_Language = \"English\",SectionD_2,SectionD_2_Arabic)","v":"2- إجمالي عدد الحواسيب العاملة و المستخدمة من قبل الطلاب"}]
[]
[{"$f":"IF(Settings_Language = \"English\",SectionD_3,SectionD_3_Arabic)","v":"3- إجمالي عدد الحواسيب العاملة و المستخدمة من قبل المعلمين"}]
[]
[{"$f":"IF(Settings_Language = \"English\",SectionD_4,SectionD_4_Arabic)","v":"4- إجمالي عدد الحواسيب العاملة والمستخدمة من قبل الاداريين"}]
[]
[{"$f":"IF(Settings_Language = \"English\",SectionD_5,SectionD_5_Arabic)","v":"5- هل لدى المدرسة برنامج للتعليم الالكتروني"}]
[]
[]
[{"$f":"IF(Settings_Language = \"English\",SectionD_6,SectionD_6_Arabic)","v":"6- هل حجرات الحواسيب بها حماية حديدية للابواب والنوافذ"}]
[]
[]
[{"$f":"IF(Settings_Language = \"English\",SectionD_7,SectionD_7_Arabic)","v":"7- هل يوجد بالمدرسة وصلة لشبكة الانترنت"}]
[]
[]
[{"$f":"IF(Settings_Language = \"English\",SectionD_8,SectionD_8_Arabic)","v":"8- ما المستخدم من التقنيات التالية  في عملية التعليم"}]
[{"$f":"IF(Settings_Language = \"English\",SectionD_Instruction,SectionD_Instruction_Arabic)","v":"التعلميات"}]
[{"$f":"IF(Settings_Language = \"English\",SectionD_YouMayTick,SectionD_YouMayTick_Arabic)","v":"يرجى إختيار الصناديق المناسبة (إن أخترت لا يوجد، اترك الباقي بدون إختيار)"}]
[]
[null,{"$f":"IF(Settings_Language = \"English\",SectionD_None,SectionD_None_Arabic)","v":"لا يوجد"},null,null,null,{"$f":"IF(Settings_Language = \"English\",SectionD_Radio,SectionD_Radio_Arabic)","v":"الإذاعة المسموعة"},null,null,null,{"$f":"IF(Settings_Language = \"English\",SectionD_Television,SectionD_Television_Arabic)","v":"الاذاعة المرئية"},null,null,null,null,{"$f":"IF(Settings_Language = \"English\",SectionD_Multimedia,SectionD_Multimedia_Arabic)","v":"الوسائط المتعددة"},null,null,null,null,{"$f":"IF(Settings_Language = \"English\",SectionD_Satellite,SectionD_Satellite_Arabic)","v":"استقبال الستالايت"}]
[]
[{"$f":"IF(Settings_Language = \"English\",SectionD_9,SectionD_9_Arabic)","v":"9- عدد المعلمين المسؤولين على تعليم الحاسوب"}]
[]
[{"$f":"IF(Settings_Language = \"English\",SectionD_10,SectionD_10_Arabic)","v":"10- عدد المعلمين الذين تلقوا تدريب تنشيطي على تقنيات الحاسوب (أثناء العمل)"}]
[]
[]
[{"$f":"IF(Settings_Language = \"English\",SectionD_11,SectionD_11_Arabic)","v":"11- عدد المعلمين الذين تلقوا تدريب تنشيطي على تقنيات الحاسوب خلال ال24 شهر الماضي (أثناء العمل)"}]
[]
[{"$f":"IF(Settings_Language = \"English\",SectionD_12,SectionD_12_Arabic)","v":"12- عدد المعلمين الذين تلقوا تدريب على تقنيات الحاسوب قبل العمل بالتعليم وليس لديهم شهادة معتمدة في علوم الحاسوب "}]
[]
[{"$f":"IF(Settings_Language = \"English\",SectionD_13,SectionD_13_Arabic)","v":"13- عدد المعلمين الذين تلقوا تدريب على تقنيات الحاسوب قبل العمل بالتعليم و لديهم شهادة معتمدة في علوم الحاسوب "}]

{"sheet":"SECTION E","index":5,"n_rows":42,"n_cols":51,"rows_kept":42,"cut":false,"hidden":false,"merged":[[33,0,33,27],[11,47,11,49],[11,50,11,52],[12,47,12,49],[12,50,12,52],[14,50,14,52],[13,47,13,49],[13,50,13,52],[14,34,14,36],[14,37,14,39],[14,40,14,42],[14,43,14,45],[14,47,14,49],[15,47,15,49],[15,50,15,52],[15,37,15,39],[15,34,15,36],[22,25,22,27],[29,22,29,24],[29,25,29,27],[28,22,28,24],[28,25,28,27],[31,22,31,24],[31,25,31,27],[13,43,13,45],[11,37,11,39],[11,40,11,42],[11,43,11,45],[18,37,18,39],[18,34,18,36],[18,27,18,29],[17,34,17,36],[17,37,17,39],[17,40,17,42],[17,43,17,45],[12,30,12,32],[13,30,13,32],[15,40,15,42],[15,43,15,45],[29,18,29,20],[28,0,28,8],[28,9,28,11],[28,12,28,14],[28,15,28,17],[28,18,28,20],[8,0,8,32],[20,0,20,27],[13,34,13,36],[11,15,11,17],[11,18,11,20],[17,18,17,20],[17,9,17,11],[17,12,17,14],[17,15,17,17],[27,22,27,24],[27,0,27,8],[27,9,27,11],[27,12,27,14],[27,15,27,17],[27,18,27,20],[25,18,25,20],[26,0,26,8],[27,25,27,27],[26,9,26,11],[26,12,26,14],[26,15,26,17],[26,18,26,20],[25,0,25,8],[25,22,25,24],[25,25,25,27],[26,22,26,24],[26,25,26,27],[15,15,15,17],[24,22,24,24],[21,22,21,27],[24,25,24,27],[23,25,23,27],[23,22,23,24],[24,15,24,17],[22,22,22,24],[17,0,17,8],[18,0,18,8],[24,12,24,14],[15,0,15,8],[23,0,23,8],[23,9,23,11],[23,12,23,14],[23,15,23,17],[23,18,23,20],[24,18,24,20],[31,0,31,8],[31,9,31,11],[31,12,31,14],[31,15,31,17],[31,18,31,20],[29,0,29,8],[29,9,29,11],[29,12,29,14],[18,12,18,14],[25,9,25,11],[25,12,25,14],[25,15,25,17],[18,15,18,17],[18,18,18,20],[18,9,18,11],[24,0,24,8],[21,9,21,14],[21,15,21,20],[22,9,22,11],[22,12,22,14],[22,15,22,17],[22,18,22,20],[24,9,24,11],[29,15,29,17],[0,0,0,31],[13,24,13,26],[14,24,14,26],[15,24,15,26],[12,9,12,11],[13,9,13,11],[14,9,14,11],[15,9,15,11],[12,12,12,14],[13,12,13,14],[14,12,14,14],[15,12,15,14],[11,9,11,11],[11,12,11,14],[11,21,11,23],[11,24,11,26],[15,18,15,20],[12,24,12,26],[13,18,13,20],[12,0,12,8],[13,0,13,8],[14,0,14,8],[9,9,9,20],[10,9,10,14],[36,25,36,27],[37,0,37,8],[37,9,37,11],[37,12,37,14],[37,15,37,17],[37,18,37,20],[37,22,37,24],[37,25,37,27],[36,0,36,8],[36,9,36,11],[36,12,36,14],[36,15,36,17],[36,18,36,20],[36,22,36,24],[34,9,34,14],[34,15,34,20],[34,22,34,27],[35,9,35,11],[35,12,35,14],[35,15,35,17],[35,18,35,20],[35,22,35,24],[35,25,35,27],[41,22,41,24],[41,25,41,27],[38,25,38,27],[39,0,39,8],[39,9,39,11],[39,12,39,14],[39,15,39,17],[39,18,39,20],[39,22,39,24],[39,25,39,27],[38,0,38,8],[38,9,38,11],[38,12,38,14],[38,15,38,17],[38,18,38,20],[38,22,38,24],[41,0,41,8],[41,9,41,11],[41,12,41,14],[41,15,41,17],[41,18,41,20],[9,47,9,52],[18,30,18,32],[18,24,18,26],[14,21,14,23],[15,21,15,23],[18,21,18,23],[12,27,12,29],[13,27,13,29],[11,27,11,29],[11,30,11,32],[15,30,15,32],[14,27,14,29],[14,30,14,32],[15,27,15,29],[17,21,17,23],[17,24,17,26],[17,27,17,29],[17,30,17,32],[17,47,17,49],[17,50,17,52],[18,50,18,52],[18,47,18,49],[18,43,18,45],[18,40,18,42],[13,15,13,17],[14,15,14,17],[12,21,12,23],[13,21,13,23],[14,18,14,20],[12,43,12,45],[1,0,1,31],[2,0,6,30],[10,15,10,20],[10,21,10,26],[10,27,10,32],[10,34,10,39],[10,40,10,45],[12,15,12,17],[12,18,12,20],[9,21,9,32],[9,34,9,45],[11,34,11,36],[12,34,12,36],[12,37,12,39],[12,40,12,42],[9,0,11,8],[13,37,13,39],[13,40,13,42]]}
[{"$f":"IF(Settings_Language = \"English\",SectionE_Title,SectionE_Title_Arabic)","v":"القسم جـ: القيد والالتحاق برياض الاطفال"}]
[{"$f":"IF(Settings_Language = \"English\",SectionE_Instruction,SectionE_Instruction_Arabic)","v":"التعليمات"}]
[{"$f":"IF(Settings_Language = \"English\",SectionE_InstructionDesc,SectionE_InstructionDesc_Arabic)","v":"يرجى التاكد من أن الاجمالي العام للقيد يطابق إجمالي القيد وفق السنوات والاعمار.  يتم إحتساب عمر الطالب من خلال طرح سنة الولاده من السنة الحالية، فمواليد سنة 2013 للسنة الدراسية 2017 هم من عمر (4 سنوات) بغض النظر عن شهر الميلاد"}]
[]
[]
[]
[]
[]
[{"$f":"IF(Settings_Language = \"English\",SectionE_E1,SectionE_E1_Arabic)","v":"جـ.1 قيد الطلاب برياض الاطفال حسب السنة الدراسية والعمر والجنس"}]
[{"$f":"IF(Settings_Language = \"English\",SectionE_Age,SectionE_Age_Arabic)","v":"العمر"},null,null,null,null,null,null,null,null,{"$f":"IF(Settings_Language = \"English\",SectionE_KG1,SectionE_KG1_Arabic)","v":"رياض 1 (كي جي 1)"},null,null,null,null,null,null,null,null,null,null,null,{"$f":"IF(Settings_Language = \"English\",SectionE_KG2,SectionE_KG2_Arabic)","v":"رياض 2 (كي جي 2)"},null,null,null,null,null,null,null,null,null,null,null,null,{"$f":"IF(Settings_Language = \"English\",SectionE_Total,SectionE_Total_Arabic)","v":"الاجمالي"},null,null,null,null,null,null,null,null,null,null,null,null,{"$f":"IF(Settings_Language = \"English\",SectionE_GrandTotal,SectionE_GrandTotal_Arabic)","v":"الاجمالي العام"}]
[null,null,null,null,null,null,null,null,null,{"$f":"IF(Settings_Language = \"English\",SectionE_LocalPupils,SectionE_LocalPupils_Arabic)","v":"طلاب مقيمون"},null,null,null,null,null,{"$f":"IF(Settings_Language = \"English\",SectionE_IDPPupils,SectionE_IDPPupils_Arabic)","v":"طلاب نازحون"},null,null,null,null,null,{"$f":"IF(Settings_Language = \"English\",SectionE_LocalPupils,SectionE_LocalPupils_Arabic)","v":"طلاب مقيمون"},null,null,null,null,null,{"$f":"IF(Settings_Language = \"English\",SectionE_IDPPupils,SectionE_IDPPupils_Arabic)","v":"طلاب نازحون"},null,null,null,null,null,null,{"$f":"IF(Settings_Language = \"English\",SectionE_LocalPupils,SectionE_LocalPupils_Arabic)","v":"طلاب مقيمون"},null,null,null,null,null,{"$f":"IF(Settings_Language = \"English\",SectionE_IDPPupils,SectionE_IDPPupils_Arabic)","v":"طلاب نازحون"}]
[null,null,null,null,null,null,null,null,null,{"$f":"IF(Settings_Language = \"English\",SectionE_M,SectionE_M_Arabic)","v":"ذكور"},null,null,{"$f":"IF(Settings_Language = \"English\",SectionE_F,SectionE_F_Arabic)","v":"إناث"},null,null,{"$f":"IF(Settings_Language = \"English\",SectionE_M,SectionE_M_Arabic)","v":"ذكور"},null,null,{"$f":"IF(Settings_Language = \"English\",SectionE_F,SectionE_F_Arabic)","v":"إناث"},null,null,{"$f":"IF(Settings_Language = \"English\",SectionE_M,SectionE_M_Arabic)","v":"ذكور"},null,null,{"$f":"IF(Settings_Language = \"English\",SectionE_F,SectionE_F_Arabic)","v":"إناث"},null,null,{"$f":"IF(Settings_Language = \"English\",SectionE_M,SectionE_M_Arabic)","v":"ذكور"},null,null,{"$f":"IF(Settings_Language = \"English\",SectionE_F,SectionE_F_Arabic)","v":"إناث"},null,null,null,{"$f":"IF(Settings_Language = \"English\",SectionE_M,SectionE_M_Arabic)","v":"ذكور"},null,null,{"$f":"IF(Settings_Language = \"English\",SectionE_F,SectionE_F_Arabic)","v":"إناث"},null,null,{"$f":"IF(Settings_Language = \"English\",SectionE_M,SectionE_M_Arabic)","v":"ذكور"},null,null,{"$f":"IF(Settings_Language = \"English\",SectionE_F,SectionE_F_Arabic)","v":"إناث"},null,null,null,{"$f":"IF(Settings_Language = \"English\",SectionE_M,SectionE_M_Arabic)","v":"ذكور"},null,null,{"$f":"IF(Settings_Language = \"English\",SectionE_F,SectionE_F_Arabic)","v":"إناث"}]
[{"$f":"IF(Settings_Language = \"English\",SectionE_Below4Years,SectionE_Below4Years_Arabic)","v":"اقل من 4 سنوات"},null,null,null,null,null,null,null,null,null,null,null,null,null,null,null,null,null,null,null,null,null,null,null,null,null,null,null,null,null,null,null,null,null,{"$f":"J13+V13","v":0},null,null,{"$f":"M13+Y13","v":0},null,null,{"$f":"P13+AB13","v":0},null,null,{"$f":"S13+AE13","v":0},null,null,null,{"$f":"SUM(AI13,AO13)","v":0},null,null,{"$f":"SUM(AL13,AR13)","v":0}]
[{"$f":"IF(Settings_Language = \"English\",SectionE_4Years,SectionE_4Years_Arabic)","v":"4 سنوات"},null,null,null,null,null,null,null,null,null,null,null,null,null,null,null,null,null,null,null,null,null,null,null,null,null,null,null,null,null,null,null,null,null,{"$f":"J14+V14","v":0},null,null,{"$f":"M14+Y14","v":0},null,null,{"$f":"P14+AB14","v":0},null,null,{"$f":"S14+AE14","v":0},null,null,null,{"$f":"SUM(AI14,AO14)","v":0},null,null,{"$f":"SUM(AL14,AR14)","v":0}]
[{"$f":"IF(Settings_Language = \"English\",SectionE_5Years,SectionE_5Years_Arabic)","v":"5 سنوات"},null,null,null,null,null,null,null,null,null,null,null,null,null,null,null,null,null,null,null,null,null,null,null,null,null,null,null,null,null,null,null,null,null,0,null,null,0,null,null,0,null,null,0,null,null,null,0,null,null,0]
[{"$f":"IF(Settings_Language = \"English\",SectionE_Above5Years,SectionE_Above5Years_Arabic)","v":"اكبر من 5 سنوات"},null,null,null,null,null,null,null,null,null,null,null,null,null,null,null,null,null,null,null,null,null,null,null,null,null,null,null,null,null,null,null,null,null,0,null,null,0,null,null,0,null,null,0,null,null,null,0,null,null,0]
[]
[{"$f":"IF(Settings_Language = \"English\",SectionE_Total,SectionE_Total_Arabic)","v":"الاجمالي"},null,null,null,null,null,null,null,null,{"$f":"SUM(J13:L17)","v":0},null,null,{"$f":"SUM(M13:O16)","v":0},null,null,{"$f":"SUM(P13:R16)","v":0},null,null,{"$f":"SUM(S13:U16)","v":0},null,null,{"$f":"SUM(V13:X16)","v":0},null,null,{"$f":"SUM(Y13:AA16)","v":0},null,null,{"$f":"SUM(AB13:AD16)","v":0},null,null,{"$f":"SUM(AE13:AG16)","v":0},null,null,null,{"$f":"SUM(AI13:AK16)","v":0},null,null,{"$f":"SUM(AL13:AN16)","v":0},null,null,{"$f":"SUM(AO13:AQ16)","v":0},null,null,{"$f":"SUM(AR13:AT16)","v":0},null,null,null,{"$f":"SUM(AV13:AX16)","v":0},null,null,{"$f":"SUM(AY13:BA16)","v":0}]
[{"$f":"IF(Settings_Language = \"English\",SectionE_PresentOnCensusDay,SectionE_PresentOnCensusDay_Arabic)","v":"موجودون يوم الاحصاء"},null,null,null,null,null,null,null,null,null,null,null,null,null,null,null,null,null,null,null,null,null,null,null,null,null,null,null,null,null,null,null,null,null,{"$f":"J19+V19","v":0},null,null,{"$f":"M19+Y19","v":0},null,null,{"$f":"P19+AB19","v":0},null,null,{"$f":"S19+AE19","v":0},null,null,null,{"$f":"SUM(AI19,AO19)","v":0},null,null,{"$f":"SUM(AL19,AR19)","v":0}]
[]
[{"$f":"IF(Settings_Language = \"English\",SectionE_E2,SectionE_E2_Arabic)","v":"جـ2: قيد الطلاب برياض الاطفال حسب الجنسية والجنس"}]
[null,null,null,null,null,null,null,null,null,{"$f":"IF(Settings_Language = \"English\",SectionE_KG1,SectionE_KG1_Arabic)","v":"رياض 1 (كي جي 1)"},null,null,null,null,null,{"$f":"IF(Settings_Language = \"English\",SectionE_KG2,SectionE_KG2_Arabic)","v":"رياض 2 (كي جي 2)"},null,null,null,null,null,null,{"$f":"IF(Settings_Language = \"English\",SectionE_Total,SectionE_Total_Arabic)","v":"الاجمالي"}]
[null,null,null,null,null,null,null,null,null,{"$f":"IF(Settings_Language = \"English\",SectionE_M,SectionE_M_Arabic)","v":"ذكور"},null,null,{"$f":"IF(Settings_Language = \"English\",SectionE_F,SectionE_F_Arabic)","v":"إناث"},null,null,{"$f":"IF(Settings_Language = \"English\",SectionE_M,SectionE_M_Arabic)","v":"ذكور"},null,null,{"$f":"IF(Settings_Language = \"English\",SectionE_F,SectionE_F_Arabic)","v":"إناث"},null,null,null,{"$f":"IF(Settings_Language = \"English\",SectionE_M,SectionE_M_Arabic)","v":"ذكور"},null,null,{"$f":"IF(Settings_Language = \"English\",SectionE_F,SectionE_F_Arabic)","v":"إناث"}]
[{"$f":"IF(Settings_Language = \"English\",SectionE_Libyan,SectionE_Libyan_Arabic)","v":"ليبيون"},null,null,null,null,null,null,null,null,null,null,null,null,null,null,null,null,null,null,null,null,null,{"$f":"E_E2_PupilEnrolmentForNationalitySex_KG1_M+E_E2_PupilEnrolmentForNationalitySex_KG2_M","v":0},null,null,{"$f":"E_E2_PupilEnrolmentForNationalitySex_KG1_F+E_E2_PupilEnrolmentForNationalitySex_KG2_F","v":0}]
[{"$f":"IF(Settings_Language = \"English\",SectionE_Egyptian,SectionE_Egyptian_Arabic)","v":"مصريون"},null,null,null,null,null,null,null,null,null,null,null,null,null,null,null,null,null,null,null,null,null,{"$f":"J25+P25","v":0},null,null,{"$f":"M25+S25","v":0}]
[{"$f":"IF(Settings_Language = \"English\",SectionE_Iraq,SectionE_Iraq_Arabic)","v":"عراقيون"},null,null,null,null,null,null,null,null,null,null,null,null,null,null,null,null,null,null,null,null,null,0,null,null,0]
[{"$f":"IF(Settings_Language = \"English\",SectionE_Palestinian,SectionE_Palestinian_Arabic)","v":"فلسطينيون"},null,null,null,null,null,null,null,null,null,null,null,null,null,null,null,null,null,null,null,null,null,0,null,null,0]
[{"$f":"IF(Settings_Language = \"English\",SectionE_Syrian,SectionE_Syrian_Arabic)","v":"سوريون"},null,null,null,null,null,null,null,null,null,null,null,null,null,null,null,null,null,null,null,null,null,0,null,null,0]
[{"$f":"IF(Settings_Language = \"English\",SectionE_Tunisians,SectionE_Tunisians_Arabic)","v":"تونسيون"},null,null,null,null,null,null,null,null,null,null,null,null,null,null,null,null,null,null,null,null,null,0,null,null,0]
[{"$f":"IF(Settings_Language = \"English\",SectionE_Other,SectionE_Other_Arabic)","v":"غيرهم"},null,null,null,null,null,null,null,null,null,null,null,null,null,null,null,null,null,null,null,null,null,0,null,null,0]
[]
[{"$f":"IF(Settings_Language = \"English\",SectionE_Total,SectionE_Total_Arabic)","v":"الاجمالي"},null,null,null,null,null,null,null,null,{"$f":"SUM(INDIRECT(CELL(\"address\", E2_KG1_M)&\":\"&ADDRESS(ROW()-2,COLUMN(),4)))","v":0},null,null,{"$f":"SUM(INDIRECT(CELL(\"address\", E2_KG1_F)&\":\"&ADDRESS(ROW()-2,COLUMN(),4)))","v":0},null,null,{"$f":"SUM(INDIRECT(CELL(\"address\", E2_KG2_M)&\":\"&ADDRESS(ROW()-2,COLUMN(),4)))","v":0},null,null,{"$f":"SUM(INDIRECT(CELL(\"address\", E2_KG2_F)&\":\"&ADDRESS(ROW()-2,COLUMN(),4)))","v":0},null,null,null,{"$f":"SUM(INDIRECT(CELL(\"address\", E2_Tot_M)&\":\"&ADDRESS(ROW()-2,COLUMN(),4)))","v":0},null,null,{"$f":"SUM(INDIRECT(CELL(\"address\", E2_Tot_F)&\":\"&ADDRESS(ROW()-2,COLUMN(),4)))","v":0}]
[]
[{"$f":"IF(Settings_Language = \"English\",SectionE_E3,SectionE_E3_Arabic)","v":"هـ.3: عدد الاطفال الايتام والمعرضون حسب سنة الدراسة والجنس"}]
[null,null,null,null,null,null,null,null,null,{"$f":"IF(Settings_Language = \"English\",SectionE_KG1,SectionE_KG1_Arabic)","v":"رياض 1 (كي جي 1)"},null,null,null,null,null,{"$f":"IF(Settings_Language = \"English\",SectionE_KG2,SectionE_KG2_Arabic)","v":"رياض 2 (كي جي 2)"},null,null,null,null,null,null,{"$f":"IF(Settings_Language = \"English\",SectionE_Total,SectionE_Total_Arabic)","v":"الاجمالي"}]
[null,null,null,null,null,null,null,null,null,{"$f":"IF(Settings_Language = \"English\", SectionE_M,SectionE_M_Arabic)","v":"ذكور"},null,null,{"$f":"IF(Settings_Language = \"English\", SectionE_F,SectionE_F_Arabic)","v":"إناث"},null,null,{"$f":"IF(Settings_Language = \"English\", SectionE_M,SectionE_M_Arabic)","v":"ذكور"},null,null,{"$f":"IF(Settings_Language = \"English\", SectionE_F,SectionE_F_Arabic)","v":"إناث"},null,null,null,{"$f":"IF(Settings_Language = \"English\",SectionE_M,SectionE_M_Arabic)","v":"ذكور"},null,null,{"$f":"IF(Settings_Language = \"English\",SectionE_F,SectionE_F_Arabic)","v":"إناث"}]
[{"$f":"IF(Settings_Language = \"English\",SectionE_SingleOrphansMaternal,SectionE_SingleOrphansMaternal_Arabic)","v":"يتيم الام"},null,null,null,null,null,null,null,null,null,null,null,null,null,null,null,null,null,null,null,null,null,{"$f":"J37+P37","v":0},null,null,{"$f":"M37+S37","v":0}]
[{"$f":"IF(Settings_Language = \"English\",SectionE_SingleOrphansPaternal,SectionE_SingleOrphansPaternal_Arabic)","v":"يتيم الاب"},null,null,null,null,null,null,null,null,null,null,null,null,null,null,null,null,null,null,null,null,null,{"$f":"J38+P38","v":0},null,null,{"$f":"M38+S38","v":0}]
[{"$f":"IF(Settings_Language = \"English\",SectionE_DoubleOrphans,SectionE_DoubleOrphans_Arabic)","v":"يتم الابوين"},null,null,null,null,null,null,null,null,null,null,null,null,null,null,null,null,null,null,null,null,null,{"$f":"J39+P39","v":0},null,null,{"$f":"M39+S39","v":0}]
[{"$f":"IF(Settings_Language = \"English\",SectionE_VulnerableButNotOrphaned,SectionE_VulnerableButNotOrphaned_Arabic)","v":"معرضون وليسوا يتامى"},null,null,null,null,null,null,null,null,null,null,null,null,null,null,null,null,null,null,null,null,null,{"$f":"J40+P40","v":0},null,null,{"$f":"M40+S40","v":0}]
[]
[{"$f":"IF(Settings_Language = \"English\",SectionE_Total,SectionE_Total_Arabic)","v":"الاجمالي"},null,null,null,null,null,null,null,null,{"$f":"SUM(J37:L40)","v":0},null,null,{"$f":"SUM(M37:O40)","v":0},null,null,{"$f":"SUM(P37:R40)","v":0},null,null,{"$f":"SUM(S37:U40)","v":0},null,null,null,{"$f":"SUM(W37:Y40)","v":0},null,null,{"$f":"SUM(Z37:AB40)","v":0}]

{"sheet":"SECTION F","index":6,"n_rows":163,"n_cols":51,"rows_kept":163,"cut":false,"hidden":false,"merged":[[158,0,158,6],[92,29,92,30],[92,31,92,32],[92,33,92,34],[92,35,92,36],[92,37,92,38],[92,39,92,40],[92,7,92,8],[92,9,92,10],[92,11,92,12],[92,13,92,14],[92,15,92,16],[91,31,91,34],[91,35,91,38],[91,39,91,42],[93,35,93,36],[125,11,125,12],[125,13,125,14],[125,15,125,16],[125,17,125,18],[125,19,125,20],[126,11,126,12],[126,13,126,14],[150,0,150,6],[124,9,124,10],[124,11,124,12],[124,13,124,14],[124,15,124,16],[124,17,124,18],[124,19,124,20],[123,21,123,24],[136,0,136,6],[137,0,137,6],[138,0,138,6],[139,0,139,6],[140,0,140,6],[88,39,88,40],[88,41,88,42],[88,35,88,36],[88,37,88,38],[91,7,91,10],[91,11,91,14],[91,15,91,18],[160,0,160,6],[120,31,120,32],[120,9,120,10],[120,11,120,12],[120,13,120,14],[120,15,120,16],[120,17,120,18],[120,19,120,20],[120,21,120,22],[120,23,120,24],[120,25,120,26],[120,27,120,28],[120,29,120,30],[123,29,123,32],[151,0,151,6],[148,0,148,6],[149,0,149,6],[155,0,155,6],[156,0,156,6],[157,0,157,6],[152,0,152,6],[153,0,153,6],[154,0,154,6],[123,25,123,28],[125,9,125,10],[25,14,25,15],[25,16,25,17],[25,18,25,19],[28,15,29,24],[51,25,51,26],[54,0,54,6],[55,0,55,6],[141,0,141,6],[143,0,143,6],[123,33,123,36],[123,37,123,40],[88,0,88,6],[90,0,90,47],[95,0,95,42],[100,0,100,42],[108,0,108,42],[93,0,93,6],[98,0,98,6],[103,0,103,6],[104,0,104,6],[105,0,105,6],[106,0,106,6],[120,0,120,6],[125,0,125,8],[127,0,127,8],[128,0,128,8],[130,0,130,8],[88,29,88,30],[22,12,22,13],[22,14,22,15],[22,16,22,17],[31,20,31,24],[37,9,37,11],[56,0,56,6],[57,0,57,6],[23,24,23,25],[23,26,23,27],[92,27,92,28],[39,20,39,24],[28,9,29,14],[58,0,58,6],[59,0,59,6],[60,0,60,6],[61,0,61,6],[63,0,63,6],[59,7,59,8],[58,15,58,16],[51,7,51,8],[51,11,51,12],[51,13,51,14],[58,19,58,20],[58,21,58,22],[58,23,58,24],[91,27,91,30],[71,0,71,6],[72,0,72,6],[30,9,30,11],[30,12,30,14],[30,26,30,28],[50,7,50,8],[35,26,35,28],[39,26,39,28],[49,27,49,30],[49,7,49,10],[49,11,49,14],[49,15,49,18],[49,19,49,22],[49,23,49,26],[88,31,88,32],[88,33,88,34],[37,29,37,31],[35,29,35,31],[52,13,52,14],[52,15,52,16],[54,7,54,8],[54,9,54,10],[54,11,54,12],[54,13,54,14],[54,15,54,16],[55,19,55,20],[54,17,54,18],[53,17,53,18],[53,19,53,20],[53,21,53,22],[53,23,53,24],[37,0,37,8],[53,7,53,8],[53,9,53,10],[53,11,53,12],[55,7,55,8],[55,9,55,10],[55,11,55,12],[55,13,55,14],[23,0,23,9],[24,26,24,27],[23,22,23,23],[30,15,30,19],[23,20,23,21],[28,26,29,31],[30,20,30,24],[50,19,50,20],[50,17,50,18],[50,21,50,22],[50,23,50,24],[53,29,53,30],[53,27,53,28],[23,12,23,13],[25,20,25,21],[24,20,24,21],[24,22,24,23],[24,24,24,25],[25,22,25,23],[25,24,25,25],[39,0,39,8],[25,10,25,11],[25,12,25,13],[23,14,23,15],[23,16,23,17],[50,9,50,10],[50,11,50,12],[50,13,50,14],[23,18,23,19],[53,13,53,14],[53,15,53,16],[22,18,22,19],[49,31,49,34],[30,29,30,31],[32,0,32,8],[32,12,32,14],[32,15,32,19],[32,20,32,24],[25,26,25,27],[34,0,34,8],[34,9,34,11],[39,15,39,19],[35,20,35,24],[36,0,36,8],[36,9,36,11],[27,0,27,31],[48,0,48,42],[33,20,33,24],[33,26,33,28],[37,26,37,28],[32,29,32,31],[33,0,33,8],[33,9,33,11],[33,29,33,31],[34,29,34,31],[36,29,36,31],[34,12,34,14],[34,15,34,19],[39,29,39,31],[22,20,22,21],[24,0,24,9],[25,0,25,9],[23,10,23,11],[22,26,22,27],[20,0,20,27],[15,0,16,21],[9,46,9,47],[17,0,18,21],[15,22,16,25],[17,22,18,25],[11,38,11,39],[12,38,12,39],[11,10,11,11],[12,10,12,11],[11,14,11,15],[12,14,12,15],[13,28,13,29],[21,10,21,27],[22,10,22,11],[22,22,22,23],[22,24,22,25],[12,34,12,35],[11,42,11,43],[12,42,12,43],[10,24,10,25],[11,24,11,25],[12,24,12,25],[10,44,10,45],[11,44,11,45],[12,44,12,45],[9,42,9,43],[9,44,9,45],[9,16,9,17],[10,16,10,17],[11,16,11,17],[0,0,0,31],[10,34,10,35],[10,38,10,39],[10,18,10,19],[2,0,2,31],[10,10,10,11],[17,30,18,31],[10,14,10,15],[10,26,10,27],[10,30,10,31],[10,22,10,23],[33,12,33,14],[33,15,33,19],[24,10,24,11],[24,12,24,13],[24,14,24,15],[24,16,24,17],[24,18,24,19],[14,26,14,29],[15,26,16,29],[15,30,16,31],[7,10,7,45],[8,42,8,45],[9,36,9,37],[12,22,12,23],[11,30,11,31],[12,30,12,31],[17,26,18,29],[11,34,11,35],[32,26,32,28],[10,0,10,9],[11,26,11,27],[42,0,46,30],[37,12,37,14],[37,15,37,19],[37,20,37,24],[51,15,51,16],[51,17,51,18],[51,19,51,20],[51,9,51,10],[52,17,52,18],[39,12,39,14],[53,0,53,6],[39,9,39,11],[52,7,52,8],[52,9,52,10],[52,11,52,12],[51,0,51,6],[52,0,52,6],[50,15,50,16],[50,39,50,40],[51,39,51,40],[52,39,52,40],[50,41,50,42],[51,41,51,42],[52,41,52,42],[31,29,31,31],[31,15,31,19],[31,0,31,8],[31,9,31,11],[31,12,31,14],[31,26,31,28],[59,19,59,20],[58,7,58,8],[58,9,58,10],[58,11,58,12],[58,13,58,14],[56,7,56,8],[56,9,56,10],[56,11,56,12],[56,13,56,14],[56,15,56,16],[57,15,57,16],[51,27,51,28],[52,25,52,26],[52,27,52,28],[53,25,53,26],[52,19,52,20],[52,21,52,22],[34,20,34,24],[34,26,34,28],[36,26,36,28],[59,13,59,14],[55,31,55,32],[56,29,56,30],[56,31,56,32],[59,27,59,28],[54,25,54,26],[54,27,54,28],[55,21,55,22],[55,23,55,24],[57,17,57,18],[56,25,56,26],[56,27,56,28],[57,25,57,26],[49,35,49,38],[49,39,49,42],[50,25,50,26],[50,27,50,28],[54,19,54,20],[54,21,54,22],[54,23,54,24],[52,23,52,24],[50,29,50,30],[50,31,50,32],[51,29,51,30],[51,31,51,32],[52,29,52,30],[52,31,52,32],[51,21,51,22],[51,23,51,24],[59,21,59,22],[53,41,53,42],[54,35,54,36],[54,41,54,42],[55,33,55,34],[55,35,55,36],[56,33,56,34],[56,35,56,36],[60,29,60,30],[60,31,60,32],[50,33,50,34],[50,35,50,36],[51,33,51,34],[51,35,51,36],[52,33,52,34],[52,35,52,36],[53,33,53,34],[53,35,53,36],[57,29,57,30],[57,31,57,32],[58,29,58,30],[58,31,58,32],[59,29,59,30],[59,31,59,32],[50,37,50,38],[51,37,51,38],[52,37,52,38],[53,31,53,32],[54,29,54,30],[54,31,54,32],[55,29,55,30],[59,33,59,34],[59,35,59,36],[54,33,54,34],[53,37,53,38],[53,39,53,40],[57,33,57,34],[57,35,57,36],[58,33,58,34],[58,35,58,36],[58,37,58,38],[58,39,58,40],[59,37,59,38],[59,39,59,40],[54,37,54,38],[54,39,54,40],[55,37,55,38],[61,7,61,8],[61,9,61,10],[61,11,61,12],[61,13,61,14],[61,15,61,16],[60,7,60,8],[60,9,60,10],[60,11,60,12],[60,13,60,14],[60,15,60,16],[57,19,57,20],[57,21,57,22],[57,23,57,24],[56,23,56,24],[57,7,57,8],[57,9,57,10],[57,11,57,12],[57,13,57,14],[59,9,59,10],[59,11,59,12],[59,15,59,16],[59,17,59,18],[61,41,61,42],[60,25,60,26],[60,27,60,28],[60,17,60,18],[60,19,60,20],[60,21,60,22],[60,23,60,24],[55,15,55,16],[56,17,56,18],[56,19,56,20],[56,21,56,22],[55,17,55,18],[55,27,55,28],[58,17,58,18],[57,27,57,28],[58,25,58,26],[58,27,58,28],[59,25,59,26],[61,35,61,36],[61,37,61,38],[61,21,61,22],[59,23,59,24],[61,17,61,18],[61,19,61,20],[55,25,55,26],[58,41,58,42],[59,41,59,42],[60,41,60,42],[60,37,60,38],[60,39,60,40],[60,33,60,34],[60,35,60,36],[65,21,66,22],[65,23,66,24],[65,25,66,26],[65,27,66,28],[63,39,63,40],[65,41,66,42],[55,41,55,42],[56,41,56,42],[57,41,57,42],[57,37,57,38],[57,39,57,40],[55,39,55,40],[56,37,56,38],[56,39,56,40],[61,39,61,40],[61,31,61,32],[63,27,63,28],[61,33,61,34],[61,23,61,24],[61,25,61,26],[61,27,61,28],[61,29,61,30],[70,9,70,10],[70,11,70,12],[70,13,70,14],[70,15,70,16],[70,17,70,18],[70,19,70,20],[70,21,70,22],[70,35,70,36],[70,37,70,38],[70,39,70,40],[70,41,70,42],[69,27,69,30],[69,31,69,34],[65,19,66,20],[65,15,66,16],[70,25,70,26],[63,37,63,38],[69,19,69,22],[69,23,69,26],[72,23,72,24],[72,25,72,26],[72,27,72,28],[72,29,72,30],[72,31,72,32],[72,33,72,34],[72,35,72,36],[72,37,72,38],[72,39,72,40],[72,7,72,8],[72,9,72,10],[72,11,72,12],[72,13,72,14],[72,15,72,16],[63,7,63,8],[63,9,63,10],[63,11,63,12],[63,13,63,14],[63,15,63,16],[63,17,63,18],[63,19,63,20],[63,21,63,22],[63,23,63,24],[63,25,63,26],[63,29,63,30],[63,31,63,32],[63,35,63,36],[69,35,69,38],[69,39,69,42],[70,7,70,8],[71,27,71,28],[71,29,71,30],[71,31,71,32],[71,33,71,34],[72,17,72,18],[78,31,78,32],[78,33,78,34],[63,41,63,42],[63,33,63,34],[65,9,66,10],[65,11,66,12],[65,13,66,14],[65,37,66,38],[65,39,66,40],[65,29,66,30],[68,0,68,42],[65,17,66,18],[65,31,66,32],[65,33,66,34],[65,35,66,36],[65,0,66,6],[65,7,66,8],[71,35,71,36],[71,37,71,38],[71,39,71,40],[74,25,74,26],[74,27,74,28],[70,27,70,28],[70,29,70,30],[70,31,70,32],[70,33,70,34],[69,15,69,18],[71,15,71,16],[71,17,71,18],[72,41,72,42],[72,19,72,20],[72,21,72,22],[85,39,85,40],[85,19,85,20],[85,21,85,22],[85,23,85,24],[85,25,85,26],[80,27,80,28],[80,29,80,30],[81,25,81,26],[81,27,81,28],[83,35,83,36],[85,9,85,10],[85,11,85,12],[85,13,85,14],[85,15,85,16],[85,27,85,28],[85,33,85,34],[78,17,78,18],[78,37,78,38],[84,37,84,38],[84,29,84,30],[84,31,84,32],[84,33,84,34],[79,39,79,40],[77,31,77,34],[77,35,77,38],[74,41,74,42],[80,37,80,38],[81,41,81,42],[76,0,76,42],[71,41,71,42],[71,19,71,20],[71,21,71,22],[71,23,71,24],[71,25,71,26],[78,39,78,40],[83,17,83,18],[79,13,79,14],[79,15,79,16],[78,19,78,20],[78,21,78,22],[74,29,74,30],[78,41,78,42],[81,29,81,30],[81,31,81,32],[81,33,81,34],[81,35,81,36],[81,37,81,38],[80,39,80,40],[80,41,80,42],[74,31,74,32],[74,33,74,34],[74,35,74,36],[74,37,74,38],[74,39,74,40],[79,41,79,42],[79,29,79,30],[79,31,79,32],[79,33,79,34],[79,35,79,36],[79,37,79,38],[80,33,80,34],[77,39,77,42],[77,19,77,22],[77,23,77,26],[77,27,77,30],[78,27,78,28],[91,19,91,22],[91,23,91,26],[80,31,80,32],[80,25,80,26],[80,21,80,22],[85,35,85,36],[85,37,85,38],[85,41,85,42],[84,39,84,40],[84,41,84,42],[85,17,85,18],[80,13,80,14],[80,15,80,16],[80,23,80,24],[78,25,78,26],[78,35,78,36],[79,19,79,20],[79,21,79,22],[79,25,79,26],[79,27,79,28],[79,17,79,18],[81,39,81,40],[82,39,82,40],[82,41,82,42],[78,13,78,14],[78,15,78,16],[83,41,83,42],[83,15,83,16],[93,37,93,38],[93,39,93,40],[81,9,81,10],[81,11,81,12],[82,29,82,30],[82,31,82,32],[85,29,85,30],[85,31,85,32],[84,35,84,36],[97,31,97,32],[97,33,97,34],[97,35,97,36],[97,37,97,38],[97,17,97,18],[92,19,92,20],[97,19,97,20],[97,21,97,22],[97,23,97,24],[97,25,97,26],[83,39,83,40],[82,35,82,36],[82,37,82,38],[83,37,83,38],[83,23,83,24],[83,25,83,26],[83,27,83,28],[83,29,83,30],[83,31,83,32],[83,33,83,34],[82,33,82,34],[98,27,98,28],[88,7,88,8],[88,9,88,10],[88,11,88,12],[88,27,88,28],[80,17,80,18],[80,19,80,20],[81,15,81,16],[81,17,81,18],[80,35,80,36],[96,39,96,42],[96,27,96,30],[96,31,96,34],[93,7,93,8],[93,9,93,10],[93,11,93,12],[93,13,93,14],[93,15,93,16],[93,17,93,18],[88,19,88,20],[88,21,88,22],[88,23,88,24],[88,25,88,26],[92,17,92,18],[93,19,93,20],[93,21,93,22],[93,23,93,24],[92,41,92,42],[83,7,83,8],[83,9,83,10],[83,11,83,12],[83,13,83,14],[93,41,93,42],[93,29,93,30],[98,17,98,18],[92,21,92,22],[92,23,92,24],[92,25,92,26],[101,39,101,42],[101,27,101,30],[98,31,98,32],[98,33,98,34],[98,35,98,36],[98,37,98,38],[98,39,98,40],[98,41,98,42],[98,29,98,30],[97,39,97,40],[97,41,97,42],[97,27,97,28],[97,29,97,30],[93,27,93,28],[93,31,93,32],[93,33,93,34],[101,19,101,22],[101,23,101,26],[93,25,93,26],[101,31,101,34],[101,35,101,38],[96,35,96,38],[98,19,98,20],[98,21,98,22],[98,23,98,24],[98,25,98,26],[91,44,91,47],[92,44,92,45],[92,46,92,47],[93,44,93,45],[93,46,93,47],[96,7,96,10],[96,11,96,14],[96,15,96,18],[96,19,96,22],[96,23,96,26],[103,41,103,42],[103,19,103,20],[103,21,103,22],[103,23,103,24],[103,25,103,26],[103,27,103,28],[103,29,103,30],[103,31,103,32],[102,13,102,14],[102,15,102,16],[102,39,102,40],[102,41,102,42],[102,19,102,20],[102,21,102,22],[102,23,102,24],[102,25,102,26],[102,27,102,28],[98,7,98,8],[98,9,98,10],[98,11,98,12],[98,13,98,14],[98,15,98,16],[102,29,102,30],[102,31,102,32],[102,33,102,34],[102,35,102,36],[102,37,102,38],[102,17,102,18],[104,41,104,42],[104,19,104,20],[104,21,104,22],[104,23,104,24],[104,25,104,26],[104,27,104,28],[104,29,104,30],[103,33,103,34],[103,35,103,36],[103,37,103,38],[103,39,103,40],[104,39,104,40],[103,17,103,18],[105,41,105,42],[105,19,105,20],[105,21,105,22],[105,23,105,24],[105,25,105,26],[105,27,105,28],[105,29,105,30],[105,31,105,32],[105,33,105,34],[105,35,105,36],[105,37,105,38],[105,39,105,40],[104,31,104,32],[104,33,104,34],[104,35,104,36],[104,37,104,38],[104,17,104,18],[106,33,106,34],[106,35,106,36],[106,37,106,38],[106,39,106,40],[106,41,106,42],[106,29,106,30],[106,7,106,8],[106,9,106,10],[106,11,106,12],[106,13,106,14],[106,15,106,16],[106,17,106,18],[106,19,106,20],[106,21,106,22],[106,23,106,24],[106,25,106,26],[106,27,106,28],[106,31,106,32],[109,39,109,42],[111,41,111,42],[110,7,110,8],[110,9,110,10],[110,11,110,12],[110,13,110,14],[110,15,110,16],[110,17,110,18],[110,19,110,20],[109,7,109,10],[109,11,109,14],[109,15,109,18],[109,19,109,22],[109,23,109,26],[109,27,109,30],[110,41,110,42],[111,21,111,22],[111,23,111,24],[111,25,111,26],[109,31,109,34],[109,35,109,38],[110,21,110,22],[111,37,111,38],[111,39,111,40],[110,25,110,26],[110,27,110,28],[110,29,110,30],[110,31,110,32],[111,27,111,28],[110,33,110,34],[110,35,110,36],[112,15,112,16],[112,17,112,18],[112,19,112,20],[112,21,112,22],[112,23,112,24],[113,7,113,8],[113,9,113,10],[113,11,113,12],[113,13,113,14],[113,15,113,16],[112,41,112,42],[111,7,111,8],[111,9,111,10],[112,25,112,26],[112,27,112,28],[112,29,112,30],[112,31,112,32],[112,33,112,34],[112,35,112,36],[111,29,111,30],[111,31,111,32],[111,33,111,34],[111,35,111,36],[114,19,114,20],[114,21,114,22],[114,23,114,24],[114,25,114,26],[113,31,113,32],[114,27,114,28],[113,33,113,34],[113,35,113,36],[113,37,113,38],[113,21,113,22],[113,23,113,24],[113,25,113,26],[113,27,113,28],[113,29,113,30],[110,37,110,38],[110,39,110,40],[113,41,113,42],[116,9,116,10],[116,11,116,12],[116,13,116,14],[116,15,116,16],[112,37,112,38],[112,39,112,40],[115,37,115,38],[115,39,115,40],[115,41,115,42],[114,7,114,8],[114,9,114,10],[114,11,114,12],[114,13,114,14],[114,15,114,16],[114,41,114,42],[115,7,115,8],[115,9,115,10],[115,11,115,12],[115,13,115,14],[115,15,115,16],[115,17,115,18],[115,19,115,20],[115,21,115,22],[115,23,115,24],[114,29,114,30],[114,31,114,32],[114,33,114,34],[114,35,114,36],[114,37,114,38],[114,39,114,40],[113,39,113,40],[114,17,114,18],[120,37,120,38],[120,39,120,40],[120,41,120,42],[120,33,120,34],[122,0,122,44],[120,35,120,36],[116,33,116,34],[116,35,116,36],[116,37,116,38],[116,39,116,40],[117,17,117,18],[117,19,117,20],[115,31,115,32],[115,33,115,34],[115,35,115,36],[116,41,116,42],[117,7,117,8],[117,9,117,10],[117,11,117,12],[117,13,117,14],[117,15,117,16],[116,21,116,22],[116,23,116,24],[116,25,116,26],[116,27,116,28],[116,29,116,30],[116,31,116,32],[117,27,117,28],[116,17,116,18],[116,19,116,20],[115,25,115,26],[115,27,115,28],[124,31,124,32],[118,39,118,40],[118,41,118,42],[118,25,118,26],[118,27,118,28],[118,29,118,30],[118,31,118,32],[118,33,118,34],[118,35,118,36],[118,7,118,8],[118,9,118,10],[118,11,118,12],[118,13,118,14],[118,15,118,16],[123,9,123,12]],"merged_total":1725,"flags":["merged_cut"]}
[{"$f":"IF(Settings_Language = \"English\",SectionF_Title,SectionF_Title_Arabic)","v":"القسم حـ: القيد والالتحاق بالتعليم الاساسي"}]
[]
[{"$f":"IF(Settings_Language = \"English\",SectionF_F1,SectionF_F1_Arabic)","v":"حـ.1: جدول الاجماليات"}]
[{"$f":"IF(Settings_Language = \"English\",SectionF_Instruction,SectionF_Instruction_Arabic)","v":"التعليمات"}]
[{"$f":"IF(Settings_Language = \"English\",SectionF_F1_InstructionDesc,SectionF_F1_InstructionDesc_Arabic)","v":"يرجى التأكد من أن  إلاجماليات الصادرة عن هذا الجدول مطابقة للإجماليات الصادرة عن الجداول الاخرى وفق ما هو موجود في الخانة المعرفة (مرجعية)"}]
[]
[]
[null,null,null,null,null,null,null,null,null,null,{"$f":"IF(Settings_Language = \"English\",SectionF_SchoolYears,SectionF_SchoolYears_Arabic)","v":"االقيد للعام الدراسي الحالي"}]
[null,null,null,null,null,null,null,null,null,null,1,null,null,null,2,null,null,null,3,null,null,null,4,null,null,null,5,null,null,null,6,null,null,null,7,null,null,null,8,null,null,null,9,null,null,null,{"$f":"IF(Settings_Language = \"English\",SectionF_Total,SectionF_Total_Arabic)","v":"الاجمالي"},null,null,null,{"$f":"IF(Settings_Language = \"English\",SectionF_REF,SectionF_REF_Arabic)","v":"المرجع"}]
[null,null,null,null,null,null,null,null,null,null,{"$f":"IF(Settings_Language = \"English\",SectionF_Local,SectionF_Local_Arabic)","v":"مقيمون"},null,{"$f":"IF(Settings_Language =\"English\",SectionF_IDP,SectionF_IDP_Arabic)","v":"نازحون"},null,{"$f":"IF(Settings_Language = \"English\",SectionF_Local,SectionF_Local_Arabic)","v":"مقيمون"},null,{"$f":"IF(Settings_Language =\"English\",SectionF_IDP,SectionF_IDP_Arabic)","v":"نازحون"},null,{"$f":"IF(Settings_Language = \"English\",SectionF_Local,SectionF_Local_Arabic)","v":"مقيمون"},null,{"$f":"IF(Settings_Language =\"English\",SectionF_IDP,SectionF_IDP_Arabic)","v":"نازحون"},null,{"$f":"IF(Settings_Language = \"English\",SectionF_Local,SectionF_Local_Arabic)","v":"مقيمون"},null,{"$f":"IF(Settings_Language =\"English\",SectionF_IDP,SectionF_IDP_Arabic)","v":"نازحون"},null,{"$f":"IF(Settings_Language = \"English\",SectionF_Local,SectionF_Local_Arabic)","v":"مقيمون"},null,{"$f":"IF(Settings_Language =\"English\",SectionF_IDP,SectionF_IDP_Arabic)","v":"نازحون"},null,{"$f":"IF(Settings_Language = \"English\",SectionF_Local,SectionF_Local_Arabic)","v":"مقيمون"},null,{"$f":"IF(Settings_Language =\"English\",SectionF_IDP,SectionF_IDP_Arabic)","v":"نازحون"},null,{"$f":"IF(Settings_Language = \"English\",SectionF_Local,SectionF_Local_Arabic)","v":"مقيمون"},null,{"$f":"IF(Settings_Language =\"English\",SectionF_IDP,SectionF_IDP_Arabic)","v":"نازحون"},null,{"$f":"IF(Settings_Language = \"English\",SectionF_Local,SectionF_Local_Arabic)","v":"مقيمون"},null,{"$f":"IF(Settings_Language =\"English\",SectionF_IDP,SectionF_IDP_Arabic)","v":"نازحون"},null,{"$f":"IF(Settings_Language = \"English\",SectionF_Local,SectionF_Local_Arabic)","v":"مقيمون"},null,{"$f":"IF(Settings_Language =\"English\",SectionF_IDP,SectionF_IDP_Arabic)","v":"نازحون"},null,{"$f":"IF(Settings_Language = \"English\",SectionF_Local,SectionF_Local_Arabic)","v":"مقيمون"},null,{"$f":"IF(Settings_Language =\"English\",SectionF_IDP,SectionF_IDP_Arabic)","v":"نازحون"}]
[{"$f":"IF(Settings_Language = \"English\",SectionF_CurrentYearsEnrolments,SectionF_CurrentYearsEnrolments_Arabic)","v":"إجمالي القيد لهذه السنة"},null,null,null,null,null,null,null,null,null,null,null,null,null,null,null,null,null,null,null,null,null,null,null,null,null,null,null,null,null,null,null,null,null,null,null,null,null,null,null,null,null,null,null,null,null,{"$f":"SUM(K11,O11,S11,W11,AA11,AE11,AI11,AM11,AQ11)","v":0},null,{"$f":"SUM( M11,Q11,U11,Y11,AC11,AG11,AK11,AO11,AS11)","v":0}]
[{"$f":"IF(Settings_Language = \"English\",SectionF_Classes,SectionF_Classes_Arabic)","v":"عدد الفصول"},null,null,null,null,null,null,null,null,null,null,null,null,null,null,null,null,null,null,null,null,null,null,null,null,null,null,null,null,null,null,null,null,null,null,null,null,null,null,null,null,null,null,null,null,null,{"$f":"SUM(K12,O12,S12,W12,AA12,AE12,AI12,AM12,AQ12)","v":0},null,{"$f":"SUM( M12,Q12,U12,Y12,AC12,AG12,AK12,AO12,AS12)","v":0}]
[{"$f":"IF(Settings_Language = \"English\",SectionF_PreviousYearsEnrolment,SectionF_PreviousYearsEnrolment_Arabic)","v":"إجمالي القيد بالسنة الماضية"},null,null,null,null,null,null,null,null,null,null,null,null,null,null,null,null,null,null,null,null,null,null,null,null,null,null,null,null,null,null,null,null,null,null,null,null,null,null,null,null,null,null,null,null,null,0,null,0]
[]
[null,null,null,null,null,null,null,null,null,null,null,null,null,null,null,null,null,null,null,null,null,null,{"$f":"IF(Settings_Language = \"English\",SectionF_KG,SectionF_KG_Arabic)","v":"رياض الاطفال"},null,null,null,{"$f":"IF(Settings_Language = \"English\",SectionF_Basic,SectionF_Basic_Arabic)","v":"التعليم الاساسي"},null,null,null,{"$f":"IF(Settings_Language = \"English\",SectionF_REF,SectionF_REF_Arabic)","v":"المرجع"}]
[{"$f":"IF(Settings_Language = \"English\",SectionF_TotalNumberOfTeachers,SectionF_TotalNumberOfTeachers_Arabic)","v":"إجمالي عدد المعلمين بوظائف بما في ذلك المدير ونائب المدير، بإستثناء من هم في أجازة او دراسة بالخارج او إعارة و غيرها"}]
[]
[{"$f":"IF(Settings_Language = \"English\",SectionF_TotalNumberofClassrooms,SectionF_TotalNumberofClassrooms_Arabic)","v":"إجمالي عدد الفصول الدراسية بما في ذلك الفصول الإضافية، بإستثناء الفصول الخاصة    (مثل فصول التقوية و المجموعات الخاصة)"}]
[]
[]
[{"$f":"IF(Settings_Language = \"English\",SectionF_F2,SectionF_F2_Arabic)","v":"حـ.2: عدد الفصول لكل فترة دراسية ولكل سنة دراسية"}]
[null,null,null,null,null,null,null,null,null,null,{"$f":"IF(Settings_Language = \"English\",SectionF_SchoolYears,SectionF_SchoolYears_Arabic)","v":"االقيد للعام الدراسي الحالي"}]
[null,null,null,null,null,null,null,null,null,null,1,null,2,null,3,null,4,null,5,null,6,null,7,null,8,null,9]
[{"$f":"IF(Settings_Language = \"English\",SectionF_Session1,SectionF_Session1_Arabic)","v":"الفترة الاولى"}]
[{"$f":"IF(Settings_Language = \"English\",SectionF_Session2,SectionF_Session2_Arabic)","v":"الفترة الثانية"}]
[{"$f":"IF(Settings_Language = \"English\",SectionF_Total,SectionF_Total_Arabic)","v":"الاجمالي"},null,null,null,null,null,null,null,null,null,{"$f":"SUM(K24:L25)","v":0},null,{"$f":"SUM(M24:N25)","v":0},null,{"$f":"SUM(O24:P25)","v":0},null,{"$f":"SUM(Q24:R25)","v":0},null,{"$f":"SUM(S24:T25)","v":0},null,{"$f":"SUM(U24:V25)","v":0},null,{"$f":"SUM(W24:X25)","v":0},null,{"$f":"SUM(Y24:Z25)","v":0},null,{"$f":"SUM(AA24:AB25)","v":0}]
[]
[{"$f":"IF(Settings_Language = \"English\",SectionF_F3,SectionF_F3_Arabic)","v":"حـ.3: عدد الملتحقين الجدد بالسنة الاولى من التعليم الابتدائي"}]
[null,null,null,null,null,null,null,null,null,{"$f":"IF(Settings_Language = \"English\",SectionF_EnteringFromKG,SectionF_EnteringFromKG_Arabic)","v":"الملتحقون عبر رياض الاطفال"},null,null,null,null,null,{"$f":"IF(Settings_Language = \"English\",SectionF_NotAttendedKG,SectionF_NotAttendedKG_Arabic)","v":"الملتحقون بدون الدخول الى  رياض الاطفال"},null,null,null,null,null,null,null,null,null,null,{"$f":"IF(Settings_Language = \"English\",SectionF_Total,SectionF_Total_Arabic)","v":"الاجمالي"}]
[]
[null,null,null,null,null,null,null,null,null,{"$f":"IF(Settings_Language = \"English\",SectionF_Male,SectionF_Male_Arabic)","v":"ذكور"},null,null,{"$f":"IF(Settings_Language = \"English\",SectionF_Female,SectionF_Female_Arabic)","v":"إناث"},null,null,{"$f":"IF(Settings_Language = \"English\",SectionF_Male,SectionF_Male_Arabic)","v":"ذكور"},null,null,null,null,{"$f":"IF(Settings_Language = \"English\",SectionF_Female,SectionF_Female_Arabic)","v":"إناث"},null,null,null,null,null,{"$f":"IF(Settings_Language = \"English\",SectionF_Male,SectionF_Male_Arabic)","v":"ذكور"},null,null,{"$f":"IF(Settings_Language = \"English\",SectionF_Female,SectionF_Female_Arabic)","v":"إناث"}]
[{"$f":"IF(Settings_Language = \"English\",SectionF_Libyan,SectionF_Libyan_Arabic)","v":"ليبيون"},null,null,null,null,null,null,null,null,null,null,null,null,null,null,null,null,null,null,null,null,null,null,null,null,null,{"$f":"F_F3_NewEntransIntoGradeByNationality_EnteringGrade1_fromKG_M+F_F3_NewEntransIntoGradeByNationality_EnteringGrade1_not_fromKG_M","v":0},null,null,{"$f":"F_F3_NewEntransIntoGradeByNationality_EnteringGrade1_fromKG_F+F_F3_NewEntransIntoGradeByNationality_EnteringGrade1_not_fromKG_F","v":0}]
[{"$f":"IF(Settings_Language = \"English\",SectionF_Egyptian,SectionF_Egyptian_Arabic)","v":"مصريون"},null,null,null,null,null,null,null,null,null,null,null,null,null,null,null,null,null,null,null,null,null,null,null,null,null,{"$f":"J33+P33","v":0},null,null,{"$f":"M33+U33","v":0}]
[{"$f":"IF(Settings_Language = \"English\",SectionF_Iraq,SectionF_Iraq_Arabic)","v":"عراقيون"},null,null,null,null,null,null,null,null,null,null,null,null,null,null,null,null,null,null,null,null,null,null,null,null,null,{"$f":"J34+P34","v":0},null,null,{"$f":"M34+U34","v":0}]
[{"$f":"IF(Settings_Language = \"English\",SectionF_Palestinian,SectionF_Palestinian_Arabic)","v":"فلسطينيون"},null,null,null,null,null,null,null,null,null,null,null,null,null,null,null,null,null,null,null,null,null,null,null,null,null,0,null,null,0]
[{"$f":"IF(Settings_Language = \"English\",SectionF_Syrian,SectionF_Syrian_Arabic)","v":"سوريون"},null,null,null,null,null,null,null,null,null,null,null,null,null,null,null,null,null,null,null,null,null,null,null,null,null,0,null,null,0]
[{"$f":"IF(Settings_Language = \"English\",SectionF_Tunisians,SectionF_Tunisians_Arabic)","v":"تونسيون"},null,null,null,null,null,null,null,null,null,null,null,null,null,null,null,null,null,null,null,null,null,null,null,null,null,0,null,null,0]
[{"$f":"IF(Settings_Language = \"English\",SectionF_Other,SectionF_Other_Arabic)","v":"غيرهم"},null,null,null,null,null,null,null,null,null,null,null,null,null,null,null,null,null,null,null,null,null,null,null,null,null,0,null,null,0]
[]
[{"$f":"IF(Settings_Language = \"English\",SectionF_Total,SectionF_Total_Arabic)","v":"الاجمالي"},null,null,null,null,null,null,null,null,{"$f":"SUM(INDIRECT(CELL(\"address\", F_F3_NewEntransIntoGradeByNationality_EnteringGrade1_fromKG_M)&\":\"&ADDRESS(ROW()-2,COLUMN(),4)))","v":0},null,null,{"$f":"SUM(INDIRECT(CELL(\"address\", F_F3_NewEntransIntoGradeByNationality_EnteringGrade1_fromKG_F)&\":\"&ADDRESS(ROW()-2,COLUMN(),4)))","v":0},null,null,{"$f":"SUM(INDIRECT(CELL(\"address\", F_F3_NewEntransIntoGradeByNationality_EnteringGrade1_not_fromKG_M)&\":\"&ADDRESS(ROW()-2,COLUMN(),4)))","v":0},null,null,null,null,{"$f":"SUM(INDIRECT(CELL(\"address\", F_F3_NewEntransIntoGradeByNationality_EnteringGrade1_not_fromKG_F)&\":\"&ADDRESS(ROW()-2,COLUMN(),4)))","v":0},null,null,null,null,null,{"$f":"SUM(INDIRECT(CELL(\"address\", F_F3_NewEntransIntoGradeByNationality_EnteringGrade1_M)&\":\"&ADDRESS(ROW()-2,COLUMN(),4)))","v":0},null,null,{"$f":"SUM(INDIRECT(CELL(\"address\", F_F3_NewEntransIntoGradeByNationality_EnteringGrade1_F)&\":\"&ADDRESS(ROW()-2,COLUMN(),4)))","v":0}]
[]
[{"$f":"IF(Settings_Language = \"English\",SectionF_Instruction,SectionF_Instruction_Arabic)","v":"التعليمات"}]
[{"$f":"IF(Settings_Language = \"English\",SectionF_F3_InstructionDesc,SectionF_F3_InstructionDesc_Arabic)","v":"يرجى التأكد من ان الاجماليات تطابق حاصل جمع أعداد الطلاب بسنوات الدراسة المختلفة لكل الاعمار و يمثلون عدد الطلاب بكل سنة دراسية.  يتم إحتساب عمر الطالب من خلال طرح سنة الولاده من السنة الحالية، فمواليد سنة 2010 للسنة الدراسية 2017 هم من عمر (7 سنوات) بغض النظر عن شهر الميلاد"}]
[]
[]
[]
[]
[]
[{"$f":"IF(Settings_Language = \"English\",SectionF_F4,SectionF_F4_Arabic)","v":"حـ.4: الطلاب الملتحقون بكل سنة دراسية حسب العمر و الجنس للسنة الدراسية الحالية"}]
[null,null,null,null,null,null,null,{"$f":"IF(Settings_Language = \"English\",SectionF_Grade1,SectionF_Grade1_Arabic)","v":"سنة اولى "},null,null,null,{"$f":"IF(Settings_Language = \"English\",SectionF_Grade2,SectionF_Grade2_Arabic)","v":"سنة ثانية"},null,null,null,{"$f":"IF(Settings_Language = \"English\",SectionF_Grade3,SectionF_Grade3_Arabic)","v":"سنة ثالثة"},null,null,null,{"$f":"IF(Settings_Language = \"English\",SectionF_Grade4,SectionF_Grade4_Arabic)","v":"سنة رابعة"},null,null,null,{"$f":"IF(Settings_Language = \"English\",SectionF_Grade5,SectionF_Grade5_Arabic)","v":"سنة خامسة"},null,null,null,{"$f":"IF(Settings_Language = \"English\",SectionF_Grade6,SectionF_Grade6_Arabic)","v":"سنة سادسة"},null,null,null,{"$f":"IF(Settings_Language = \"English\",SectionF_Grade7,SectionF_Grade7_Arabic)","v":"سنة سابعة"},null,null,null,{"$f":"IF(Settings_Language = \"English\",SectionF_Grade8,SectionF_Grade8_Arabic)","v":"سنة ثامنة"},null,null,null,{"$f":"IF(Settings_Language = \"English\",SectionF_Grade9,SectionF_Grade9_Arabic)","v":"سنة تاسعة"}]
[null,null,null,null,null,null,null,{"$f":"IF(Settings_Language = \"English\",SectionF_M,SectionF_M_Arabic)","v":"ذكر "},null,{"$f":"IF(Settings_Language = \"English\",SectionF_F,SectionF_F_Arabic)","v":"أنثى"},null,{"$f":"IF(Settings_Language = \"English\",SectionF_M,SectionF_M_Arabic)","v":"ذكر "},null,{"$f":"IF(Settings_Language = \"English\",SectionF_F,SectionF_F_Arabic)","v":"أنثى"},null,{"$f":"IF(Settings_Language = \"English\",SectionF_M,SectionF_M_Arabic)","v":"ذكر "},null,{"$f":"IF(Settings_Language = \"English\",SectionF_F,SectionF_F_Arabic)","v":"أنثى"},null,{"$f":"IF(Settings_Language = \"English\",SectionF_M,SectionF_M_Arabic)","v":"ذكر "},null,{"$f":"IF(Settings_Language = \"English\",SectionF_F,SectionF_F_Arabic)","v":"أنثى"},null,{"$f":"IF(Settings_Language = \"English\",SectionF_M,SectionF_M_Arabic)","v":"ذكر "},null,{"$f":"IF(Settings_Language = \"English\",SectionF_F,SectionF_F_Arabic)","v":"أنثى"},null,{"$f":"IF(Settings_Language = \"English\",SectionF_M,SectionF_M_Arabic)","v":"ذكر "},null,{"$f":"IF(Settings_Language = \"English\",SectionF_F,SectionF_F_Arabic)","v":"أنثى"},null,{"$f":"IF(Settings_Language = \"English\",SectionF_M,SectionF_M_Arabic)","v":"ذكر "},null,{"$f":"IF(Settings_Language = \"English\",SectionF_F,SectionF_F_Arabic)","v":"أنثى"},null,{"$f":"IF(Settings_Language = \"English\",SectionF_M,SectionF_M_Arabic)","v":"ذكر "},null,{"$f":"IF(Settings_Language = \"English\",SectionF_F,SectionF_F_Arabic)","v":"أنثى"},null,{"$f":"IF(Settings_Language = \"English\",SectionF_M,SectionF_M_Arabic)","v":"ذكر "},null,{"$f":"IF(Settings_Language = \"English\",SectionF_F,SectionF_F_Arabic)","v":"أنثى"}]
[{"$f":"IF(Settings_Language = \"English\",SectionF_Younger6Years,SectionF_Younger6Years_Arabic)","v":"اقل من 6 سنوات"}]
[{"$f":"IF(Settings_Language = \"English\",SectionF_6Years,SectionF_6Years_Arabic)","v":"6  سنوات"}]
[{"$f":"IF(Settings_Language = \"English\",SectionF_7Years,SectionF_7Years_Arabic)","v":"7  سنوات"}]
[{"$f":"IF(Settings_Language = \"English\",SectionF_8Years,SectionF_8Years_Arabic)","v":"8  سنوات"}]
[{"$f":"IF(Settings_Language = \"English\",SectionF_9Years,SectionF_9Years_Arabic)","v":"9  سنوات"}]
[{"$f":"IF(Settings_Language = \"English\",SectionF_10Years,SectionF_10Years_Arabic)","v":"10   سنوات"}]
[{"$f":"IF(Settings_Language = \"English\",SectionF_11Years,SectionF_11Years_Arabic)","v":"11  سنة"}]
[{"$f":"IF(Settings_Language = \"English\",SectionF_12Years,SectionF_12Years_Arabic)","v":"12  سنة"}]
[{"$f":"IF(Settings_Language = \"English\",SectionF_13Years,SectionF_13Years_Arabic)","v":"13  سنة"}]
[{"$f":"IF(Settings_Language = \"English\",SectionF_14Years,SectionF_14Years_Arabic)","v":"14  سنة"}]
[{"$f":"IF(Settings_Language = \"English\",SectionF_15YearsAbove,SectionF_15YearsAbove_Arabic)","v":"15 سنة او أكبر"}]
[]
[{"$f":"IF(Settings_Language = \"English\",SectionF_Total,SectionF_Total_Arabic)","v":"الاجمالي"},null,null,null,null,null,null,{"$f":"SUM(H52:I62)","v":0},null,{"$f":"SUM(J52:K62)","v":0},null,{"$f":"SUM(L52:M62)","v":0},null,{"$f":"SUM(N52:O62)","v":0},null,{"$f":"SUM(P52:Q62)","v":0},null,{"$f":"SUM(R52:S62)","v":0},null,{"$f":"SUM(T52:U62)","v":0},null,{"$f":"SUM(V52:W62)","v":0},null,{"$f":"SUM(X52:Y62)","v":0},null,{"$f":"SUM(Z52:AA62)","v":0},null,{"$f":"SUM(AB52:AC62)","v":0},null,{"$f":"SUM(AD52:AE62)","v":0},null,{"$f":"SUM(AF52:AG62)","v":0},null,{"$f":"SUM(AH52:AI62)","v":0},null,{"$f":"SUM(AJ52:AK62)","v":0},null,{"$f":"SUM(AL52:AM62)","v":0},null,{"$f":"SUM(AN52:AO62)","v":0},null,{"$f":"SUM(AP52:AQ62)","v":0}]
[]
[{"$f":"IF(Settings_Language = \"English\",SectionF_PupilsPresent,SectionF_PupilsPresent_Arabic)","v":"عدد الطلاب يوم الاحصاء"}]
[]
[]
[{"$f":"IF(Settings_Language = \"English\",SectionF_F5,SectionF_F5_Arabic)","v":"حـ.5: عدد الطلبة المقيدون بكل فترة دراسية   (إذا كانت المدرسة تقدم فترة دراسية واحدة، فلا تقم بتعبة هذا الجزء)"}]
[null,null,null,null,null,null,null,{"$f":"IF(Settings_Language = \"English\",SectionF_Grade1,SectionF_Grade1_Arabic)","v":"سنة اولى "},null,null,null,{"$f":"IF(Settings_Language = \"English\",SectionF_Grade2,SectionF_Grade2_Arabic)","v":"سنة ثانية"},null,null,null,{"$f":"IF(Settings_Language = \"English\",SectionF_Grade3,SectionF_Grade3_Arabic)","v":"سنة ثالثة"},null,null,null,{"$f":"IF(Settings_Language = \"English\",SectionF_Grade4,SectionF_Grade4_Arabic)","v":"سنة رابعة"},null,null,null,{"$f":"IF(Settings_Language = \"English\",SectionF_Grade5,SectionF_Grade5_Arabic)","v":"سنة خامسة"},null,null,null,{"$f":"IF(Settings_Language = \"English\",SectionF_Grade6,SectionF_Grade6_Arabic)","v":"سنة سادسة"},null,null,null,{"$f":"IF(Settings_Language = \"English\",SectionF_Grade7,SectionF_Grade7_Arabic)","v":"سنة سابعة"},null,null,null,{"$f":"IF(Settings_Language = \"English\",SectionF_Grade8,SectionF_Grade8_Arabic)","v":"سنة ثامنة"},null,null,null,{"$f":"IF(Settings_Language = \"English\",SectionF_Grade9,SectionF_Grade9_Arabic)","v":"سنة تاسعة"}]
[null,null,null,null,null,null,null,{"$f":"IF(Settings_Language = \"English\",SectionF_M,SectionF_M_Arabic)","v":"ذكر "},null,{"$f":"IF(Settings_Language = \"English\",SectionF_F,SectionF_F_Arabic)","v":"أنثى"},null,{"$f":"IF(Settings_Language = \"English\",SectionF_M,SectionF_M_Arabic)","v":"ذكر "},null,{"$f":"IF(Settings_Language = \"English\",SectionF_F,SectionF_F_Arabic)","v":"أنثى"},null,{"$f":"IF(Settings_Language = \"English\",SectionF_M,SectionF_M_Arabic)","v":"ذكر "},null,{"$f":"IF(Settings_Language = \"English\",SectionF_F,SectionF_F_Arabic)","v":"أنثى"},null,{"$f":"IF(Settings_Language = \"English\",SectionF_M,SectionF_M_Arabic)","v":"ذكر "},null,{"$f":"IF(Settings_Language = \"English\",SectionF_F,SectionF_F_Arabic)","v":"أنثى"},null,{"$f":"IF(Settings_Language = \"English\",SectionF_M,SectionF_M_Arabic)","v":"ذكر "},null,{"$f":"IF(Settings_Language = \"English\",SectionF_F,SectionF_F_Arabic)","v":"أنثى"},null,{"$f":"IF(Settings_Language = \"English\",SectionF_M,SectionF_M_Arabic)","v":"ذكر "},null,{"$f":"IF(Settings_Language = \"English\",SectionF_F,SectionF_F_Arabic)","v":"أنثى"},null,{"$f":"IF(Settings_Language = \"English\",SectionF_M,SectionF_M_Arabic)","v":"ذكر "},null,{"$f":"IF(Settings_Language = \"English\",SectionF_F,SectionF_F_Arabic)","v":"أنثى"},null,{"$f":"IF(Settings_Language = \"English\",SectionF_M,SectionF_M_Arabic)","v":"ذكر "},null,{"$f":"IF(Settings_Language = \"English\",SectionF_F,SectionF_F_Arabic)","v":"أنثى"},null,{"$f":"IF(Settings_Language = \"English\",SectionF_M,SectionF_M_Arabic)","v":"ذكر "},null,{"$f":"IF(Settings_Language = \"English\",SectionF_F,SectionF_F_Arabic)","v":"أنثى"}]
[{"$f":"IF(Settings_Language = \"English\",SectionF_Session1,SectionF_Session1_Arabic)","v":"الفترة الاولى"}]
[{"$f":"IF(Settings_Language = \"English\",SectionF_Session2,SectionF_Session2_Arabic)","v":"الفترة الثانية"}]
[]
[{"$f":"IF(Settings_Language = \"English\",SectionF_Total,SectionF_Total_Arabic)","v":"الاجمالي"},null,null,null,null,null,null,{"$f":"SUM(H72:I73)","v":0},null,{"$f":"SUM(J72:K73)","v":0},null,{"$f":"SUM(L72:M73)","v":0},null,{"$f":"SUM(N72:O73)","v":0},null,{"$f":"SUM(P72:Q73)","v":0},null,{"$f":"SUM(R72:S73)","v":0},null,{"$f":"SUM(T72:U73)","v":0},null,{"$f":"SUM(V72:W73)","v":0},null,{"$f":"SUM(X72:Y73)","v":0},null,{"$f":"SUM(Z72:AA73)","v":0},null,{"$f":"SUM(AB72:AC73)","v":0},null,{"$f":"SUM(AD72:AE73)","v":0},null,{"$f":"SUM(AF72:AG73)","v":0},null,{"$f":"SUM(AH72:AI73)","v":0},null,{"$f":"SUM(AJ72:AK73)","v":0},null,{"$f":"SUM(AL72:AM73)","v":0},null,{"$f":"SUM(AN72:AO73)","v":0},null,{"$f":"SUM(AP72:AQ73)","v":0}]
[]
[{"$f":"IF(Settings_Language = \"English\",SectionF_F6,SectionF_F6_Arabic)","v":"حـ.6: القيد حسب الجنسية للسنة الحالية"}]
[null,null,null,null,null,null,null,{"$f":"IF(Settings_Language = \"English\",SectionF_Grade1,SectionF_Grade1_Arabic)","v":"سنة اولى "},null,null,null,{"$f":"IF(Settings_Language = \"English\",SectionF_Grade2,SectionF_Grade2_Arabic)","v":"سنة ثانية"},null,null,null,{"$f":"IF(Settings_Language = \"English\",SectionF_Grade3,SectionF_Grade3_Arabic)","v":"سنة ثالثة"},null,null,null,{"$f":"IF(Settings_Language = \"English\",SectionF_Grade4,SectionF_Grade4_Arabic)","v":"سنة رابعة"},null,null,null,{"$f":"IF(Settings_Language = \"English\",SectionF_Grade5,SectionF_Grade5_Arabic)","v":"سنة خامسة"},null,null,null,{"$f":"IF(Settings_Language = \"English\",SectionF_Grade6,SectionF_Grade6_Arabic)","v":"سنة سادسة"},null,null,null,{"$f":"IF(Settings_Language = \"English\",SectionF_Grade7,SectionF_Grade7_Arabic)","v":"سنة سابعة"},null,null,null,{"$f":"IF(Settings_Language = \"English\",SectionF_Grade8,SectionF_Grade8_Arabic)","v":"سنة ثامنة"},null,null,null,{"$f":"IF(Settings_Language = \"English\",SectionF_Grade9,SectionF_Grade9_Arabic)","v":"سنة تاسعة"}]
[null,null,null,null,null,null,null,{"$f":"IF(Settings_Language = \"English\",SectionF_M,SectionF_M_Arabic)","v":"ذكر "},null,{"$f":"IF(Settings_Language = \"English\",SectionF_F,SectionF_F_Arabic)","v":"أنثى"},null,{"$f":"IF(Settings_Language = \"English\",SectionF_M,SectionF_M_Arabic)","v":"ذكر "},null,{"$f":"IF(Settings_Language = \"English\",SectionF_F,SectionF_F_Arabic)","v":"أنثى"},null,{"$f":"IF(Settings_Language = \"English\",SectionF_M,SectionF_M_Arabic)","v":"ذكر "},null,{"$f":"IF(Settings_Language = \"English\",SectionF_F,SectionF_F_Arabic)","v":"أنثى"},null,{"$f":"IF(Settings_Language = \"English\",SectionF_M,SectionF_M_Arabic)","v":"ذكر "},null,{"$f":"IF(Settings_Language = \"English\",SectionF_F,SectionF_F_Arabic)","v":"أنثى"},null,{"$f":"IF(Settings_Language = \"English\",SectionF_M,SectionF_M_Arabic)","v":"ذكر "},null,{"$f":"IF(Settings_Language = \"English\",SectionF_F,SectionF_F_Arabic)","v":"أنثى"},null,{"$f":"IF(Settings_Language = \"English\",SectionF_M,SectionF_M_Arabic)","v":"ذكر "},null,{"$f":"IF(Settings_Language = \"English\",SectionF_F,SectionF_F_Arabic)","v":"أنثى"},null,{"$f":"IF(Settings_Language = \"English\",SectionF_M,SectionF_M_Arabic)","v":"ذكر "},null,{"$f":"IF(Settings_Language = \"English\",SectionF_F,SectionF_F_Arabic)","v":"أنثى"},null,{"$f":"IF(Settings_Language = \"English\",SectionF_M,SectionF_M_Arabic)","v":"ذكر "},null,{"$f":"IF(Settings_Language = \"English\",SectionF_F,SectionF_F_Arabic)","v":"أنثى"},null,{"$f":"IF(Settings_Language = \"English\",SectionF_M,SectionF_M_Arabic)","v":"ذكر "},null,{"$f":"IF(Settings_Language = \"English\",SectionF_F,SectionF_F_Arabic)","v":"أنثى"}]
[{"$f":"IF(Settings_Language = \"English\",SectionF_Libyan,SectionF_Libyan_Arabic)","v":"ليبيون"}]
[{"$f":"IF(Settings_Language = \"English\",SectionF_Egyptian,SectionF_Egyptian_Arabic)","v":"مصريون"}]
[{"$f":"IF(Settings_Language = \"English\",SectionF_Iraq,SectionF_Iraq_Arabic)","v":"عراقيون"}]
[{"$f":"IF(Settings_Language = \"English\",SectionF_Palestinian,SectionF_Palestinian_Arabic)","v":"فلسطينيون"}]
[{"$f":"IF(Settings_Language = \"English\",SectionF_Syrian,SectionF_Syrian_Arabic)","v":"سوريون"}]
[{"$f":"IF(Settings_Language = \"English\",SectionF_Tunisians,SectionF_Tunisians_Arabic)","v":"تونسيون"}]
[{"$f":"IF(Settings_Language = \"English\",SectionF_Other,SectionF_Other_Arabic)","v":"غيرهم"}]
[]
[]
[{"$f":"IF(Settings_Language = \"English\",SectionF_Total,SectionF_Total_Arabic)","v":"الاجمالي"},null,null,null,null,null,null,{"$f":"SUM(H80:I86)","v":0},null,{"$f":"SUM(J80:K86)","v":0},null,{"$f":"SUM(L80:M86)","v":0},null,{"$f":"SUM(N80:O86)","v":0},null,{"$f":"SUM(P80:Q86)","v":0},null,{"$f":"SUM(R80:S86)","v":0},null,{"$f":"SUM(T80:U86)","v":0},null,{"$f":"SUM(V80:W86)","v":0},null,{"$f":"SUM(X80:Y86)","v":0},null,{"$f":"SUM(Z80:AA86)","v":0},null,{"$f":"SUM(AB80:AC86)","v":0},null,{"$f":"SUM(AD80:AE86)","v":0},null,{"$f":"SUM(AF80:AG86)","v":0},null,{"$f":"SUM(AH80:AI86)","v":0},null,{"$f":"SUM(AJ80:AK86)","v":0},null,{"$f":"SUM(AL80:AM86)","v":0},null,{"$f":"SUM(AN80:AO86)","v":0},null,{"$f":"SUM(AP80:AQ86)","v":0}]
[]
[{"$f":"IF(Settings_Language = \"English\",SectionF_F7,SectionF_F7_Arabic)","v":"حـ.7: الملتحقون الجدد بالسنة الاولى حسب العمر و الجنس  (لا تحسب المعيدين)"}]
[null,null,null,null,null,null,null,{"$f":"IF(Settings_Language = \"English\",SectionF_Below5,SectionF_Below5_Arabic)","v":"اقل من 5 سنوات"},null,null,null,{"$f":"IF(Settings_Language = \"English\",SectionF_5Years,SectionF_5Years_Arabic)","v":"5  سنوات"},null,null,null,{"$f":"IF(Settings_Language = \"English\",SectionF_6Years,SectionF_6Years_Arabic)","v":"6  سنوات"},null,null,null,{"$f":"IF(Settings_Language = \"English\",SectionF_7Years,SectionF_7Years_Arabic)","v":"7  سنوات"},null,null,null,{"$f":"IF(Settings_Language = \"English\",SectionF_8Years,SectionF_8Years_Arabic)","v":"8  سنوات"},null,null,null,{"$f":"IF(Settings_Language = \"English\",SectionF_9Years,SectionF_9Years_Arabic)","v":"9  سنوات"},null,null,null,{"$f":"IF(Settings_Language = \"English\",SectionF_10Years,SectionF_10Years_Arabic)","v":"10   سنوات"},null,null,null,{"$f":"IF(Settings_Language = \"English\",SectionF_11Years,SectionF_11Years_Arabic)","v":"11  سنة"},null,null,null,{"$f":"IF(Settings_Language = \"English\",SectionF_Above11Years,SectionF_Above11Years_Arabic)","v":"اكبر من 11 سنة"},null,null,null,null,{"$f":"IF(Settings_Language = \"English\",SectionF_Total,SectionF_Total_Arabic)","v":"الاجمالي"}]
[null,null,null,null,null,null,null,{"$f":"IF(Settings_Language = \"English\",SectionF_M,SectionF_M_Arabic)","v":"ذكر "},null,{"$f":"IF(Settings_Language = \"English\",SectionF_F,SectionF_F_Arabic)","v":"أنثى"},null,{"$f":"IF(Settings_Language = \"English\",SectionF_M,SectionF_M_Arabic)","v":"ذكر "},null,{"$f":"IF(Settings_Language = \"English\",SectionF_F,SectionF_F_Arabic)","v":"أنثى"},null,{"$f":"IF(Settings_Language = \"English\",SectionF_M,SectionF_M_Arabic)","v":"ذكر "},null,{"$f":"IF(Settings_Language = \"English\",SectionF_F,SectionF_F_Arabic)","v":"أنثى"},null,{"$f":"IF(Settings_Language = \"English\",SectionF_M,SectionF_M_Arabic)","v":"ذكر "},null,{"$f":"IF(Settings_Language = \"English\",SectionF_F,SectionF_F_Arabic)","v":"أنثى"},null,{"$f":"IF(Settings_Language = \"English\",SectionF_M,SectionF_M_Arabic)","v":"ذكر "},null,{"$f":"IF(Settings_Language = \"English\",SectionF_F,SectionF_F_Arabic)","v":"أنثى"},null,{"$f":"IF(Settings_Language = \"English\",SectionF_M,SectionF_M_Arabic)","v":"ذكر "},null,{"$f":"IF(Settings_Language = \"English\",SectionF_F,SectionF_F_Arabic)","v":"أنثى"},null,{"$f":"IF(Settings_Language = \"English\",SectionF_M,SectionF_M_Arabic)","v":"ذكر "},null,{"$f":"IF(Settings_Language = \"English\",SectionF_F,SectionF_F_Arabic)","v":"أنثى"},null,{"$f":"IF(Settings_Language = \"English\",SectionF_M,SectionF_M_Arabic)","v":"ذكر "},null,{"$f":"IF(Settings_Language = \"English\",SectionF_F,SectionF_F_Arabic)","v":"أنثى"},null,{"$f":"IF(Settings_Language = \"English\",SectionF_M,SectionF_M_Arabic)","v":"ذكر "},null,{"$f":"IF(Settings_Language = \"English\",SectionF_F,SectionF_F_Arabic)","v":"أنثى"},null,null,{"$f":"IF(Settings_Language = \"English\",SectionF_M,SectionF_M_Arabic)","v":"ذكر "},null,{"$f":"IF(Settings_Language = \"English\",SectionF_F,SectionF_F_Arabic)","v":"أنثى"}]
[{"$f":"IF(Settings_Language = \"English\",SectionF_Pupils,SectionF_Pupils_Arabic)","v":"الطلاب"},null,null,null,null,null,null,null,null,null,null,null,null,null,null,null,null,null,null,null,null,null,null,null,null,null,null,null,null,null,null,null,null,null,null,null,null,null,null,null,null,null,null,null,{"$f":"SUM(AN94,AJ94,AF94,AB94,X94,T94,P94,L94,H94)","v":0},null,{"$f":"SUM(AP94,AL94,AH94,AD94,Z94,V94,R94,N94,J94)","v":0}]
[]
[{"$f":"IF(Settings_Language = \"English\",SectionF_F8,SectionF_F8_Arabic)","v":"حـ.8: المعيدون حسب السنة و الجنس من المقيدين بهذه السنة الدراسية"}]
[null,null,null,null,null,null,null,{"$f":"IF(Settings_Language = \"English\",SectionF_Grade1,SectionF_Grade1_Arabic)","v":"سنة اولى "},null,null,null,{"$f":"IF(Settings_Language = \"English\",SectionF_Grade2,SectionF_Grade2_Arabic)","v":"سنة ثانية"},null,null,null,{"$f":"IF(Settings_Language = \"English\",SectionF_Grade3,SectionF_Grade3_Arabic)","v":"سنة ثالثة"},null,null,null,{"$f":"IF(Settings_Language = \"English\",SectionF_Grade4,SectionF_Grade4_Arabic)","v":"سنة رابعة"},null,null,null,{"$f":"IF(Settings_Language = \"English\",SectionF_Grade5,SectionF_Grade5_Arabic)","v":"سنة خامسة"},null,null,null,{"$f":"IF(Settings_Language = \"English\",SectionF_Grade6,SectionF_Grade6_Arabic)","v":"سنة سادسة"},null,null,null,{"$f":"IF(Settings_Language = \"English\",SectionF_Grade7,SectionF_Grade7_Arabic)","v":"سنة سابعة"},null,null,null,{"$f":"IF(Settings_Language = \"English\",SectionF_Grade8,SectionF_Grade8_Arabic)","v":"سنة ثامنة"},null,null,null,{"$f":"IF(Settings_Language = \"English\",SectionF_Grade9,SectionF_Grade9_Arabic)","v":"سنة تاسعة"}]
[null,null,null,null,null,null,null,{"$f":"IF(Settings_Language = \"English\",SectionF_M,SectionF_M_Arabic)","v":"ذكر "},null,{"$f":"IF(Settings_Language = \"English\",SectionF_F,SectionF_F_Arabic)","v":"أنثى"},null,{"$f":"IF(Settings_Language = \"English\",SectionF_M,SectionF_M_Arabic)","v":"ذكر "},null,{"$f":"IF(Settings_Language = \"English\",SectionF_F,SectionF_F_Arabic)","v":"أنثى"},null,{"$f":"IF(Settings_Language = \"English\",SectionF_M,SectionF_M_Arabic)","v":"ذكر "},null,{"$f":"IF(Settings_Language = \"English\",SectionF_F,SectionF_F_Arabic)","v":"أنثى"},null,{"$f":"IF(Settings_Language = \"English\",SectionF_M,SectionF_M_Arabic)","v":"ذكر "},null,{"$f":"IF(Settings_Language = \"English\",SectionF_F,SectionF_F_Arabic)","v":"أنثى"},null,{"$f":"IF(Settings_Language = \"English\",SectionF_M,SectionF_M_Arabic)","v":"ذكر "},null,{"$f":"IF(Settings_Language = \"English\",SectionF_F,SectionF_F_Arabic)","v":"أنثى"},null,{"$f":"IF(Settings_Language = \"English\",SectionF_M,SectionF_M_Arabic)","v":"ذكر "},null,{"$f":"IF(Settings_Language = \"English\",SectionF_F,SectionF_F_Arabic)","v":"أنثى"},null,{"$f":"IF(Settings_Language = \"English\",SectionF_M,SectionF_M_Arabic)","v":"ذكر "},null,{"$f":"IF(Settings_Language = \"English\",SectionF_F,SectionF_F_Arabic)","v":"أنثى"},null,{"$f":"IF(Settings_Language = \"English\",SectionF_M,SectionF_M_Arabic)","v":"ذكر "},null,{"$f":"IF(Settings_Language = \"English\",SectionF_F,SectionF_F_Arabic)","v":"أنثى"},null,{"$f":"IF(Settings_Language = \"English\",SectionF_M,SectionF_M_Arabic)","v":"ذكر "},null,{"$f":"IF(Settings_Language = \"English\",SectionF_F,SectionF_F_Arabic)","v":"أنثى"}]
[{"$f":"IF(Settings_Language = \"English\",SectionF_Pupils,SectionF_Pupils_Arabic)","v":"الطلاب"}]
[]
[{"$f":"IF(Settings_Language = \"English\",SectionF_F9,SectionF_F9_Arabic)","v":"حـ.9: المعيدون حسب العمر و الجنس و عدد مرات الاعادة  من المقيدين بهذا العام الدراسي"}]
[null,null,null,null,null,null,null,{"$f":"IF(Settings_Language = \"English\",SectionF_Grade1,SectionF_Grade1_Arabic)","v":"سنة اولى "},null,null,null,{"$f":"IF(Settings_Language = \"English\",SectionF_Grade2,SectionF_Grade2_Arabic)","v":"سنة ثانية"},null,null,null,{"$f":"IF(Settings_Language = \"English\",SectionF_Grade3,SectionF_Grade3_Arabic)","v":"سنة ثالثة"},null,null,null,{"$f":"IF(Settings_Language = \"English\",SectionF_Grade4,SectionF_Grade4_Arabic)","v":"سنة رابعة"},null,null,null,{"$f":"IF(Settings_Language = \"English\",SectionF_Grade5,SectionF_Grade5_Arabic)","v":"سنة خامسة"},null,null,null,{"$f":"IF(Settings_Language = \"English\",SectionF_Grade6,SectionF_Grade6_Arabic)","v":"سنة سادسة"},null,null,null,{"$f":"IF(Settings_Language = \"English\",SectionF_Grade7,SectionF_Grade7_Arabic)","v":"سنة سابعة"},null,null,null,{"$f":"IF(Settings_Language = \"English\",SectionF_Grade8,SectionF_Grade8_Arabic)","v":"سنة ثامنة"},null,null,null,{"$f":"IF(Settings_Language = \"English\",SectionF_Grade9,SectionF_Grade9_Arabic)","v":"سنة تاسعة"}]
[null,null,null,null,null,null,null,{"$f":"IF(Settings_Language = \"English\",SectionF_M,SectionF_M_Arabic)","v":"ذكر "},null,{"$f":"IF(Settings_Language = \"English\",SectionF_F,SectionF_F_Arabic)","v":"أنثى"},null,{"$f":"IF(Settings_Language = \"English\",SectionF_M,SectionF_M_Arabic)","v":"ذكر "},null,{"$f":"IF(Settings_Language = \"English\",SectionF_F,SectionF_F_Arabic)","v":"أنثى"},null,{"$f":"IF(Settings_Language = \"English\",SectionF_M,SectionF_M_Arabic)","v":"ذكر "},null,{"$f":"IF(Settings_Language = \"English\",SectionF_F,SectionF_F_Arabic)","v":"أنثى"},null,{"$f":"IF(Settings_Language = \"English\",SectionF_M,SectionF_M_Arabic)","v":"ذكر "},null,{"$f":"IF(Settings_Language = \"English\",SectionF_F,SectionF_F_Arabic)","v":"أنثى"},null,{"$f":"IF(Settings_Language = \"English\",SectionF_M,SectionF_M_Arabic)","v":"ذكر "},null,{"$f":"IF(Settings_Language = \"English\",SectionF_F,SectionF_F_Arabic)","v":"أنثى"},null,{"$f":"IF(Settings_Language = \"English\",SectionF_M,SectionF_M_Arabic)","v":"ذكر "},null,{"$f":"IF(Settings_Language = \"English\",SectionF_F,SectionF_F_Arabic)","v":"أنثى"},null,{"$f":"IF(Settings_Language = \"English\",SectionF_M,SectionF_M_Arabic)","v":"ذكر "},null,{"$f":"IF(Settings_Language = \"English\",SectionF_F,SectionF_F_Arabic)","v":"أنثى"},null,{"$f":"IF(Settings_Language = \"English\",SectionF_M,SectionF_M_Arabic)","v":"ذكر "},null,{"$f":"IF(Settings_Language = \"English\",SectionF_F,SectionF_F_Arabic)","v":"أنثى"},null,{"$f":"IF(Settings_Language = \"English\",SectionF_M,SectionF_M_Arabic)","v":"ذكر "},null,{"$f":"IF(Settings_Language = \"English\",SectionF_F,SectionF_F_Arabic)","v":"أنثى"}]
[{"$f":"IF(Settings_Language = \"English\",SectionF_Pupils,SectionF_Pupils_Arabic)","v":"الطلاب"}]
[{"$f":"IF(Settings_Language = \"English\",SectionF_RepeatedOnce,SectionF_RepeatedOnce_Arabic)","v":"معيد لمرة واحدة"}]
[{"$f":"IF(Settings_Language = \"English\",SectionF_RepeatedTwice,SectionF_RepeatedTwice_Arabic)","v":"معيد لمرتين"}]
[{"$f":"IF(Settings_Language = \"English\",SectionF_Repeated3Times,SectionF_Repeated3Times_Arabic)","v":"معيد لثلاث مرات"}]
[]
[{"$f":"IF(Settings_Language = \"English\",SectionF_F10,SectionF_F10_Arabic)","v":"حـ.10: التسرب من الدراسة حسب السبب (لا يتضمن الرقم من انتقلوا الى مدارس اخرى)"}]
[null,null,null,null,null,null,null,{"$f":"IF(Settings_Language = \"English\",SectionF_Grade1,SectionF_Grade1_Arabic)","v":"سنة اولى "},null,null,null,{"$f":"IF(Settings_Language = \"English\",SectionF_Grade2,SectionF_Grade2_Arabic)","v":"سنة ثانية"},null,null,null,{"$f":"IF(Settings_Language = \"English\",SectionF_Grade3,SectionF_Grade3_Arabic)","v":"سنة ثالثة"},null,null,null,{"$f":"IF(Settings_Language = \"English\",SectionF_Grade4,SectionF_Grade4_Arabic)","v":"سنة رابعة"},null,null,null,{"$f":"IF(Settings_Language = \"English\",SectionF_Grade5,SectionF_Grade5_Arabic)","v":"سنة خامسة"},null,null,null,{"$f":"IF(Settings_Language = \"English\",SectionF_Grade6,SectionF_Grade6_Arabic)","v":"سنة سادسة"},null,null,null,{"$f":"IF(Settings_Language = \"English\",SectionF_Grade7,SectionF_Grade7_Arabic)","v":"سنة سابعة"},null,null,null,{"$f":"IF(Settings_Language = \"English\",SectionF_Grade8,SectionF_Grade8_Arabic)","v":"سنة ثامنة"},null,null,null,{"$f":"IF(Settings_Language = \"English\",SectionF_Grade9,SectionF_Grade9_Arabic)","v":"سنة تاسعة"}]
[null,null,null,null,null,null,null,{"$f":"IF(Settings_Language = \"English\",SectionF_M,SectionF_M_Arabic)","v":"ذكر "},null,{"$f":"IF(Settings_Language = \"English\",SectionF_F,SectionF_F_Arabic)","v":"أنثى"},null,{"$f":"IF(Settings_Language = \"English\",SectionF_M,SectionF_M_Arabic)","v":"ذكر "},null,{"$f":"IF(Settings_Language = \"English\",SectionF_F,SectionF_F_Arabic)","v":"أنثى"},null,{"$f":"IF(Settings_Language = \"English\",SectionF_M,SectionF_M_Arabic)","v":"ذكر "},null,{"$f":"IF(Settings_Language = \"English\",SectionF_F,SectionF_F_Arabic)","v":"أنثى"},null,{"$f":"IF(Settings_Language = \"English\",SectionF_M,SectionF_M_Arabic)","v":"ذكر "},null,{"$f":"IF(Settings_Language = \"English\",SectionF_F,SectionF_F_Arabic)","v":"أنثى"},null,{"$f":"IF(Settings_Language = \"English\",SectionF_M,SectionF_M_Arabic)","v":"ذكر "},null,{"$f":"IF(Settings_Language = \"English\",SectionF_F,SectionF_F_Arabic)","v":"أنثى"},null,{"$f":"IF(Settings_Language = \"English\",SectionF_M,SectionF_M_Arabic)","v":"ذكر "},null,{"$f":"IF(Settings_Language = \"English\",SectionF_F,SectionF_F_Arabic)","v":"أنثى"},null,{"$f":"IF(Settings_Language = \"English\",SectionF_M,SectionF_M_Arabic)","v":"ذكر "},null,{"$f":"IF(Settings_Language = \"English\",SectionF_F,SectionF_F_Arabic)","v":"أنثى"},null,{"$f":"IF(Settings_Language = \"English\",SectionF_M,SectionF_M_Arabic)","v":"ذكر "},null,{"$f":"IF(Settings_Language = \"English\",SectionF_F,SectionF_F_Arabic)","v":"أنثى"},null,{"$f":"IF(Settings_Language = \"English\",SectionF_M,SectionF_M_Arabic)","v":"ذكر "},null,{"$f":"IF(Settings_Language = \"English\",SectionF_F,SectionF_F_Arabic)","v":"أنثى"}]
[{"$f":"IF(Settings_Language = \"English\",SectionF_Financial,SectionF_Financial_Arabic)","v":"أسباب مالية "}]
[{"$f":"IF(Settings_Language = \"English\",SectionF_Pregnancy,SectionF_Pregnancy_Arabic)","v":"حمل"}]
[{"$f":"IF(Settings_Language = \"English\",SectionF_Marriage,SectionF_Marriage_Arabic)","v":"زواج"}]
[{"$f":"IF(Settings_Language = \"English\",SectionF_Expulsion,SectionF_Expulsion_Arabic)","v":"طرد"}]
[{"$f":"IF(Settings_Language = \"English\",SectionF_Illnes,SectionF_Illnes_Arabic)","v":"مرض"}]
[{"$f":"IF(Settings_Language = \"English\",SectionF_Death,SectionF_Death_Arabic)","v":"وفاه"}]
[{"$f":"IF(Settings_Language = \"English\",SectionF_Absconded,SectionF_Absconded_Arabic)","v":"إختفاء"}]
[{"$f":"IF(Settings_Language = \"English\",SectionF_Other,SectionF_Other_Arabic)","v":"غيرهم"}]
[]
[{"$f":"IF(Settings_Language = \"English\",SectionF_Total,SectionF_Total_Arabic)","v":"الاجمالي"},null,null,null,null,null,null,{"$f":"SUM(H112:I119)","v":0},null,{"$f":"SUM(J112:K119)","v":0},null,{"$f":"SUM(L112:M119)","v":0},null,{"$f":"SUM(N112:O119)","v":0},null,{"$f":"SUM(P112:Q119)","v":0},null,{"$f":"SUM(R112:S119)","v":0},null,{"$f":"SUM(T112:U119)","v":0},null,{"$f":"SUM(V112:W119)","v":0},null,{"$f":"SUM(X112:Y119)","v":0},null,{"$f":"SUM(Z112:AA119)","v":0},null,{"$f":"SUM(AB112:AC119)","v":0},null,{"$f":"SUM(AD112:AE119)","v":0},null,{"$f":"SUM(AF112:AG119)","v":0},null,{"$f":"SUM(AH112:AI119)","v":0},null,{"$f":"SUM(AJ112:AK119)","v":0},null,{"$f":"SUM(AL112:AM119)","v":0},null,{"$f":"SUM(AN112:AO119)","v":0},null,{"$f":"SUM(AP112:AQ119)","v":0}]
[]
[{"$f":"IF(Settings_Language = \"English\",SectionF_F11,SectionF_F11_Arabic)","v":"حـ.11: الطلبة الايتام والمعرضون حسب العمر و الجنس"}]
[null,null,null,null,null,null,null,null,null,{"$f":"IF(Settings_Language = \"English\",SectionF_Grade1,SectionF_Grade1_Arabic)","v":"سنة اولى "},null,null,null,{"$f":"IF(Settings_Language = \"English\",SectionF_Grade2,SectionF_Grade2_Arabic)","v":"سنة ثانية"},null,null,null,{"$f":"IF(Settings_Language = \"English\",SectionF_Grade3,SectionF_Grade3_Arabic)","v":"سنة ثالثة"},null,null,null,{"$f":"IF(Settings_Language = \"English\",SectionF_Grade4,SectionF_Grade4_Arabic)","v":"سنة رابعة"},null,null,null,{"$f":"IF(Settings_Language = \"English\",SectionF_Grade5,SectionF_Grade5_Arabic)","v":"سنة خامسة"},null,null,null,{"$f":"IF(Settings_Language = \"English\",SectionF_Grade6,SectionF_Grade6_Arabic)","v":"سنة سادسة"},null,null,null,{"$f":"IF(Settings_Language = \"English\",SectionF_Grade7,SectionF_Grade7_Arabic)","v":"سنة سابعة"},null,null,null,{"$f":"IF(Settings_Language = \"English\",SectionF_Grade8,SectionF_Grade8_Arabic)","v":"سنة ثامنة"},null,null,null,{"$f":"IF(Settings_Language = \"English\",SectionF_Grade9,SectionF_Grade9_Arabic)","v":"سنة تاسعة"}]
[null,null,null,null,null,null,null,null,null,{"$f":"IF(Settings_Language = \"English\",SectionF_M,SectionF_M_Arabic)","v":"ذكر "},null,{"$f":"IF(Settings_Language = \"English\",SectionF_F,SectionF_F_Arabic)","v":"أنثى"},null,{"$f":"IF(Settings_Language = \"English\",SectionF_M,SectionF_M_Arabic)","v":"ذكر "},null,{"$f":"IF(Settings_Language = \"English\",SectionF_F,SectionF_F_Arabic)","v":"أنثى"},null,{"$f":"IF(Settings_Language = \"English\",SectionF_M,SectionF_M_Arabic)","v":"ذكر "},null,{"$f":"IF(Settings_Language = \"English\",SectionF_F,SectionF_F_Arabic)","v":"أنثى"},null,{"$f":"IF(Settings_Language = \"English\",SectionF_M,SectionF_M_Arabic)","v":"ذكر "},null,{"$f":"IF(Settings_Language = \"English\",SectionF_F,SectionF_F_Arabic)","v":"أنثى"},null,{"$f":"IF(Settings_Language = \"English\",SectionF_M,SectionF_M_Arabic)","v":"ذكر "},null,{"$f":"IF(Settings_Language = \"English\",SectionF_F,SectionF_F_Arabic)","v":"أنثى"},null,{"$f":"IF(Settings_Language = \"English\",SectionF_M,SectionF_M_Arabic)","v":"ذكر "},null,{"$f":"IF(Settings_Language = \"English\",SectionF_F,SectionF_F_Arabic)","v":"أنثى"},null,{"$f":"IF(Settings_Language = \"English\",SectionF_M,SectionF_M_Arabic)","v":"ذكر "},null,{"$f":"IF(Settings_Language = \"English\",SectionF_F,SectionF_F_Arabic)","v":"أنثى"},null,{"$f":"IF(Settings_Language = \"English\",SectionF_M,SectionF_M_Arabic)","v":"ذكر "},null,{"$f":"IF(Settings_Language = \"English\",SectionF_F,SectionF_F_Arabic)","v":"أنثى"},null,{"$f":"IF(Settings_Language = \"English\",SectionF_M,SectionF_M_Arabic)","v":"ذكر "},null,{"$f":"IF(Settings_Language = \"English\",SectionF_F,SectionF_F_Arabic)","v":"أنثى"}]
[{"$f":"IF(Settings_Language = \"English\",SectionF_SingleOrphansMaternal,SectionF_SingleOrphansMaternal_Arabic)","v":"يتيم الام"}]
[{"$f":"IF(Settings_Language = \"English\",SectionF_SingleOrphansPaternal,SectionF_SingleOrphansPaternal_Arabic)","v":"يتيم الاب"}]
[{"$f":"IF(Settings_Language = \"English\",SectionF_DoubleOrphans,SectionF_DoubleOrphans_Arabic)","v":"يتيم الابوين"}]
[{"$f":"IF(Settings_Language = \"English\",SectionF_VulnerableNotOrphaned,SectionF_VulnerableNotOrphaned_Arabic)","v":"معرض و غير يتيم"}]
[]
[{"$f":"IF(Settings_Language = \"English\",SectionF_Total,SectionF_Total_Arabic)","v":"الاجمالي"},null,null,null,null,null,null,null,null,{"$f":"SUM(J126:K129)","v":0},null,{"$f":"SUM(L126:M129)","v":0},null,{"$f":"SUM(N126:O129)","v":0},null,{"$f":"SUM(P126:Q129)","v":0},null,{"$f":"SUM(R126:S129)","v":0},null,{"$f":"SUM(T126:U129)","v":0},null,{"$f":"SUM(V126:W129)","v":0},null,{"$f":"SUM(X126:Y129)","v":0},null,{"$f":"SUM(Z126:AA129)","v":0},null,{"$f":"SUM(AB126:AC129)","v":0},null,{"$f":"SUM(AD126:AE129)","v":0},null,{"$f":"SUM(AF126:AG129)","v":0},null,{"$f":"SUM(AH126:AI129)","v":0},null,{"$f":"SUM(AJ126:AK129)","v":0},null,{"$f":"SUM(AL126:AM129)","v":0},null,{"$f":"SUM(AN126:AO129)","v":0},null,{"$f":"SUM(AP126:AQ129)","v":0},null,{"$f":"SUM(AR126:AS129)","v":0}]
[]
[{"$f":"IF(Settings_Language = \"English\",SectionF_F12,SectionF_F12_Arabic)","v":"حـ.12: الطلبة ذوي الاحتياجات الخاصة متضمن طلبة الداخلي  (إن وجدوا)   (يجب ان يكون إحتساب اي طالب ضمن خانة واحدة فقط)"}]
[]
[null,null,null,null,null,null,null,{"$f":"IF(Settings_Language = \"English\",SectionF_Grade1,SectionF_Grade1_Arabic)","v":"سنة اولى "},null,null,null,{"$f":"IF(Settings_Language = \"English\",SectionF_Grade2,SectionF_Grade2_Arabic)","v":"سنة ثانية"},null,null,null,{"$f":"IF(Settings_Language = \"English\",SectionF_Grade3,SectionF_Grade3_Arabic)","v":"سنة ثالثة"},null,null,null,{"$f":"IF(Settings_Language = \"English\",SectionF_Grade4,SectionF_Grade4_Arabic)","v":"سنة رابعة"},null,null,null,{"$f":"IF(Settings_Language = \"English\",SectionF_Grade5,SectionF_Grade5_Arabic)","v":"سنة خامسة"},null,null,null,{"$f":"IF(Settings_Language = \"English\",SectionF_Grade6,SectionF_Grade6_Arabic)","v":"سنة سادسة"},null,null,null,{"$f":"IF(Settings_Language = \"English\",SectionF_Grade7,SectionF_Grade7_Arabic)","v":"سنة سابعة"},null,null,null,{"$f":"IF(Settings_Language = \"English\",SectionF_Grade8,SectionF_Grade8_Arabic)","v":"سنة ثامنة"},null,null,null,{"$f":"IF(Settings_Language = \"English\",SectionF_Grade9,SectionF_Grade9_Arabic)","v":"سنة تاسعة"}]
[null,null,null,null,null,null,null,{"$f":"IF(Settings_Language = \"English\",SectionF_M,SectionF_M_Arabic)","v":"ذكر "},null,{"$f":"IF(Settings_Language = \"English\",SectionF_F,SectionF_F_Arabic)","v":"أنثى"},null,{"$f":"IF(Settings_Language = \"English\",SectionF_M,SectionF_M_Arabic)","v":"ذكر "},null,{"$f":"IF(Settings_Language = \"English\",SectionF_F,SectionF_F_Arabic)","v":"أنثى"},null,{"$f":"IF(Settings_Language = \"English\",SectionF_M,SectionF_M_Arabic)","v":"ذكر "},null,{"$f":"IF(Settings_Language = \"English\",SectionF_F,SectionF_F_Arabic)","v":"أنثى"},null,{"$f":"IF(Settings_Language = \"English\",SectionF_M,SectionF_M_Arabic)","v":"ذكر "},null,{"$f":"IF(Settings_Language = \"English\",SectionF_F,SectionF_F_Arabic)","v":"أنثى"},null,{"$f":"IF(Settings_Language = \"English\",SectionF_M,SectionF_M_Arabic)","v":"ذكر "},null,{"$f":"IF(Settings_Language = \"English\",SectionF_F,SectionF_F_Arabic)","v":"أنثى"},null,{"$f":"IF(Settings_Language = \"English\",SectionF_M,SectionF_M_Arabic)","v":"ذكر "},null,{"$f":"IF(Settings_Language = \"English\",SectionF_F,SectionF_F_Arabic)","v":"أنثى"},null,{"$f":"IF(Settings_Language = \"English\",SectionF_M,SectionF_M_Arabic)","v":"ذكر "},null,{"$f":"IF(Settings_Language = \"English\",SectionF_F,SectionF_F_Arabic)","v":"أنثى"},null,{"$f":"IF(Settings_Language = \"English\",SectionF_M,SectionF_M_Arabic)","v":"ذكر "},null,{"$f":"IF(Settings_Language = \"English\",SectionF_F,SectionF_F_Arabic)","v":"أنثى"},null,{"$f":"IF(Settings_Language = \"English\",SectionF_M,SectionF_M_Arabic)","v":"ذكر "},null,{"$f":"IF(Settings_Language = \"English\",SectionF_F,SectionF_F_Arabic)","v":"أنثى"}]
[{"$f":"IF(Settings_Language = \"English\",SectionF_VisualAndBlind,SectionF_VisualAndBlind_Arabic)","v":"إعاقة بصرية او عمى"}]
[{"$f":"IF(Settings_Language = \"English\",SectionF_PhysicalMobility,SectionF_PhysicalMobility_Arabic)","v":"إعاقة حركية"}]
[{"$f":"IF(Settings_Language = \"English\",SectionF_SpeechAndHearing,SectionF_SpeechAndHearing_Arabic)","v":"إعاقة نطق او سمع"}]
[{"$f":"IF(Settings_Language = \"English\",SectionF_Mental,SectionF_Mental_Arabic)","v":"إعاقة عقلية"}]
[{"$f":"IF(Settings_Language = \"English\",SectionF_MutliSpecialNeeds,SectionF_MutliSpecialNeeds_Arabic)","v":"متعدد الاعاقات"}]
[{"$f":"IF(Settings_Language = \"English\",SectionF_Other,SectionF_Other_Arabic)","v":"غيرهم"}]
[]
[{"$f":"IF(Settings_Language = \"English\",SectionF_Total,SectionF_Total_Arabic)","v":"الاجمالي"},null,null,null,null,null,null,{"$f":"SUM(H137:I142)","v":0},null,{"$f":"SUM(J137:K142)","v":0},null,{"$f":"SUM(L137:M142)","v":0},null,{"$f":"SUM(N137:O142)","v":0},null,{"$f":"SUM(P137:Q142)","v":0},null,{"$f":"SUM(R137:S142)","v":0},null,{"$f":"SUM(T137:U142)","v":0},null,{"$f":"SUM(V137:W142)","v":0},null,{"$f":"SUM(X137:Y142)","v":0},null,{"$f":"SUM(Z137:AA142)","v":0},null,{"$f":"SUM(AB137:AC142)","v":0},null,{"$f":"SUM(AD137:AE142)","v":0},null,{"$f":"SUM(AF137:AG142)","v":0},null,{"$f":"SUM(AH137:AI142)","v":0},null,{"$f":"SUM(AJ137:AK142)","v":0},null,{"$f":"SUM(AL137:AM142)","v":0},null,{"$f":"SUM(AN137:AO142)","v":0},null,{"$f":"SUM(AP137:AQ142)","v":0}]
[]
[{"$f":"IF(Settings_Language = \"English\",SectionF_F13,SectionF_F13_Arabic)","v":"حـ.13: اعداد الطلبة المقيدون بالعام الماضي لكل سنة دراسية حسب العمر و الجنس"}]
[null,null,null,null,null,null,null,{"$f":"IF(Settings_Language = \"English\",SectionF_Grade1,SectionF_Grade1_Arabic)","v":"سنة اولى "},null,null,null,{"$f":"IF(Settings_Language = \"English\",SectionF_Grade2,SectionF_Grade2_Arabic)","v":"سنة ثانية"},null,null,null,{"$f":"IF(Settings_Language = \"English\",SectionF_Grade3,SectionF_Grade3_Arabic)","v":"سنة ثالثة"},null,null,null,{"$f":"IF(Settings_Language = \"English\",SectionF_Grade4,SectionF_Grade4_Arabic)","v":"سنة رابعة"},null,null,null,{"$f":"IF(Settings_Language = \"English\",SectionF_Grade5,SectionF_Grade5_Arabic)","v":"سنة خامسة"},null,null,null,{"$f":"IF(Settings_Language = \"English\",SectionF_Grade6,SectionF_Grade6_Arabic)","v":"سنة سادسة"},null,null,null,{"$f":"IF(Settings_Language = \"English\",SectionF_Grade7,SectionF_Grade7_Arabic)","v":"سنة سابعة"},null,null,null,{"$f":"IF(Settings_Language = \"English\",SectionF_Grade8,SectionF_Grade8_Arabic)","v":"سنة ثامنة"},null,null,null,{"$f":"IF(Settings_Language = \"English\",SectionF_Grade9,SectionF_Grade9_Arabic)","v":"سنة تاسعة"}]
[null,null,null,null,null,null,null,{"$f":"IF(Settings_Language = \"English\",SectionF_M,SectionF_M_Arabic)","v":"ذكر "},null,{"$f":"IF(Settings_Language = \"English\",SectionF_F,SectionF_F_Arabic)","v":"أنثى"},null,{"$f":"IF(Settings_Language = \"English\",SectionF_M,SectionF_M_Arabic)","v":"ذكر "},null,{"$f":"IF(Settings_Language = \"English\",SectionF_F,SectionF_F_Arabic)","v":"أنثى"},null,{"$f":"IF(Settings_Language = \"English\",SectionF_M,SectionF_M_Arabic)","v":"ذكر "},null,{"$f":"IF(Settings_Language = \"English\",SectionF_F,SectionF_F_Arabic)","v":"أنثى"},null,{"$f":"IF(Settings_Language = \"English\",SectionF_M,SectionF_M_Arabic)","v":"ذكر "},null,{"$f":"IF(Settings_Language = \"English\",SectionF_F,SectionF_F_Arabic)","v":"أنثى"},null,{"$f":"IF(Settings_Language = \"English\",SectionF_M,SectionF_M_Arabic)","v":"ذكر "},null,{"$f":"IF(Settings_Language = \"English\",SectionF_F,SectionF_F_Arabic)","v":"أنثى"},null,{"$f":"IF(Settings_Language = \"English\",SectionF_M,SectionF_M_Arabic)","v":"ذكر "},null,{"$f":"IF(Settings_Language = \"English\",SectionF_F,SectionF_F_Arabic)","v":"أنثى"},null,{"$f":"IF(Settings_Language = \"English\",SectionF_M,SectionF_M_Arabic)","v":"ذكر "},null,{"$f":"IF(Settings_Language = \"English\",SectionF_F,SectionF_F_Arabic)","v":"أنثى"},null,{"$f":"IF(Settings_Language = \"English\",SectionF_M,SectionF_M_Arabic)","v":"ذكر "},null,{"$f":"IF(Settings_Language = \"English\",SectionF_F,SectionF_F_Arabic)","v":"أنثى"},null,{"$f":"IF(Settings_Language = \"English\",SectionF_M,SectionF_M_Arabic)","v":"ذكر "},null,{"$f":"IF(Settings_Language = \"English\",SectionF_F,SectionF_F_Arabic)","v":"أنثى"}]
[{"$f":"IF(Settings_Language = \"English\",SectionF_Below6Years,SectionF_Below6Years_Arabic)","v":"اقل من 6 سنوات"}]
[{"$f":"IF(Settings_Language = \"English\",SectionF_6Years,SectionF_6Years_Arabic)","v":"6  سنوات"}]
[{"$f":"IF(Settings_Language = \"English\",SectionF_7Years,SectionF_7Years_Arabic)","v":"7  سنوات"}]
[{"$f":"IF(Settings_Language = \"English\",SectionF_8Years,SectionF_8Years_Arabic)","v":"8  سنوات"}]
[{"$f":"IF(Settings_Language = \"English\",SectionF_9Years,SectionF_9Years_Arabic)","v":"9  سنوات"}]
[{"$f":"IF(Settings_Language = \"English\",SectionF_10Years,SectionF_10Years_Arabic)","v":"10   سنوات"}]
[{"$f":"IF(Settings_Language = \"English\",SectionF_11Years,SectionF_11Years_Arabic)","v":"11  سنة"}]
[{"$f":"IF(Settings_Language = \"English\",SectionF_12Years,SectionF_12Years_Arabic)","v":"12  سنة"}]
[{"$f":"IF(Settings_Language = \"English\",SectionF_13Years,SectionF_13Years_Arabic)","v":"13  سنة"}]
[{"$f":"IF(Settings_Language = \"English\",SectionF_14Years,SectionF_14Years_Arabic)","v":"14  سنة"}]
[{"$f":"IF(Settings_Language = \"English\",SectionF_15YearsAbove,SectionF_15YearsAbove_Arabic)","v":"15 سنة او أكبر"}]
[]
[{"$f":"IF(Settings_Language = \"English\",SectionF_Total,SectionF_Total_Arabic)","v":"الاجمالي"},null,null,null,null,null,null,{"$f":"SUM(H149:I159)","v":0},null,{"$f":"SUM(J149:K159)","v":0},null,{"$f":"SUM(L149:M159)","v":0},null,{"$f":"SUM(N149:O159)","v":0},null,{"$f":"SUM(P149:Q159)","v":0},null,{"$f":"SUM(R149:S159)","v":0},null,{"$f":"SUM(T149:U159)","v":0},null,{"$f":"SUM(V149:W159)","v":0},null,{"$f":"SUM(X149:Y159)","v":0},null,{"$f":"SUM(Z149:AA159)","v":0},null,{"$f":"SUM(AB149:AC159)","v":0},null,{"$f":"SUM(AD149:AE159)","v":0},null,{"$f":"SUM(AF149:AG159)","v":0},null,{"$f":"SUM(AH149:AI159)","v":0},null,{"$f":"SUM(AJ149:AK159)","v":0},null,{"$f":"SUM(AL149:AM159)","v":0},null,{"$f":"SUM(AN149:AO159)","v":0},null,{"$f":"SUM(AP149:AQ159)","v":0}]
[]
[{"$f":"IF(Settings_Language = \"English\",SectionF_PupilsPresent,SectionF_PupilsPresent_Arabic)","v":"عدد الطلاب يوم الاحصاء"}]

{"sheet":"SECTION G","index":7,"n_rows":20,"n_cols":44,"rows_kept":20,"cut":false,"hidden":false,"merged":[[0,0,0,44],[17,0,17,8],[18,0,18,8],[19,0,19,8],[8,0,8,8],[9,0,9,8],[10,0,10,8],[11,0,11,8],[12,0,12,8],[13,0,13,8],[14,0,14,8],[15,0,15,8],[16,0,16,8],[7,37,7,38],[7,39,7,40],[7,41,7,42],[7,43,7,44],[6,33,6,36],[6,37,6,40],[6,41,6,44],[8,17,8,18],[8,19,8,20],[8,21,8,22],[7,33,7,34],[7,35,7,36],[8,39,8,40],[8,41,8,42],[7,31,7,32],[8,29,8,30],[7,9,7,10],[7,11,7,12],[7,13,7,14],[7,15,7,16],[7,17,7,18],[7,19,7,20],[7,21,7,22],[6,9,6,12],[6,13,6,16],[6,17,6,20],[6,21,6,24],[8,13,8,14],[8,15,8,16],[6,29,6,32],[7,23,7,24],[7,25,7,26],[7,27,7,28],[7,29,7,30],[8,23,8,24],[8,25,8,26],[8,11,8,12],[2,0,2,43],[9,43,9,44],[9,33,9,34],[9,35,9,36],[9,37,9,38],[8,27,8,28],[6,25,6,28],[8,43,8,44],[9,9,9,10],[9,11,9,12],[9,13,9,14],[9,15,9,16],[9,17,9,18],[9,19,9,20],[9,21,9,22],[9,23,9,24],[9,25,9,26],[8,31,8,32],[8,33,8,34],[8,35,8,36],[8,37,8,38],[9,39,9,40],[9,41,9,42],[8,9,8,10],[10,19,10,20],[10,21,10,22],[9,27,9,28],[9,29,9,30],[9,31,9,32],[10,31,10,32],[10,9,10,10],[10,11,10,12],[10,13,10,14],[10,15,10,16],[10,17,10,18],[10,23,10,24],[10,25,10,26],[10,27,10,28],[10,29,10,30],[10,43,10,44],[10,33,10,34],[11,29,11,30],[12,39,12,40],[12,41,12,42],[11,43,11,44],[11,41,11,42],[12,43,12,44],[12,33,12,34],[12,35,12,36],[12,37,12,38],[10,41,10,42],[11,25,11,26],[10,35,10,36],[10,37,10,38],[10,39,10,40],[11,27,11,28],[11,31,11,32],[11,33,11,34],[11,35,11,36],[11,37,11,38],[11,39,11,40],[11,15,11,16],[11,17,11,18],[11,19,11,20],[11,21,11,22],[11,23,11,24],[12,15,12,16],[12,17,12,18],[12,19,12,20],[12,21,12,22],[12,23,12,24],[12,25,12,26],[14,27,14,28],[13,15,13,16],[13,17,13,18],[13,23,13,24],[13,25,13,26],[13,27,13,28],[15,39,15,40],[15,41,15,42],[13,19,13,20],[13,21,13,22],[13,39,13,40],[13,41,13,42],[15,43,15,44],[15,31,15,32],[15,33,15,34],[15,35,15,36],[15,37,15,38],[14,9,14,10],[14,11,14,12],[11,9,11,10],[11,11,11,12],[11,13,11,14],[13,9,13,10],[13,11,13,12],[13,13,13,14],[12,9,12,10],[12,11,12,12],[12,13,12,14],[12,27,12,28],[12,29,12,30],[12,31,12,32],[13,31,13,32],[13,29,13,30],[14,23,14,24],[14,25,14,26],[13,35,13,36],[13,43,13,44],[13,33,13,34],[14,29,14,30],[14,41,14,42],[14,13,14,14],[14,15,14,16],[14,17,14,18],[14,19,14,20],[14,21,14,22],[14,43,14,44],[14,31,14,32],[14,33,14,34],[14,35,14,36],[14,37,14,38],[14,39,14,40],[13,37,13,38],[16,43,16,44],[16,23,16,24],[16,25,16,26],[16,27,16,28],[16,29,16,30],[16,31,16,32],[16,33,16,34],[16,35,16,36],[16,37,16,38],[16,39,16,40],[16,41,16,42],[16,9,16,10],[16,11,16,12],[16,13,16,14],[16,15,16,16],[16,17,16,18],[16,19,16,20],[16,21,16,22],[15,27,15,28],[15,29,15,30],[15,9,15,10],[15,11,15,12],[15,13,15,14],[15,15,15,16],[15,17,15,18],[15,19,15,20],[15,21,15,22],[15,23,15,24],[15,25,15,26],[17,27,17,28],[17,9,17,10],[17,11,17,12],[17,13,17,14],[17,15,17,16],[17,17,17,18],[17,19,17,20],[17,21,17,22],[17,23,17,24],[17,25,17,26],[17,43,17,44],[17,31,17,32],[17,33,17,34],[17,35,17,36],[17,37,17,38],[17,39,17,40],[17,41,17,42],[18,41,18,42],[17,29,17,30],[18,19,18,20],[18,21,18,22],[18,23,18,24],[18,25,18,26],[18,43,18,44],[18,27,18,28],[18,29,18,30],[18,31,18,32],[18,33,18,34],[18,35,18,36],[18,37,18,38],[18,39,18,40],[3,0,5,43],[19,39,19,40],[19,41,19,42],[19,43,19,44],[19,25,19,26],[19,27,19,28],[19,29,19,30],[19,31,19,32],[19,33,19,34],[19,35,19,36],[19,9,19,10],[19,11,19,12],[19,13,19,14],[19,15,19,16],[19,17,19,18],[19,19,19,20],[19,21,19,22],[19,23,19,24],[19,37,19,38],[18,9,18,10],[18,11,18,12],[18,13,18,14],[18,15,18,16],[18,17,18,18]]}
[{"$f":"IF(Settings_Language = \"English\",SectionG_Title,SectionG_Title_Arabic)","v":"القسم ر.: الكتاب المدرسي"}]
[]
[{"$f":"IF(Settings_Language = \"English\",SectionG_Instruction,SectionG_Instruction_Arabic)","v":"التعليمات"}]
[{"$f":"IF(Settings_Language = \"English\",SectionG_InstructionDesc,SectionG_InstructionDesc_Arabic)","v":"يرجى إدخال إجمالي أعداد الكتب المدرسية الاساسية  و المذكرات المنهجية الرسمية و الصادرة عن الوزارة او المدرسة لكل مادة و لكل سنة دراسية .   المذكرات تتضمن نسخ من مذكرات ، في حالة وجود مادة لم يتم تضمينها بالجدول يرجى إضافتها بجانب {مواد أخرى) "}]
[]
[]
[{"$f":"IF(Settings_Language = \"English\",SectionG_Textbook,SectionG_Textbook_Arabic)","v":"الكتب المدرسية"},null,null,null,null,null,null,null,null,{"$f":"IF(Settings_Language = \"English\",SectionG_Grade1,SectionG_Grade1_Arabic)","v":"سنة اولى"},null,null,null,{"$f":"IF(Settings_Language = \"English\",SectionG_Grade2,SectionG_Grade2_Arabic)","v":"سنة ثانية"},null,null,null,{"$f":"IF(Settings_Language = \"English\",SectionG_Grade3,SectionG_Grade3_Arabic)","v":"سنة ثالثة"},null,null,null,{"$f":"IF(Settings_Language = \"English\",SectionG_Grade4,SectionG_Grade4_Arabic)","v":"سنة رابعة"},null,null,null,{"$f":"IF(Settings_Language = \"English\",SectionG_Grade5,SectionG_Grade5_Arabic)","v":"سنة خامسة"},null,null,null,{"$f":"IF(Settings_Language = \"English\",SectionG_Grade6,SectionG_Grade6_Arabic)","v":"سنة سادسة"},null,null,null,{"$f":"IF(Settings_Language = \"English\",SectionG_Grade7,SectionG_Grade7_Arabic)","v":"سنة سابعة"},null,null,null,{"$f":"IF(Settings_Language = \"English\",SectionG_Grade8,SectionG_Grade8_Arabic)","v":"سنة ثامنة"},null,null,null,{"$f":"IF(Settings_Language = \"English\",SectionG_Grade9,SectionG_Grade9_Arabic)","v":"سنة تاسعة"}]
[null,null,null,null,null,null,null,null,null,{"$f":"IF(Settings_Language = \"English\",SectionG_TB,SectionG_TB_Arabic)","v":"كتاب "},null,{"$f":"IF(Settings_Language = \"English\",SectionG_SYL,SectionG_SYL_Arabic)","v":"مذكرة"},null,{"$f":"IF(Settings_Language = \"English\",SectionG_TB,SectionG_TB_Arabic)","v":"كتاب "},null,{"$f":"IF(Settings_Language = \"English\",SectionG_SYL,SectionG_SYL_Arabic)","v":"مذكرة"},null,{"$f":"IF(Settings_Language = \"English\",SectionG_TB,SectionG_TB_Arabic)","v":"كتاب "},null,{"$f":"IF(Settings_Language = \"English\",SectionG_SYL,SectionG_SYL_Arabic)","v":"مذكرة"},null,{"$f":"IF(Settings_Language = \"English\",SectionG_TB,SectionG_TB_Arabic)","v":"كتاب "},null,{"$f":"IF(Settings_Language = \"English\",SectionG_SYL,SectionG_SYL_Arabic)","v":"مذكرة"},null,{"$f":"IF(Settings_Language = \"English\",SectionG_TB,SectionG_TB_Arabic)","v":"كتاب "},null,{"$f":"IF(Settings_Language = \"English\",SectionG_SYL,SectionG_SYL_Arabic)","v":"مذكرة"},null,{"$f":"IF(Settings_Language = \"English\",SectionG_TB,SectionG_TB_Arabic)","v":"كتاب "},null,{"$f":"IF(Settings_Language = \"English\",SectionG_SYL,SectionG_SYL_Arabic)","v":"مذكرة"},null,{"$f":"IF(Settings_Language = \"English\",SectionG_TB,SectionG_TB_Arabic)","v":"كتاب "},null,{"$f":"IF(Settings_Language = \"English\",SectionG_SYL,SectionG_SYL_Arabic)","v":"مذكرة"},null,{"$f":"IF(Settings_Language = \"English\",SectionG_TB,SectionG_TB_Arabic)","v":"كتاب "},null,{"$f":"IF(Settings_Language = \"English\",SectionG_SYL,SectionG_SYL_Arabic)","v":"مذكرة"},null,{"$f":"IF(Settings_Language = \"English\",SectionG_TB,SectionG_TB_Arabic)","v":"كتاب "},null,{"$f":"IF(Settings_Language = \"English\",SectionG_SYL,SectionG_SYL_Arabic)","v":"مذكرة"}]
[{"$f":"IF(Settings_Language = \"English\",SectionG_IslamicStudies,SectionG_IslamicStudies_Arabic)","v":"التربية الاسلامية"}]
[{"$f":"IF(Settings_Language = \"English\",SectionG_ArabicLanguage,SectionG_ArabicLanguage_Arabic)","v":"اللغة العربية"}]
[{"$f":"IF(Settings_Language = \"English\",SectionG_Math,SectionG_Math_Arabic)","v":"الرياضيات"}]
[{"$f":"IF(Settings_Language = \"English\",SectionG_Science,SectionG_Science_Arabic)","v":"العلوم"}]
[{"$f":"IF(Settings_Language = \"English\",SectionG_History,SectionG_History_Arabic)","v":"التاريخ"}]
[{"$f":"IF(Settings_Language = \"English\",SectionG_Geography,SectionG_Geography_Arabic)","v":"الجغرافيا"}]
[{"$f":"IF(Settings_Language = \"English\",SectionG_English,SectionG_English_Arabic)","v":"اللغة الانجليزية"}]
[{"$f":"IF(Settings_Language = \"English\",SectionG_IT,SectionG_IT_Arabic)","v":"الحاسوب"}]
[{"$f":"IF(Settings_Language = \"English\",SectionG_ArtsEducation,SectionG_ArtsEducation_Arabic)","v":"التربية الفنية"}]
[{"$f":"IF(Settings_Language = \"English\",SectionG_MusicalEducation,SectionG_MusicalEducation_Arabic)","v":"التربية الموسيقية"}]
[{"$f":"IF(Settings_Language = \"English\",SectionG_PhysicalEducation,SectionG_PhysicalEducation_Arabic)","v":"التربية البدنية"}]
[{"$f":"IF(Settings_Language = \"English\",SectionG_NationalCivilEducation,SectionG_NationalCivilEducation_Arabic)","v":"التربية الوطنية"}]

{"sheet":"SECTION H","index":8,"n_rows":100,"n_cols":54,"rows_kept":100,"cut":false,"hidden":false,"merged":[[8,39,8,42],[9,39,9,42],[33,39,33,42],[34,39,34,42],[58,39,58,42],[59,39,59,42],[83,39,83,42],[84,39,84,42],[56,18,56,27],[56,28,56,37],[57,39,57,42],[57,18,57,22],[57,23,57,27],[57,28,57,32],[57,33,57,37],[22,32,23,34],[22,35,23,37],[22,38,23,40],[38,26,38,28],[38,29,38,31],[39,23,40,25],[39,26,40,28],[38,23,38,25],[39,29,40,31],[66,0,67,7],[66,8,67,10],[66,11,67,13],[66,14,67,16],[66,17,67,19],[66,20,67,22],[82,18,82,22],[66,23,67,25],[66,26,67,28],[70,8,70,13],[70,14,70,19],[70,26,70,31],[69,0,69,12],[70,20,70,25],[63,29,63,31],[63,14,63,16],[63,17,63,19],[63,20,63,22],[72,41,73,43],[84,43,84,46],[71,8,71,10],[71,11,71,13],[71,14,71,16],[71,17,71,19],[66,29,67,31],[52,0,52,37],[58,0,58,17],[59,0,59,17],[58,18,58,22],[58,23,58,27],[58,28,58,32],[64,20,65,22],[64,23,65,25],[64,26,65,28],[64,29,65,31],[63,8,63,10],[63,11,63,13],[62,8,62,13],[62,14,62,19],[62,20,62,25],[62,26,62,31],[61,0,61,13],[64,0,65,7],[64,8,65,10],[64,11,65,13],[64,14,65,16],[64,17,65,19],[63,23,63,25],[63,26,63,28],[49,26,50,28],[47,29,48,31],[34,48,34,51],[33,33,33,37],[33,43,33,46],[33,48,33,51],[46,47,46,49],[46,50,46,52],[46,44,46,46],[41,26,42,28],[41,29,42,31],[49,29,50,31],[21,47,21,49],[21,50,21,52],[32,39,32,42],[34,43,34,46],[27,0,27,37],[33,0,33,17],[34,0,34,17],[22,41,23,43],[24,20,25,22],[24,23,25,25],[22,23,23,25],[22,26,23,28],[22,29,23,31],[24,26,25,28],[33,18,33,22],[22,11,23,13],[21,8,21,10],[21,11,21,13],[21,14,21,16],[21,17,21,19],[8,48,8,51],[32,33,32,37],[32,43,32,46],[9,43,9,46],[9,48,9,51],[8,18,8,22],[8,23,8,27],[28,18,30,37],[28,39,31,46],[28,48,32,51],[31,18,31,27],[31,28,31,37],[14,44,15,46],[20,50,20,55],[21,32,21,34],[14,47,15,49],[14,50,15,52],[14,53,15,55],[16,32,17,34],[16,35,17,37],[22,50,23,52],[21,38,21,40],[21,41,21,43],[21,44,21,46],[99,32,100,34],[99,35,100,37],[99,38,100,40],[99,41,100,43],[99,44,100,46],[99,47,100,49],[99,50,100,52],[99,53,100,55],[3,18,5,37],[3,39,6,46],[3,48,7,51],[6,18,6,27],[6,28,6,37],[7,28,7,32],[7,33,7,37],[7,39,7,42],[7,43,7,46],[7,18,7,22],[7,23,7,27],[8,33,8,37],[8,43,8,46],[97,47,98,49],[97,50,98,52],[97,53,98,55],[96,32,96,34],[96,35,96,37],[96,38,96,40],[96,41,96,43],[96,44,96,46],[96,47,96,49],[96,50,96,52],[96,53,96,55],[97,32,98,34],[97,35,98,37],[97,38,98,40],[97,41,98,43],[97,44,98,46],[87,32,87,37],[87,38,87,43],[87,44,87,49],[87,50,87,55],[91,47,92,49],[91,50,92,52],[91,53,92,55],[95,32,95,37],[95,38,95,43],[95,44,95,49],[95,50,95,55],[91,32,92,34],[91,35,92,37],[91,38,92,40],[91,41,92,43],[91,44,92,46],[88,47,88,49],[88,50,88,52],[88,53,88,55],[89,32,90,34],[89,35,90,37],[89,38,90,40],[89,41,90,43],[89,44,90,46],[74,53,75,55],[74,38,75,40],[74,41,75,43],[74,35,75,37],[89,47,90,49],[89,50,90,52],[89,53,90,55],[88,32,88,34],[88,35,88,37],[88,38,88,40],[88,41,88,43],[88,44,88,46],[78,18,80,37],[78,39,81,46],[78,48,82,51],[81,18,81,27],[81,28,81,37],[82,28,82,32],[82,33,82,37],[82,39,82,42],[82,23,82,27],[83,18,83,22],[83,23,83,27],[83,28,83,32],[84,48,84,51],[74,32,75,34],[74,44,75,46],[74,47,75,49],[74,50,75,52],[74,26,75,28],[74,29,75,31],[82,43,82,46],[83,33,83,37],[83,43,83,46],[83,48,83,51],[77,0,77,37],[83,0,83,17],[84,0,84,17],[84,18,84,22],[84,23,84,27],[84,28,84,32],[84,33,84,37],[71,53,71,55],[72,44,73,46],[72,47,73,49],[72,50,73,52],[72,53,73,55],[66,50,67,52],[66,53,67,55],[70,32,70,37],[70,38,70,43],[70,44,70,49],[70,50,70,55],[66,32,67,34],[66,35,67,37],[66,38,67,40],[66,41,67,43],[66,44,67,46],[71,47,71,49],[71,50,71,52],[71,38,71,40],[71,41,71,43],[71,44,71,46],[72,32,73,34],[72,35,73,37],[72,38,73,40],[63,50,63,52],[63,53,63,55],[64,32,65,34],[64,35,65,37],[64,38,65,40],[64,41,65,43],[64,44,65,46],[64,47,65,49],[64,50,65,52],[64,53,65,55],[63,32,63,34],[63,35,63,37],[63,38,63,40],[63,41,63,43],[63,44,63,46],[46,53,46,55],[62,50,62,55],[58,33,58,37],[58,43,58,46],[58,48,58,51],[59,43,59,46],[59,48,59,51],[47,50,48,52],[47,53,48,55],[49,32,50,34],[49,35,50,37],[49,38,50,40],[49,41,50,43],[49,44,50,46],[49,47,50,49],[49,50,50,52],[49,53,50,55],[53,39,56,46],[53,48,57,51],[57,43,57,46],[46,41,46,43],[53,18,55,37],[49,20,50,22],[49,23,50,25],[88,20,88,22],[37,50,37,55],[38,32,38,34],[38,35,38,37],[38,38,38,40],[38,41,38,43],[38,44,38,46],[38,47,38,49],[38,50,38,52],[38,53,38,55],[39,50,40,52],[39,53,40,55],[41,32,42,34],[41,35,42,37],[41,38,42,40],[41,41,42,43],[41,44,42,46],[41,47,42,49],[41,50,42,52],[41,53,42,55],[45,50,45,55],[46,32,46,34],[46,35,46,37],[46,38,46,40],[91,26,92,28],[91,0,92,7],[91,8,92,10],[91,11,92,13],[91,14,92,16],[37,44,37,49],[39,44,40,46],[39,47,40,49],[45,44,45,49],[47,44,48,46],[47,47,48,49],[62,38,62,43],[62,44,62,49],[63,47,63,49],[66,47,67,49],[71,32,71,34],[71,35,71,37],[91,29,92,31],[89,26,90,28],[89,29,90,31],[88,8,88,10],[88,11,88,13],[88,14,88,16],[88,17,88,19],[94,0,94,12],[37,32,37,37],[37,38,37,43],[39,32,40,34],[39,35,40,37],[39,38,40,40],[39,41,40,43],[45,32,45,37],[45,38,45,43],[47,32,48,34],[47,35,48,37],[47,38,48,40],[47,41,48,43],[62,32,62,37],[89,20,90,22],[89,23,90,25],[89,0,90,7],[89,8,90,10],[89,11,90,13],[88,29,88,31],[91,17,92,19],[91,20,92,22],[91,23,92,25],[74,23,75,25],[16,38,17,40],[16,41,17,43],[16,44,17,46],[16,47,17,49],[16,50,17,52],[16,53,17,55],[14,32,15,34],[14,35,15,37],[14,38,15,40],[14,41,15,43],[21,53,21,55],[20,32,20,37],[20,38,20,43],[97,20,98,22],[97,23,98,25],[97,26,98,28],[97,29,98,31],[89,14,90,16],[89,17,90,19],[88,23,88,25],[88,26,88,28],[21,35,21,37],[20,44,20,49],[22,53,23,55],[24,32,25,34],[24,35,25,37],[24,38,25,40],[24,41,25,43],[24,44,25,46],[24,47,25,49],[24,50,25,52],[24,53,25,55],[22,44,23,46],[22,47,23,49],[12,38,12,43],[12,44,12,49],[12,50,12,55],[13,32,13,34],[13,35,13,37],[13,38,13,40],[13,41,13,43],[13,44,13,46],[13,47,13,49],[13,50,13,52],[13,53,13,55],[12,32,12,37],[99,0,100,7],[99,8,100,10],[99,11,100,13],[99,14,100,16],[99,17,100,19],[99,20,100,22],[99,23,100,25],[99,26,100,28],[99,29,100,31],[97,0,98,7],[97,8,98,10],[97,11,98,13],[95,8,95,13],[95,14,95,19],[95,20,95,25],[95,26,95,31],[96,8,96,10],[96,11,96,13],[96,14,96,16],[96,17,96,19],[96,20,96,22],[96,23,96,25],[96,26,96,28],[96,29,96,31],[97,14,98,16],[97,17,98,19],[87,8,87,13],[87,14,87,19],[87,20,87,25],[87,26,87,31],[86,0,86,13],[71,20,71,22],[74,0,75,7],[74,8,75,10],[74,11,75,13],[74,14,75,16],[74,17,75,19],[74,20,75,22],[71,23,71,25],[71,26,71,28],[71,29,71,31],[72,0,73,7],[72,8,73,10],[72,11,73,13],[72,14,73,16],[72,17,73,19],[72,20,73,22],[72,23,73,25],[72,26,73,28],[72,29,73,31],[47,11,48,13],[47,14,48,16],[47,17,48,19],[49,8,50,10],[49,11,50,13],[49,14,50,16],[49,17,50,19],[47,20,48,22],[16,0,17,7],[16,8,17,10],[21,20,21,22],[20,8,20,13],[22,0,23,7],[22,8,23,10],[45,20,45,25],[19,0,19,7],[20,14,20,19],[20,20,20,25],[22,14,23,16],[22,17,23,19],[16,14,17,16],[41,20,42,22],[41,23,42,25],[44,0,44,12],[8,0,8,17],[9,0,9,17],[11,0,11,7],[12,8,12,13],[12,14,12,19],[12,20,12,25],[12,26,12,31],[13,17,13,19],[14,17,15,19],[14,14,15,16],[13,20,13,22],[13,23,13,25],[13,26,13,28],[14,20,15,22],[14,23,15,25],[14,26,15,28],[13,11,13,13],[13,14,13,16],[14,8,15,10],[14,11,15,13],[9,18,9,22],[9,23,9,27],[9,28,9,32],[13,8,13,10],[16,11,17,13],[41,0,42,7],[41,8,42,10],[41,11,42,13],[41,14,42,16],[41,17,42,19],[39,0,40,7],[39,8,40,10],[16,17,17,19],[39,11,40,13],[39,14,40,16],[39,17,40,19],[49,0,50,7],[47,0,48,7],[47,8,48,10],[0,0,0,55],[37,8,37,13],[37,14,37,19],[37,20,37,25],[37,26,37,31],[24,29,25,31],[32,18,32,22],[32,23,32,27],[36,0,36,13],[33,28,33,32],[24,0,25,7],[24,8,25,10],[24,11,25,13],[24,14,25,16],[24,17,25,19],[33,23,33,27],[32,28,32,32],[8,28,8,32],[13,29,13,31],[14,0,15,7],[14,29,15,31],[46,8,46,10],[46,11,46,13],[46,14,46,16],[46,17,46,19],[46,20,46,22],[38,8,38,10],[38,11,38,13],[38,14,38,16],[38,17,38,19],[45,8,45,13],[45,14,45,19],[38,20,38,22],[39,20,40,22],[9,33,9,37],[34,18,34,22],[34,23,34,27],[34,28,34,32],[34,33,34,37],[59,18,59,22],[59,23,59,27],[59,28,59,32],[59,33,59,37],[16,29,17,31],[21,23,21,25],[21,26,21,28],[21,29,21,31],[47,23,48,25],[47,26,48,28],[46,23,46,25],[46,26,46,28],[46,29,46,31],[45,26,45,31],[20,26,20,31],[16,20,17,22],[16,23,17,25],[16,26,17,28],[22,20,23,22]]}
[{"$f":"IF(Settings_Language = \"English\",SectionH_Title,SectionH_Title_Arabic)","v":"القسم ز.: نتائج الامتحانات"}]
[]
[{"$f":"IF(Settings_Language = \"English\",SectionH_H1,SectionH_H1_Arabic)","v":"ز.1: نتائج إمتحانات السنة الماضية لطلاب الشهادة الابتدائية (سنة سادسة) "}]
[null,null,null,null,null,null,null,null,null,null,null,null,null,null,null,null,null,null,{"$f":"IF(Settings_Language = \"English\",SectionH_NumOfPupilsSatExamsEnrolledAtSchool,SectionH_NumOfPupilsSatExamsEnrolledAtSchool_Arabic)","v":"عدد الطلاب الذين دخلوا للإمتحانات"},null,null,null,null,null,null,null,null,null,null,null,null,null,null,null,null,null,null,null,null,{"$f":"IF(Settings_Language = \"English\",SectionH_Total,SectionH_Total_Arabic)","v":"الاجمالي"},null,null,null,null,null,null,null,null,{"$f":"IF(Settings_Language = \"English\",SectionH_GrandTotal,SectionH_GrandTotal_Arabic)","v":"الاجمالي العام"}]
[]
[]
[null,null,null,null,null,null,null,null,null,null,null,null,null,null,null,null,null,null,{"$f":"IF(Settings_Language = \"English\",SectionH_LocalPupils,SectionH_LocalPupils_Arabic)","v":"الطلاب المقيمون"},null,null,null,null,null,null,null,null,null,{"$f":"IF(Settings_Language = \"English\",SectionH_IDPPupils,SectionH_IDPPupils_Arabic)","v":"الطلاب النازحون"}]
[null,null,null,null,null,null,null,null,null,null,null,null,null,null,null,null,null,null,{"$f":"IF(Settings_Language = \"English\",SectionH_Male,SectionH_Male_Arabic)","v":"ذكور"},null,null,null,null,{"$f":"IF(Settings_Language = \"English\",SectionH_Female,SectionH_Female_Arabic)","v":"إناث"},null,null,null,null,{"$f":"IF(Settings_Language = \"English\",SectionH_Male,SectionH_Male_Arabic)","v":"ذكور"},null,null,null,null,{"$f":"IF(Settings_Language = \"English\",SectionH_Female,SectionH_Female_Arabic)","v":"إناث"},null,null,null,null,null,{"$f":"IF(Settings_Language = \"English\",SectionH_Local,SectionH_Local_Arabic)","v":"مقيمون"},null,null,null,{"$f":"IF(Settings_Language = \"English\",SectionH_IDP,SectionH_IDP_Arabic)","v":"نازحون"}]
[{"$f":"IF(Settings_Language = \"English\",SectionH_NumOfCandidatesSatExams,SectionH_NumOfCandidatesSatExams_Arabic)","v":"عدد الطلاب الذين دخلوا للإمتحانات"},null,null,null,null,null,null,null,null,null,null,null,null,null,null,null,null,null,{"$f":"SUM(I15,O15,U15,AA15,AG15,AM15,AS15,AY15)","v":0},null,null,null,null,{"$f":"SUM(L15,R15,X15,AD15,AJ15,AP15,AV15,BB15)","v":0},null,null,null,null,{"$f":"SUM(I23,O23,U23,AA23,AG23,AM23,AS23,AY23)","v":0},null,null,null,null,{"$f":"SUM(L23,R23,X23,AD23,AJ23,AP23,AV23,BB23)","v":0},null,null,null,null,null,{"$f":"SUM(S9:AB9)","v":0},null,null,null,{"$f":"SUM(AC9:AL9 )","v":0},null,null,null,null,{"$f":"SUM(AN9:AU9)","v":0}]
[{"$f":"IF(Settings_Language = \"English\",SectionH_NumOfCandidatesPassedAllMandatorySubj,SectionH_NumOfCandidatesPassedAllMandatorySubj_Arabic)","v":"عدد الطلاب الذين نجحوا في جميع المواد المقررة "},null,null,null,null,null,null,null,null,null,null,null,null,null,null,null,null,null,{"$f":"SUM(I17,O17,U17,AA17,AG17,AM17,AS17,AY17)","v":0},null,null,null,null,{"$f":"SUM(L17,R17,X17,AD17,AJ17,AP17,AV17,BB17)","v":0},null,null,null,null,{"$f":"SUM(I25,O25,U25,AA25,AG25,AM25,AS25,AY25)","v":0},null,null,null,null,{"$f":"SUM(L25,R25,X25,AD25,AJ25,AP25,AV25,BB25)","v":0},null,null,null,null,null,{"$f":"SUM(S10:AB10)","v":0},null,null,null,{"$f":"SUM(AC10:AL10 )","v":0},null,null,null,null,{"$f":"SUM(AN10:AU10)","v":0}]
[]
[{"$f":"IF(Settings_Language = \"English\",SectionH_LocalPupilsOnly,SectionH_LocalPupilsOnly_Arabic)","v":"الطلاب المقيمون فقط"}]
[null,null,null,null,null,null,null,null,{"$f":"IF(Settings_Language = \"English\",SectionH_IslamicStudies,SectionH_IslamicStudies_Arabic)","v":"التربية الاسلامية"},null,null,null,null,null,{"$f":"IF(Settings_Language = \"English\",SectionH_ArabicLanguage,SectionH_ArabicLanguage_Arabic)","v":"اللغة العربية"},null,null,null,null,null,{"$f":"IF(Settings_Language = \"English\",SectionH_Math,SectionH_Math_Arabic)","v":"الرياضيات"},null,null,null,null,null,{"$f":"IF(Settings_Language = \"English\",SectionH_Science,SectionH_Science_Arabic)","v":"العلوم"},null,null,null,null,null,{"$f":"IF(Settings_Language = \"English\",SectionH_History,SectionH_History_Arabic)","v":"التاريخ"},null,null,null,null,null,{"$f":"IF(Settings_Language = \"English\",SectionH_Geography,SectionH_Geography_Arabic)","v":"الجغرافيا"},null,null,null,null,null,{"$f":"IF(Settings_Language = \"English\",SectionH_English,SectionH_English_Arabic)","v":"اللغة الانجليزية"},null,null,null,null,null,{"$f":"IF(Settings_Language = \"English\",SectionH_IT,SectionH_IT_Arabic)","v":"الحاسوب"}]
[null,null,null,null,null,null,null,null,{"$f":"IF(Settings_Language = \"English\",SectionH_M,SectionH_M_Arabic)","v":"ذكور"},null,null,{"$f":"IF(Settings_Language = \"English\",SectionH_F,SectionH_F_Arabic)","v":"اناث"},null,null,{"$f":"IF(Settings_Language = \"English\",SectionH_M,SectionH_M_Arabic)","v":"ذكور"},null,null,{"$f":"IF(Settings_Language = \"English\",SectionH_F,SectionH_F_Arabic)","v":"اناث"},null,null,{"$f":"IF(Settings_Language = \"English\",SectionH_M,SectionH_M_Arabic)","v":"ذكور"},null,null,{"$f":"IF(Settings_Language = \"English\",SectionH_F,SectionH_F_Arabic)","v":"اناث"},null,null,{"$f":"IF(Settings_Language = \"English\",SectionH_M,SectionH_M_Arabic)","v":"ذكور"},null,null,{"$f":"IF(Settings_Language = \"English\",SectionH_F,SectionH_F_Arabic)","v":"اناث"},null,null,{"$f":"IF(Settings_Language = \"English\",SectionH_M,SectionH_M_Arabic)","v":"ذكور"},null,null,{"$f":"IF(Settings_Language = \"English\",SectionH_F,SectionH_F_Arabic)","v":"اناث"},null,null,{"$f":"IF(Settings_Language = \"English\",SectionH_M,SectionH_M_Arabic)","v":"ذكور"},null,null,{"$f":"IF(Settings_Language = \"English\",SectionH_F,SectionH_F_Arabic)","v":"اناث"},null,null,{"$f":"IF(Settings_Language = \"English\",SectionH_M,SectionH_M_Arabic)","v":"ذكور"},null,null,{"$f":"IF(Settings_Language = \"English\",SectionH_F,SectionH_F_Arabic)","v":"اناث"},null,null,{"$f":"IF(Settings_Language = \"English\",SectionH_M,SectionH_M_Arabic)","v":"ذكور"},null,null,{"$f":"IF(Settings_Language = \"English\",SectionH_F,SectionH_F_Arabic)","v":"اناث"}]
[{"$f":"IF(Settings_Language = \"English\",SectionH_NumOfCandidatesSatExams,SectionH_NumOfCandidatesSatExams_Arabic)","v":"عدد الطلاب الذين دخلوا للإمتحانات"}]
[]
[{"$f":"IF(Settings_Language = \"English\",SectionH_NumOfCandidatesWhoPassed,SectionH_NumOfCandidatesWhoPassed_Arabic)","v":"عدد الطلاب الذين نجحوا في جميع المواد المقررة "}]
[]
[]
[{"$f":"IF(Settings_Language = \"English\",SectionH_IDPPupilsOnly,SectionH_IDPPupilsOnly_Arabic)","v":"الطلاب النازحون فقط"}]
[null,null,null,null,null,null,null,null,{"$f":"IF(Settings_Language = \"English\",SectionH_IslamicStudies,SectionH_IslamicStudies_Arabic)","v":"التربية الاسلامية"},null,null,null,null,null,{"$f":"IF(Settings_Language = \"English\",SectionH_ArabicLanguage,SectionH_ArabicLanguage_Arabic)","v":"اللغة العربية"},null,null,null,null,null,{"$f":"IF(Settings_Language = \"English\",SectionH_Math,SectionH_Math_Arabic)","v":"الرياضيات"},null,null,null,null,null,{"$f":"IF(Settings_Language = \"English\",SectionH_Science,SectionH_Science_Arabic)","v":"العلوم"},null,null,null,null,null,{"$f":"IF(Settings_Language = \"English\",SectionH_History,SectionH_History_Arabic)","v":"التاريخ"},null,null,null,null,null,{"$f":"IF(Settings_Language = \"English\",SectionH_Geography,SectionH_Geography_Arabic)","v":"الجغرافيا"},null,null,null,null,null,{"$f":"IF(Settings_Language = \"English\",SectionH_English,SectionH_English_Arabic)","v":"اللغة الانجليزية"},null,null,null,null,null,{"$f":"IF(Settings_Language = \"English\",SectionH_IT,SectionH_IT_Arabic)","v":"الحاسوب"}]
[null,null,null,null,null,null,null,null,{"$f":"IF(Settings_Language = \"English\",SectionH_M,SectionH_M_Arabic)","v":"ذكور"},null,null,{"$f":"IF(Settings_Language = \"English\",SectionH_F,SectionH_F_Arabic)","v":"اناث"},null,null,{"$f":"IF(Settings_Language = \"English\",SectionH_M,SectionH_M_Arabic)","v":"ذكور"},null,null,{"$f":"IF(Settings_Language = \"English\",SectionH_F,SectionH_F_Arabic)","v":"اناث"},null,null,{"$f":"IF(Settings_Language = \"English\",SectionH_M,SectionH_M_Arabic)","v":"ذكور"},null,null,{"$f":"IF(Settings_Language = \"English\",SectionH_F,SectionH_F_Arabic)","v":"اناث"},null,null,{"$f":"IF(Settings_Language = \"English\",SectionH_M,SectionH_M_Arabic)","v":"ذكور"},null,null,{"$f":"IF(Settings_Language = \"English\",SectionH_F,SectionH_F_Arabic)","v":"اناث"},null,null,{"$f":"IF(Settings_Language = \"English\",SectionH_M,SectionH_M_Arabic)","v":"ذكور"},null,null,{"$f":"IF(Settings_Language = \"English\",SectionH_F,SectionH_F_Arabic)","v":"اناث"},null,null,{"$f":"IF(Settings_Language = \"English\",SectionH_M,SectionH_M_Arabic)","v":"ذكور"},null,null,{"$f":"IF(Settings_Language = \"English\",SectionH_F,SectionH_F_Arabic)","v":"اناث"},null,null,{"$f":"IF(Settings_Language = \"English\",SectionH_M,SectionH_M_Arabic)","v":"ذكور"},null,null,{"$f":"IF(Settings_Language = \"English\",SectionH_F,SectionH_F_Arabic)","v":"اناث"},null,null,{"$f":"IF(Settings_Language = \"English\",SectionH_M,SectionH_M_Arabic)","v":"ذكور"},null,null,{"$f":"IF(Settings_Language = \"English\",SectionH_F,SectionH_F_Arabic)","v":"اناث"}]
[{"$f":"IF(Settings_Language = \"English\",SectionH_NumOfCandidatesSatExams,SectionH_NumOfCandidatesSatExams_Arabic)","v":"عدد الطلاب الذين دخلوا للإمتحانات"}]
[]
[{"$f":"IF(Settings_Language = \"English\",SectionH_NumOfCandidatesWhoPassed,SectionH_NumOfCandidatesWhoPassed_Arabic)","v":"عدد الطلاب الذين نجحوا في جميع المواد المقررة "}]
[]
[]
[{"$f":"IF(Settings_Language = \"English\",SectionH_H2,SectionH_H2_Arabic)","v":"ز.2: نتائج إمتحانات شهادة إتمام التعليم الاساسي للسنة الماضية"}]
[null,null,null,null,null,null,null,null,null,null,null,null,null,null,null,null,null,null,{"$f":"IF(Settings_Language = \"English\",SectionH_NumOfPupilsSatExamsEnrolledAtSchool,SectionH_NumOfPupilsSatExamsEnrolledAtSchool_Arabic)","v":"عدد الطلاب الذين دخلوا للإمتحانات"},null,null,null,null,null,null,null,null,null,null,null,null,null,null,null,null,null,null,null,null,{"$f":"IF(Settings_Language = \"English\",SectionH_Total,SectionH_Total_Arabic)","v":"الاجمالي"},null,null,null,null,null,null,null,null,{"$f":"IF(Settings_Language = \"English\",SectionH_GrandTotal,SectionH_GrandTotal_Arabic)","v":"الاجمالي العام"}]
[]
[]
[null,null,null,null,null,null,null,null,null,null,null,null,null,null,null,null,null,null,{"$f":"IF(Settings_Language = \"English\",SectionH_LocalPupils,SectionH_LocalPupils_Arabic)","v":"الطلاب المقيمون"},null,null,null,null,null,null,null,null,null,{"$f":"IF(Settings_Language = \"English\",SectionH_IDPPupils,SectionH_IDPPupils_Arabic)","v":"الطلاب النازحون"}]
[null,null,null,null,null,null,null,null,null,null,null,null,null,null,null,null,null,null,{"$f":"IF(Settings_Language = \"English\",SectionH_Male,SectionH_Male_Arabic)","v":"ذكور"},null,null,null,null,{"$f":"IF(Settings_Language = \"English\",SectionH_Female,SectionH_Female_Arabic)","v":"إناث"},null,null,null,null,{"$f":"IF(Settings_Language = \"English\",SectionH_Male,SectionH_Male_Arabic)","v":"ذكور"},null,null,null,null,{"$f":"IF(Settings_Language = \"English\",SectionH_Female,SectionH_Female_Arabic)","v":"إناث"},null,null,null,null,null,{"$f":"IF(Settings_Language = \"English\",SectionH_Local,SectionH_Local_Arabic)","v":"مقيمون"},null,null,null,{"$f":"IF(Settings_Language = \"English\",SectionH_IDP,SectionH_IDP_Arabic)","v":"نازحون"}]
[{"$f":"IF(Settings_Language = \"English\",SectionH_NumOfCandidatesSatExams,SectionH_NumOfCandidatesSatExams_Arabic)","v":"عدد الطلاب الذين دخلوا للإمتحانات"},null,null,null,null,null,null,null,null,null,null,null,null,null,null,null,null,null,{"$f":"SUM(I40,O40,U40,AA40,AG40,AM40,AS40,AY40)","v":0},null,null,null,null,{"$f":"SUM(L40,R40,X40,AD40,AJ40,AP40,AV40,BB40)","v":0},null,null,null,null,{"$f":"SUM(I48,O48,U48,AA48,AG48,AM48,AS48,AY48)","v":0},null,null,null,null,{"$f":"SUM(L48,R48,X48,AD48,AJ48,AP48,AV48,BB48)","v":0},null,null,null,null,null,{"$f":"SUM(S34:AB34)","v":0},null,null,null,{"$f":"SUM(AC34:AL34 )","v":0},null,null,null,null,{"$f":"SUM(AN34:AU34)","v":0}]
[{"$f":"IF(Settings_Language = \"English\",SectionH_NumOfCandidatesPassedAllMandatorySubj,SectionH_NumOfCandidatesPassedAllMandatorySubj_Arabic)","v":"عدد الطلاب الذين نجحوا في جميع المواد المقررة "},null,null,null,null,null,null,null,null,null,null,null,null,null,null,null,null,null,{"$f":"SUM(I42,O42,U42,AA42,AG42,AM42,AS42,AY42)","v":0},null,null,null,null,{"$f":"SUM(L42,R42,X42,AD42,AJ42,AP42,AV42,BB42)","v":0},null,null,null,null,{"$f":"SUM(I50,O50,U50,AA50,AG50,AM50,AS50,AY50)","v":0},null,null,null,null,{"$f":"SUM(L50,R50,X50,AD50,AJ50,AP50,AV50,BB50)","v":0},null,null,null,null,null,{"$f":"SUM(S35:AB35)","v":0},null,null,null,{"$f":"SUM(AC35:AL35 )","v":0},null,null,null,null,{"$f":"SUM(AN35:AU35)","v":0}]
[]
[{"$f":"IF(Settings_Language = \"English\",SectionH_LocalPupilsOnly,SectionH_LocalPupilsOnly_Arabic)","v":"الطلاب المقيمون فقط"}]
[null,null,null,null,null,null,null,null,{"$f":"IF(Settings_Language = \"English\",SectionH_IslamicStudies,SectionH_IslamicStudies_Arabic)","v":"التربية الاسلامية"},null,null,null,null,null,{"$f":"IF(Settings_Language = \"English\",SectionH_ArabicLanguage,SectionH_ArabicLanguage_Arabic)","v":"اللغة العربية"},null,null,null,null,null,{"$f":"IF(Settings_Language = \"English\",SectionH_Math,SectionH_Math_Arabic)","v":"الرياضيات"},null,null,null,null,null,{"$f":"IF(Settings_Language = \"English\",SectionH_Science,SectionH_Science_Arabic)","v":"العلوم"},null,null,null,null,null,{"$f":"IF(Settings_Language = \"English\",SectionH_History,SectionH_History_Arabic)","v":"التاريخ"},null,null,null,null,null,{"$f":"IF(Settings_Language = \"English\",SectionH_Geography,SectionH_Geography_Arabic)","v":"الجغرافيا"},null,null,null,null,null,{"$f":"IF(Settings_Language = \"English\",SectionH_English,SectionH_English_Arabic)","v":"اللغة الانجليزية"},null,null,null,null,null,{"$f":"IF(Settings_Language = \"English\",SectionH_IT,SectionH_IT_Arabic)","v":"الحاسوب"}]
[null,null,null,null,null,null,null,null,{"$f":"IF(Settings_Language = \"English\",SectionH_M,SectionH_M_Arabic)","v":"ذكور"},null,null,{"$f":"IF(Settings_Language = \"English\",SectionH_F,SectionH_F_Arabic)","v":"اناث"},null,null,{"$f":"IF(Settings_Language = \"English\",SectionH_M,SectionH_M_Arabic)","v":"ذكور"},null,null,{"$f":"IF(Settings_Language = \"English\",SectionH_F,SectionH_F_Arabic)","v":"اناث"},null,null,{"$f":"IF(Settings_Language = \"English\",SectionH_M,SectionH_M_Arabic)","v":"ذكور"},null,null,{"$f":"IF(Settings_Language = \"English\",SectionH_F,SectionH_F_Arabic)","v":"اناث"},null,null,{"$f":"IF(Settings_Language = \"English\",SectionH_M,SectionH_M_Arabic)","v":"ذكور"},null,null,{"$f":"IF(Settings_Language = \"English\",SectionH_F,SectionH_F_Arabic)","v":"اناث"},null,null,{"$f":"IF(Settings_Language = \"English\",SectionH_M,SectionH_M_Arabic)","v":"ذكور"},null,null,{"$f":"IF(Settings_Language = \"English\",SectionH_F,SectionH_F_Arabic)","v":"اناث"},null,null,{"$f":"IF(Settings_Language = \"English\",SectionH_M,SectionH_M_Arabic)","v":"ذكور"},null,null,{"$f":"IF(Settings_Language = \"English\",SectionH_F,SectionH_F_Arabic)","v":"اناث"},null,null,{"$f":"IF(Settings_Language = \"English\",SectionH_M,SectionH_M_Arabic)","v":"ذكور"},null,null,{"$f":"IF(Settings_Language = \"English\",SectionH_F,SectionH_F_Arabic)","v":"اناث"},null,null,{"$f":"IF(Settings_Language = \"English\",SectionH_M,SectionH_M_Arabic)","v":"ذكور"},null,null,{"$f":"IF(Settings_Language = \"English\",SectionH_F,SectionH_F_Arabic)","v":"اناث"}]
[{"$f":"IF(Settings_Language = \"English\",SectionH_NumOfCandidatesSatExams,SectionH_NumOfCandidatesSatExams_Arabic)","v":"عدد الطلاب الذين دخلوا للإمتحانات"}]
[]
[{"$f":"IF(Settings_Language = \"English\",SectionH_NumOfCandidatesWhoPassed,SectionH_NumOfCandidatesWhoPassed_Arabic)","v":"عدد الطلاب الذين نجحوا في جميع المواد المقررة "}]
[]
[]
[{"$f":"IF(Settings_Language = \"English\",SectionH_IDPPupilsOnly,SectionH_IDPPupilsOnly_Arabic)","v":"الطلاب النازحون فقط"}]
[null,null,null,null,null,null,null,null,{"$f":"IF(Settings_Language = \"English\",SectionH_IslamicStudies,SectionH_IslamicStudies_Arabic)","v":"التربية الاسلامية"},null,null,null,null,null,{"$f":"IF(Settings_Language = \"English\",SectionH_ArabicLanguage,SectionH_ArabicLanguage_Arabic)","v":"اللغة العربية"},null,null,null,null,null,{"$f":"IF(Settings_Language = \"English\",SectionH_Math,SectionH_Math_Arabic)","v":"الرياضيات"},null,null,null,null,null,{"$f":"IF(Settings_Language = \"English\",SectionH_Science,SectionH_Science_Arabic)","v":"العلوم"},null,null,null,null,null,{"$f":"IF(Settings_Language = \"English\",SectionH_History,SectionH_History_Arabic)","v":"التاريخ"},null,null,null,null,null,{"$f":"IF(Settings_Language = \"English\",SectionH_Geography,SectionH_Geography_Arabic)","v":"الجغرافيا"},null,null,null,null,null,{"$f":"IF(Settings_Language = \"English\",SectionH_English,SectionH_English_Arabic)","v":"اللغة الانجليزية"},null,null,null,null,null,{"$f":"IF(Settings_Language = \"English\",SectionH_IT,SectionH_IT_Arabic)","v":"الحاسوب"}]
[null,null,null,null,null,null,null,null,{"$f":"IF(Settings_Language = \"English\",SectionH_M,SectionH_M_Arabic)","v":"ذكور"},null,null,{"$f":"IF(Settings_Language = \"English\",SectionH_F,SectionH_F_Arabic)","v":"اناث"},null,null,{"$f":"IF(Settings_Language = \"English\",SectionH_M,SectionH_M_Arabic)","v":"ذكور"},null,null,{"$f":"IF(Settings_Language = \"English\",SectionH_F,SectionH_F_Arabic)","v":"اناث"},null,null,{"$f":"IF(Settings_Language = \"English\",SectionH_M,SectionH_M_Arabic)","v":"ذكور"},null,null,{"$f":"IF(Settings_Language = \"English\",SectionH_F,SectionH_F_Arabic)","v":"اناث"},null,null,{"$f":"IF(Settings_Language = \"English\",SectionH_M,SectionH_M_Arabic)","v":"ذكور"},null,null,{"$f":"IF(Settings_Language = \"English\",SectionH_F,SectionH_F_Arabic)","v":"اناث"},null,null,{"$f":"IF(Settings_Language = \"English\",SectionH_M,SectionH_M_Arabic)","v":"ذكور"},null,null,{"$f":"IF(Settings_Language = \"English\",SectionH_F,SectionH_F_Arabic)","v":"اناث"},null,null,{"$f":"IF(Settings_Language = \"English\",SectionH_M,SectionH_M_Arabic)","v":"ذكور"},null,null,{"$f":"IF(Settings_Language = \"English\",SectionH_F,SectionH_F_Arabic)","v":"اناث"},null,null,{"$f":"IF(Settings_Language = \"English\",SectionH_M,SectionH_M_Arabic)","v":"ذكور"},null,null,{"$f":"IF(Settings_Language = \"English\",SectionH_F,SectionH_F_Arabic)","v":"اناث"},null,null,{"$f":"IF(Settings_Language = \"English\",SectionH_M,SectionH_M_Arabic)","v":"ذكور"},null,null,{"$f":"IF(Settings_Language = \"English\",SectionH_F,SectionH_F_Arabic)","v":"اناث"}]
[{"$f":"IF(Settings_Language = \"English\",SectionH_NumOfCandidatesSatExams,SectionH_NumOfCandidatesSatExams_Arabic)","v":"عدد الطلاب الذين دخلوا للإمتحانات"}]
[]
[{"$f":"IF(Settings_Language = \"English\",SectionH_NumOfCandidatesWhoPassed,SectionH_NumOfCandidatesWhoPassed_Arabic)","v":"عدد الطلاب الذين نجحوا في جميع المواد المقررة "}]
[]
[]
[{"$f":"IF(Settings_Language = \"English\",SectionH_H3,SectionH_H3_Arabic)","v":"ز.3: نتائج إمتحانات شهادة إتمام التعليم الابتدائي (منازل)  للسنة الماضية"}]
[null,null,null,null,null,null,null,null,null,null,null,null,null,null,null,null,null,null,{"$f":"IF(Settings_Language = \"English\",SectionH_NumOfPupilsSatExamsEnrolledAtSchool,SectionH_NumOfPupilsSatExamsEnrolledAtSchool_Arabic)","v":"عدد الطلاب الذين دخلوا للإمتحانات"},null,null,null,null,null,null,null,null,null,null,null,null,null,null,null,null,null,null,null,null,{"$f":"IF(Settings_Language = \"English\",SectionH_Total,SectionH_Total_Arabic)","v":"الاجمالي"},null,null,null,null,null,null,null,null,{"$f":"IF(Settings_Language = \"English\",SectionH_GrandTotal,SectionH_GrandTotal_Arabic)","v":"الاجمالي العام"}]
[]
[]
[null,null,null,null,null,null,null,null,null,null,null,null,null,null,null,null,null,null,{"$f":"IF(Settings_Language = \"English\",SectionH_LocalPupils,SectionH_LocalPupils_Arabic)","v":"الطلاب المقيمون"},null,null,null,null,null,null,null,null,null,{"$f":"IF(Settings_Language = \"English\",SectionH_IDPPupils,SectionH_IDPPupils_Arabic)","v":"الطلاب النازحون"}]
[null,null,null,null,null,null,null,null,null,null,null,null,null,null,null,null,null,null,{"$f":"IF(Settings_Language = \"English\",SectionH_Male,SectionH_Male_Arabic)","v":"ذكور"},null,null,null,null,{"$f":"IF(Settings_Language = \"English\",SectionH_Female,SectionH_Female_Arabic)","v":"إناث"},null,null,null,null,{"$f":"IF(Settings_Language = \"English\",SectionH_Male,SectionH_Male_Arabic)","v":"ذكور"},null,null,null,null,{"$f":"IF(Settings_Language = \"English\",SectionH_Female,SectionH_Female_Arabic)","v":"إناث"},null,null,null,null,null,{"$f":"IF(Settings_Language = \"English\",SectionH_Local,SectionH_Local_Arabic)","v":"مقيمون"},null,null,null,{"$f":"IF(Settings_Language = \"English\",SectionH_IDP,SectionH_IDP_Arabic)","v":"نازحون"}]
[{"$f":"IF(Settings_Language = \"English\",SectionH_NumOfCandidatesSatExams,SectionH_NumOfCandidatesSatExams_Arabic)","v":"عدد الطلاب الذين دخلوا للإمتحانات"},null,null,null,null,null,null,null,null,null,null,null,null,null,null,null,null,null,{"$f":"SUM(I65,O65,U65,AA65,AG65,AM65,AS65,AY65)","v":0},null,null,null,null,{"$f":"SUM(L65,R65,X65,AD65,AJ65,AP65,AV65,BB65)","v":0},null,null,null,null,{"$f":"SUM(I73,O73,U73,AA73,AG73,AM73,AS73,AY73)","v":0},null,null,null,null,{"$f":"SUM(L73,R73,X73,AD73,AJ73,AP73,AV73,BB73)","v":0},null,null,null,null,null,{"$f":"SUM(S59:AB59)","v":0},null,null,null,{"$f":"SUM(AC59:AL59 )","v":0},null,null,null,null,{"$f":"SUM(AN59:AU59)","v":0}]
[{"$f":"IF(Settings_Language = \"English\",SectionH_NumOfCandidatesPassedAllMandatorySubj,SectionH_NumOfCandidatesPassedAllMandatorySubj_Arabic)","v":"عدد الطلاب الذين نجحوا في جميع المواد المقررة "},null,null,null,null,null,null,null,null,null,null,null,null,null,null,null,null,null,{"$f":"SUM(I67,O67,U67,AA67,AG67,AM67,AS67,AY67)","v":0},null,null,null,null,{"$f":"SUM(L67,R67,X67,AD67,AJ67,AP67,AV67,BB67)","v":0},null,null,null,null,{"$f":"SUM(I75,O75,U75,AA75,AG75,AM75,AS75,AY75)","v":0},null,null,null,null,{"$f":"SUM(L75,R75,X75,AD75,AJ75,AP75,AV75,BB75)","v":0},null,null,null,null,null,{"$f":"SUM(S60:AB60)","v":0},null,null,null,{"$f":"SUM(AC60:AL60 )","v":0},null,null,null,null,{"$f":"SUM(AN60:AU60)","v":0}]
[]
[{"$f":"IF(Settings_Language = \"English\",SectionH_LocalPupilsOnly,SectionH_LocalPupilsOnly_Arabic)","v":"الطلاب المقيمون فقط"}]
[null,null,null,null,null,null,null,null,{"$f":"IF(Settings_Language = \"English\",SectionH_IslamicStudies,SectionH_IslamicStudies_Arabic)","v":"التربية الاسلامية"},null,null,null,null,null,{"$f":"IF(Settings_Language = \"English\",SectionH_ArabicLanguage,SectionH_ArabicLanguage_Arabic)","v":"اللغة العربية"},null,null,null,null,null,{"$f":"IF(Settings_Language = \"English\",SectionH_Math,SectionH_Math_Arabic)","v":"الرياضيات"},null,null,null,null,null,{"$f":"IF(Settings_Language = \"English\",SectionH_Science,SectionH_Science_Arabic)","v":"العلوم"},null,null,null,null,null,{"$f":"IF(Settings_Language = \"English\",SectionH_History,SectionH_History_Arabic)","v":"التاريخ"},null,null,null,null,null,{"$f":"IF(Settings_Language = \"English\",SectionH_Geography,SectionH_Geography_Arabic)","v":"الجغرافيا"},null,null,null,null,null,{"$f":"IF(Settings_Language = \"English\",SectionH_English,SectionH_English_Arabic)","v":"اللغة الانجليزية"},null,null,null,null,null,{"$f":"IF(Settings_Language = \"English\",SectionH_IT,SectionH_IT_Arabic)","v":"الحاسوب"}]
[null,null,null,null,null,null,null,null,{"$f":"IF(Settings_Language = \"English\",SectionH_M,SectionH_M_Arabic)","v":"ذكور"},null,null,{"$f":"IF(Settings_Language = \"English\",SectionH_F,SectionH_F_Arabic)","v":"اناث"},null,null,{"$f":"IF(Settings_Language = \"English\",SectionH_M,SectionH_M_Arabic)","v":"ذكور"},null,null,{"$f":"IF(Settings_Language = \"English\",SectionH_F,SectionH_F_Arabic)","v":"اناث"},null,null,{"$f":"IF(Settings_Language = \"English\",SectionH_M,SectionH_M_Arabic)","v":"ذكور"},null,null,{"$f":"IF(Settings_Language = \"English\",SectionH_F,SectionH_F_Arabic)","v":"اناث"},null,null,{"$f":"IF(Settings_Language = \"English\",SectionH_M,SectionH_M_Arabic)","v":"ذكور"},null,null,{"$f":"IF(Settings_Language = \"English\",SectionH_F,SectionH_F_Arabic)","v":"اناث"},null,null,{"$f":"IF(Settings_Language = \"English\",SectionH_M,SectionH_M_Arabic)","v":"ذكور"},null,null,{"$f":"IF(Settings_Language = \"English\",SectionH_F,SectionH_F_Arabic)","v":"اناث"},null,null,{"$f":"IF(Settings_Language = \"English\",SectionH_M,SectionH_M_Arabic)","v":"ذكور"},null,null,{"$f":"IF(Settings_Language = \"English\",SectionH_F,SectionH_F_Arabic)","v":"اناث"},null,null,{"$f":"IF(Settings_Language = \"English\",SectionH_M,SectionH_M_Arabic)","v":"ذكور"},null,null,{"$f":"IF(Settings_Language = \"English\",SectionH_F,SectionH_F_Arabic)","v":"اناث"},null,null,{"$f":"IF(Settings_Language = \"English\",SectionH_M,SectionH_M_Arabic)","v":"ذكور"},null,null,{"$f":"IF(Settings_Language = \"English\",SectionH_F,SectionH_F_Arabic)","v":"اناث"}]
[{"$f":"IF(Settings_Language = \"English\",SectionH_NumOfCandidatesSatExams,SectionH_NumOfCandidatesSatExams_Arabic)","v":"عدد الطلاب الذين دخلوا للإمتحانات"}]
[]
[{"$f":"IF(Settings_Language = \"English\",SectionH_NumOfCandidatesWhoPassed,SectionH_NumOfCandidatesWhoPassed_Arabic)","v":"عدد الطلاب الذين نجحوا في جميع المواد المقررة "}]
[]
[]
[{"$f":"IF(Settings_Language = \"English\",SectionH_IDPPupilsOnly,SectionH_IDPPupilsOnly_Arabic)","v":"الطلاب النازحون فقط"}]
[null,null,null,null,null,null,null,null,{"$f":"IF(Settings_Language = \"English\",SectionH_IslamicStudies,SectionH_IslamicStudies_Arabic)","v":"التربية الاسلامية"},null,null,null,null,null,{"$f":"IF(Settings_Language = \"English\",SectionH_ArabicLanguage,SectionH_ArabicLanguage_Arabic)","v":"اللغة العربية"},null,null,null,null,null,{"$f":"IF(Settings_Language = \"English\",SectionH_Math,SectionH_Math_Arabic)","v":"الرياضيات"},null,null,null,null,null,{"$f":"IF(Settings_Language = \"English\",SectionH_Science,SectionH_Science_Arabic)","v":"العلوم"},null,null,null,null,null,{"$f":"IF(Settings_Language = \"English\",SectionH_History,SectionH_History_Arabic)","v":"التاريخ"},null,null,null,null,null,{"$f":"IF(Settings_Language = \"English\",SectionH_Geography,SectionH_Geography_Arabic)","v":"الجغرافيا"},null,null,null,null,null,{"$f":"IF(Settings_Language = \"English\",SectionH_English,SectionH_English_Arabic)","v":"اللغة الانجليزية"},null,null,null,null,null,{"$f":"IF(Settings_Language = \"English\",SectionH_IT,SectionH_IT_Arabic)","v":"الحاسوب"}]
[null,null,null,null,null,null,null,null,{"$f":"IF(Settings_Language = \"English\",SectionH_M,SectionH_M_Arabic)","v":"ذكور"},null,null,{"$f":"IF(Settings_Language = \"English\",SectionH_F,SectionH_F_Arabic)","v":"اناث"},null,null,{"$f":"IF(Settings_Language = \"English\",SectionH_M,SectionH_M_Arabic)","v":"ذكور"},null,null,{"$f":"IF(Settings_Language = \"English\",SectionH_F,SectionH_F_Arabic)","v":"اناث"},null,null,{"$f":"IF(Settings_Language = \"English\",SectionH_M,SectionH_M_Arabic)","v":"ذكور"},null,null,{"$f":"IF(Settings_Language = \"English\",SectionH_F,SectionH_F_Arabic)","v":"اناث"},null,null,{"$f":"IF(Settings_Language = \"English\",SectionH_M,SectionH_M_Arabic)","v":"ذكور"},null,null,{"$f":"IF(Settings_Language = \"English\",SectionH_F,SectionH_F_Arabic)","v":"اناث"},null,null,{"$f":"IF(Settings_Language = \"English\",SectionH_M,SectionH_M_Arabic)","v":"ذكور"},null,null,{"$f":"IF(Settings_Language = \"English\",SectionH_F,SectionH_F_Arabic)","v":"اناث"},null,null,{"$f":"IF(Settings_Language = \"English\",SectionH_M,SectionH_M_Arabic)","v":"ذكور"},null,null,{"$f":"IF(Settings_Language = \"English\",SectionH_F,SectionH_F_Arabic)","v":"اناث"},null,null,{"$f":"IF(Settings_Language = \"English\",SectionH_M,SectionH_M_Arabic)","v":"ذكور"},null,null,{"$f":"IF(Settings_Language = \"English\",SectionH_F,SectionH_F_Arabic)","v":"اناث"},null,null,{"$f":"IF(Settings_Language = \"English\",SectionH_M,SectionH_M_Arabic)","v":"ذكور"},null,null,{"$f":"IF(Settings_Language = \"English\",SectionH_F,SectionH_F_Arabic)","v":"اناث"}]
[{"$f":"IF(Settings_Language = \"English\",SectionH_NumOfCandidatesSatExams,SectionH_NumOfCandidatesSatExams_Arabic)","v":"عدد الطلاب الذين دخلوا للإمتحانات"}]
[]
[{"$f":"IF(Settings_Language = \"English\",SectionH_NumOfCandidatesWhoPassed,SectionH_NumOfCandidatesWhoPassed_Arabic)","v":"عدد الطلاب الذين نجحوا في جميع المواد المقررة "}]
[]
[]
[{"$f":"IF(Settings_Language = \"English\",SectionH_H4,SectionH_H4_Arabic)","v":"ز.4: نتائج متحانات شهادة إتمام التعليم الاساسي (منازل) للسنة الماضية"}]
[null,null,null,null,null,null,null,null,null,null,null,null,null,null,null,null,null,null,{"$f":"IF(Settings_Language = \"English\",SectionH_NumOfPupilsSatExamsEnrolledAtSchool,SectionH_NumOfPupilsSatExamsEnrolledAtSchool_Arabic)","v":"عدد الطلاب الذين دخلوا للإمتحانات"},null,null,null,null,null,null,null,null,null,null,null,null,null,null,null,null,null,null,null,null,{"$f":"IF(Settings_Language = \"English\",SectionH_Total,SectionH_Total_Arabic)","v":"الاجمالي"},null,null,null,null,null,null,null,null,{"$f":"IF(Settings_Language = \"English\",SectionH_GrandTotal,SectionH_GrandTotal_Arabic)","v":"الاجمالي العام"}]
[]
[]
[null,null,null,null,null,null,null,null,null,null,null,null,null,null,null,null,null,null,{"$f":"IF(Settings_Language = \"English\",SectionH_LocalPupils,SectionH_LocalPupils_Arabic)","v":"الطلاب المقيمون"},null,null,null,null,null,null,null,null,null,{"$f":"IF(Settings_Language = \"English\",SectionH_IDPPupils,SectionH_IDPPupils_Arabic)","v":"الطلاب النازحون"}]
[null,null,null,null,null,null,null,null,null,null,null,null,null,null,null,null,null,null,{"$f":"IF(Settings_Language = \"English\",SectionH_Male,SectionH_Male_Arabic)","v":"ذكور"},null,null,null,null,{"$f":"IF(Settings_Language = \"English\",SectionH_Female,SectionH_Female_Arabic)","v":"إناث"},null,null,null,null,{"$f":"IF(Settings_Language = \"English\",SectionH_Male,SectionH_Male_Arabic)","v":"ذكور"},null,null,null,null,{"$f":"IF(Settings_Language = \"English\",SectionH_Female,SectionH_Female_Arabic)","v":"إناث"},null,null,null,null,null,{"$f":"IF(Settings_Language = \"English\",SectionH_Local,SectionH_Local_Arabic)","v":"مقيمون"},null,null,null,{"$f":"IF(Settings_Language = \"English\",SectionH_IDP,SectionH_IDP_Arabic)","v":"نازحون"}]
[{"$f":"IF(Settings_Language = \"English\",SectionH_NumOfCandidatesSatExams,SectionH_NumOfCandidatesSatExams_Arabic)","v":"عدد الطلاب الذين دخلوا للإمتحانات"},null,null,null,null,null,null,null,null,null,null,null,null,null,null,null,null,null,{"$f":"SUM(I90,O90,U90,AA90,AG90,AM90,AS90,AY90)","v":0},null,null,null,null,{"$f":"SUM(L90,R90,X90,AD90,AJ90,AP90,AV90,BB90)","v":0},null,null,null,null,{"$f":"SUM(I98,O98,U98,AA98,AG98,AM98,AS98,AY98)","v":0},null,null,null,null,{"$f":"SUM(L98,R98,X98,AD98,AJ98,AP98,AV98,BB98)","v":0},null,null,null,null,null,{"$f":"SUM(S84:AB84)","v":0},null,null,null,{"$f":"SUM(AC84:AL84 )","v":0},null,null,null,null,{"$f":"SUM(AN84:AU84)","v":0}]
[{"$f":"IF(Settings_Language = \"English\",SectionH_NumOfCandidatesPassedAllMandatorySubj,SectionH_NumOfCandidatesPassedAllMandatorySubj_Arabic)","v":"عدد الطلاب الذين نجحوا في جميع المواد المقررة "},null,null,null,null,null,null,null,null,null,null,null,null,null,null,null,null,null,{"$f":"SUM(I92,O92,U92,AA92,AG92,AM92,AS92,AY92)","v":0},null,null,null,null,{"$f":"SUM(L92,R92,X92,AD92,AJ92,AP92,AV92,BB92)","v":0},null,null,null,null,{"$f":"SUM(I100,O100,U100,AA100,AG100,AM100,AS100,AY100)","v":0},null,null,null,null,{"$f":"SUM(L99,R99,X99,AD99,AJ99,AP99,AV99,BB99)","v":0},null,null,null,null,null,{"$f":"SUM(S85:AB85)","v":0},null,null,null,{"$f":"SUM(AC85:AL85)","v":0},null,null,null,null,{"$f":"SUM(AN85:AU85)","v":0}]
[]
[{"$f":"IF(Settings_Language = \"English\",SectionH_LocalPupilsOnly,SectionH_LocalPupilsOnly_Arabic)","v":"الطلاب المقيمون فقط"}]
[null,null,null,null,null,null,null,null,{"$f":"IF(Settings_Language = \"English\",SectionH_IslamicStudies,SectionH_IslamicStudies_Arabic)","v":"التربية الاسلامية"},null,null,null,null,null,{"$f":"IF(Settings_Language = \"English\",SectionH_ArabicLanguage,SectionH_ArabicLanguage_Arabic)","v":"اللغة العربية"},null,null,null,null,null,{"$f":"IF(Settings_Language = \"English\",SectionH_Math,SectionH_Math_Arabic)","v":"الرياضيات"},null,null,null,null,null,{"$f":"IF(Settings_Language = \"English\",SectionH_Science,SectionH_Science_Arabic)","v":"العلوم"},null,null,null,null,null,{"$f":"IF(Settings_Language = \"English\",SectionH_History,SectionH_History_Arabic)","v":"التاريخ"},null,null,null,null,null,{"$f":"IF(Settings_Language = \"English\",SectionH_Geography,SectionH_Geography_Arabic)","v":"الجغرافيا"},null,null,null,null,null,{"$f":"IF(Settings_Language = \"English\",SectionH_English,SectionH_English_Arabic)","v":"اللغة الانجليزية"},null,null,null,null,null,{"$f":"IF(Settings_Language = \"English\",SectionH_IT,SectionH_IT_Arabic)","v":"الحاسوب"}]
[null,null,null,null,null,null,null,null,{"$f":"IF(Settings_Language = \"English\",SectionH_M,SectionH_M_Arabic)","v":"ذكور"},null,null,{"$f":"IF(Settings_Language = \"English\",SectionH_F,SectionH_F_Arabic)","v":"اناث"},null,null,{"$f":"IF(Settings_Language = \"English\",SectionH_M,SectionH_M_Arabic)","v":"ذكور"},null,null,{"$f":"IF(Settings_Language = \"English\",SectionH_F,SectionH_F_Arabic)","v":"اناث"},null,null,{"$f":"IF(Settings_Language = \"English\",SectionH_M,SectionH_M_Arabic)","v":"ذكور"},null,null,{"$f":"IF(Settings_Language = \"English\",SectionH_F,SectionH_F_Arabic)","v":"اناث"},null,null,{"$f":"IF(Settings_Language = \"English\",SectionH_M,SectionH_M_Arabic)","v":"ذكور"},null,null,{"$f":"IF(Settings_Language = \"English\",SectionH_F,SectionH_F_Arabic)","v":"اناث"},null,null,{"$f":"IF(Settings_Language = \"English\",SectionH_M,SectionH_M_Arabic)","v":"ذكور"},null,null,{"$f":"IF(Settings_Language = \"English\",SectionH_F,SectionH_F_Arabic)","v":"اناث"},null,null,{"$f":"IF(Settings_Language = \"English\",SectionH_M,SectionH_M_Arabic)","v":"ذكور"},null,null,{"$f":"IF(Settings_Language = \"English\",SectionH_F,SectionH_F_Arabic)","v":"اناث"},null,null,{"$f":"IF(Settings_Language = \"English\",SectionH_M,SectionH_M_Arabic)","v":"ذكور"},null,null,{"$f":"IF(Settings_Language = \"English\",SectionH_F,SectionH_F_Arabic)","v":"اناث"},null,null,{"$f":"IF(Settings_Language = \"English\",SectionH_M,SectionH_M_Arabic)","v":"ذكور"},null,null,{"$f":"IF(Settings_Language = \"English\",SectionH_F,SectionH_F_Arabic)","v":"اناث"}]
[{"$f":"IF(Settings_Language = \"English\",SectionH_NumOfCandidatesSatExams,SectionH_NumOfCandidatesSatExams_Arabic)","v":"عدد الطلاب الذين دخلوا للإمتحانات"}]
[]
[{"$f":"IF(Settings_Language = \"English\",SectionH_NumOfCandidatesWhoPassed,SectionH_NumOfCandidatesWhoPassed_Arabic)","v":"عدد الطلاب الذين نجحوا في جميع المواد المقررة "}]
[]
[]
[{"$f":"IF(Settings_Language = \"English\",SectionH_IDPPupilsOnly,SectionH_IDPPupilsOnly_Arabic)","v":"الطلاب النازحون فقط"}]
[null,null,null,null,null,null,null,null,{"$f":"IF(Settings_Language = \"English\",SectionH_IslamicStudies,SectionH_IslamicStudies_Arabic)","v":"التربية الاسلامية"},null,null,null,null,null,{"$f":"IF(Settings_Language = \"English\",SectionH_ArabicLanguage,SectionH_ArabicLanguage_Arabic)","v":"اللغة العربية"},null,null,null,null,null,{"$f":"IF(Settings_Language = \"English\",SectionH_Math,SectionH_Math_Arabic)","v":"الرياضيات"},null,null,null,null,null,{"$f":"IF(Settings_Language = \"English\",SectionH_Science,SectionH_Science_Arabic)","v":"العلوم"},null,null,null,null,null,{"$f":"IF(Settings_Language = \"English\",SectionH_History,SectionH_History_Arabic)","v":"التاريخ"},null,null,null,null,null,{"$f":"IF(Settings_Language = \"English\",SectionH_Geography,SectionH_Geography_Arabic)","v":"الجغرافيا"},null,null,null,null,null,{"$f":"IF(Settings_Language = \"English\",SectionH_English,SectionH_English_Arabic)","v":"اللغة الانجليزية"},null,null,null,null,null,{"$f":"IF(Settings_Language = \"English\",SectionH_IT,SectionH_IT_Arabic)","v":"الحاسوب"}]
[null,null,null,null,null,null,null,null,{"$f":"IF(Settings_Language = \"English\",SectionH_M,SectionH_M_Arabic)","v":"ذكور"},null,null,{"$f":"IF(Settings_Language = \"English\",SectionH_F,SectionH_F_Arabic)","v":"اناث"},null,null,{"$f":"IF(Settings_Language = \"English\",SectionH_M,SectionH_M_Arabic)","v":"ذكور"},null,null,{"$f":"IF(Settings_Language = \"English\",SectionH_F,SectionH_F_Arabic)","v":"اناث"},null,null,{"$f":"IF(Settings_Language = \"English\",SectionH_M,SectionH_M_Arabic)","v":"ذكور"},null,null,{"$f":"IF(Settings_Language = \"English\",SectionH_F,SectionH_F_Arabic)","v":"اناث"},null,null,{"$f":"IF(Settings_Language = \"English\",SectionH_M,SectionH_M_Arabic)","v":"ذكور"},null,null,{"$f":"IF(Settings_Language = \"English\",SectionH_F,SectionH_F_Arabic)","v":"اناث"},null,null,{"$f":"IF(Settings_Language = \"English\",SectionH_M,SectionH_M_Arabic)","v":"ذكور"},null,null,{"$f":"IF(Settings_Language = \"English\",SectionH_F,SectionH_F_Arabic)","v":"اناث"},null,null,{"$f":"IF(Settings_Language = \"English\",SectionH_M,SectionH_M_Arabic)","v":"ذكور"},null,null,{"$f":"IF(Settings_Language = \"English\",SectionH_F,SectionH_F_Arabic)","v":"اناث"},null,null,{"$f":"IF(Settings_Language = \"English\",SectionH_M,SectionH_M_Arabic)","v":"ذكور"},null,null,{"$f":"IF(Settings_Language = \"English\",SectionH_F,SectionH_F_Arabic)","v":"اناث"},null,null,{"$f":"IF(Settings_Language = \"English\",SectionH_M,SectionH_M_Arabic)","v":"ذكور"},null,null,{"$f":"IF(Settings_Language = \"English\",SectionH_F,SectionH_F_Arabic)","v":"اناث"}]
[{"$f":"IF(Settings_Language = \"English\",SectionH_NumOfCandidatesSatExams,SectionH_NumOfCandidatesSatExams_Arabic)","v":"عدد الطلاب الذين دخلوا للإمتحانات"}]
[]
[{"$f":"IF(Settings_Language = \"English\",SectionH_NumOfCandidatesWhoPassed,SectionH_NumOfCandidatesWhoPassed_Arabic)","v":"عدد الطلاب الذين نجحوا في جميع المواد المقررة "}]

{"sheet":"SECTION I","index":9,"n_rows":349,"n_cols":121,"rows_kept":349,"cut":false,"hidden":false,"merged":[[54,12,54,18],[54,19,54,23],[9,0,9,4],[10,0,10,4],[41,0,41,30],[42,0,44,30],[35,0,35,23],[36,0,36,23],[37,0,37,23],[38,0,38,23],[40,0,40,31],[11,0,11,4],[16,0,16,4],[17,0,17,4],[18,0,18,4],[19,0,19,4],[20,0,20,4],[22,0,22,17],[24,0,24,26],[25,0,25,26],[26,0,26,26],[28,0,28,26],[30,0,30,23],[31,0,31,23],[32,0,32,23],[33,0,33,23],[34,0,34,23],[19,27,19,30],[20,23,20,26],[20,27,20,30],[3,0,3,30],[52,19,52,23],[52,24,52,31],[52,32,52,34],[9,9,9,12],[10,9,10,12],[11,9,11,12],[11,21,11,24],[9,25,9,27],[10,25,10,27],[11,25,11,27],[9,13,9,17],[10,13,10,17],[11,13,11,17],[9,18,9,20],[11,18,11,20],[14,5,14,12],[14,14,14,21],[51,2,51,7],[51,8,51,11],[51,12,51,18],[51,19,51,23],[51,24,51,31],[51,32,51,34],[46,8,48,11],[4,0,6,30],[46,62,48,71],[46,39,48,42],[49,39,49,42],[50,39,50,42],[15,5,15,8],[15,9,15,12],[16,5,16,8],[16,9,16,12],[19,5,19,8],[19,9,19,12],[20,14,20,17],[20,18,20,21],[20,5,20,8],[20,9,20,12],[46,2,48,7],[49,2,49,7],[18,23,18,26],[18,27,18,30],[49,32,49,34],[49,35,49,38],[15,14,15,17],[15,18,15,21],[16,14,16,17],[16,18,16,21],[17,14,17,17],[17,18,17,21],[17,5,17,8],[17,9,17,12],[18,5,18,8],[18,9,18,12],[49,8,49,11],[46,56,48,61],[49,56,49,61],[10,18,10,20],[16,23,16,26],[16,27,16,30],[17,23,17,26],[17,27,17,30],[14,23,14,30],[15,23,15,26],[15,27,15,30],[11,5,11,8],[34,27,34,30],[30,24,30,30],[24,27,24,30],[26,27,26,30],[28,27,28,30],[49,43,49,55],[18,14,18,17],[46,12,48,18],[46,19,48,23],[46,24,48,31],[46,32,48,34],[46,35,48,38],[46,43,48,55],[18,18,18,21],[19,14,19,17],[19,18,19,21],[49,24,49,31],[32,24,32,30],[36,24,36,30],[38,24,38,30],[19,23,19,26],[49,62,49,71],[46,82,48,90],[49,82,49,90],[49,12,49,18],[49,19,49,23],[49,72,49,74],[51,94,51,100],[49,75,49,81],[0,0,0,31],[8,13,8,17],[8,29,8,31],[9,5,9,8],[10,5,10,8],[8,18,8,20],[8,21,8,24],[8,25,8,27],[9,29,9,31],[10,29,10,31],[9,21,9,24],[10,21,10,24],[8,5,8,8],[8,9,8,12],[46,72,48,74],[46,75,48,81],[46,0,48,1],[49,0,49,1],[46,91,48,93],[49,91,49,93],[51,75,51,81],[51,82,51,90],[51,91,51,93],[51,0,51,1],[46,120,48,123],[49,120,49,123],[46,101,48,105],[49,101,49,105],[46,106,48,108],[49,106,49,108],[49,109,49,116],[46,109,48,116],[46,117,48,119],[49,117,49,119],[50,82,50,90],[50,91,50,93],[50,94,50,100],[50,101,50,105],[50,106,50,108],[50,109,50,116],[50,117,50,119],[50,120,50,123],[46,94,48,100],[49,94,49,100],[51,43,51,55],[51,56,51,61],[51,62,51,71],[51,72,51,74],[50,24,50,31],[50,32,50,34],[50,72,50,74],[50,75,50,81],[51,39,51,42],[50,43,50,55],[50,0,50,1],[50,2,50,7],[50,8,50,11],[50,12,50,18],[50,19,50,23],[50,56,50,61],[50,62,50,71],[51,35,51,38],[52,120,52,123],[53,0,53,1],[53,2,53,7],[53,8,53,11],[53,12,53,18],[53,19,53,23],[53,24,53,31],[53,32,53,34],[53,35,53,38],[53,43,53,55],[53,56,53,61],[50,35,50,38],[53,120,53,123],[51,101,51,105],[51,106,51,108],[51,109,51,116],[51,117,51,119],[51,120,51,123],[52,35,52,38],[52,43,52,55],[52,56,52,61],[52,62,52,71],[52,72,52,74],[52,75,52,81],[52,82,52,90],[52,91,52,93],[52,94,52,100],[53,39,53,42],[52,0,52,1],[52,2,52,7],[52,8,52,11],[52,12,52,18],[52,101,52,105],[52,106,52,108],[52,109,52,116],[52,39,52,42],[52,117,52,119],[53,94,53,100],[53,101,53,105],[53,106,53,108],[53,109,53,116],[53,117,53,119],[53,62,53,71],[53,72,53,74],[53,75,53,81],[53,82,53,90],[53,91,53,93],[55,106,55,108],[54,109,54,116],[54,117,54,119],[55,39,55,42],[55,43,55,55],[55,56,55,61],[55,62,55,71],[55,72,55,74],[55,75,55,81],[54,39,54,42],[54,120,54,123],[55,0,55,1],[55,2,55,7],[55,8,55,11],[55,12,55,18],[55,19,55,23],[55,24,55,31],[55,32,55,34],[54,24,54,31],[54,32,54,34],[54,35,54,38],[54,43,54,55],[55,35,55,38],[55,109,55,116],[55,117,55,119],[55,120,55,123],[54,56,54,61],[54,62,54,71],[54,72,54,74],[54,75,54,81],[54,82,54,90],[54,91,54,93],[54,94,54,100],[54,101,54,105],[54,106,54,108],[55,82,55,90],[55,91,55,93],[55,94,55,100],[55,101,55,105],[54,0,54,1],[54,2,54,7],[54,8,54,11],[57,0,57,1],[57,2,57,7],[57,8,57,11],[57,12,57,18],[57,19,57,23],[57,117,57,119],[57,120,57,123],[56,56,56,61],[56,62,56,71],[56,72,56,74],[56,75,56,81],[56,82,56,90],[56,91,56,93],[56,94,56,100],[56,101,56,105],[56,106,56,108],[56,117,56,119],[56,120,56,123],[56,0,56,1],[56,2,56,7],[56,8,56,11],[56,12,56,18],[56,19,56,23],[56,24,56,31],[56,32,56,34],[56,35,56,38],[56,43,56,55],[58,39,58,42],[57,24,57,31],[57,32,57,34],[57,35,57,38],[57,43,57,55],[56,109,56,116],[57,91,57,93],[57,94,57,100],[57,101,57,105],[57,106,57,108],[57,109,57,116],[57,56,57,61],[57,62,57,71],[57,72,57,74],[57,75,57,81],[57,82,57,90],[56,39,56,42],[57,39,57,42],[58,109,58,116],[58,117,58,119],[58,120,58,123],[59,0,59,1],[59,2,59,7],[59,8,59,11],[59,12,59,18],[59,19,59,23],[59,24,59,31],[59,32,59,34],[58,24,58,31],[58,32,58,34],[58,35,58,38],[58,43,58,55],[59,39,59,42],[59,109,59,116],[59,117,59,119],[59,120,59,123],[58,56,58,61],[58,62,58,71],[58,72,58,74],[58,75,58,81],[58,82,58,90],[58,91,58,93],[58,94,58,100],[58,101,58,105],[58,106,58,108],[59,82,59,90],[59,91,59,93],[59,94,59,100],[59,101,59,105],[58,0,58,1],[58,2,58,7],[58,8,58,11],[58,12,58,18],[58,19,58,23],[61,0,61,1],[61,2,61,7],[61,8,61,11],[61,12,61,18],[61,19,61,23],[61,117,61,119],[61,120,61,123],[60,56,60,61],[60,62,60,71],[60,72,60,74],[60,75,60,81],[60,82,60,90],[60,91,60,93],[60,94,60,100],[60,101,60,105],[60,106,60,108],[60,117,60,119],[60,120,60,123],[59,56,59,61],[59,62,59,71],[59,72,59,74],[59,75,59,81],[60,0,60,1],[60,2,60,7],[60,8,60,11],[60,12,60,18],[60,19,60,23],[60,39,60,42],[60,24,60,31],[60,32,60,34],[60,35,60,38],[60,43,60,55],[59,35,59,38],[59,43,59,55],[60,109,60,116],[61,91,61,93],[61,94,61,100],[61,101,61,105],[61,106,61,108],[61,109,61,116],[61,82,61,90],[62,24,62,31],[62,32,62,34],[62,35,62,38],[62,43,62,55],[61,24,61,31],[61,32,61,34],[61,35,61,38],[61,39,61,42],[62,39,62,42],[61,43,61,55],[61,56,61,61],[61,62,61,71],[61,72,61,74],[61,75,61,81],[59,106,59,108],[63,106,63,108],[62,109,62,116],[62,117,62,119],[62,120,62,123],[63,0,63,1],[63,2,63,7],[63,8,63,11],[63,12,63,18],[63,19,63,23],[63,24,63,31],[63,32,63,34],[63,39,63,42],[63,109,63,116],[63,117,63,119],[63,120,63,123],[62,56,62,61],[62,62,62,71],[62,72,62,74],[62,75,62,81],[62,82,62,90],[62,91,62,93],[62,94,62,100],[62,101,62,105],[62,106,62,108],[63,82,63,90],[63,91,63,93],[63,94,63,100],[63,101,63,105],[62,0,62,1],[62,2,62,7],[62,8,62,11],[62,12,62,18],[62,19,62,23],[65,0,65,1],[65,2,65,7],[65,8,65,11],[65,12,65,18],[65,19,65,23],[65,117,65,119],[65,120,65,123],[64,56,64,61],[64,62,64,71],[64,72,64,74],[64,75,64,81],[64,82,64,90],[64,91,64,93],[64,94,64,100],[64,101,64,105],[64,106,64,108],[64,117,64,119],[64,120,64,123],[63,75,63,81],[64,0,64,1],[64,2,64,7],[64,8,64,11],[64,12,64,18],[64,19,64,23],[63,35,63,38],[63,43,63,55],[63,56,63,61],[63,62,63,71],[63,72,63,74],[64,24,64,31],[64,32,64,34],[67,56,67,61],[64,35,64,38],[64,43,64,55],[65,39,65,42],[64,39,64,42],[65,24,65,31],[65,32,65,34],[65,35,65,38],[64,109,64,116],[65,91,65,93],[65,94,65,100],[65,101,65,105],[65,106,65,108],[65,109,65,116],[65,82,65,90],[66,24,66,31],[66,32,66,34],[66,35,66,38],[66,43,66,55],[66,39,66,42],[65,43,65,55],[65,56,65,61],[65,62,65,71],[65,72,65,74],[65,75,65,81],[66,109,66,116],[69,75,69,81],[66,117,66,119],[66,120,66,123],[67,0,67,1],[67,2,67,7],[67,8,67,11],[67,12,67,18],[67,19,67,23],[67,24,67,31],[67,32,67,34],[67,39,67,42],[67,109,67,116],[67,117,67,119],[67,120,67,123],[66,56,66,61],[66,62,66,71],[66,72,66,74],[66,75,66,81],[66,82,66,90],[66,91,66,93],[66,94,66,100],[66,101,66,105],[66,106,66,108],[67,82,67,90],[67,91,67,93],[67,94,67,100],[67,101,67,105],[66,0,66,1],[66,2,66,7],[66,8,66,11],[66,12,66,18],[66,19,66,23],[69,101,69,105],[70,101,70,105],[70,106,70,108],[69,106,69,108],[69,109,69,116],[69,82,69,90],[69,0,69,1],[69,2,69,7],[69,8,69,11],[69,12,69,18],[69,19,69,23],[69,117,69,119],[69,120,69,123],[68,56,68,61],[68,62,68,71],[68,72,68,74],[68,75,68,81],[68,82,68,90],[68,91,68,93],[68,94,68,100],[68,101,68,105],[68,106,68,108],[68,117,68,119],[68,120,68,123],[69,24,69,31],[69,32,69,34],[69,35,69,38],[69,39,69,42],[69,43,69,55],[69,56,69,61],[69,62,69,71],[69,72,69,74],[71,109,71,116],[71,117,71,119],[71,120,71,123],[70,56,70,61],[70,62,70,71],[71,0,71,1],[71,2,71,7],[71,8,71,11],[70,39,70,42],[71,12,71,18],[71,19,71,23],[67,106,67,108],[70,109,70,116],[70,117,70,119],[67,62,67,71],[67,72,67,74],[67,75,67,81],[68,0,68,1],[68,2,68,7],[68,8,68,11],[68,12,68,18],[68,19,68,23],[68,39,68,42],[68,24,68,31],[68,32,68,34],[68,35,68,38],[68,43,68,55],[67,35,67,38],[67,43,67,55],[68,109,68,116],[69,91,69,93],[69,94,69,100],[72,32,72,34],[72,35,72,38],[72,43,72,55],[71,35,71,38],[71,43,71,55],[70,2,70,7],[70,8,70,11],[70,12,70,18],[70,19,70,23],[71,56,71,61],[71,62,71,71],[70,24,70,31],[70,32,70,34],[70,35,70,38],[70,43,70,55],[73,117,73,119],[73,120,73,123],[72,56,72,61],[72,62,72,71],[72,72,72,74],[72,75,72,81],[72,82,72,90],[72,91,72,93],[72,94,72,100],[72,101,72,105],[72,106,72,108],[72,117,72,119],[72,120,72,123],[70,120,70,123],[71,24,71,31],[71,32,71,34],[71,39,71,42],[72,109,72,116],[71,106,71,108],[71,82,71,90],[71,91,71,93],[71,94,71,100],[71,101,71,105],[70,0,70,1],[73,91,73,93],[73,94,73,100],[73,101,73,105],[73,106,73,108],[73,109,73,116],[73,82,73,90],[73,0,73,1],[73,2,73,7],[73,8,73,11],[73,12,73,18],[73,19,73,23],[71,72,71,74],[71,75,71,81],[70,72,70,74],[70,75,70,81],[70,82,70,90],[70,91,70,93],[70,94,70,100],[72,0,72,1],[72,2,72,7],[72,8,72,11],[72,12,72,18],[72,19,72,23],[72,39,72,42],[72,24,72,31],[74,24,74,31],[74,32,74,34],[74,35,74,38],[74,43,74,55],[73,24,73,31],[73,32,73,34],[73,35,73,38],[73,39,73,42],[74,39,74,42],[73,43,73,55],[73,56,73,61],[73,62,73,71],[73,72,73,74],[73,75,73,81],[75,106,75,108],[74,109,74,116],[75,35,75,38],[75,43,75,55],[75,56,75,61],[75,62,75,71],[75,72,75,74],[74,117,74,119],[74,120,74,123],[75,0,75,1],[75,2,75,7],[75,8,75,11],[75,12,75,18],[75,19,75,23],[75,24,75,31],[75,32,75,34],[75,39,75,42],[75,109,75,116],[75,117,75,119],[75,120,75,123],[74,56,74,61],[74,62,74,71],[74,72,74,74],[74,75,74,81],[74,82,74,90],[74,91,74,93],[74,94,74,100],[74,101,74,105],[74,106,74,108],[75,82,75,90],[75,91,75,93],[75,94,75,100],[75,101,75,105],[74,0,74,1],[74,2,74,7],[74,8,74,11],[74,12,74,18],[74,19,74,23],[75,75,75,81],[77,0,77,1],[77,2,77,7],[77,8,77,11],[77,12,77,18],[77,19,77,23],[77,117,77,119],[77,120,77,123],[76,56,76,61],[76,62,76,71],[76,72,76,74],[76,75,76,81],[76,82,76,90],[76,91,76,93],[76,94,76,100],[76,101,76,105],[76,106,76,108],[76,117,76,119],[76,120,76,123],[76,0,76,1],[76,2,76,7],[76,8,76,11],[76,12,76,18],[76,19,76,23],[76,24,76,31],[76,32,76,34],[76,35,76,38],[76,43,76,55],[76,39,76,42],[76,109,76,116],[77,91,77,93],[77,94,77,100],[77,101,77,105],[79,56,79,61],[77,106,77,108],[77,109,77,116],[77,82,77,90],[78,24,78,31],[78,32,78,34],[78,35,78,38],[78,43,78,55],[77,39,77,42],[78,39,78,42],[77,24,77,31],[77,32,77,34],[77,35,77,38],[77,43,77,55],[77,56,77,61],[77,62,77,71],[77,72,77,74],[77,75,77,81],[78,109,78,116],[81,75,81,81],[78,117,78,119],[78,120,78,123],[79,0,79,1],[79,2,79,7],[79,8,79,11],[79,12,79,18],[79,19,79,23],[79,24,79,31],[79,32,79,34],[79,39,79,42],[79,109,79,116],[79,117,79,119],[79,120,79,123],[78,56,78,61],[78,62,78,71],[78,72,78,74],[78,75,78,81],[78,82,78,90],[78,91,78,93],[78,94,78,100],[78,101,78,105],[78,106,78,108],[79,82,79,90],[79,91,79,93],[79,94,79,100],[79,101,79,105],[78,0,78,1],[78,2,78,7],[78,8,78,11],[78,12,78,18],[78,19,78,23],[81,101,81,105],[82,101,82,105],[82,106,82,108],[81,106,81,108],[81,109,81,116],[81,82,81,90],[81,0,81,1],[81,2,81,7],[81,8,81,11],[81,12,81,18],[81,19,81,23],[81,117,81,119],[81,120,81,123],[80,56,80,61],[80,62,80,71],[80,72,80,74],[80,75,80,81],[80,82,80,90],[80,91,80,93],[80,94,80,100],[80,101,80,105],[80,106,80,108],[80,117,80,119],[80,120,80,123],[81,24,81,31],[81,32,81,34],[81,35,81,38],[81,39,81,42],[81,43,81,55],[81,56,81,61],[81,62,81,71],[81,72,81,74],[83,109,83,116],[83,117,83,119],[83,120,83,123],[82,56,82,61],[82,62,82,71],[83,0,83,1],[83,2,83,7],[83,8,83,11],[82,39,82,42],[83,12,83,18],[83,19,83,23],[79,106,79,108],[82,109,82,116],[82,117,82,119],[79,62,79,71],[79,72,79,74],[79,75,79,81],[80,0,80,1],[80,2,80,7],[80,8,80,11],[80,12,80,18],[80,19,80,23],[80,39,80,42],[80,24,80,31],[80,32,80,34],[80,35,80,38],[80,43,80,55],[79,35,79,38],[79,43,79,55],[80,109,80,116],[81,91,81,93],[81,94,81,100],[84,32,84,34],[84,35,84,38],[84,43,84,55],[83,35,83,38],[83,43,83,55],[82,2,82,7],[82,8,82,11],[82,12,82,18],[82,19,82,23],[83,56,83,61],[83,62,83,71],[82,24,82,31],[82,32,82,34],[82,35,82,38],[82,43,82,55],[85,117,85,119],[85,120,85,123],[84,56,84,61],[84,62,84,71],[84,72,84,74],[84,75,84,81],[84,82,84,90],[84,91,84,93],[84,94,84,100],[84,101,84,105],[84,106,84,108],[84,117,84,119],[84,120,84,123],[82,120,82,123],[83,24,83,31],[83,32,83,34],[83,39,83,42],[84,109,84,116],[83,106,83,108],[83,82,83,90],[83,91,83,93],[83,94,83,100],[83,101,83,105],[82,0,82,1],[85,91,85,93],[85,94,85,100],[85,101,85,105],[85,106,85,108],[85,109,85,116],[85,82,85,90],[85,0,85,1],[85,2,85,7],[85,8,85,11],[85,12,85,18],[85,19,85,23],[83,72,83,74],[83,75,83,81],[82,72,82,74],[82,75,82,81],[82,82,82,90],[82,91,82,93],[82,94,82,100],[84,0,84,1],[84,2,84,7],[84,8,84,11],[84,12,84,18],[84,19,84,23],[84,39,84,42],[84,24,84,31],[86,24,86,31],[86,32,86,34],[86,35,86,38],[86,43,86,55],[85,24,85,31],[85,32,85,34],[85,35,85,38],[85,39,85,42],[86,39,86,42],[85,43,85,55],[85,56,85,61],[85,62,85,71],[85,72,85,74],[85,75,85,81],[87,106,87,108],[86,109,86,116],[87,35,87,38],[87,43,87,55],[87,56,87,61],[87,62,87,71],[87,72,87,74],[86,117,86,119],[86,120,86,123],[87,0,87,1],[87,2,87,7],[87,8,87,11],[87,12,87,18],[87,19,87,23],[87,24,87,31],[87,32,87,34],[87,39,87,42],[87,109,87,116],[87,117,87,119],[87,120,87,123],[86,56,86,61],[86,62,86,71],[86,72,86,74],[86,75,86,81],[86,82,86,90],[86,91,86,93],[86,94,86,100],[86,101,86,105],[86,106,86,108],[87,82,87,90],[87,91,87,93],[87,94,87,100],[87,101,87,105],[86,0,86,1],[86,2,86,7],[86,8,86,11],[86,12,86,18],[86,19,86,23],[87,75,87,81],[89,0,89,1],[89,2,89,7],[89,8,89,11],[89,12,89,18],[89,19,89,23],[89,117,89,119],[89,120,89,123],[88,56,88,61],[88,62,88,71],[88,72,88,74],[88,75,88,81],[88,82,88,90],[88,91,88,93],[88,94,88,100],[88,101,88,105],[88,106,88,108],[88,117,88,119],[88,120,88,123]],"merged_total":6724,"flags":["merged_cut"]}
[{"$f":"IF(Settings_Language = \"English\",SectionI_Title,SectionI_Title_Arabic)","v":"القسم س: القوى العاملة والمعلمون"}]
[]
[{"$f":"IF(Settings_Language = \"English\",SectionI_I1,SectionI_I1_Arabic)","v":"س.1: معدل الفاقد في المعلمين وفق كل سبب وحسب الجنس بالسنة الماضية"}]
[{"$f":"IF(Settings_Language = \"English\",SectionI_Instruction,SectionI_Instruction_Arabic)","v":"التعليمات"}]
[{"$f":"IF(Settings_Language = \"English\",SectionI_I1_InstructionDesc,SectionI_I1_InstructionDesc_Arabic)","v":"يرجى ذكر عدد المعلمين من الذكور والاناث و الذين تركوا المدرسة العام الماضي وفق الاسباب الموضحة أدناه "}]
[]
[]
[]
[null,null,null,null,null,{"$f":"IF(Settings_Language = \"English\",SectionI_Retirement,SectionI_Retirement_Arabic)","v":"التقاعد"},null,null,null,{"$f":"IF(Settings_Language = \"English\",SectionI_Resignation,SectionI_Resignation_Arabic)","v":"الاستقاله"},null,null,null,{"$f":"IF(Settings_Language = \"English\",SectionI_Abscondment,SectionI_Abscondment_Arabic)","v":"الغياب"},null,null,null,null,{"$f":"IF(Settings_Language = \"English\",SectionI_Death,SectionI_Death_Arabic)","v":"الوفاة"},null,null,{"$f":"IF(Settings_Language = \"English\",SectionI_Discharge,SectionI_Discharge_Arabic)","v":"التسريح"},null,null,null,{"$f":"IF(Settings_Language = \"English\",SectionI_Other,SectionI_Other_Arabic)","v":"اسباب أخرى"},null,null,null,{"$f":"IF(Settings_Language = \"English\",SectionI_Total,SectionI_Total_Arabic)","v":"الاجمالي"}]
[{"$f":"IF(Settings_Language = \"English\",SectionI_Male,SectionI_Male_Arabic)","v":"ذكور"},null,null,null,null,null,null,null,null,null,null,null,null,null,null,null,null,null,null,null,null,null,null,null,null,null,null,null,null,{"$f":"SUM(F10:AB10)","v":0}]
[{"$f":"IF(Settings_Language = \"English\",SectionI_Female,SectionI_Female_Arabic)","v":"إناث"},null,null,null,null,null,null,null,null,null,null,null,null,null,null,null,null,null,null,null,null,null,null,null,null,null,null,null,null,{"$f":"SUM(F11:AB11)","v":0}]
[{"$f":"IF(Settings_Language = \"English\",SectionI_Total,SectionI_Total_Arabic)","v":"الاجمالي"},null,null,null,null,{"$f":"SUM(F10:I11)","v":0},null,null,null,{"$f":"SUM(J10:M11)","v":0},null,null,null,{"$f":"SUM(N10:R11)","v":0},null,null,null,null,{"$f":"SUM(S10:U11)","v":0},null,null,{"$f":"SUM(V10:Y11)","v":0},null,null,null,{"$f":"SUM(Z10:AB11)","v":0}]
[]
[{"$f":"IF(Settings_Language = \"English\",SectionI_I2,SectionI_I2_Arabic)","v":"س.2: الموظفون بالمدرسة (من غير المعلمين) حسب الوظيفة والجنس "}]
[null,null,null,null,null,{"$f":"IF(Settings_Language = \"English\",SectionI_Libyan,SectionI_Libyan_Arabic)","v":"ليبيون"},null,null,null,null,null,null,null,null,{"$f":"IF(Settings_Language = \"English\",SectionI_NonLibyan,SectionI_NonLibyan_Arabic)","v":"غير ليبيون"},null,null,null,null,null,null,null,null,{"$f":"IF(Settings_Language = \"English\",SectionI_Total,SectionI_Total_Arabic)","v":"الاجمالي"}]
[null,null,null,null,null,{"$f":"IF(Settings_Language = \"English\",SectionI_Male,SectionI_Male_Arabic)","v":"ذكور"},null,null,null,{"$f":"IF(Settings_Language = \"English\",SectionI_Female,SectionI_Female_Arabic)","v":"إناث"},null,null,null,null,{"$f":"IF(Settings_Language = \"English\",SectionI_Male,SectionI_Male_Arabic)","v":"ذكور"},null,null,null,{"$f":"IF(Settings_Language = \"English\",SectionI_Female,SectionI_Female_Arabic)","v":"إناث"},null,null,null,null,{"$f":"IF(Settings_Language = \"English\",SectionI_Male,SectionI_Male_Arabic)","v":"ذكور"},null,null,null,{"$f":"IF(Settings_Language = \"English\",SectionI_Female,SectionI_Female_Arabic)","v":"إناث"}]
[{"$f":"IF(Settings_Language = \"English\",SectionI_Administration,SectionI_Administration_Arabic)","v":"إداريون"},null,null,null,null,null,null,null,null,null,null,null,null,null,null,null,null,null,null,null,null,null,null,{"$f":"F17+O17","v":0},null,null,null,{"$f":"J17+S17","v":0}]
[{"$f":"IF(Settings_Language = \"English\",SectionI_Maintenance,SectionI_Maintenance_Arabic)","v":"فنيوا صيانة"},null,null,null,null,null,null,null,null,null,null,null,null,null,null,null,null,null,null,null,null,null,null,{"$f":"F18+O18","v":0},null,null,null,{"$f":"J18+S18","v":0}]
[{"$f":"IF(Settings_Language = \"English\",SectionI_Security,SectionI_Security_Arabic)","v":"سكرتاريه"},null,null,null,null,null,null,null,null,null,null,null,null,null,null,null,null,null,null,null,null,null,null,{"$f":"F19+O19","v":0},null,null,null,{"$f":"J19+S19","v":0}]
[{"$f":"IF(Settings_Language = \"English\",SectionI_Others,SectionI_Others_Arabic)","v":"غيرها"},null,null,null,null,null,null,null,null,null,null,null,null,null,null,null,null,null,null,null,null,null,null,{"$f":"F20+O20","v":0},null,null,null,{"$f":"J20+S20","v":0}]
[{"$f":"IF(Settings_Language = \"English\",SectionI_Total,SectionI_Total_Arabic)","v":"الاجمالي"},null,null,null,null,{"$f":"SUM(F17:I20)","v":0},null,null,null,{"$f":"SUM(J17:M20)","v":0},null,null,null,null,{"$f":"SUM(O17:R20)","v":0},null,null,null,{"$f":"SUM(S17:V20)","v":0},null,null,null,null,{"$f":"SUM(X17:AA20)","v":0},null,null,null,{"$f":"SUM(AB17:AE20)","v":0}]
[]
[{"$f":"IF(Settings_Language = \"English\",SectionI_I3,SectionI_I3_Arabic)","v":"س.3: إدارة المدرسة والتخطيط"}]
[]
[{"$f":"IF(Settings_Language = \"English\",SectionI_I3_1,SectionI_I3_1_Arabic)","v":"1- هل لدى المدرسة خطة للتطوير"}]
[]
[{"$f":"IF(Settings_Language = \"English\",SectionI_I3_2,SectionI_I3_2_Arabic)","v":"2- هل تمت الموافقة على خطة السنة الماضية "}]
[]
[{"$f":"IF(Settings_Language = \"English\",SectionI_I3_3,SectionI_I3_3_Arabic)","v":"3- هل لدى المدرسة مجلس للأباء"}]
[]
[{"$f":"IF(Settings_Language = \"English\",SectionI_I3_4,SectionI_I3_4_Arabic)","v":"4- كم مرة إنعقد مجلس الاباء في السنة الماضية"}]
[]
[{"$f":"IF(Settings_Language = \"English\",SectionI_I3_5,SectionI_I3_5_Arabic)","v":"5- كم عدد الاعضاء الفاعلين بمجلس الاباء"}]
[]
[{"$f":"IF(Settings_Language = \"English\",SectionI_I3_6,SectionI_I3_6_Arabic)","v":"6- هل إعتمد مجلس الاباء خطة تطوير المدرسة"}]
[]
[{"$f":"IF(Settings_Language = \"English\",SectionI_I3_7,SectionI_I3_7_Arabc)","v":"7- كم إجمالي عدد الاداريين بالمدرسة"}]
[]
[{"$f":"IF(Settings_Language = \"English\",SectionI_I3_8,SectionI_I3_8_Arabic)","v":"8- كم عدد الاداريين المعتمدين وفق المتطلبات الوطنية للمهنة"}]
[]
[{"$f":"IF(Settings_Language = \"English\",SectionI_I4,SectionI_I4_Arabic)","v":"س.4: معلومات المعلمين لهذه السنة "}]
[{"$f":"IF(Settings_Language = \"English\",SectionI_Instruction,SectionI_Instruction_Arabic)","v":"التعليمات"}]
[{"$f":"IF(Settings_Language = \"English\",SectionI_I4_InstructionDesc,SectionI_I4_InstructionDesc_Arabic)","v":"يرجى إدخال معلومات جميع المعلمين بالمدرسة بغض النظر عن وضعهم الحالي (موجودون، في أجازة، في تدريب ..الخ)"}]
[]
[]
[]
[{"$f":"IF(Settings_Language = \"English\",SectionI_No,SectionI_No_Arabic)","v":"تسلسل"},null,{"$f":"IF(Settings_Language = \"English\",SectionI_NationalIDPassportNum,SectionI_NationalIDPassportNum_Arabic)","v":"الرقم الوطني/ او/ رقم جواز السفر"},null,null,null,null,null,{"$f":"IF(Settings_Language = \"English\",SectionI_DateJoinedService,SectionI_DateJoinedService_Arabic)","v":"سنة بداية الخدمة (يوم.شهر.سنة)"},null,null,null,{"$f":"IF(Settings_Language = \"English\",SectionI_CurrentPost,SectionI_CurrentPost_Arabic)","v":"الوظيفة الحالية وفق الهيكل"},null,null,null,null,null,null,{"$f":"IF(Settings_Language = \"English\",SectionI_Nationality,SectionI_Nationality_Arabic)","v":"الجنسية"},null,null,null,null,{"$f":"IF(Settings_Language = \"English\",SectionI_SubstantiveGrade,SectionI_SubstantiveGrade_Arabic)","v":"الوظيفة الفعلية"},null,null,null,null,null,null,null,{"$f":"IF(Settings_Language = \"English\",SectionI_Gender,SectionI_Gender_Arabic)","v":"الجنس "},null,null,{"$f":"IF(Settings_Language = \"English\",SectionI_DateOfBirth,SectionI_DateOfBirth_Arabic)","v":"تاريخ الميلاد (يوم.شهر.سنة)"},null,null,null,{"$f":"IF(Settings_Language = \"English\",SectionI_IDP,SectionI_IDP_Arabic)","v":"نازح (إختر نعم او لا، تركها يعني لا)"},null,null,null,{"$f":"IF(Settings_Language = \"English\",SectionI_HighestAcademicQualificationCode,SectionI_HighestAcademicQualificationCode_Arabic)","v":"اعلى درجة علمية"},null,null,null,null,null,null,null,null,null,null,null,null,{"$f":"IF(Settings_Language = \"English\",SectionI_EducationDeg,SectionI_EducationDeg_Arabic)","v":"إسم الشهادة العلمية"},null,null,null,null,null,{"$f":"IF(Settings_Language = \"English\",SectionI_Specialty,SectionI_Specialty_Arabic)","v":"التخصص"},null,null,null,null,null,null,null,null,null,{"$f":"IF(Settings_Language = \"English\",SectionI_Grade,SectionI_Grade_Arabic)","v":"الدرجة الوظيفية"},null,null,{"$f":"IF(Settings_Language = \"English\",SectionI_PublicSectorPayroll,SectionI_PublicSectorPayroll_Arabic)","v":"نوع التوظيف"},null,null,null,null,null,null,{"$f":"IF(Settings_Language = \"English\",SectionI_InServiceTraining,SectionI_InServiceTraining_Arabic)","v":"التدريب خلال السنتين الماضيتين"},null,null,null,null,null,null,null,null,{"$f":"IF(Settings_Language = \"English\",SectionI_CurrentlyOnLeave,SectionI_CurrentlyOnLeave_Arabic)","v":"حاليا في إجازة"},null,null,{"$f":"IF(Settings_Language = \"English\",SectionI_LevelOfSpecialisation,SectionI_LevelOfSpecialisation_Arabic)","v":"مستوى التخصص"},null,null,null,null,null,null,{"$f":"IF(Settings_Language = \"English\",SectionI_LevelCurrentlyTeaching,SectionI_LevelCurrentlyTeaching_Arabic)","v":"مستوى التدريس الحالي"},null,null,null,null,{"$f":"IF(Settings_Language = \"English\",SectionI_SpecialNeedsTeacher,SectionI_SpecialNeedsTeacher_Arabic)","v":"مدرس إحتياجات خاصه"},null,null,{"$f":"IF(Settings_Language = \"English\",SectionI_SubjTaught,SectionI_SubjTaught_Arabic)","v":"المواد التي يقوم بتدريسها"},null,null,null,null,null,null,null,{"$f":"IF(Settings_Language = \"English\",SectionI_NumOfLessons,SectionI_NumOfLessons_Arabic)","v":"عدد الحصص"},null,null,{"$f":"IF(Settings_Language = \"English\",SectionI_NumOfClassesAssigned,SectionI_NumOfClassesAssigned_Arabic)","v":"عدد الفصول"}]
[]
[]
[1]
[2]
[3]
[4]
[5]
[6,null,null,null,null,null,null,null,null,null,null,null,"   ",null,null,null,null,null,null,"   ",null,null,null,null,"   ",null,null,null,null,null,null,null,"   ",null,null,null,null,null,null,null,null,null,null,null,null,null,null,null,null,null,null,null,null,null,null,null,null,null,null,null,null,null,null,null,null,null,null,null,null,null,null,null,null,null,null,"   "]
[7,null,null,null,null,null,null,null,null,null,null,null,"   ",null,null,null,null,null,null,"   ",null,null,null,null,"   ",null,null,null,null,null,null,null,"   ",null,null,null,null,null,null,null,null,null,null,null,null,null,null,null,null,null,null,null,null,null,null,null,null,null,null,null,null,null,null,null,null,null,null,null,null,null,null,null,null,null,null,"   "]
[8,null,null,null,null,null,null,null,null,null,null,null,"   ",null,null,null,null,null,null,"   ",null,null,null,null,"   ",null,null,null,null,null,null,null,"   ",null,null,null,null,null,null,null,null,null,null,null,null,null,null,null,null,null,null,null,null,null,null,null,null,null,null,null,null,null,null,null,null,null,null,null,null,null,null,null,null,null,null,"   "]
[9,null,null,null,null,null,null,null,null,null,null,null,"   ",null,null,null,null,null,null,"   ",null,null,null,null,"   ",null,null,null,null,null,null,null,"   ",null,null,null,null,null,null,null,null,null,null,null,null,null,null,null,null,null,null,null,null,null,null,null,null,null,null,null,null,null,null,null,null,null,null,null,null,null,null,null,null,null,null,"   "]
[10,null,null,null,null,null,null,null,null,null,null,null,"   ",null,null,null,null,null,null,"   ",null,null,null,null,"   ",null,null,null,null,null,null,null,"   ",null,null,null,null,null,null,null,null,null,null,null,null,null,null,null,null,null,null,null,null,null,null,null,null,null,null,null,null,null,null,null,null,null,null,null,null,null,null,null,null,null,null,"   "]
[11,null,null,null,null,null,null,null,null,null,null,null,"   ",null,null,null,null,null,null,"   ",null,null,null,null,"   ",null,null,null,null,null,null,null,"   ",null,null,null,null,null,null,null,null,null,null,null,null,null,null,null,null,null,null,null,null,null,null,null,null,null,null,null,null,null,null,null,null,null,null,null,null,null,null,null,null,null,null,"   "]
[12,null,null,null,null,null,null,null,null,null,null,null,"   ",null,null,null,null,null,null,"   ",null,null,null,null,"   ",null,null,null,null,null,null,null,"   ",null,null,null,null,null,null,null,null,null,null,null,null,null,null,null,null,null,null,null,null,null,null,null,null,null,null,null,null,null,null,null,null,null,null,null,null,null,null,null,null,null,null,"   "]
[13,null,null,null,null,null,null,null,null,null,null,null,"   ",null,null,null,null,null,null,"   ",null,null,null,null,"   ",null,null,null,null,null,null,null,"   ",null,null,null,null,null,null,null,null,null,null,null,null,null,null,null,null,null,null,null,null,null,null,null,null,null,null,null,null,null,null,null,null,null,null,null,null,null,null,null,null,null,null,"   "]
[14,null,null,null,null,null,null,null,null,null,null,null,"   ",null,null,null,null,null,null,"   ",null,null,null,null,"   ",null,null,null,null,null,null,null,"   ",null,null,null,null,null,null,null,null,null,null,null,null,null,null,null,null,null,null,null,null,null,null,null,null,null,null,null,null,null,null,null,null,null,null,null,null,null,null,null,null,null,null,"   "]
[15,null,null,null,null,null,null,null,null,null,null,null,"   ",null,null,null,null,null,null,"   ",null,null,null,null,"   ",null,null,null,null,null,null,null,"   ",null,null,null,null,null,null,null,null,null,null,null,null,null,null,null,null,null,null,null,null,null,null,null,null,null,null,null,null,null,null,null,null,null,null,null,null,null,null,null,null,null,null,"   "]
[16,null,null,null,null,null,null,null,null,null,null,null,"   ",null,null,null,null,null,null,"   ",null,null,null,null,"   ",null,null,null,null,null,null,null,"   ",null,null,null,null,null,null,null,null,null,null,null,null,null,null,null,null,null,null,null,null,null,null,null,null,null,null,null,null,null,null,null,null,null,null,null,null,null,null,null,null,null,null,"   "]
[17,null,null,null,null,null,null,null,null,null,null,null,"   ",null,null,null,null,null,null,"   ",null,null,null,null,"   ",null,null,null,null,null,null,null,"   ",null,null,null,null,null,null,null,null,null,null,null,null,null,null,null,null,null,null,null,null,null,null,null,null,null,null,null,null,null,null,null,null,null,null,null,null,null,null,null,null,null,null,"   "]
[18,null,null,null,null,null,null,null,null,null,null,null,"   ",null,null,null,null,null,null,"   ",null,null,null,null,"   ",null,null,null,null,null,null,null,"   ",null,null,null,null,null,null,null,null,null,null,null,null,null,null,null,null,null,null,null,null,null,null,null,null,null,null,null,null,null,null,null,null,null,null,null,null,null,null,null,null,null,null,"   "]
[19,null,null,null,null,null,null,null,null,null,null,null,"   ",null,null,null,null,null,null,"   ",null,null,null,null,"   ",null,null,null,null,null,null,null,"   ",null,null,null,null,null,null,null,null,null,null,null,null,null,null,null,null,null,null,null,null,null,null,null,null,null,null,null,null,null,null,null,null,null,null,null,null,null,null,null,null,null,null,"   "]
[20,null,null,null,null,null,null,null,null,null,null,null,"   ",null,null,null,null,null,null,"   ",null,null,null,null,"   ",null,null,null,null,null,null,null,"   ",null,null,null,null,null,null,null,null,null,null,null,null,null,null,null,null,null,null,null,null,null,null,null,null,null,null,null,null,null,null,null,null,null,null,null,null,null,null,null,null,null,null,"   "]
[21,null,null,null,null,null,null,null,null,null,null,null,"   ",null,null,null,null,null,null,"   ",null,null,null,null,"   ",null,null,null,null,null,null,null,"   ",null,null,null,null,null,null,null,null,null,null,null,null,null,null,null,null,null,null,null,null,null,null,null,null,null,null,null,null,null,null,null,null,null,null,null,null,null,null,null,null,null,null,"   "]
[22,null,null,null,null,null,null,null,null,null,null,null,"   ",null,null,null,null,null,null,"   ",null,null,null,null,"   ",null,null,null,null,null,null,null,"   ",null,null,null,null,null,null,null,null,null,null,null,null,null,null,null,null,null,null,null,null,null,null,null,null,null,null,null,null,null,null,null,null,null,null,null,null,null,null,null,null,null,null,"   "]
[23,null,null,null,null,null,null,null,null,null,null,null,"   ",null,null,null,null,null,null,"   ",null,null,null,null,"   ",null,null,null,null,null,null,null,"   ",null,null,null,null,null,null,null,null,null,null,null,null,null,null,null,null,null,null,null,null,null,null,null,null,null,null,null,null,null,null,null,null,null,null,null,null,null,null,null,null,null,null,"   "]
[24,null,null,null,null,null,null,null,null,null,null,null,"   ",null,null,null,null,null,null,"   ",null,null,null,null,"   ",null,null,null,null,null,null,null,"   ",null,null,null,null,null,null,null,null,null,null,null,null,null,null,null,null,null,null,null,null,null,null,null,null,null,null,null,null,null,null,null,null,null,null,null,null,null,null,null,null,null,null,"   "]
[25,null,null,null,null,null,null,null,null,null,null,null,"   ",null,null,null,null,null,null,"   ",null,null,null,null,"   ",null,null,null,null,null,null,null,"   ",null,null,null,null,null,null,null,null,null,null,null,null,null,null,null,null,null,null,null,null,null,null,null,null,null,null,null,null,null,null,null,null,null,null,null,null,null,null,null,null,null,null,"   "]
[26,null,null,null,null,null,null,null,null,null,null,null,"   ",null,null,null,null,null,null,"   ",null,null,null,null,"   ",null,null,null,null,null,null,null,"   ",null,null,null,null,null,null,null,null,null,null,null,null,null,null,null,null,null,null,null,null,null,null,null,null,null,null,null,null,null,null,null,null,null,null,null,null,null,null,null,null,null,null,"   "]
[27,null,null,null,null,null,null,null,null,null,null,null,"   ",null,null,null,null,null,null,"   ",null,null,null,null,"   ",null,null,null,null,null,null,null,"   ",null,null,null,null,null,null,null,null,null,null,null,null,null,null,null,null,null,null,null,null,null,null,null,null,null,null,null,null,null,null,null,null,null,null,null,null,null,null,null,null,null,null,"   "]
[28,null,null,null,null,null,null,null,null,null,null,null,"   ",null,null,null,null,null,null,"   ",null,null,null,null,"   ",null,null,null,null,null,null,null,"   ",null,null,null,null,null,null,null,null,null,null,null,null,null,null,null,null,null,null,null,null,null,null,null,null,null,null,null,null,null,null,null,null,null,null,null,null,null,null,null,null,null,null,"   "]
[29,null,null,null,null,null,null,null,null,null,null,null,"   ",null,null,null,null,null,null,"   ",null,null,null,null,"   ",null,null,null,null,null,null,null,"   ",null,null,null,null,null,null,null,null,null,null,null,null,null,null,null,null,null,null,null,null,null,null,null,null,null,null,null,null,null,null,null,null,null,null,null,null,null,null,null,null,null,null,"   "]
[30,null,null,null,null,null,null,null,null,null,null,null,"   ",null,null,null,null,null,null,"   ",null,null,null,null,"   ",null,null,null,null,null,null,null,"   ",null,null,null,null,null,null,null,null,null,null,null,null,null,null,null,null,null,null,null,null,null,null,null,null,null,null,null,null,null,null,null,null,null,null,null,null,null,null,null,null,null,null,"   "]
[31,null,null,null,null,null,null,null,null,null,null,null,"   ",null,null,null,null,null,null,"   ",null,null,null,null,"   ",null,null,null,null,null,null,null,"   ",null,null,null,null,null,null,null,null,null,null,null,null,null,null,null,null,null,null,null,null,null,null,null,null,null,null,null,null,null,null,null,null,null,null,null,null,null,null,null,null,null,null,"   "]
[32,null,null,null,null,null,null,null,null,null,null,null,"   ",null,null,null,null,null,null,"   ",null,null,null,null,"   ",null,null,null,null,null,null,null,"   ",null,null,null,null,null,null,null,null,null,null,null,null,null,null,null,null,null,null,null,null,null,null,null,null,null,null,null,null,null,null,null,null,null,null,null,null,null,null,null,null,null,null,"   "]
[33,null,null,null,null,null,null,null,null,null,null,null,"   ",null,null,null,null,null,null,"   ",null,null,null,null,"   ",null,null,null,null,null,null,null,"   ",null,null,null,null,null,null,null,null,null,null,null,null,null,null,null,null,null,null,null,null,null,null,null,null,null,null,null,null,null,null,null,null,null,null,null,null,null,null,null,null,null,null,"   "]
[34,null,null,null,null,null,null,null,null,null,null,null,"   ",null,null,null,null,null,null,"   ",null,null,null,null,"   ",null,null,null,null,null,null,null,"   ",null,null,null,null,null,null,null,null,null,null,null,null,null,null,null,null,null,null,null,null,null,null,null,null,null,null,null,null,null,null,null,null,null,null,null,null,null,null,null,null,null,null,"   "]
[35,null,null,null,null,null,null,null,null,null,null,null,"   ",null,null,null,null,null,null,"   ",null,null,null,null,"   ",null,null,null,null,null,null,null,"   ",null,null,null,null,null,null,null,null,null,null,null,null,null,null,null,null,null,null,null,null,null,null,null,null,null,null,null,null,null,null,null,null,null,null,null,null,null,null,null,null,null,null,"   "]
[36,null,null,null,null,null,null,null,null,null,null,null,"   ",null,null,null,null,null,null,"   ",null,null,null,null,"   ",null,null,null,null,null,null,null,"   ",null,null,null,null,null,null,null,null,null,null,null,null,null,null,null,null,null,null,null,null,null,null,null,null,null,null,null,null,null,null,null,null,null,null,null,null,null,null,null,null,null,null,"   "]
[37,null,null,null,null,null,null,null,null,null,null,null,"   ",null,null,null,null,null,null,"   ",null,null,null,null,"   ",null,null,null,null,null,null,null,"   ",null,null,null,null,null,null,null,null,null,null,null,null,null,null,null,null,null,null,null,null,null,null,null,null,null,null,null,null,null,null,null,null,null,null,null,null,null,null,null,null,null,null,"   "]
[38,null,null,null,null,null,null,null,null,null,null,null,"   ",null,null,null,null,null,null,"   ",null,null,null,null,"   ",null,null,null,null,null,null,null,"   ",null,null,null,null,null,null,null,null,null,null,null,null,null,null,null,null,null,null,null,null,null,null,null,null,null,null,null,null,null,null,null,null,null,null,null,null,null,null,null,null,null,null,"   "]
[39,null,null,null,null,null,null,null,null,null,null,null,"   ",null,null,null,null,null,null,"   ",null,null,null,null,"   ",null,null,null,null,null,null,null,"   ",null,null,null,null,null,null,null,null,null,null,null,null,null,null,null,null,null,null,null,null,null,null,null,null,null,null,null,null,null,null,null,null,null,null,null,null,null,null,null,null,null,null,"   "]
[40,null,null,null,null,null,null,null,null,null,null,null,"   ",null,null,null,null,null,null,"   ",null,null,null,null,"   ",null,null,null,null,null,null,null,"   ",null,null,null,null,null,null,null,null,null,null,null,null,null,null,null,null,null,null,null,null,null,null,null,null,null,null,null,null,null,null,null,null,null,null,null,null,null,null,null,null,null,null,"   "]
[41,null,null,null,null,null,null,null,null,null,null,null,"   ",null,null,null,null,null,null,"   ",null,null,null,null,"   ",null,null,null,null,null,null,null,"   ",null,null,null,null,null,null,null,null,null,null,null,null,null,null,null,null,null,null,null,null,null,null,null,null,null,null,null,null,null,null,null,null,null,null,null,null,null,null,null,null,null,null,"   "]
[42,null,null,null,null,null,null,null,null,null,null,null,"   ",null,null,null,null,null,null,"   ",null,null,null,null,"   ",null,null,null,null,null,null,null,"   ",null,null,null,null,null,null,null,null,null,null,null,null,null,null,null,null,null,null,null,null,null,null,null,null,null,null,null,null,null,null,null,null,null,null,null,null,null,null,null,null,null,null,"   "]
[43,null,null,null,null,null,null,null,null,null,null,null,"   ",null,null,null,null,null,null,"   ",null,null,null,null,"   ",null,null,null,null,null,null,null,"   ",null,null,null,null,null,null,null,null,null,null,null,null,null,null,null,null,null,null,null,null,null,null,null,null,null,null,null,null,null,null,null,null,null,null,null,null,null,null,null,null,null,null,"   "]
[44,null,null,null,null,null,null,null,null,null,null,null,"   ",null,null,null,null,null,null,"   ",null,null,null,null,"   ",null,null,null,null,null,null,null,"   ",null,null,null,null,null,null,null,null,null,null,null,null,null,null,null,null,null,null,null,null,null,null,null,null,null,null,null,null,null,null,null,null,null,null,null,null,null,null,null,null,null,null,"   "]
[45,null,null,null,null,null,null,null,null,null,null,null,"   ",null,null,null,null,null,null,"   ",null,null,null,null,"   ",null,null,null,null,null,null,null,"   ",null,null,null,null,null,null,null,null,null,null,null,null,null,null,null,null,null,null,null,null,null,null,null,null,null,null,null,null,null,null,null,null,null,null,null,null,null,null,null,null,null,null,"   "]
[46,null,null,null,null,null,null,null,null,null,null,null,"   ",null,null,null,null,null,null,"   ",null,null,null,null,"   ",null,null,null,null,null,null,null,"   ",null,null,null,null,null,null,null,null,null,null,null,null,null,null,null,null,null,null,null,null,null,null,null,null,null,null,null,null,null,null,null,null,null,null,null,null,null,null,null,null,null,null,"   "]
[47,null,null,null,null,null,null,null,null,null,null,null,"   ",null,null,null,null,null,null,"   ",null,null,null,null,"   ",null,null,null,null,null,null,null,"   ",null,null,null,null,null,null,null,null,null,null,null,null,null,null,null,null,null,null,null,null,null,null,null,null,null,null,null,null,null,null,null,null,null,null,null,null,null,null,null,null,null,null,"   "]
[48,null,null,null,null,null,null,null,null,null,null,null,"   ",null,null,null,null,null,null,"   ",null,null,null,null,"   ",null,null,null,null,null,null,null,"   ",null,null,null,null,null,null,null,null,null,null,null,null,null,null,null,null,null,null,null,null,null,null,null,null,null,null,null,null,null,null,null,null,null,null,null,null,null,null,null,null,null,null,"   "]
[49,null,null,null,null,null,null,null,null,null,null,null,"   ",null,null,null,null,null,null,"   ",null,null,null,null,"   ",null,null,null,null,null,null,null,"   ",null,null,null,null,null,null,null,null,null,null,null,null,null,null,null,null,null,null,null,null,null,null,null,null,null,null,null,null,null,null,null,null,null,null,null,null,null,null,null,null,null,null,"   "]
[50,null,null,null,null,null,null,null,null,null,null,null,"   ",null,null,null,null,null,null,"   ",null,null,null,null,"   ",null,null,null,null,null,null,null,"   ",null,null,null,null,null,null,null,null,null,null,null,null,null,null,null,null,null,null,null,null,null,null,null,null,null,null,null,null,null,null,null,null,null,null,null,null,null,null,null,null,null,null,"   "]
[51,null,null,null,null,null,null,null,null,null,null,null,"   ",null,null,null,null,null,null,"   ",null,null,null,null,"   ",null,null,null,null,null,null,null,"   ",null,null,null,null,null,null,null,null,null,null,null,null,null,null,null,null,null,null,null,null,null,null,null,null,null,null,null,null,null,null,null,null,null,null,null,null,null,null,null,null,null,null,"   "]
[52,null,null,null,null,null,null,null,null,null,null,null,"   ",null,null,null,null,null,null,"   ",null,null,null,null,"   ",null,null,null,null,null,null,null,"   ",null,null,null,null,null,null,null,null,null,null,null,null,null,null,null,null,null,null,null,null,null,null,null,null,null,null,null,null,null,null,null,null,null,null,null,null,null,null,null,null,null,null,"   "]
[53,null,null,null,null,null,null,null,null,null,null,null,"   ",null,null,null,null,null,null,"   ",null,null,null,null,"   ",null,null,null,null,null,null,null,"   ",null,null,null,null,null,null,null,null,null,null,null,null,null,null,null,null,null,null,null,null,null,null,null,null,null,null,null,null,null,null,null,null,null,null,null,null,null,null,null,null,null,null,"   "]
[54,null,null,null,null,null,null,null,null,null,null,null,"   ",null,null,null,null,null,null,"   ",null,null,null,null,"   ",null,null,null,null,null,null,null,"   ",null,null,null,null,null,null,null,null,null,null,null,null,null,null,null,null,null,null,null,null,null,null,null,null,null,null,null,null,null,null,null,null,null,null,null,null,null,null,null,null,null,null,"   "]
[55,null,null,null,null,null,null,null,null,null,null,null,"   ",null,null,null,null,null,null,"   ",null,null,null,null,"   ",null,null,null,null,null,null,null,"   ",null,null,null,null,null,null,null,null,null,null,null,null,null,null,null,null,null,null,null,null,null,null,null,null,null,null,null,null,null,null,null,null,null,null,null,null,null,null,null,null,null,null,"   "]
[56,null,null,null,null,null,null,null,null,null,null,null,"   ",null,null,null,null,null,null,"   ",null,null,null,null,"   ",null,null,null,null,null,null,null,"   ",null,null,null,null,null,null,null,null,null,null,null,null,null,null,null,null,null,null,null,null,null,null,null,null,null,null,null,null,null,null,null,null,null,null,null,null,null,null,null,null,null,null,"   "]
[57,null,null,null,null,null,null,null,null,null,null,null,"   ",null,null,null,null,null,null,"   ",null,null,null,null,"   ",null,null,null,null,null,null,null,"   ",null,null,null,null,null,null,null,null,null,null,null,null,null,null,null,null,null,null,null,null,null,null,null,null,null,null,null,null,null,null,null,null,null,null,null,null,null,null,null,null,null,null,"   "]
[58,null,null,null,null,null,null,null,null,null,null,null,"   ",null,null,null,null,null,null,"   ",null,null,null,null,"   ",null,null,null,null,null,null,null,"   ",null,null,null,null,null,null,null,null,null,null,null,null,null,null,null,null,null,null,null,null,null,null,null,null,null,null,null,null,null,null,null,null,null,null,null,null,null,null,null,null,null,null,"   "]
[59,null,null,null,null,null,null,null,null,null,null,null,"   ",null,null,null,null,null,null,"   ",null,null,null,null,"   ",null,null,null,null,null,null,null,"   ",null,null,null,null,null,null,null,null,null,null,null,null,null,null,null,null,null,null,null,null,null,null,null,null,null,null,null,null,null,null,null,null,null,null,null,null,null,null,null,null,null,null,"   "]
[60,null,null,null,null,null,null,null,null,null,null,null,"   ",null,null,null,null,null,null,"   ",null,null,null,null,"   ",null,null,null,null,null,null,null,"   ",null,null,null,null,null,null,null,null,null,null,null,null,null,null,null,null,null,null,null,null,null,null,null,null,null,null,null,null,null,null,null,null,null,null,null,null,null,null,null,null,null,null,"   "]
[61,null,null,null,null,null,null,null,null,null,null,null,"   ",null,null,null,null,null,null,"   ",null,null,null,null,"   ",null,null,null,null,null,null,null,"   ",null,null,null,null,null,null,null,null,null,null,null,null,null,null,null,null,null,null,null,null,null,null,null,null,null,null,null,null,null,null,null,null,null,null,null,null,null,null,null,null,null,null,"   "]
[62,null,null,null,null,null,null,null,null,null,null,null,"   ",null,null,null,null,null,null,"   ",null,null,null,null,"   ",null,null,null,null,null,null,null,"   ",null,null,null,null,null,null,null,null,null,null,null,null,null,null,null,null,null,null,null,null,null,null,null,null,null,null,null,null,null,null,null,null,null,null,null,null,null,null,null,null,null,null,"   "]
[63,null,null,null,null,null,null,null,null,null,null,null,"   ",null,null,null,null,null,null,"   ",null,null,null,null,"   ",null,null,null,null,null,null,null,"   ",null,null,null,null,null,null,null,null,null,null,null,null,null,null,null,null,null,null,null,null,null,null,null,null,null,null,null,null,null,null,null,null,null,null,null,null,null,null,null,null,null,null,"   "]
[64,null,null,null,null,null,null,null,null,null,null,null,"   ",null,null,null,null,null,null,"   ",null,null,null,null,"   ",null,null,null,null,null,null,null,"   ",null,null,null,null,null,null,null,null,null,null,null,null,null,null,null,null,null,null,null,null,null,null,null,null,null,null,null,null,null,null,null,null,null,null,null,null,null,null,null,null,null,null,"   "]
[65,null,null,null,null,null,null,null,null,null,null,null,"   ",null,null,null,null,null,null,"   ",null,null,null,null,"   ",null,null,null,null,null,null,null,"   ",null,null,null,null,null,null,null,null,null,null,null,null,null,null,null,null,null,null,null,null,null,null,null,null,null,null,null,null,null,null,null,null,null,null,null,null,null,null,null,null,null,null,"   "]
[66,null,null,null,null,null,null,null,null,null,null,null,"   ",null,null,null,null,null,null,"   ",null,null,null,null,"   ",null,null,null,null,null,null,null,"   ",null,null,null,null,null,null,null,null,null,null,null,null,null,null,null,null,null,null,null,null,null,null,null,null,null,null,null,null,null,null,null,null,null,null,null,null,null,null,null,null,null,null,"   "]
[67,null,null,null,null,null,null,null,null,null,null,null,"   ",null,null,null,null,null,null,"   ",null,null,null,null,"   ",null,null,null,null,null,null,null,"   ",null,null,null,null,null,null,null,null,null,null,null,null,null,null,null,null,null,null,null,null,null,null,null,null,null,null,null,null,null,null,null,null,null,null,null,null,null,null,null,null,null,null,"   "]
[68,null,null,null,null,null,null,null,null,null,null,null,"   ",null,null,null,null,null,null,"   ",null,null,null,null,"   ",null,null,null,null,null,null,null,"   ",null,null,null,null,null,null,null,null,null,null,null,null,null,null,null,null,null,null,null,null,null,null,null,null,null,null,null,null,null,null,null,null,null,null,null,null,null,null,null,null,null,null,"   "]
[69,null,null,null,null,null,null,null,null,null,null,null,"   ",null,null,null,null,null,null,"   ",null,null,null,null,"   ",null,null,null,null,null,null,null,"   ",null,null,null,null,null,null,null,null,null,null,null,null,null,null,null,null,null,null,null,null,null,null,null,null,null,null,null,null,null,null,null,null,null,null,null,null,null,null,null,null,null,null,"   "]
[70,null,null,null,null,null,null,null,null,null,null,null,"   ",null,null,null,null,null,null,"   ",null,null,null,null,"   ",null,null,null,null,null,null,null,"   ",null,null,null,null,null,null,null,null,null,null,null,null,null,null,null,null,null,null,null,null,null,null,null,null,null,null,null,null,null,null,null,null,null,null,null,null,null,null,null,null,null,null,"   "]
[71,null,null,null,null,null,null,null,null,null,null,null,"   ",null,null,null,null,null,null,"   ",null,null,null,null,"   ",null,null,null,null,null,null,null,"   ",null,null,null,null,null,null,null,null,null,null,null,null,null,null,null,null,null,null,null,null,null,null,null,null,null,null,null,null,null,null,null,null,null,null,null,null,null,null,null,null,null,null,"   "]
[72,null,null,null,null,null,null,null,null,null,null,null,"   ",null,null,null,null,null,null,"   ",null,null,null,null,"   ",null,null,null,null,null,null,null,"   ",null,null,null,null,null,null,null,null,null,null,null,null,null,null,null,null,null,null,null,null,null,null,null,null,null,null,null,null,null,null,null,null,null,null,null,null,null,null,null,null,null,null,"   "]
[73,null,null,null,null,null,null,null,null,null,null,null,"   ",null,null,null,null,null,null,"   ",null,null,null,null,"   ",null,null,null,null,null,null,null,"   ",null,null,null,null,null,null,null,null,null,null,null,null,null,null,null,null,null,null,null,null,null,null,null,null,null,null,null,null,null,null,null,null,null,null,null,null,null,null,null,null,null,null,"   "]
[74,null,null,null,null,null,null,null,null,null,null,null,"   ",null,null,null,null,null,null,"   ",null,null,null,null,"   ",null,null,null,null,null,null,null,"   ",null,null,null,null,null,null,null,null,null,null,null,null,null,null,null,null,null,null,null,null,null,null,null,null,null,null,null,null,null,null,null,null,null,null,null,null,null,null,null,null,null,null,"   "]
[75,null,null,null,null,null,null,null,null,null,null,null,"   ",null,null,null,null,null,null,"   ",null,null,null,null,"   ",null,null,null,null,null,null,null,"   ",null,null,null,null,null,null,null,null,null,null,null,null,null,null,null,null,null,null,null,null,null,null,null,null,null,null,null,null,null,null,null,null,null,null,null,null,null,null,null,null,null,null,"   "]
[76,null,null,null,null,null,null,null,null,null,null,null,"   ",null,null,null,null,null,null,"   ",null,null,null,null,"   ",null,null,null,null,null,null,null,"   ",null,null,null,null,null,null,null,null,null,null,null,null,null,null,null,null,null,null,null,null,null,null,null,null,null,null,null,null,null,null,null,null,null,null,null,null,null,null,null,null,null,null,"   "]
[77,null,null,null,null,null,null,null,null,null,null,null,"   ",null,null,null,null,null,null,"   ",null,null,null,null,"   ",null,null,null,null,null,null,null,"   ",null,null,null,null,null,null,null,null,null,null,null,null,null,null,null,null,null,null,null,null,null,null,null,null,null,null,null,null,null,null,null,null,null,null,null,null,null,null,null,null,null,null,"   "]
[78,null,null,null,null,null,null,null,null,null,null,null,"   ",null,null,null,null,null,null,"   ",null,null,null,null,"   ",null,null,null,null,null,null,null,"   ",null,null,null,null,null,null,null,null,null,null,null,null,null,null,null,null,null,null,null,null,null,null,null,null,null,null,null,null,null,null,null,null,null,null,null,null,null,null,null,null,null,null,"   "]
[79,null,null,null,null,null,null,null,null,null,null,null,"   ",null,null,null,null,null,null,"   ",null,null,null,null,"   ",null,null,null,null,null,null,null,"   ",null,null,null,null,null,null,null,null,null,null,null,null,null,null,null,null,null,null,null,null,null,null,null,null,null,null,null,null,null,null,null,null,null,null,null,null,null,null,null,null,null,null,"   "]
[80,null,null,null,null,null,null,null,null,null,null,null,"   ",null,null,null,null,null,null,"   ",null,null,null,null,"   ",null,null,null,null,null,null,null,"   ",null,null,null,null,null,null,null,null,null,null,null,null,null,null,null,null,null,null,null,null,null,null,null,null,null,null,null,null,null,null,null,null,null,null,null,null,null,null,null,null,null,null,"   "]
[81,null,null,null,null,null,null,null,null,null,null,null,"   ",null,null,null,null,null,null,"   ",null,null,null,null,"   ",null,null,null,null,null,null,null,"   ",null,null,null,null,null,null,null,null,null,null,null,null,null,null,null,null,null,null,null,null,null,null,null,null,null,null,null,null,null,null,null,null,null,null,null,null,null,null,null,null,null,null,"   "]
[82,null,null,null,null,null,null,null,null,null,null,null,"   ",null,null,null,null,null,null,"   ",null,null,null,null,"   ",null,null,null,null,null,null,null,"   ",null,null,null,null,null,null,null,null,null,null,null,null,null,null,null,null,null,null,null,null,null,null,null,null,null,null,null,null,null,null,null,null,null,null,null,null,null,null,null,null,null,null,"   "]
[83,null,null,null,null,null,null,null,null,null,null,null,"   ",null,null,null,null,null,null,"   ",null,null,null,null,"   ",null,null,null,null,null,null,null,"   ",null,null,null,null,null,null,null,null,null,null,null,null,null,null,null,null,null,null,null,null,null,null,null,null,null,null,null,null,null,null,null,null,null,null,null,null,null,null,null,null,null,null,"   "]
[84,null,null,null,null,null,null,null,null,null,null,null,"   ",null,null,null,null,null,null,"   ",null,null,null,null,"   ",null,null,null,null,null,null,null,"   ",null,null,null,null,null,null,null,null,null,null,null,null,null,null,null,null,null,null,null,null,null,null,null,null,null,null,null,null,null,null,null,null,null,null,null,null,null,null,null,null,null,null,"   "]
[85,null,null,null,null,null,null,null,null,null,null,null,"   ",null,null,null,null,null,null,"   ",null,null,null,null,"   ",null,null,null,null,null,null,null,"   ",null,null,null,null,null,null,null,null,null,null,null,null,null,null,null,null,null,null,null,null,null,null,null,null,null,null,null,null,null,null,null,null,null,null,null,null,null,null,null,null,null,null,"   "]
[86,null,null,null,null,null,null,null,null,null,null,null,"   ",null,null,null,null,null,null,"   ",null,null,null,null,"   ",null,null,null,null,null,null,null,"   ",null,null,null,null,null,null,null,null,null,null,null,null,null,null,null,null,null,null,null,null,null,null,null,null,null,null,null,null,null,null,null,null,null,null,null,null,null,null,null,null,null,null,"   "]
[87,null,null,null,null,null,null,null,null,null,null,null,"   ",null,null,null,null,null,null,"   ",null,null,null,null,"   ",null,null,null,null,null,null,null,"   ",null,null,null,null,null,null,null,null,null,null,null,null,null,null,null,null,null,null,null,null,null,null,null,null,null,null,null,null,null,null,null,null,null,null,null,null,null,null,null,null,null,null,"   "]
[88,null,null,null,null,null,null,null,null,null,null,null,"   ",null,null,null,null,null,null,"   ",null,null,null,null,"   ",null,null,null,null,null,null,null,"   ",null,null,null,null,null,null,null,null,null,null,null,null,null,null,null,null,null,null,null,null,null,null,null,null,null,null,null,null,null,null,null,null,null,null,null,null,null,null,null,null,null,null,"   "]
[89,null,null,null,null,null,null,null,null,null,null,null,"   ",null,null,null,null,null,null,"   ",null,null,null,null,"   ",null,null,null,null,null,null,null,"   ",null,null,null,null,null,null,null,null,null,null,null,null,null,null,null,null,null,null,null,null,null,null,null,null,null,null,null,null,null,null,null,null,null,null,null,null,null,null,null,null,null,null,"   "]
[90,null,null,null,null,null,null,null,null,null,null,null,"   ",null,null,null,null,null,null,"   ",null,null,null,null,"   ",null,null,null,null,null,null,null,"   ",null,null,null,null,null,null,null,null,null,null,null,null,null,null,null,null,null,null,null,null,null,null,null,null,null,null,null,null,null,null,null,null,null,null,null,null,null,null,null,null,null,null,"   "]
[91,null,null,null,null,null,null,null,null,null,null,null,"   ",null,null,null,null,null,null,"   ",null,null,null,null,"   ",null,null,null,null,null,null,null,"   ",null,null,null,null,null,null,null,null,null,null,null,null,null,null,null,null,null,null,null,null,null,null,null,null,null,null,null,null,null,null,null,null,null,null,null,null,null,null,null,null,null,null,"   "]
[92,null,null,null,null,null,null,null,null,null,null,null,"   ",null,null,null,null,null,null,"   ",null,null,null,null,"   ",null,null,null,null,null,null,null,"   ",null,null,null,null,null,null,null,null,null,null,null,null,null,null,null,null,null,null,null,null,null,null,null,null,null,null,null,null,null,null,null,null,null,null,null,null,null,null,null,null,null,null,"   "]
[93,null,null,null,null,null,null,null,null,null,null,null,"   ",null,null,null,null,null,null,"   ",null,null,null,null,"   ",null,null,null,null,null,null,null,"   ",null,null,null,null,null,null,null,null,null,null,null,null,null,null,null,null,null,null,null,null,null,null,null,null,null,null,null,null,null,null,null,null,null,null,null,null,null,null,null,null,null,null,"   "]
[94,null,null,null,null,null,null,null,null,null,null,null,"   ",null,null,null,null,null,null,"   ",null,null,null,null,"   ",null,null,null,null,null,null,null,"   ",null,null,null,null,null,null,null,null,null,null,null,null,null,null,null,null,null,null,null,null,null,null,null,null,null,null,null,null,null,null,null,null,null,null,null,null,null,null,null,null,null,null,"   "]
[95,null,null,null,null,null,null,null,null,null,null,null,"   ",null,null,null,null,null,null,"   ",null,null,null,null,"   ",null,null,null,null,null,null,null,"   ",null,null,null,null,null,null,null,null,null,null,null,null,null,null,null,null,null,null,null,null,null,null,null,null,null,null,null,null,null,null,null,null,null,null,null,null,null,null,null,null,null,null,"   "]
[96,null,null,null,null,null,null,null,null,null,null,null,"   ",null,null,null,null,null,null,"   ",null,null,null,null,"   ",null,null,null,null,null,null,null,"   ",null,null,null,null,null,null,null,null,null,null,null,null,null,null,null,null,null,null,null,null,null,null,null,null,null,null,null,null,null,null,null,null,null,null,null,null,null,null,null,null,null,null,"   "]
[97,null,null,null,null,null,null,null,null,null,null,null,"   ",null,null,null,null,null,null,"   ",null,null,null,null,"   ",null,null,null,null,null,null,null,"   ",null,null,null,null,null,null,null,null,null,null,null,null,null,null,null,null,null,null,null,null,null,null,null,null,null,null,null,null,null,null,null,null,null,null,null,null,null,null,null,null,null,null,"   "]
[98,null,null,null,null,null,null,null,null,null,null,null,"   ",null,null,null,null,null,null,"   ",null,null,null,null,"   ",null,null,null,null,null,null,null,"   ",null,null,null,null,null,null,null,null,null,null,null,null,null,null,null,null,null,null,null,null,null,null,null,null,null,null,null,null,null,null,null,null,null,null,null,null,null,null,null,null,null,null,"   "]
[99,null,null,null,null,null,null,null,null,null,null,null,"   ",null,null,null,null,null,null,"   ",null,null,null,null,"   ",null,null,null,null,null,null,null,"   ",null,null,null,null,null,null,null,null,null,null,null,null,null,null,null,null,null,null,null,null,null,null,null,null,null,null,null,null,null,null,null,null,null,null,null,null,null,null,null,null,null,null,"   "]
[100,null,null,null,null,null,null,null,null,null,null,null,"   ",null,null,null,null,null,null,"   ",null,null,null,null,"   ",null,null,null,null,null,null,null,"   ",null,null,null,null,null,null,null,null,null,null,null,null,null,null,null,null,null,null,null,null,null,null,null,null,null,null,null,null,null,null,null,null,null,null,null,null,null,null,null,null,null,null,"   "]
[101,null,null,null,null,null,null,null,null,null,null,null,"   ",null,null,null,null,null,null,"   ",null,null,null,null,"   ",null,null,null,null,null,null,null,"   ",null,null,null,null,null,null,null,null,null,null,null,null,null,null,null,null,null,null,null,null,null,null,null,null,null,null,null,null,null,null,null,null,null,null,null,null,null,null,null,null,null,null,"   "]
[102,null,null,null,null,null,null,null,null,null,null,null,"   ",null,null,null,null,null,null,"   ",null,null,null,null,"   ",null,null,null,null,null,null,null,"   ",null,null,null,null,null,null,null,null,null,null,null,null,null,null,null,null,null,null,null,null,null,null,null,null,null,null,null,null,null,null,null,null,null,null,null,null,null,null,null,null,null,null,"   "]
[103,null,null,null,null,null,null,null,null,null,null,null,"   ",null,null,null,null,null,null,"   ",null,null,null,null,"   ",null,null,null,null,null,null,null,"   ",null,null,null,null,null,null,null,null,null,null,null,null,null,null,null,null,null,null,null,null,null,null,null,null,null,null,null,null,null,null,null,null,null,null,null,null,null,null,null,null,null,null,"   "]
[104,null,null,null,null,null,null,null,null,null,null,null,"   ",null,null,null,null,null,null,"   ",null,null,null,null,"   ",null,null,null,null,null,null,null,"   ",null,null,null,null,null,null,null,null,null,null,null,null,null,null,null,null,null,null,null,null,null,null,null,null,null,null,null,null,null,null,null,null,null,null,null,null,null,null,null,null,null,null,"   "]
[105,null,null,null,null,null,null,null,null,null,null,null,"   ",null,null,null,null,null,null,"   ",null,null,null,null,"   ",null,null,null,null,null,null,null,"   ",null,null,null,null,null,null,null,null,null,null,null,null,null,null,null,null,null,null,null,null,null,null,null,null,null,null,null,null,null,null,null,null,null,null,null,null,null,null,null,null,null,null,"   "]
[106,null,null,null,null,null,null,null,null,null,null,null,"   ",null,null,null,null,null,null,"   ",null,null,null,null,"   ",null,null,null,null,null,null,null,"   ",null,null,null,null,null,null,null,null,null,null,null,null,null,null,null,null,null,null,null,null,null,null,null,null,null,null,null,null,null,null,null,null,null,null,null,null,null,null,null,null,null,null,"   "]
[107,null,null,null,null,null,null,null,null,null,null,null,"   ",null,null,null,null,null,null,"   ",null,null,null,null,"   ",null,null,null,null,null,null,null,"   ",null,null,null,null,null,null,null,null,null,null,null,null,null,null,null,null,null,null,null,null,null,null,null,null,null,null,null,null,null,null,null,null,null,null,null,null,null,null,null,null,null,null,"   "]
[108,null,null,null,null,null,null,null,null,null,null,null,"   ",null,null,null,null,null,null,"   ",null,null,null,null,"   ",null,null,null,null,null,null,null,"   ",null,null,null,null,null,null,null,null,null,null,null,null,null,null,null,null,null,null,null,null,null,null,null,null,null,null,null,null,null,null,null,null,null,null,null,null,null,null,null,null,null,null,"   "]
[109,null,null,null,null,null,null,null,null,null,null,null,"   ",null,null,null,null,null,null,"   ",null,null,null,null,"   ",null,null,null,null,null,null,null,"   ",null,null,null,null,null,null,null,null,null,null,null,null,null,null,null,null,null,null,null,null,null,null,null,null,null,null,null,null,null,null,null,null,null,null,null,null,null,null,null,null,null,null,"   "]
[110,null,null,null,null,null,null,null,null,null,null,null,"   ",null,null,null,null,null,null,"   ",null,null,null,null,"   ",null,null,null,null,null,null,null,"   ",null,null,null,null,null,null,null,null,null,null,null,null,null,null,null,null,null,null,null,null,null,null,null,null,null,null,null,null,null,null,null,null,null,null,null,null,null,null,null,null,null,null,"   "]
[111,null,null,null,null,null,null,null,null,null,null,null,"   ",null,null,null,null,null,null,"   ",null,null,null,null,"   ",null,null,null,null,null,null,null,"   ",null,null,null,null,null,null,null,null,null,null,null,null,null,null,null,null,null,null,null,null,null,null,null,null,null,null,null,null,null,null,null,null,null,null,null,null,null,null,null,null,null,null,"   "]
[112,null,null,null,null,null,null,null,null,null,null,null,"   ",null,null,null,null,null,null,"   ",null,null,null,null,"   ",null,null,null,null,null,null,null,"   ",null,null,null,null,null,null,null,null,null,null,null,null,null,null,null,null,null,null,null,null,null,null,null,null,null,null,null,null,null,null,null,null,null,null,null,null,null,null,null,null,null,null,"   "]
[113,null,null,null,null,null,null,null,null,null,null,null,"   ",null,null,null,null,null,null,"   ",null,null,null,null,"   ",null,null,null,null,null,null,null,"   ",null,null,null,null,null,null,null,null,null,null,null,null,null,null,null,null,null,null,null,null,null,null,null,null,null,null,null,null,null,null,null,null,null,null,null,null,null,null,null,null,null,null,"   "]
[114,null,null,null,null,null,null,null,null,null,null,null,"   ",null,null,null,null,null,null,"   ",null,null,null,null,"   ",null,null,null,null,null,null,null,"   ",null,null,null,null,null,null,null,null,null,null,null,null,null,null,null,null,null,null,null,null,null,null,null,null,null,null,null,null,null,null,null,null,null,null,null,null,null,null,null,null,null,null,"   "]
[115,null,null,null,null,null,null,null,null,null,null,null,"   ",null,null,null,null,null,null,"   ",null,null,null,null,"   ",null,null,null,null,null,null,null,"   ",null,null,null,null,null,null,null,null,null,null,null,null,null,null,null,null,null,null,null,null,null,null,null,null,null,null,null,null,null,null,null,null,null,null,null,null,null,null,null,null,null,null,"   "]
[116,null,null,null,null,null,null,null,null,null,null,null,"   ",null,null,null,null,null,null,"   ",null,null,null,null,"   ",null,null,null,null,null,null,null,"   ",null,null,null,null,null,null,null,null,null,null,null,null,null,null,null,null,null,null,null,null,null,null,null,null,null,null,null,null,null,null,null,null,null,null,null,null,null,null,null,null,null,null,"   "]
[117,null,null,null,null,null,null,null,null,null,null,null,"   ",null,null,null,null,null,null,"   ",null,null,null,null,"   ",null,null,null,null,null,null,null,"   ",null,null,null,null,null,null,null,null,null,null,null,null,null,null,null,null,null,null,null,null,null,null,null,null,null,null,null,null,null,null,null,null,null,null,null,null,null,null,null,null,null,null,"   "]
[118,null,null,null,null,null,null,null,null,null,null,null,"   ",null,null,null,null,null,null,"   ",null,null,null,null,"   ",null,null,null,null,null,null,null,"   ",null,null,null,null,null,null,null,null,null,null,null,null,null,null,null,null,null,null,null,null,null,null,null,null,null,null,null,null,null,null,null,null,null,null,null,null,null,null,null,null,null,null,"   "]
[119,null,null,null,null,null,null,null,null,null,null,null,"   ",null,null,null,null,null,null,"   ",null,null,null,null,"   ",null,null,null,null,null,null,null,"   ",null,null,null,null,null,null,null,null,null,null,null,null,null,null,null,null,null,null,null,null,null,null,null,null,null,null,null,null,null,null,null,null,null,null,null,null,null,null,null,null,null,null,"   "]
[120,null,null,null,null,null,null,null,null,null,null,null,"   ",null,null,null,null,null,null,"   ",null,null,null,null,"   ",null,null,null,null,null,null,null,"   ",null,null,null,null,null,null,null,null,null,null,null,null,null,null,null,null,null,null,null,null,null,null,null,null,null,null,null,null,null,null,null,null,null,null,null,null,null,null,null,null,null,null,"   "]
[121,null,null,null,null,null,null,null,null,null,null,null,"   ",null,null,null,null,null,null,"   ",null,null,null,null,"   ",null,null,null,null,null,null,null,"   ",null,null,null,null,null,null,null,null,null,null,null,null,null,null,null,null,null,null,null,null,null,null,null,null,null,null,null,null,null,null,null,null,null,null,null,null,null,null,null,null,null,null,"   "]
[122,null,null,null,null,null,null,null,null,null,null,null,"   ",null,null,null,null,null,null,"   ",null,null,null,null,"   ",null,null,null,null,null,null,null,"   ",null,null,null,null,null,null,null,null,null,null,null,null,null,null,null,null,null,null,null,null,null,null,null,null,null,null,null,null,null,null,null,null,null,null,null,null,null,null,null,null,null,null,"   "]
[123,null,null,null,null,null,null,null,null,null,null,null,"   ",null,null,null,null,null,null,"   ",null,null,null,null,"   ",null,null,null,null,null,null,null,"   ",null,null,null,null,null,null,null,null,null,null,null,null,null,null,null,null,null,null,null,null,null,null,null,null,null,null,null,null,null,null,null,null,null,null,null,null,null,null,null,null,null,null,"   "]
[124,null,null,null,null,null,null,null,null,null,null,null,"   ",null,null,null,null,null,null,"   ",null,null,null,null,"   ",null,null,null,null,null,null,null,"   ",null,null,null,null,null,null,null,null,null,null,null,null,null,null,null,null,null,null,null,null,null,null,null,null,null,null,null,null,null,null,null,null,null,null,null,null,null,null,null,null,null,null,"   "]
[125,null,null,null,null,null,null,null,null,null,null,null,"   ",null,null,null,null,null,null,"   ",null,null,null,null,"   ",null,null,null,null,null,null,null,"   ",null,null,null,null,null,null,null,null,null,null,null,null,null,null,null,null,null,null,null,null,null,null,null,null,null,null,null,null,null,null,null,null,null,null,null,null,null,null,null,null,null,null,"   "]
[126,null,null,null,null,null,null,null,null,null,null,null,"   ",null,null,null,null,null,null,"   ",null,null,null,null,"   ",null,null,null,null,null,null,null,"   ",null,null,null,null,null,null,null,null,null,null,null,null,null,null,null,null,null,null,null,null,null,null,null,null,null,null,null,null,null,null,null,null,null,null,null,null,null,null,null,null,null,null,"   "]
[127,null,null,null,null,null,null,null,null,null,null,null,"   ",null,null,null,null,null,null,"   ",null,null,null,null,"   ",null,null,null,null,null,null,null,"   ",null,null,null,null,null,null,null,null,null,null,null,null,null,null,null,null,null,null,null,null,null,null,null,null,null,null,null,null,null,null,null,null,null,null,null,null,null,null,null,null,null,null,"   "]
[128,null,null,null,null,null,null,null,null,null,null,null,"   ",null,null,null,null,null,null,"   ",null,null,null,null,"   ",null,null,null,null,null,null,null,"   ",null,null,null,null,null,null,null,null,null,null,null,null,null,null,null,null,null,null,null,null,null,null,null,null,null,null,null,null,null,null,null,null,null,null,null,null,null,null,null,null,null,null,"   "]
[129,null,null,null,null,null,null,null,null,null,null,null,"   ",null,null,null,null,null,null,"   ",null,null,null,null,"   ",null,null,null,null,null,null,null,"   ",null,null,null,null,null,null,null,null,null,null,null,null,null,null,null,null,null,null,null,null,null,null,null,null,null,null,null,null,null,null,null,null,null,null,null,null,null,null,null,null,null,null,"   "]
[130,null,null,null,null,null,null,null,null,null,null,null,"   ",null,null,null,null,null,null,"   ",null,null,null,null,"   ",null,null,null,null,null,null,null,"   ",null,null,null,null,null,null,null,null,null,null,null,null,null,null,null,null,null,null,null,null,null,null,null,null,null,null,null,null,null,null,null,null,null,null,null,null,null,null,null,null,null,null,"   "]
[131,null,null,null,null,null,null,null,null,null,null,null,"   ",null,null,null,null,null,null,"   ",null,null,null,null,"   ",null,null,null,null,null,null,null,"   ",null,null,null,null,null,null,null,null,null,null,null,null,null,null,null,null,null,null,null,null,null,null,null,null,null,null,null,null,null,null,null,null,null,null,null,null,null,null,null,null,null,null,"   "]
[132,null,null,null,null,null,null,null,null,null,null,null,"   ",null,null,null,null,null,null,"   ",null,null,null,null,"   ",null,null,null,null,null,null,null,"   ",null,null,null,null,null,null,null,null,null,null,null,null,null,null,null,null,null,null,null,null,null,null,null,null,null,null,null,null,null,null,null,null,null,null,null,null,null,null,null,null,null,null,"   "]
[133,null,null,null,null,null,null,null,null,null,null,null,"   ",null,null,null,null,null,null,"   ",null,null,null,null,"   ",null,null,null,null,null,null,null,"   ",null,null,null,null,null,null,null,null,null,null,null,null,null,null,null,null,null,null,null,null,null,null,null,null,null,null,null,null,null,null,null,null,null,null,null,null,null,null,null,null,null,null,"   "]
[134,null,null,null,null,null,null,null,null,null,null,null,"   ",null,null,null,null,null,null,"   ",null,null,null,null,"   ",null,null,null,null,null,null,null,"   ",null,null,null,null,null,null,null,null,null,null,null,null,null,null,null,null,null,null,null,null,null,null,null,null,null,null,null,null,null,null,null,null,null,null,null,null,null,null,null,null,null,null,"   "]
[135,null,null,null,null,null,null,null,null,null,null,null,"   ",null,null,null,null,null,null,"   ",null,null,null,null,"   ",null,null,null,null,null,null,null,"   ",null,null,null,null,null,null,null,null,null,null,null,null,null,null,null,null,null,null,null,null,null,null,null,null,null,null,null,null,null,null,null,null,null,null,null,null,null,null,null,null,null,null,"   "]
[136,null,null,null,null,null,null,null,null,null,null,null,"   ",null,null,null,null,null,null,"   ",null,null,null,null,"   ",null,null,null,null,null,null,null,"   ",null,null,null,null,null,null,null,null,null,null,null,null,null,null,null,null,null,null,null,null,null,null,null,null,null,null,null,null,null,null,null,null,null,null,null,null,null,null,null,null,null,null,"   "]
[137,null,null,null,null,null,null,null,null,null,null,null,"   ",null,null,null,null,null,null,"   ",null,null,null,null,"   ",null,null,null,null,null,null,null,"   ",null,null,null,null,null,null,null,null,null,null,null,null,null,null,null,null,null,null,null,null,null,null,null,null,null,null,null,null,null,null,null,null,null,null,null,null,null,null,null,null,null,null,"   "]
[138,null,null,null,null,null,null,null,null,null,null,null,"   ",null,null,null,null,null,null,"   ",null,null,null,null,"   ",null,null,null,null,null,null,null,"   ",null,null,null,null,null,null,null,null,null,null,null,null,null,null,null,null,null,null,null,null,null,null,null,null,null,null,null,null,null,null,null,null,null,null,null,null,null,null,null,null,null,null,"   "]
[139,null,null,null,null,null,null,null,null,null,null,null,"   ",null,null,null,null,null,null,"   ",null,null,null,null,"   ",null,null,null,null,null,null,null,"   ",null,null,null,null,null,null,null,null,null,null,null,null,null,null,null,null,null,null,null,null,null,null,null,null,null,null,null,null,null,null,null,null,null,null,null,null,null,null,null,null,null,null,"   "]
[140,null,null,null,null,null,null,null,null,null,null,null,"   ",null,null,null,null,null,null,"   ",null,null,null,null,"   ",null,null,null,null,null,null,null,"   ",null,null,null,null,null,null,null,null,null,null,null,null,null,null,null,null,null,null,null,null,null,null,null,null,null,null,null,null,null,null,null,null,null,null,null,null,null,null,null,null,null,null,"   "]
[141,null,null,null,null,null,null,null,null,null,null,null,"   ",null,null,null,null,null,null,"   ",null,null,null,null,"   ",null,null,null,null,null,null,null,"   ",null,null,null,null,null,null,null,null,null,null,null,null,null,null,null,null,null,null,null,null,null,null,null,null,null,null,null,null,null,null,null,null,null,null,null,null,null,null,null,null,null,null,"   "]
[142,null,null,null,null,null,null,null,null,null,null,null,"   ",null,null,null,null,null,null,"   ",null,null,null,null,"   ",null,null,null,null,null,null,null,"   ",null,null,null,null,null,null,null,null,null,null,null,null,null,null,null,null,null,null,null,null,null,null,null,null,null,null,null,null,null,null,null,null,null,null,null,null,null,null,null,null,null,null,"   "]
[143,null,null,null,null,null,null,null,null,null,null,null,"   ",null,null,null,null,null,null,"   ",null,null,null,null,"   ",null,null,null,null,null,null,null,"   ",null,null,null,null,null,null,null,null,null,null,null,null,null,null,null,null,null,null,null,null,null,null,null,null,null,null,null,null,null,null,null,null,null,null,null,null,null,null,null,null,null,null,"   "]
[144,null,null,null,null,null,null,null,null,null,null,null,"   ",null,null,null,null,null,null,"   ",null,null,null,null,"   ",null,null,null,null,null,null,null,"   ",null,null,null,null,null,null,null,null,null,null,null,null,null,null,null,null,null,null,null,null,null,null,null,null,null,null,null,null,null,null,null,null,null,null,null,null,null,null,null,null,null,null,"   "]
[145,null,null,null,null,null,null,null,null,null,null,null,"   ",null,null,null,null,null,null,"   ",null,null,null,null,"   ",null,null,null,null,null,null,null,"   ",null,null,null,null,null,null,null,null,null,null,null,null,null,null,null,null,null,null,null,null,null,null,null,null,null,null,null,null,null,null,null,null,null,null,null,null,null,null,null,null,null,null,"   "]
[146,null,null,null,null,null,null,null,null,null,null,null,"   ",null,null,null,null,null,null,"   ",null,null,null,null,"   ",null,null,null,null,null,null,null,"   ",null,null,null,null,null,null,null,null,null,null,null,null,null,null,null,null,null,null,null,null,null,null,null,null,null,null,null,null,null,null,null,null,null,null,null,null,null,null,null,null,null,null,"   "]
[147,null,null,null,null,null,null,null,null,null,null,null,"   ",null,null,null,null,null,null,"   ",null,null,null,null,"   ",null,null,null,null,null,null,null,"   ",null,null,null,null,null,null,null,null,null,null,null,null,null,null,null,null,null,null,null,null,null,null,null,null,null,null,null,null,null,null,null,null,null,null,null,null,null,null,null,null,null,null,"   "]
[148,null,null,null,null,null,null,null,null,null,null,null,"   ",null,null,null,null,null,null,"   ",null,null,null,null,"   ",null,null,null,null,null,null,null,"   ",null,null,null,null,null,null,null,null,null,null,null,null,null,null,null,null,null,null,null,null,null,null,null,null,null,null,null,null,null,null,null,null,null,null,null,null,null,null,null,null,null,null,"   "]
[149,null,null,null,null,null,null,null,null,null,null,null,"   ",null,null,null,null,null,null,"   ",null,null,null,null,"   ",null,null,null,null,null,null,null,"   ",null,null,null,null,null,null,null,null,null,null,null,null,null,null,null,null,null,null,null,null,null,null,null,null,null,null,null,null,null,null,null,null,null,null,null,null,null,null,null,null,null,null,"   "]
[150,null,null,null,null,null,null,null,null,null,null,null,"   ",null,null,null,null,null,null,"   ",null,null,null,null,"   ",null,null,null,null,null,null,null,"   ",null,null,null,null,null,null,null,null,null,null,null,null,null,null,null,null,null,null,null,null,null,null,null,null,null,null,null,null,null,null,null,null,null,null,null,null,null,null,null,null,null,null,"   "]
[151,null,null,null,null,null,null,null,null,null,null,null,"   ",null,null,null,null,null,null,"   ",null,null,null,null,"   ",null,null,null,null,null,null,null,"   ",null,null,null,null,null,null,null,null,null,null,null,null,null,null,null,null,null,null,null,null,null,null,null,null,null,null,null,null,null,null,null,null,null,null,null,null,null,null,null,null,null,null,"   "]
[152,null,null,null,null,null,null,null,null,null,null,null,"   ",null,null,null,null,null,null,"   ",null,null,null,null,"   ",null,null,null,null,null,null,null,"   ",null,null,null,null,null,null,null,null,null,null,null,null,null,null,null,null,null,null,null,null,null,null,null,null,null,null,null,null,null,null,null,null,null,null,null,null,null,null,null,null,null,null,"   "]
[153,null,null,null,null,null,null,null,null,null,null,null,"   ",null,null,null,null,null,null,"   ",null,null,null,null,"   ",null,null,null,null,null,null,null,"   ",null,null,null,null,null,null,null,null,null,null,null,null,null,null,null,null,null,null,null,null,null,null,null,null,null,null,null,null,null,null,null,null,null,null,null,null,null,null,null,null,null,null,"   "]
[154,null,null,null,null,null,null,null,null,null,null,null,"   ",null,null,null,null,null,null,"   ",null,null,null,null,"   ",null,null,null,null,null,null,null,"   ",null,null,null,null,null,null,null,null,null,null,null,null,null,null,null,null,null,null,null,null,null,null,null,null,null,null,null,null,null,null,null,null,null,null,null,null,null,null,null,null,null,null,"   "]
[155,null,null,null,null,null,null,null,null,null,null,null,"   ",null,null,null,null,null,null,"   ",null,null,null,null,"   ",null,null,null,null,null,null,null,"   ",null,null,null,null,null,null,null,null,null,null,null,null,null,null,null,null,null,null,null,null,null,null,null,null,null,null,null,null,null,null,null,null,null,null,null,null,null,null,null,null,null,null,"   "]
[156,null,null,null,null,null,null,null,null,null,null,null,"   ",null,null,null,null,null,null,"   ",null,null,null,null,"   ",null,null,null,null,null,null,null,"   ",null,null,null,null,null,null,null,null,null,null,null,null,null,null,null,null,null,null,null,null,null,null,null,null,null,null,null,null,null,null,null,null,null,null,null,null,null,null,null,null,null,null,"   "]
[157,null,null,null,null,null,null,null,null,null,null,null,"   ",null,null,null,null,null,null,"   ",null,null,null,null,"   ",null,null,null,null,null,null,null,"   ",null,null,null,null,null,null,null,null,null,null,null,null,null,null,null,null,null,null,null,null,null,null,null,null,null,null,null,null,null,null,null,null,null,null,null,null,null,null,null,null,null,null,"   "]
[158,null,null,null,null,null,null,null,null,null,null,null,"   ",null,null,null,null,null,null,"   ",null,null,null,null,"   ",null,null,null,null,null,null,null,"   ",null,null,null,null,null,null,null,null,null,null,null,null,null,null,null,null,null,null,null,null,null,null,null,null,null,null,null,null,null,null,null,null,null,null,null,null,null,null,null,null,null,null,"   "]
[159,null,null,null,null,null,null,null,null,null,null,null,"   ",null,null,null,null,null,null,"   ",null,null,null,null,"   ",null,null,null,null,null,null,null,"   ",null,null,null,null,null,null,null,null,null,null,null,null,null,null,null,null,null,null,null,null,null,null,null,null,null,null,null,null,null,null,null,null,null,null,null,null,null,null,null,null,null,null,"   "]
[160,null,null,null,null,null,null,null,null,null,null,null,"   ",null,null,null,null,null,null,"   ",null,null,null,null,"   ",null,null,null,null,null,null,null,"   ",null,null,null,null,null,null,null,null,null,null,null,null,null,null,null,null,null,null,null,null,null,null,null,null,null,null,null,null,null,null,null,null,null,null,null,null,null,null,null,null,null,null,"   "]
[161,null,null,null,null,null,null,null,null,null,null,null,"   ",null,null,null,null,null,null,"   ",null,null,null,null,"   ",null,null,null,null,null,null,null,"   ",null,null,null,null,null,null,null,null,null,null,null,null,null,null,null,null,null,null,null,null,null,null,null,null,null,null,null,null,null,null,null,null,null,null,null,null,null,null,null,null,null,null,"   "]
[162,null,null,null,null,null,null,null,null,null,null,null,"   ",null,null,null,null,null,null,"   ",null,null,null,null,"   ",null,null,null,null,null,null,null,"   ",null,null,null,null,null,null,null,null,null,null,null,null,null,null,null,null,null,null,null,null,null,null,null,null,null,null,null,null,null,null,null,null,null,null,null,null,null,null,null,null,null,null,"   "]
[163,null,null,null,null,null,null,null,null,null,null,null,"   ",null,null,null,null,null,null,"   ",null,null,null,null,"   ",null,null,null,null,null,null,null,"   ",null,null,null,null,null,null,null,null,null,null,null,null,null,null,null,null,null,null,null,null,null,null,null,null,null,null,null,null,null,null,null,null,null,null,null,null,null,null,null,null,null,null,"   "]
[164,null,null,null,null,null,null,null,null,null,null,null,"   ",null,null,null,null,null,null,"   ",null,null,null,null,"   ",null,null,null,null,null,null,null,"   ",null,null,null,null,null,null,null,null,null,null,null,null,null,null,null,null,null,null,null,null,null,null,null,null,null,null,null,null,null,null,null,null,null,null,null,null,null,null,null,null,null,null,"   "]
[165,null,null,null,null,null,null,null,null,null,null,null,"   ",null,null,null,null,null,null,"   ",null,null,null,null,"   ",null,null,null,null,null,null,null,"   ",null,null,null,null,null,null,null,null,null,null,null,null,null,null,null,null,null,null,null,null,null,null,null,null,null,null,null,null,null,null,null,null,null,null,null,null,null,null,null,null,null,null,"   "]
[166,null,null,null,null,null,null,null,null,null,null,null,"   ",null,null,null,null,null,null,"   ",null,null,null,null,"   ",null,null,null,null,null,null,null,"   ",null,null,null,null,null,null,null,null,null,null,null,null,null,null,null,null,null,null,null,null,null,null,null,null,null,null,null,null,null,null,null,null,null,null,null,null,null,null,null,null,null,null,"   "]
[167,null,null,null,null,null,null,null,null,null,null,null,"   ",null,null,null,null,null,null,"   ",null,null,null,null,"   ",null,null,null,null,null,null,null,"   ",null,null,null,null,null,null,null,null,null,null,null,null,null,null,null,null,null,null,null,null,null,null,null,null,null,null,null,null,null,null,null,null,null,null,null,null,null,null,null,null,null,null,"   "]
[168,null,null,null,null,null,null,null,null,null,null,null,"   ",null,null,null,null,null,null,"   ",null,null,null,null,"   ",null,null,null,null,null,null,null,"   ",null,null,null,null,null,null,null,null,null,null,null,null,null,null,null,null,null,null,null,null,null,null,null,null,null,null,null,null,null,null,null,null,null,null,null,null,null,null,null,null,null,null,"   "]
[169,null,null,null,null,null,null,null,null,null,null,null,"   ",null,null,null,null,null,null,"   ",null,null,null,null,"   ",null,null,null,null,null,null,null,"   ",null,null,null,null,null,null,null,null,null,null,null,null,null,null,null,null,null,null,null,null,null,null,null,null,null,null,null,null,null,null,null,null,null,null,null,null,null,null,null,null,null,null,"   "]
[170,null,null,null,null,null,null,null,null,null,null,null,"   ",null,null,null,null,null,null,"   ",null,null,null,null,"   ",null,null,null,null,null,null,null,"   ",null,null,null,null,null,null,null,null,null,null,null,null,null,null,null,null,null,null,null,null,null,null,null,null,null,null,null,null,null,null,null,null,null,null,null,null,null,null,null,null,null,null,"   "]
[171,null,null,null,null,null,null,null,null,null,null,null,"   ",null,null,null,null,null,null,"   ",null,null,null,null,"   ",null,null,null,null,null,null,null,"   ",null,null,null,null,null,null,null,null,null,null,null,null,null,null,null,null,null,null,null,null,null,null,null,null,null,null,null,null,null,null,null,null,null,null,null,null,null,null,null,null,null,null,"   "]
[172,null,null,null,null,null,null,null,null,null,null,null,"   ",null,null,null,null,null,null,"   ",null,null,null,null,"   ",null,null,null,null,null,null,null,"   ",null,null,null,null,null,null,null,null,null,null,null,null,null,null,null,null,null,null,null,null,null,null,null,null,null,null,null,null,null,null,null,null,null,null,null,null,null,null,null,null,null,null,"   "]
[173,null,null,null,null,null,null,null,null,null,null,null,"   ",null,null,null,null,null,null,"   ",null,null,null,null,"   ",null,null,null,null,null,null,null,"   ",null,null,null,null,null,null,null,null,null,null,null,null,null,null,null,null,null,null,null,null,null,null,null,null,null,null,null,null,null,null,null,null,null,null,null,null,null,null,null,null,null,null,"   "]
[174,null,null,null,null,null,null,null,null,null,null,null,"   ",null,null,null,null,null,null,"   ",null,null,null,null,"   ",null,null,null,null,null,null,null,"   ",null,null,null,null,null,null,null,null,null,null,null,null,null,null,null,null,null,null,null,null,null,null,null,null,null,null,null,null,null,null,null,null,null,null,null,null,null,null,null,null,null,null,"   "]
[175,null,null,null,null,null,null,null,null,null,null,null,"   ",null,null,null,null,null,null,"   ",null,null,null,null,"   ",null,null,null,null,null,null,null,"   ",null,null,null,null,null,null,null,null,null,null,null,null,null,null,null,null,null,null,null,null,null,null,null,null,null,null,null,null,null,null,null,null,null,null,null,null,null,null,null,null,null,null,"   "]
[176,null,null,null,null,null,null,null,null,null,null,null,"   ",null,null,null,null,null,null,"   ",null,null,null,null,"   ",null,null,null,null,null,null,null,"   ",null,null,null,null,null,null,null,null,null,null,null,null,null,null,null,null,null,null,null,null,null,null,null,null,null,null,null,null,null,null,null,null,null,null,null,null,null,null,null,null,null,null,"   "]
[177,null,null,null,null,null,null,null,null,null,null,null,"   ",null,null,null,null,null,null,"   ",null,null,null,null,"   ",null,null,null,null,null,null,null,"   ",null,null,null,null,null,null,null,null,null,null,null,null,null,null,null,null,null,null,null,null,null,null,null,null,null,null,null,null,null,null,null,null,null,null,null,null,null,null,null,null,null,null,"   "]
[178,null,null,null,null,null,null,null,null,null,null,null,"   ",null,null,null,null,null,null,"   ",null,null,null,null,"   ",null,null,null,null,null,null,null,"   ",null,null,null,null,null,null,null,null,null,null,null,null,null,null,null,null,null,null,null,null,null,null,null,null,null,null,null,null,null,null,null,null,null,null,null,null,null,null,null,null,null,null,"   "]
[179,null,null,null,null,null,null,null,null,null,null,null,"   ",null,null,null,null,null,null,"   ",null,null,null,null,"   ",null,null,null,null,null,null,null,"   ",null,null,null,null,null,null,null,null,null,null,null,null,null,null,null,null,null,null,null,null,null,null,null,null,null,null,null,null,null,null,null,null,null,null,null,null,null,null,null,null,null,null,"   "]
[180,null,null,null,null,null,null,null,null,null,null,null,"   ",null,null,null,null,null,null,"   ",null,null,null,null,"   ",null,null,null,null,null,null,null,"   ",null,null,null,null,null,null,null,null,null,null,null,null,null,null,null,null,null,null,null,null,null,null,null,null,null,null,null,null,null,null,null,null,null,null,null,null,null,null,null,null,null,null,"   "]
[181,null,null,null,null,null,null,null,null,null,null,null,"   ",null,null,null,null,null,null,"   ",null,null,null,null,"   ",null,null,null,null,null,null,null,"   ",null,null,null,null,null,null,null,null,null,null,null,null,null,null,null,null,null,null,null,null,null,null,null,null,null,null,null,null,null,null,null,null,null,null,null,null,null,null,null,null,null,null,"   "]
[182,null,null,null,null,null,null,null,null,null,null,null,"   ",null,null,null,null,null,null,"   ",null,null,null,null,"   ",null,null,null,null,null,null,null,"   ",null,null,null,null,null,null,null,null,null,null,null,null,null,null,null,null,null,null,null,null,null,null,null,null,null,null,null,null,null,null,null,null,null,null,null,null,null,null,null,null,null,null,"   "]
[183,null,null,null,null,null,null,null,null,null,null,null,"   ",null,null,null,null,null,null,"   ",null,null,null,null,"   ",null,null,null,null,null,null,null,"   ",null,null,null,null,null,null,null,null,null,null,null,null,null,null,null,null,null,null,null,null,null,null,null,null,null,null,null,null,null,null,null,null,null,null,null,null,null,null,null,null,null,null,"   "]
[184,null,null,null,null,null,null,null,null,null,null,null,"   ",null,null,null,null,null,null,"   ",null,null,null,null,"   ",null,null,null,null,null,null,null,"   ",null,null,null,null,null,null,null,null,null,null,null,null,null,null,null,null,null,null,null,null,null,null,null,null,null,null,null,null,null,null,null,null,null,null,null,null,null,null,null,null,null,null,"   "]
[185,null,null,null,null,null,null,null,null,null,null,null,"   ",null,null,null,null,null,null,"   ",null,null,null,null,"   ",null,null,null,null,null,null,null,"   ",null,null,null,null,null,null,null,null,null,null,null,null,null,null,null,null,null,null,null,null,null,null,null,null,null,null,null,null,null,null,null,null,null,null,null,null,null,null,null,null,null,null,"   "]
[186,null,null,null,null,null,null,null,null,null,null,null,"   ",null,null,null,null,null,null,"   ",null,null,null,null,"   ",null,null,null,null,null,null,null,"   ",null,null,null,null,null,null,null,null,null,null,null,null,null,null,null,null,null,null,null,null,null,null,null,null,null,null,null,null,null,null,null,null,null,null,null,null,null,null,null,null,null,null,"   "]
[187,null,null,null,null,null,null,null,null,null,null,null,"   ",null,null,null,null,null,null,"   ",null,null,null,null,"   ",null,null,null,null,null,null,null,"   ",null,null,null,null,null,null,null,null,null,null,null,null,null,null,null,null,null,null,null,null,null,null,null,null,null,null,null,null,null,null,null,null,null,null,null,null,null,null,null,null,null,null,"   "]
[188,null,null,null,null,null,null,null,null,null,null,null,"   ",null,null,null,null,null,null,"   ",null,null,null,null,"   ",null,null,null,null,null,null,null,"   ",null,null,null,null,null,null,null,null,null,null,null,null,null,null,null,null,null,null,null,null,null,null,null,null,null,null,null,null,null,null,null,null,null,null,null,null,null,null,null,null,null,null,"   "]
[189,null,null,null,null,null,null,null,null,null,null,null,"   ",null,null,null,null,null,null,"   ",null,null,null,null,"   ",null,null,null,null,null,null,null,"   ",null,null,null,null,null,null,null,null,null,null,null,null,null,null,null,null,null,null,null,null,null,null,null,null,null,null,null,null,null,null,null,null,null,null,null,null,null,null,null,null,null,null,"   "]
[190,null,null,null,null,null,null,null,null,null,null,null,"   ",null,null,null,null,null,null,"   ",null,null,null,null,"   ",null,null,null,null,null,null,null,"   ",null,null,null,null,null,null,null,null,null,null,null,null,null,null,null,null,null,null,null,null,null,null,null,null,null,null,null,null,null,null,null,null,null,null,null,null,null,null,null,null,null,null,"   "]
[191,null,null,null,null,null,null,null,null,null,null,null,"   ",null,null,null,null,null,null,"   ",null,null,null,null,"   ",null,null,null,null,null,null,null,"   ",null,null,null,null,null,null,null,null,null,null,null,null,null,null,null,null,null,null,null,null,null,null,null,null,null,null,null,null,null,null,null,null,null,null,null,null,null,null,null,null,null,null,"   "]
[192,null,null,null,null,null,null,null,null,null,null,null,"   ",null,null,null,null,null,null,"   ",null,null,null,null,"   ",null,null,null,null,null,null,null,"   ",null,null,null,null,null,null,null,null,null,null,null,null,null,null,null,null,null,null,null,null,null,null,null,null,null,null,null,null,null,null,null,null,null,null,null,null,null,null,null,null,null,null,"   "]
[193,null,null,null,null,null,null,null,null,null,null,null,"   ",null,null,null,null,null,null,"   ",null,null,null,null,"   ",null,null,null,null,null,null,null,"   ",null,null,null,null,null,null,null,null,null,null,null,null,null,null,null,null,null,null,null,null,null,null,null,null,null,null,null,null,null,null,null,null,null,null,null,null,null,null,null,null,null,null,"   "]
[194,null,null,null,null,null,null,null,null,null,null,null,"   ",null,null,null,null,null,null,"   ",null,null,null,null,"   ",null,null,null,null,null,null,null,"   ",null,null,null,null,null,null,null,null,null,null,null,null,null,null,null,null,null,null,null,null,null,null,null,null,null,null,null,null,null,null,null,null,null,null,null,null,null,null,null,null,null,null,"   "]
[195,null,null,null,null,null,null,null,null,null,null,null,"   ",null,null,null,null,null,null,"   ",null,null,null,null,"   ",null,null,null,null,null,null,null,"   ",null,null,null,null,null,null,null,null,null,null,null,null,null,null,null,null,null,null,null,null,null,null,null,null,null,null,null,null,null,null,null,null,null,null,null,null,null,null,null,null,null,null,"   "]
[196,null,null,null,null,null,null,null,null,null,null,null,"   ",null,null,null,null,null,null,"   ",null,null,null,null,"   ",null,null,null,null,null,null,null,"   ",null,null,null,null,null,null,null,null,null,null,null,null,null,null,null,null,null,null,null,null,null,null,null,null,null,null,null,null,null,null,null,null,null,null,null,null,null,null,null,null,null,null,"   "]
[197,null,null,null,null,null,null,null,null,null,null,null,"   ",null,null,null,null,null,null,"   ",null,null,null,null,"   ",null,null,null,null,null,null,null,"   ",null,null,null,null,null,null,null,null,null,null,null,null,null,null,null,null,null,null,null,null,null,null,null,null,null,null,null,null,null,null,null,null,null,null,null,null,null,null,null,null,null,null,"   "]
[198,null,null,null,null,null,null,null,null,null,null,null,"   ",null,null,null,null,null,null,"   ",null,null,null,null,"   ",null,null,null,null,null,null,null,"   ",null,null,null,null,null,null,null,null,null,null,null,null,null,null,null,null,null,null,null,null,null,null,null,null,null,null,null,null,null,null,null,null,null,null,null,null,null,null,null,null,null,null,"   "]
[199,null,null,null,null,null,null,null,null,null,null,null,"   ",null,null,null,null,null,null,"   ",null,null,null,null,"   ",null,null,null,null,null,null,null,"   ",null,null,null,null,null,null,null,null,null,null,null,null,null,null,null,null,null,null,null,null,null,null,null,null,null,null,null,null,null,null,null,null,null,null,null,null,null,null,null,null,null,null,"   "]
[200,null,null,null,null,null,null,null,null,null,null,null,"   ",null,null,null,null,null,null,"   ",null,null,null,null,"   ",null,null,null,null,null,null,null,"   ",null,null,null,null,null,null,null,null,null,null,null,null,null,null,null,null,null,null,null,null,null,null,null,null,null,null,null,null,null,null,null,null,null,null,null,null,null,null,null,null,null,null,"   "]
[201,null,null,null,null,null,null,null,null,null,null,null,"   ",null,null,null,null,null,null,"   ",null,null,null,null,"   ",null,null,null,null,null,null,null,"   ",null,null,null,null,null,null,null,null,null,null,null,null,null,null,null,null,null,null,null,null,null,null,null,null,null,null,null,null,null,null,null,null,null,null,null,null,null,null,null,null,null,null,"   "]
[202,null,null,null,null,null,null,null,null,null,null,null,"   ",null,null,null,null,null,null,"   ",null,null,null,null,"   ",null,null,null,null,null,null,null,"   ",null,null,null,null,null,null,null,null,null,null,null,null,null,null,null,null,null,null,null,null,null,null,null,null,null,null,null,null,null,null,null,null,null,null,null,null,null,null,null,null,null,null,"   "]
[203,null,null,null,null,null,null,null,null,null,null,null,"   ",null,null,null,null,null,null,"   ",null,null,null,null,"   ",null,null,null,null,null,null,null,"   ",null,null,null,null,null,null,null,null,null,null,null,null,null,null,null,null,null,null,null,null,null,null,null,null,null,null,null,null,null,null,null,null,null,null,null,null,null,null,null,null,null,null,"   "]
[204,null,null,null,null,null,null,null,null,null,null,null,"   ",null,null,null,null,null,null,"   ",null,null,null,null,"   ",null,null,null,null,null,null,null,"   ",null,null,null,null,null,null,null,null,null,null,null,null,null,null,null,null,null,null,null,null,null,null,null,null,null,null,null,null,null,null,null,null,null,null,null,null,null,null,null,null,null,null,"   "]
[205,null,null,null,null,null,null,null,null,null,null,null,"   ",null,null,null,null,null,null,"   ",null,null,null,null,"   ",null,null,null,null,null,null,null,"   ",null,null,null,null,null,null,null,null,null,null,null,null,null,null,null,null,null,null,null,null,null,null,null,null,null,null,null,null,null,null,null,null,null,null,null,null,null,null,null,null,null,null,"   "]
[206,null,null,null,null,null,null,null,null,null,null,null,"   ",null,null,null,null,null,null,"   ",null,null,null,null,"   ",null,null,null,null,null,null,null,"   ",null,null,null,null,null,null,null,null,null,null,null,null,null,null,null,null,null,null,null,null,null,null,null,null,null,null,null,null,null,null,null,null,null,null,null,null,null,null,null,null,null,null,"   "]
[207,null,null,null,null,null,null,null,null,null,null,null,"   ",null,null,null,null,null,null,"   ",null,null,null,null,"   ",null,null,null,null,null,null,null,"   ",null,null,null,null,null,null,null,null,null,null,null,null,null,null,null,null,null,null,null,null,null,null,null,null,null,null,null,null,null,null,null,null,null,null,null,null,null,null,null,null,null,null,"   "]
[208,null,null,null,null,null,null,null,null,null,null,null,"   ",null,null,null,null,null,null,"   ",null,null,null,null,"   ",null,null,null,null,null,null,null,"   ",null,null,null,null,null,null,null,null,null,null,null,null,null,null,null,null,null,null,null,null,null,null,null,null,null,null,null,null,null,null,null,null,null,null,null,null,null,null,null,null,null,null,"   "]
[209,null,null,null,null,null,null,null,null,null,null,null,"   ",null,null,null,null,null,null,"   ",null,null,null,null,"   ",null,null,null,null,null,null,null,"   ",null,null,null,null,null,null,null,null,null,null,null,null,null,null,null,null,null,null,null,null,null,null,null,null,null,null,null,null,null,null,null,null,null,null,null,null,null,null,null,null,null,null,"   "]
[210,null,null,null,null,null,null,null,null,null,null,null,"   ",null,null,null,null,null,null,"   ",null,null,null,null,"   ",null,null,null,null,null,null,null,"   ",null,null,null,null,null,null,null,null,null,null,null,null,null,null,null,null,null,null,null,null,null,null,null,null,null,null,null,null,null,null,null,null,null,null,null,null,null,null,null,null,null,null,"   "]
[211,null,null,null,null,null,null,null,null,null,null,null,"   ",null,null,null,null,null,null,"   ",null,null,null,null,"   ",null,null,null,null,null,null,null,"   ",null,null,null,null,null,null,null,null,null,null,null,null,null,null,null,null,null,null,null,null,null,null,null,null,null,null,null,null,null,null,null,null,null,null,null,null,null,null,null,null,null,null,"   "]
[212,null,null,null,null,null,null,null,null,null,null,null,"   ",null,null,null,null,null,null,"   ",null,null,null,null,"   ",null,null,null,null,null,null,null,"   ",null,null,null,null,null,null,null,null,null,null,null,null,null,null,null,null,null,null,null,null,null,null,null,null,null,null,null,null,null,null,null,null,null,null,null,null,null,null,null,null,null,null,"   "]
[213,null,null,null,null,null,null,null,null,null,null,null,"   ",null,null,null,null,null,null,"   ",null,null,null,null,"   ",null,null,null,null,null,null,null,"   ",null,null,null,null,null,null,null,null,null,null,null,null,null,null,null,null,null,null,null,null,null,null,null,null,null,null,null,null,null,null,null,null,null,null,null,null,null,null,null,null,null,null,"   "]
[214,null,null,null,null,null,null,null,null,null,null,null,"   ",null,null,null,null,null,null,"   ",null,null,null,null,"   ",null,null,null,null,null,null,null,"   ",null,null,null,null,null,null,null,null,null,null,null,null,null,null,null,null,null,null,null,null,null,null,null,null,null,null,null,null,null,null,null,null,null,null,null,null,null,null,null,null,null,null,"   "]
[215,null,null,null,null,null,null,null,null,null,null,null,"   ",null,null,null,null,null,null,"   ",null,null,null,null,"   ",null,null,null,null,null,null,null,"   ",null,null,null,null,null,null,null,null,null,null,null,null,null,null,null,null,null,null,null,null,null,null,null,null,null,null,null,null,null,null,null,null,null,null,null,null,null,null,null,null,null,null,"   "]
[216,null,null,null,null,null,null,null,null,null,null,null,"   ",null,null,null,null,null,null,"   ",null,null,null,null,"   ",null,null,null,null,null,null,null,"   ",null,null,null,null,null,null,null,null,null,null,null,null,null,null,null,null,null,null,null,null,null,null,null,null,null,null,null,null,null,null,null,null,null,null,null,null,null,null,null,null,null,null,"   "]
[217,null,null,null,null,null,null,null,null,null,null,null,"   ",null,null,null,null,null,null,"   ",null,null,null,null,"   ",null,null,null,null,null,null,null,"   ",null,null,null,null,null,null,null,null,null,null,null,null,null,null,null,null,null,null,null,null,null,null,null,null,null,null,null,null,null,null,null,null,null,null,null,null,null,null,null,null,null,null,"   "]
[218,null,null,null,null,null,null,null,null,null,null,null,"   ",null,null,null,null,null,null,"   ",null,null,null,null,"   ",null,null,null,null,null,null,null,"   ",null,null,null,null,null,null,null,null,null,null,null,null,null,null,null,null,null,null,null,null,null,null,null,null,null,null,null,null,null,null,null,null,null,null,null,null,null,null,null,null,null,null,"   "]
[219,null,null,null,null,null,null,null,null,null,null,null,"   ",null,null,null,null,null,null,"   ",null,null,null,null,"   ",null,null,null,null,null,null,null,"   ",null,null,null,null,null,null,null,null,null,null,null,null,null,null,null,null,null,null,null,null,null,null,null,null,null,null,null,null,null,null,null,null,null,null,null,null,null,null,null,null,null,null,"   "]
[220,null,null,null,null,null,null,null,null,null,null,null,"   ",null,null,null,null,null,null,"   ",null,null,null,null,"   ",null,null,null,null,null,null,null,"   ",null,null,null,null,null,null,null,null,null,null,null,null,null,null,null,null,null,null,null,null,null,null,null,null,null,null,null,null,null,null,null,null,null,null,null,null,null,null,null,null,null,null,"   "]
[221,null,null,null,null,null,null,null,null,null,null,null,"   ",null,null,null,null,null,null,"   ",null,null,null,null,"   ",null,null,null,null,null,null,null,"   ",null,null,null,null,null,null,null,null,null,null,null,null,null,null,null,null,null,null,null,null,null,null,null,null,null,null,null,null,null,null,null,null,null,null,null,null,null,null,null,null,null,null,"   "]
[222,null,null,null,null,null,null,null,null,null,null,null,"   ",null,null,null,null,null,null,"   ",null,null,null,null,"   ",null,null,null,null,null,null,null,"   ",null,null,null,null,null,null,null,null,null,null,null,null,null,null,null,null,null,null,null,null,null,null,null,null,null,null,null,null,null,null,null,null,null,null,null,null,null,null,null,null,null,null,"   "]
[223,null,null,null,null,null,null,null,null,null,null,null,"   ",null,null,null,null,null,null,"   ",null,null,null,null,"   ",null,null,null,null,null,null,null,"   ",null,null,null,null,null,null,null,null,null,null,null,null,null,null,null,null,null,null,null,null,null,null,null,null,null,null,null,null,null,null,null,null,null,null,null,null,null,null,null,null,null,null,"   "]
[224,null,null,null,null,null,null,null,null,null,null,null,"   ",null,null,null,null,null,null,"   ",null,null,null,null,"   ",null,null,null,null,null,null,null,"   ",null,null,null,null,null,null,null,null,null,null,null,null,null,null,null,null,null,null,null,null,null,null,null,null,null,null,null,null,null,null,null,null,null,null,null,null,null,null,null,null,null,null,"   "]
[225,null,null,null,null,null,null,null,null,null,null,null,"   ",null,null,null,null,null,null,"   ",null,null,null,null,"   ",null,null,null,null,null,null,null,"   ",null,null,null,null,null,null,null,null,null,null,null,null,null,null,null,null,null,null,null,null,null,null,null,null,null,null,null,null,null,null,null,null,null,null,null,null,null,null,null,null,null,null,"   "]
[226,null,null,null,null,null,null,null,null,null,null,null,"   ",null,null,null,null,null,null,"   ",null,null,null,null,"   ",null,null,null,null,null,null,null,"   ",null,null,null,null,null,null,null,null,null,null,null,null,null,null,null,null,null,null,null,null,null,null,null,null,null,null,null,null,null,null,null,null,null,null,null,null,null,null,null,null,null,null,"   "]
[227,null,null,null,null,null,null,null,null,null,null,null,"   ",null,null,null,null,null,null,"   ",null,null,null,null,"   ",null,null,null,null,null,null,null,"   ",null,null,null,null,null,null,null,null,null,null,null,null,null,null,null,null,null,null,null,null,null,null,null,null,null,null,null,null,null,null,null,null,null,null,null,null,null,null,null,null,null,null,"   "]
[228,null,null,null,null,null,null,null,null,null,null,null,"   ",null,null,null,null,null,null,"   ",null,null,null,null,"   ",null,null,null,null,null,null,null,"   ",null,null,null,null,null,null,null,null,null,null,null,null,null,null,null,null,null,null,null,null,null,null,null,null,null,null,null,null,null,null,null,null,null,null,null,null,null,null,null,null,null,null,"   "]
[229,null,null,null,null,null,null,null,null,null,null,null,"   ",null,null,null,null,null,null,"   ",null,null,null,null,"   ",null,null,null,null,null,null,null,"   ",null,null,null,null,null,null,null,null,null,null,null,null,null,null,null,null,null,null,null,null,null,null,null,null,null,null,null,null,null,null,null,null,null,null,null,null,null,null,null,null,null,null,"   "]
[230,null,null,null,null,null,null,null,null,null,null,null,"   ",null,null,null,null,null,null,"   ",null,null,null,null,"   ",null,null,null,null,null,null,null,"   ",null,null,null,null,null,null,null,null,null,null,null,null,null,null,null,null,null,null,null,null,null,null,null,null,null,null,null,null,null,null,null,null,null,null,null,null,null,null,null,null,null,null,"   "]
[231,null,null,null,null,null,null,null,null,null,null,null,"   ",null,null,null,null,null,null,"   ",null,null,null,null,"   ",null,null,null,null,null,null,null,"   ",null,null,null,null,null,null,null,null,null,null,null,null,null,null,null,null,null,null,null,null,null,null,null,null,null,null,null,null,null,null,null,null,null,null,null,null,null,null,null,null,null,null,"   "]
[232,null,null,null,null,null,null,null,null,null,null,null,"   ",null,null,null,null,null,null,"   ",null,null,null,null,"   ",null,null,null,null,null,null,null,"   ",null,null,null,null,null,null,null,null,null,null,null,null,null,null,null,null,null,null,null,null,null,null,null,null,null,null,null,null,null,null,null,null,null,null,null,null,null,null,null,null,null,null,"   "]
[233,null,null,null,null,null,null,null,null,null,null,null,"   ",null,null,null,null,null,null,"   ",null,null,null,null,"   ",null,null,null,null,null,null,null,"   ",null,null,null,null,null,null,null,null,null,null,null,null,null,null,null,null,null,null,null,null,null,null,null,null,null,null,null,null,null,null,null,null,null,null,null,null,null,null,null,null,null,null,"   "]
[234,null,null,null,null,null,null,null,null,null,null,null,"   ",null,null,null,null,null,null,"   ",null,null,null,null,"   ",null,null,null,null,null,null,null,"   ",null,null,null,null,null,null,null,null,null,null,null,null,null,null,null,null,null,null,null,null,null,null,null,null,null,null,null,null,null,null,null,null,null,null,null,null,null,null,null,null,null,null,"   "]
[235,null,null,null,null,null,null,null,null,null,null,null,"   ",null,null,null,null,null,null,"   ",null,null,null,null,"   ",null,null,null,null,null,null,null,"   ",null,null,null,null,null,null,null,null,null,null,null,null,null,null,null,null,null,null,null,null,null,null,null,null,null,null,null,null,null,null,null,null,null,null,null,null,null,null,null,null,null,null,"   "]
[236,null,null,null,null,null,null,null,null,null,null,null,"   ",null,null,null,null,null,null,"   ",null,null,null,null,"   ",null,null,null,null,null,null,null,"   ",null,null,null,null,null,null,null,null,null,null,null,null,null,null,null,null,null,null,null,null,null,null,null,null,null,null,null,null,null,null,null,null,null,null,null,null,null,null,null,null,null,null,"   "]
[237,null,null,null,null,null,null,null,null,null,null,null,"   ",null,null,null,null,null,null,"   ",null,null,null,null,"   ",null,null,null,null,null,null,null,"   ",null,null,null,null,null,null,null,null,null,null,null,null,null,null,null,null,null,null,null,null,null,null,null,null,null,null,null,null,null,null,null,null,null,null,null,null,null,null,null,null,null,null,"   "]
[238,null,null,null,null,null,null,null,null,null,null,null,"   ",null,null,null,null,null,null,"   ",null,null,null,null,"   ",null,null,null,null,null,null,null,"   ",null,null,null,null,null,null,null,null,null,null,null,null,null,null,null,null,null,null,null,null,null,null,null,null,null,null,null,null,null,null,null,null,null,null,null,null,null,null,null,null,null,null,"   "]
[239,null,null,null,null,null,null,null,null,null,null,null,"   ",null,null,null,null,null,null,"   ",null,null,null,null,"   ",null,null,null,null,null,null,null,"   ",null,null,null,null,null,null,null,null,null,null,null,null,null,null,null,null,null,null,null,null,null,null,null,null,null,null,null,null,null,null,null,null,null,null,null,null,null,null,null,null,null,null,"   "]
[240,null,null,null,null,null,null,null,null,null,null,null,"   ",null,null,null,null,null,null,"   ",null,null,null,null,"   ",null,null,null,null,null,null,null,"   ",null,null,null,null,null,null,null,null,null,null,null,null,null,null,null,null,null,null,null,null,null,null,null,null,null,null,null,null,null,null,null,null,null,null,null,null,null,null,null,null,null,null,"   "]
[241,null,null,null,null,null,null,null,null,null,null,null,"   ",null,null,null,null,null,null,"   ",null,null,null,null,"   ",null,null,null,null,null,null,null,"   ",null,null,null,null,null,null,null,null,null,null,null,null,null,null,null,null,null,null,null,null,null,null,null,null,null,null,null,null,null,null,null,null,null,null,null,null,null,null,null,null,null,null,"   "]
[242,null,null,null,null,null,null,null,null,null,null,null,"   ",null,null,null,null,null,null,"   ",null,null,null,null,"   ",null,null,null,null,null,null,null,"   ",null,null,null,null,null,null,null,null,null,null,null,null,null,null,null,null,null,null,null,null,null,null,null,null,null,null,null,null,null,null,null,null,null,null,null,null,null,null,null,null,null,null,"   "]
[243,null,null,null,null,null,null,null,null,null,null,null,"   ",null,null,null,null,null,null,"   ",null,null,null,null,"   ",null,null,null,null,null,null,null,"   ",null,null,null,null,null,null,null,null,null,null,null,null,null,null,null,null,null,null,null,null,null,null,null,null,null,null,null,null,null,null,null,null,null,null,null,null,null,null,null,null,null,null,"   "]
[244,null,null,null,null,null,null,null,null,null,null,null,"   ",null,null,null,null,null,null,"   ",null,null,null,null,"   ",null,null,null,null,null,null,null,"   ",null,null,null,null,null,null,null,null,null,null,null,null,null,null,null,null,null,null,null,null,null,null,null,null,null,null,null,null,null,null,null,null,null,null,null,null,null,null,null,null,null,null,"   "]
[245,null,null,null,null,null,null,null,null,null,null,null,"   ",null,null,null,null,null,null,"   ",null,null,null,null,"   ",null,null,null,null,null,null,null,"   ",null,null,null,null,null,null,null,null,null,null,null,null,null,null,null,null,null,null,null,null,null,null,null,null,null,null,null,null,null,null,null,null,null,null,null,null,null,null,null,null,null,null,"   "]
[246,null,null,null,null,null,null,null,null,null,null,null,"   ",null,null,null,null,null,null,"   ",null,null,null,null,"   ",null,null,null,null,null,null,null,"   ",null,null,null,null,null,null,null,null,null,null,null,null,null,null,null,null,null,null,null,null,null,null,null,null,null,null,null,null,null,null,null,null,null,null,null,null,null,null,null,null,null,null,"   "]
[247,null,null,null,null,null,null,null,null,null,null,null,"   ",null,null,null,null,null,null,"   ",null,null,null,null,"   ",null,null,null,null,null,null,null,"   ",null,null,null,null,null,null,null,null,null,null,null,null,null,null,null,null,null,null,null,null,null,null,null,null,null,null,null,null,null,null,null,null,null,null,null,null,null,null,null,null,null,null,"   "]
[248,null,null,null,null,null,null,null,null,null,null,null,"   ",null,null,null,null,null,null,"   ",null,null,null,null,"   ",null,null,null,null,null,null,null,"   ",null,null,null,null,null,null,null,null,null,null,null,null,null,null,null,null,null,null,null,null,null,null,null,null,null,null,null,null,null,null,null,null,null,null,null,null,null,null,null,null,null,null,"   "]
[249,null,null,null,null,null,null,null,null,null,null,null,"   ",null,null,null,null,null,null,"   ",null,null,null,null,"   ",null,null,null,null,null,null,null,"   ",null,null,null,null,null,null,null,null,null,null,null,null,null,null,null,null,null,null,null,null,null,null,null,null,null,null,null,null,null,null,null,null,null,null,null,null,null,null,null,null,null,null,"   "]
[250,null,null,null,null,null,null,null,null,null,null,null,"   ",null,null,null,null,null,null,"   ",null,null,null,null,"   ",null,null,null,null,null,null,null,"   ",null,null,null,null,null,null,null,null,null,null,null,null,null,null,null,null,null,null,null,null,null,null,null,null,null,null,null,null,null,null,null,null,null,null,null,null,null,null,null,null,null,null,"   "]
[251,null,null,null,null,null,null,null,null,null,null,null,"   ",null,null,null,null,null,null,"   ",null,null,null,null,"   ",null,null,null,null,null,null,null,"   ",null,null,null,null,null,null,null,null,null,null,null,null,null,null,null,null,null,null,null,null,null,null,null,null,null,null,null,null,null,null,null,null,null,null,null,null,null,null,null,null,null,null,"   "]
[252,null,null,null,null,null,null,null,null,null,null,null,"   ",null,null,null,null,null,null,"   ",null,null,null,null,"   ",null,null,null,null,null,null,null,"   ",null,null,null,null,null,null,null,null,null,null,null,null,null,null,null,null,null,null,null,null,null,null,null,null,null,null,null,null,null,null,null,null,null,null,null,null,null,null,null,null,null,null,"   "]
[253,null,null,null,null,null,null,null,null,null,null,null,"   ",null,null,null,null,null,null,"   ",null,null,null,null,"   ",null,null,null,null,null,null,null,"   ",null,null,null,null,null,null,null,null,null,null,null,null,null,null,null,null,null,null,null,null,null,null,null,null,null,null,null,null,null,null,null,null,null,null,null,null,null,null,null,null,null,null,"   "]
[254,null,null,null,null,null,null,null,null,null,null,null,"   ",null,null,null,null,null,null,"   ",null,null,null,null,"   ",null,null,null,null,null,null,null,"   ",null,null,null,null,null,null,null,null,null,null,null,null,null,null,null,null,null,null,null,null,null,null,null,null,null,null,null,null,null,null,null,null,null,null,null,null,null,null,null,null,null,null,"   "]
[255,null,null,null,null,null,null,null,null,null,null,null,"   ",null,null,null,null,null,null,"   ",null,null,null,null,"   ",null,null,null,null,null,null,null,"   ",null,null,null,null,null,null,null,null,null,null,null,null,null,null,null,null,null,null,null,null,null,null,null,null,null,null,null,null,null,null,null,null,null,null,null,null,null,null,null,null,null,null,"   "]
[256,null,null,null,null,null,null,null,null,null,null,null,"   ",null,null,null,null,null,null,"   ",null,null,null,null,"   ",null,null,null,null,null,null,null,"   ",null,null,null,null,null,null,null,null,null,null,null,null,null,null,null,null,null,null,null,null,null,null,null,null,null,null,null,null,null,null,null,null,null,null,null,null,null,null,null,null,null,null,"   "]
[257,null,null,null,null,null,null,null,null,null,null,null,"   ",null,null,null,null,null,null,"   ",null,null,null,null,"   ",null,null,null,null,null,null,null,"   ",null,null,null,null,null,null,null,null,null,null,null,null,null,null,null,null,null,null,null,null,null,null,null,null,null,null,null,null,null,null,null,null,null,null,null,null,null,null,null,null,null,null,"   "]
[258,null,null,null,null,null,null,null,null,null,null,null,"   ",null,null,null,null,null,null,"   ",null,null,null,null,"   ",null,null,null,null,null,null,null,"   ",null,null,null,null,null,null,null,null,null,null,null,null,null,null,null,null,null,null,null,null,null,null,null,null,null,null,null,null,null,null,null,null,null,null,null,null,null,null,null,null,null,null,"   "]
[259,null,null,null,null,null,null,null,null,null,null,null,"   ",null,null,null,null,null,null,"   ",null,null,null,null,"   ",null,null,null,null,null,null,null,"   ",null,null,null,null,null,null,null,null,null,null,null,null,null,null,null,null,null,null,null,null,null,null,null,null,null,null,null,null,null,null,null,null,null,null,null,null,null,null,null,null,null,null,"   "]
[260,null,null,null,null,null,null,null,null,null,null,null,"   ",null,null,null,null,null,null,"   ",null,null,null,null,"   ",null,null,null,null,null,null,null,"   ",null,null,null,null,null,null,null,null,null,null,null,null,null,null,null,null,null,null,null,null,null,null,null,null,null,null,null,null,null,null,null,null,null,null,null,null,null,null,null,null,null,null,"   "]
[261,null,null,null,null,null,null,null,null,null,null,null,"   ",null,null,null,null,null,null,"   ",null,null,null,null,"   ",null,null,null,null,null,null,null,"   ",null,null,null,null,null,null,null,null,null,null,null,null,null,null,null,null,null,null,null,null,null,null,null,null,null,null,null,null,null,null,null,null,null,null,null,null,null,null,null,null,null,null,"   "]
[262,null,null,null,null,null,null,null,null,null,null,null,"   ",null,null,null,null,null,null,"   ",null,null,null,null,"   ",null,null,null,null,null,null,null,"   ",null,null,null,null,null,null,null,null,null,null,null,null,null,null,null,null,null,null,null,null,null,null,null,null,null,null,null,null,null,null,null,null,null,null,null,null,null,null,null,null,null,null,"   "]
[263,null,null,null,null,null,null,null,null,null,null,null,"   ",null,null,null,null,null,null,"   ",null,null,null,null,"   ",null,null,null,null,null,null,null,"   ",null,null,null,null,null,null,null,null,null,null,null,null,null,null,null,null,null,null,null,null,null,null,null,null,null,null,null,null,null,null,null,null,null,null,null,null,null,null,null,null,null,null,"   "]
[264,null,null,null,null,null,null,null,null,null,null,null,"   ",null,null,null,null,null,null,"   ",null,null,null,null,"   ",null,null,null,null,null,null,null,"   ",null,null,null,null,null,null,null,null,null,null,null,null,null,null,null,null,null,null,null,null,null,null,null,null,null,null,null,null,null,null,null,null,null,null,null,null,null,null,null,null,null,null,"   "]
[265,null,null,null,null,null,null,null,null,null,null,null,"   ",null,null,null,null,null,null,"   ",null,null,null,null,"   ",null,null,null,null,null,null,null,"   ",null,null,null,null,null,null,null,null,null,null,null,null,null,null,null,null,null,null,null,null,null,null,null,null,null,null,null,null,null,null,null,null,null,null,null,null,null,null,null,null,null,null,"   "]
[266,null,null,null,null,null,null,null,null,null,null,null,"   ",null,null,null,null,null,null,"   ",null,null,null,null,"   ",null,null,null,null,null,null,null,"   ",null,null,null,null,null,null,null,null,null,null,null,null,null,null,null,null,null,null,null,null,null,null,null,null,null,null,null,null,null,null,null,null,null,null,null,null,null,null,null,null,null,null,"   "]
[267,null,null,null,null,null,null,null,null,null,null,null,"   ",null,null,null,null,null,null,"   ",null,null,null,null,"   ",null,null,null,null,null,null,null,"   ",null,null,null,null,null,null,null,null,null,null,null,null,null,null,null,null,null,null,null,null,null,null,null,null,null,null,null,null,null,null,null,null,null,null,null,null,null,null,null,null,null,null,"   "]
[268,null,null,null,null,null,null,null,null,null,null,null,"   ",null,null,null,null,null,null,"   ",null,null,null,null,"   ",null,null,null,null,null,null,null,"   ",null,null,null,null,null,null,null,null,null,null,null,null,null,null,null,null,null,null,null,null,null,null,null,null,null,null,null,null,null,null,null,null,null,null,null,null,null,null,null,null,null,null,"   "]
[269,null,null,null,null,null,null,null,null,null,null,null,"   ",null,null,null,null,null,null,"   ",null,null,null,null,"   ",null,null,null,null,null,null,null,"   ",null,null,null,null,null,null,null,null,null,null,null,null,null,null,null,null,null,null,null,null,null,null,null,null,null,null,null,null,null,null,null,null,null,null,null,null,null,null,null,null,null,null,"   "]
[270,null,null,null,null,null,null,null,null,null,null,null,"   ",null,null,null,null,null,null,"   ",null,null,null,null,"   ",null,null,null,null,null,null,null,"   ",null,null,null,null,null,null,null,null,null,null,null,null,null,null,null,null,null,null,null,null,null,null,null,null,null,null,null,null,null,null,null,null,null,null,null,null,null,null,null,null,null,null,"   "]
[271,null,null,null,null,null,null,null,null,null,null,null,"   ",null,null,null,null,null,null,"   ",null,null,null,null,"   ",null,null,null,null,null,null,null,"   ",null,null,null,null,null,null,null,null,null,null,null,null,null,null,null,null,null,null,null,null,null,null,null,null,null,null,null,null,null,null,null,null,null,null,null,null,null,null,null,null,null,null,"   "]
[272,null,null,null,null,null,null,null,null,null,null,null,"   ",null,null,null,null,null,null,"   ",null,null,null,null,"   ",null,null,null,null,null,null,null,"   ",null,null,null,null,null,null,null,null,null,null,null,null,null,null,null,null,null,null,null,null,null,null,null,null,null,null,null,null,null,null,null,null,null,null,null,null,null,null,null,null,null,null,"   "]
[273,null,null,null,null,null,null,null,null,null,null,null,"   ",null,null,null,null,null,null,"   ",null,null,null,null,"   ",null,null,null,null,null,null,null,"   ",null,null,null,null,null,null,null,null,null,null,null,null,null,null,null,null,null,null,null,null,null,null,null,null,null,null,null,null,null,null,null,null,null,null,null,null,null,null,null,null,null,null,"   "]
[274,null,null,null,null,null,null,null,null,null,null,null,"   ",null,null,null,null,null,null,"   ",null,null,null,null,"   ",null,null,null,null,null,null,null,"   ",null,null,null,null,null,null,null,null,null,null,null,null,null,null,null,null,null,null,null,null,null,null,null,null,null,null,null,null,null,null,null,null,null,null,null,null,null,null,null,null,null,null,"   "]
[275,null,null,null,null,null,null,null,null,null,null,null,"   ",null,null,null,null,null,null,"   ",null,null,null,null,"   ",null,null,null,null,null,null,null,"   ",null,null,null,null,null,null,null,null,null,null,null,null,null,null,null,null,null,null,null,null,null,null,null,null,null,null,null,null,null,null,null,null,null,null,null,null,null,null,null,null,null,null,"   "]
[276,null,null,null,null,null,null,null,null,null,null,null,"   ",null,null,null,null,null,null,"   ",null,null,null,null,"   ",null,null,null,null,null,null,null,"   ",null,null,null,null,null,null,null,null,null,null,null,null,null,null,null,null,null,null,null,null,null,null,null,null,null,null,null,null,null,null,null,null,null,null,null,null,null,null,null,null,null,null,"   "]
[277,null,null,null,null,null,null,null,null,null,null,null,"   ",null,null,null,null,null,null,"   ",null,null,null,null,"   ",null,null,null,null,null,null,null,"   ",null,null,null,null,null,null,null,null,null,null,null,null,null,null,null,null,null,null,null,null,null,null,null,null,null,null,null,null,null,null,null,null,null,null,null,null,null,null,null,null,null,null,"   "]
[278,null,null,null,null,null,null,null,null,null,null,null,"   ",null,null,null,null,null,null,"   ",null,null,null,null,"   ",null,null,null,null,null,null,null,"   ",null,null,null,null,null,null,null,null,null,null,null,null,null,null,null,null,null,null,null,null,null,null,null,null,null,null,null,null,null,null,null,null,null,null,null,null,null,null,null,null,null,null,"   "]
[279,null,null,null,null,null,null,null,null,null,null,null,"   ",null,null,null,null,null,null,"   ",null,null,null,null,"   ",null,null,null,null,null,null,null,"   ",null,null,null,null,null,null,null,null,null,null,null,null,null,null,null,null,null,null,null,null,null,null,null,null,null,null,null,null,null,null,null,null,null,null,null,null,null,null,null,null,null,null,"   "]
[280,null,null,null,null,null,null,null,null,null,null,null,"   ",null,null,null,null,null,null,"   ",null,null,null,null,"   ",null,null,null,null,null,null,null,"   ",null,null,null,null,null,null,null,null,null,null,null,null,null,null,null,null,null,null,null,null,null,null,null,null,null,null,null,null,null,null,null,null,null,null,null,null,null,null,null,null,null,null,"   "]
[281,null,null,null,null,null,null,null,null,null,null,null,"   ",null,null,null,null,null,null,"   ",null,null,null,null,"   ",null,null,null,null,null,null,null,"   ",null,null,null,null,null,null,null,null,null,null,null,null,null,null,null,null,null,null,null,null,null,null,null,null,null,null,null,null,null,null,null,null,null,null,null,null,null,null,null,null,null,null,"   "]
[282,null,null,null,null,null,null,null,null,null,null,null,"   ",null,null,null,null,null,null,"   ",null,null,null,null,"   ",null,null,null,null,null,null,null,"   ",null,null,null,null,null,null,null,null,null,null,null,null,null,null,null,null,null,null,null,null,null,null,null,null,null,null,null,null,null,null,null,null,null,null,null,null,null,null,null,null,null,null,"   "]
[283,null,null,null,null,null,null,null,null,null,null,null,"   ",null,null,null,null,null,null,"   ",null,null,null,null,"   ",null,null,null,null,null,null,null,"   ",null,null,null,null,null,null,null,null,null,null,null,null,null,null,null,null,null,null,null,null,null,null,null,null,null,null,null,null,null,null,null,null,null,null,null,null,null,null,null,null,null,null,"   "]
[284,null,null,null,null,null,null,null,null,null,null,null,"   ",null,null,null,null,null,null,"   ",null,null,null,null,"   ",null,null,null,null,null,null,null,"   ",null,null,null,null,null,null,null,null,null,null,null,null,null,null,null,null,null,null,null,null,null,null,null,null,null,null,null,null,null,null,null,null,null,null,null,null,null,null,null,null,null,null,"   "]
[285,null,null,null,null,null,null,null,null,null,null,null,"   ",null,null,null,null,null,null,"   ",null,null,null,null,"   ",null,null,null,null,null,null,null,"   ",null,null,null,null,null,null,null,null,null,null,null,null,null,null,null,null,null,null,null,null,null,null,null,null,null,null,null,null,null,null,null,null,null,null,null,null,null,null,null,null,null,null,"   "]
[286,null,null,null,null,null,null,null,null,null,null,null,"   ",null,null,null,null,null,null,"   ",null,null,null,null,"   ",null,null,null,null,null,null,null,"   ",null,null,null,null,null,null,null,null,null,null,null,null,null,null,null,null,null,null,null,null,null,null,null,null,null,null,null,null,null,null,null,null,null,null,null,null,null,null,null,null,null,null,"   "]
[287,null,null,null,null,null,null,null,null,null,null,null,"   ",null,null,null,null,null,null,"   ",null,null,null,null,"   ",null,null,null,null,null,null,null,"   ",null,null,null,null,null,null,null,null,null,null,null,null,null,null,null,null,null,null,null,null,null,null,null,null,null,null,null,null,null,null,null,null,null,null,null,null,null,null,null,null,null,null,"   "]
[288,null,null,null,null,null,null,null,null,null,null,null,"   ",null,null,null,null,null,null,"   ",null,null,null,null,"   ",null,null,null,null,null,null,null,"   ",null,null,null,null,null,null,null,null,null,null,null,null,null,null,null,null,null,null,null,null,null,null,null,null,null,null,null,null,null,null,null,null,null,null,null,null,null,null,null,null,null,null,"   "]
[289,null,null,null,null,null,null,null,null,null,null,null,"   ",null,null,null,null,null,null,"   ",null,null,null,null,"   ",null,null,null,null,null,null,null,"   ",null,null,null,null,null,null,null,null,null,null,null,null,null,null,null,null,null,null,null,null,null,null,null,null,null,null,null,null,null,null,null,null,null,null,null,null,null,null,null,null,null,null,"   "]
[290,null,null,null,null,null,null,null,null,null,null,null,"   ",null,null,null,null,null,null,"   ",null,null,null,null,"   ",null,null,null,null,null,null,null,"   ",null,null,null,null,null,null,null,null,null,null,null,null,null,null,null,null,null,null,null,null,null,null,null,null,null,null,null,null,null,null,null,null,null,null,null,null,null,null,null,null,null,null,"   "]
[291,null,null,null,null,null,null,null,null,null,null,null,"   ",null,null,null,null,null,null,"   ",null,null,null,null,"   ",null,null,null,null,null,null,null,"   ",null,null,null,null,null,null,null,null,null,null,null,null,null,null,null,null,null,null,null,null,null,null,null,null,null,null,null,null,null,null,null,null,null,null,null,null,null,null,null,null,null,null,"   "]
[292,null,null,null,null,null,null,null,null,null,null,null,"   ",null,null,null,null,null,null,"   ",null,null,null,null,"   ",null,null,null,null,null,null,null,"   ",null,null,null,null,null,null,null,null,null,null,null,null,null,null,null,null,null,null,null,null,null,null,null,null,null,null,null,null,null,null,null,null,null,null,null,null,null,null,null,null,null,null,"   "]
[293,null,null,null,null,null,null,null,null,null,null,null,"   ",null,null,null,null,null,null,"   ",null,null,null,null,"   ",null,null,null,null,null,null,null,"   ",null,null,null,null,null,null,null,null,null,null,null,null,null,null,null,null,null,null,null,null,null,null,null,null,null,null,null,null,null,null,null,null,null,null,null,null,null,null,null,null,null,null,"   "]
[294,null,null,null,null,null,null,null,null,null,null,null,"   ",null,null,null,null,null,null,"   ",null,null,null,null,"   ",null,null,null,null,null,null,null,"   ",null,null,null,null,null,null,null,null,null,null,null,null,null,null,null,null,null,null,null,null,null,null,null,null,null,null,null,null,null,null,null,null,null,null,null,null,null,null,null,null,null,null,"   "]
[295,null,null,null,null,null,null,null,null,null,null,null,"   ",null,null,null,null,null,null,"   ",null,null,null,null,"   ",null,null,null,null,null,null,null,"   ",null,null,null,null,null,null,null,null,null,null,null,null,null,null,null,null,null,null,null,null,null,null,null,null,null,null,null,null,null,null,null,null,null,null,null,null,null,null,null,null,null,null,"   "]
[296,null,null,null,null,null,null,null,null,null,null,null,"   ",null,null,null,null,null,null,"   ",null,null,null,null,"   ",null,null,null,null,null,null,null,"   ",null,null,null,null,null,null,null,null,null,null,null,null,null,null,null,null,null,null,null,null,null,null,null,null,null,null,null,null,null,null,null,null,null,null,null,null,null,null,null,null,null,null,"   "]
[297,null,null,null,null,null,null,null,null,null,null,null,"   ",null,null,null,null,null,null,"   ",null,null,null,null,"   ",null,null,null,null,null,null,null,"   ",null,null,null,null,null,null,null,null,null,null,null,null,null,null,null,null,null,null,null,null,null,null,null,null,null,null,null,null,null,null,null,null,null,null,null,null,null,null,null,null,null,null,"   "]
[298,null,null,null,null,null,null,null,null,null,null,null,"   ",null,null,null,null,null,null,"   ",null,null,null,null,"   ",null,null,null,null,null,null,null,"   ",null,null,null,null,null,null,null,null,null,null,null,null,null,null,null,null,null,null,null,null,null,null,null,null,null,null,null,null,null,null,null,null,null,null,null,null,null,null,null,null,null,null,"   "]
[299,null,null,null,null,null,null,null,null,null,null,null,"   ",null,null,null,null,null,null,"   ",null,null,null,null,"   ",null,null,null,null,null,null,null,"   ",null,null,null,null,null,null,null,null,null,null,null,null,null,null,null,null,null,null,null,null,null,null,null,null,null,null,null,null,null,null,null,null,null,null,null,null,null,null,null,null,null,null,"   "]
[300,null,null,null,null,null,null,null,null,null,null,null,"   ",null,null,null,null,null,null,"   ",null,null,null,null,"   ",null,null,null,null,null,null,null,"   ",null,null,null,null,null,null,null,null,null,null,null,null,null,null,null,null,null,null,null,null,null,null,null,null,null,null,null,null,null,null,null,null,null,null,null,null,null,null,null,null,null,null,"   "]

{"sheet":"SECTION J","index":10,"n_rows":120,"n_cols":31,"rows_kept":120,"cut":false,"hidden":false,"merged":[[118,0,118,4],[119,0,119,4],[114,11,114,16],[115,11,115,16],[116,11,116,16],[117,11,117,16],[118,11,118,16],[114,23,114,27],[115,23,115,27],[116,23,116,27],[117,23,117,27],[118,23,118,27],[118,17,118,20],[119,5,119,8],[117,17,117,20],[30,24,30,27],[56,8,56,13],[31,24,31,27],[28,16,28,19],[49,0,49,7],[50,0,50,7],[50,8,50,13],[51,8,51,13],[52,8,52,13],[53,8,53,13],[47,8,47,13],[42,8,42,13],[43,8,43,13],[52,14,52,19],[53,14,53,19],[54,14,54,19],[55,14,55,19],[42,14,42,19],[48,8,48,13],[49,8,49,13],[44,8,44,13],[45,8,45,13],[46,8,46,13],[51,0,51,7],[0,0,0,31],[3,13,3,16],[5,13,5,16],[7,13,7,16],[10,12,11,21],[10,22,11,31],[26,20,27,23],[26,24,27,27],[9,0,9,31],[13,12,13,21],[17,0,17,30],[18,0,23,30],[2,0,2,12],[3,0,3,12],[4,0,4,12],[5,0,5,12],[6,0,6,12],[7,0,7,12],[12,0,12,11],[13,0,13,11],[14,0,14,11],[13,22,13,31],[12,12,12,21],[12,22,12,31],[14,12,14,21],[14,22,14,31],[16,0,16,31],[26,28,27,31],[31,11,31,15],[41,8,41,13],[40,8,40,13],[28,8,28,10],[29,8,29,10],[30,8,30,10],[31,8,31,10],[28,5,28,7],[29,28,29,31],[30,28,30,31],[31,28,31,31],[28,20,28,23],[35,0,35,30],[36,0,38,30],[28,0,28,4],[29,0,29,4],[30,0,30,4],[31,0,31,4],[29,5,29,7],[30,5,30,7],[25,5,27,7],[25,8,27,10],[25,0,27,4],[41,14,41,19],[29,16,29,19],[30,16,30,19],[31,16,31,19],[25,11,27,15],[26,16,27,19],[25,16,25,31],[40,0,40,7],[40,14,40,19],[33,0,34,31],[28,11,28,15],[29,11,29,15],[30,11,30,15],[41,0,41,7],[28,28,28,31],[31,5,31,7],[29,20,29,23],[30,20,30,23],[31,20,31,23],[28,24,28,27],[29,24,29,27],[79,0,79,26],[80,0,80,26],[81,0,81,26],[118,28,118,31],[118,5,118,8],[117,5,117,8],[117,28,117,31],[116,5,116,8],[116,28,116,31],[115,5,115,8],[107,0,107,20],[108,0,108,20],[109,0,109,20],[106,22,106,24],[106,26,106,28],[106,30,106,32],[114,0,114,4],[115,0,115,4],[116,0,116,4],[116,17,116,20],[114,28,114,31],[115,28,115,31],[114,17,114,20],[117,0,117,4],[71,8,71,13],[57,0,57,7],[60,0,60,7],[61,0,61,7],[72,8,72,13],[72,0,72,7],[73,0,73,7],[74,0,74,7],[68,0,68,7],[54,0,54,7],[55,0,55,7],[56,0,56,7],[55,8,55,13],[62,0,62,7],[62,8,62,13],[68,8,68,13],[69,8,69,13],[70,8,70,13],[89,20,89,22],[93,0,93,23],[94,16,94,20],[95,16,95,20],[94,8,94,12],[95,8,95,12],[94,0,94,4],[95,0,95,4],[90,5,90,7],[91,5,91,7],[89,5,89,7],[91,8,91,10],[91,11,91,13],[91,0,91,4],[89,29,89,31],[89,26,89,28],[89,23,89,25],[64,0,64,7],[65,0,65,7],[66,0,66,7],[67,0,67,7],[90,26,90,28],[90,29,90,31],[90,8,90,10],[90,11,90,13],[90,0,90,4],[75,8,75,13],[76,8,76,13],[84,0,84,30],[85,0,87,30],[89,17,89,19],[89,11,89,13],[89,8,89,10],[90,14,90,16],[90,17,90,19],[90,20,90,22],[90,23,90,25],[89,14,89,16],[97,0,97,31],[98,25,98,31],[91,23,91,25],[91,26,91,28],[91,29,91,31],[94,5,94,7],[94,13,94,15],[95,5,95,7],[95,13,95,15],[94,21,94,23],[91,20,91,22],[91,14,91,16],[91,17,91,19],[95,21,95,23],[100,25,100,30],[108,27,108,30],[110,0,110,31],[114,5,114,8],[115,17,115,20],[103,25,103,30],[98,0,98,24],[99,0,99,24],[100,0,100,24],[111,0,111,30],[112,0,112,30],[101,0,101,24],[102,0,102,24],[103,0,103,24],[104,0,104,24],[106,0,106,20],[52,0,52,7],[53,0,53,7],[42,0,42,7],[43,0,43,7],[44,0,44,7],[45,0,45,7],[46,0,46,7],[47,0,47,7],[48,0,48,7],[56,14,56,19],[54,8,54,13],[57,14,57,19],[79,27,79,30],[81,27,81,30],[83,0,83,31],[63,0,63,7],[77,0,77,7],[63,8,63,13],[64,8,64,13],[65,8,65,13],[66,8,66,13],[67,8,67,13],[77,8,77,13],[73,8,73,13],[74,8,74,13],[57,8,57,13],[75,0,75,7],[76,0,76,7],[60,8,60,13],[61,8,61,13],[69,0,69,7],[70,0,70,7],[71,0,71,7],[43,14,43,19],[44,14,44,19],[45,14,45,19],[46,14,46,19],[47,14,47,19],[48,14,48,19],[49,14,49,19],[50,14,50,19],[51,14,51,19]]}
[{"$f":"IF(Settings_Language = \"English\",SectionJ_Title,SectionJ_Title_Arabic)","v":"القسم ش: المباني والمرافق التعليمية"}]
[]
[{"$f":"IF(Settings_Language = \"English\",SectionJ_J1,SectionJ_J1_Arabic)","v":"الاضرار بالمدرسة"}]
[{"$f":"IF(Settings_Language = \"English\",SectionJ_J1_1,SectionJ_J1_1_Arabic)","v":"1- هل تعرضت المدرسة لاضرار؟"}]
[]
[{"$f":"IF(Settings_Language = \"English\",SectionJ_J1_2,SectionJ_J1_2_Arabic)","v":"2- متى تعرضت المدرسة للأضرار"}]
[]
[{"$f":"IF(Settings_Language = \"English\",SectionJ_J1_3,SectionJ_J1_3_Arabic)","v":"3- ما هو معدل الاضرار بالمدرسة"}]
[]
[{"$f":"IF(Settings_Language = \"English\",SectionJ_J2,SectionJ_J2_Arabic)","v":"ش.2: إجمالي الفصول بالمدرسة حسب مراحل التعليم المختلفة"}]
[null,null,null,null,null,null,null,null,null,null,null,null,{"$f":"IF(Settings_Language = \"English\",SectionJ_NumClassroomsInstructionalPurpose,SectionJ_NumClassroomsInstructionalPurpose_Arabic)","v":"عدد الحجرات المستخدمة فصول للتدريس"},null,null,null,null,null,null,null,null,null,{"$f":"IF(Settings_Language = \"English\",SectionJ_NumClassroomsUnderConstruction,SectionJ_NumClassroomsUnderConstruction_Arabic)","v":"عدد الحجرات تحت الانشاء (فصول)"}]
[]
[{"$f":"IF(Settings_Language = \"English\",SectionJ_KG1KG2,SectionJ_KG1KG2_Arabic)","v":"رياض الاطفال (1،2)"}]
[{"$f":"IF(Settings_Language = \"English\",SectionJ_Primary16,SectionJ_Primary16_Arabic)","v":"ابتدائي (1-6)"}]
[{"$f":"IF(Settings_Language = \"English\",SectionJ_Intermediate79,SectionJ_Intermediate79_Arabic)","v":"أعدادي (7-9)"}]
[]
[{"$f":"IF(Settings_Language = \"English\",SectionJ_J3,SectionJ_J3_Arabic)","v":"ش.3: حالة المباني"}]
[{"$f":"IF(Settings_Language = \"English\",SectionJ_Instruction,SectionJ_Instruction_Arabic)","v":"التعليمات"}]
[{"$f":"IF(Settings_Language = \"English\",SectionJ_J3_InstructionDesc,SectionJ_J3_InstructionDesc_Arabic)","v":"يرجى إدخال حالة كل مبنى لكل نوع من أنواع البناء بغض النظر عن إستخدامات المبنى او الحجرات داخل المبنى.  لكل هيكل يرجى إدخال عدد المباني، إجمالي عدد الحجرات المستخدمة في العملية التعليمية، إجمالي عدد المباني التي بحالة جيدة، وعدد التي تحتاج الى صيانة بسيطة وعدد التي تحتاج الى صيانة كبيرة"}]
[]
[]
[]
[]
[]
[]
[{"$f":"IF(Settings_Language = \"English\",SectionJ_MainStructureType,SectionJ_MainStructureType_Arabic)","v":"نوع البناء"},null,null,null,null,{"$f":"IF(Settings_Language = \"English\",SectionJ_NumOfBuildings,SectionJ_NumOfBuildings_Arabic)","v":"عدد المباني"},null,null,{"$f":"IF(Settings_Language = \"English\",SectionJ_NumberOfRooms,SectionJ_NumberOfRooms_Arabic)","v":"عدد الحجرات"},null,null,{"$f":"IF(Settings_Language = \"English\",SectionJ_NumOfRoomsInstructionalPurposes,SectionJ_NumOfRoomsInstructionalPurposes_Arabic)","v":"عدد الحجرات المستخدمة في العملية التعليمية"},null,null,null,null,{"$f":"IF(Settings_Language = \"English\",SectionJ_NumberOfBuildings,SectionJ_NumberOfBuildings_Arabic)","v":"عدد المباني"}]
[null,null,null,null,null,null,null,null,null,null,null,null,null,null,null,null,{"$f":"IF(Settings_Language = \"English\",SectionJ_GoodCondition,SectionJ_GoodCondition_Arabic)","v":"حالة جيدة"},null,null,null,{"$f":"IF(Settings_Language = \"English\",SectionJ_NeedMinorRepair,SectionJ_NeedMinorRepair_Arabic)","v":"تحتاج الى صيانة خفيفة"},null,null,null,{"$f":"IF(Settings_Language = \"English\",SectionJ_NeedMajorRepair,SectionJ_NeedMajorRepair_Arabic)","v":"تحتاج الى صيانة كبيرة"},null,null,null,{"$f":"IF(Settings_Language = \"English\",SectionJ_DerelictDangerous,SectionJ_DerelictDangerous_Arabic)","v":"تم إخلائه (خطير)"}]
[]
[{"$f":"IF(Settings_Language = \"English\",SectionJ_CementBrick,SectionJ_CementBrick_Arabic)","v":"اسمني /طوب"}]
[{"$f":"IF(Settings_Language = \"English\",SectionJ_Wood,SectionJ_Wood_Arabic)","v":"خشبي"}]
[{"$f":"IF(Settings_Language = \"English\",SectionJ_Mud,SectionJ_Mud_Arabic)","v":"طيني"}]
[{"$f":"IF(Settings_Language = \"English\",SectionJ_Other,SectionJ_Other_Arabic)","v":"غيرها"}]
[]
[{"$f":"IF(Settings_Language = \"English\",SectionJ_J4,SectionJ_J4_Araboc)","v":"ش.4: الفصول، حجرات المعلمين، المخازن، المعامل والورش، وغيرها من المرافق"}]
[]
[{"$f":"IF(Settings_Language = \"English\",SectionJ_Instruction,SectionJ_Instruction_Arabic)","v":"التعليمات"}]
[{"$f":"IF(Settings_Language = \"English\",SectionJ_J4_InstructionDesc,SectionJ_J4_InstructionDesc_Arabic)","v":"لكل نوع من المرافق ، فصول، او المعامل او الورش او المرفق يرجى إدخال عدد الغرف المتاحة، يرجى إدخال السعة الاستيعابية (عدد الطلاب) القادرين على إستخدام المرفق، في حالة توفر اكثر من غرفة ، يذكر إجمالي السعة "}]
[]
[]
[]
[{"$f":"IF(Settings_Language = \"English\",SectionJ_RoomFacility,SectionJ_RoomFacility_Arabic)","v":"الحجرة/ المرفق التعليمي"},null,null,null,null,null,null,null,{"$f":"IF(Settings_Language = \"English\",SectionJ_NumberOfRooms,SectionJ_NumberOfRooms_Arabic)","v":"عدد الحجرات"},null,null,null,null,null,{"$f":"IF(Settings_Language = \"English\",SectionJ_TotalCapacity,SectionJ_TotalCapacity_Arabic)","v":"السعة الكلية"}]
[{"$f":"IF(Settings_Language = \"English\",SectionJ_OrdinaryClassrooms,SectionJ_OrdinaryClassrooms_Arabic)","v":"فصل دراسي"}]
[{"$f":"IF(Settings_Language = \"English\",SectionJ_ArtCraf,SectionJ_ArtCraf_Arabic)","v":"فصل صالة فنون"}]
[{"$f":"IF(Settings_Language = \"English\",SectionJ_ComputerRoom,SectionJ_ComputerRoom_Arabic)","v":"فصل حجرة حاسوب"}]
[{"$f":"IF(Settings_Language = \"English\",SectionJ_MetalWork,SectionJ_MetalWork_Arabic)","v":"معمل ورشة حداده"}]
[{"$f":"IF(Settings_Language = \"English\",SectionJ_Cookery,SectionJ_Cookery_Arabic)","v":"فصل تعليم طبخ"}]
[{"$f":"IF(Settings_Language = \"English\",SectionJ_NeedleWork,SectionJ_NeedleWork_Arabic)","v":"فصل أشغال يدوية"}]
[{"$f":"IF(Settings_Language = \"English\",SectionJ_WoodWork,SectionJ_WoodWork_Arabic)","v":"فصل أعمال نجاره"}]
[{"$f":"IF(Settings_Language = \"English\",SectionJ_Agriculture,SectionJ_Agriculture_Arabic)","v":"فصل أعمال زراعية"}]
[{"$f":"IF(Settings_Language = \"English\",SectionJ_Buildings,SectionJ_Buildings_Arabic)","v":"مبنى غير محدد"}]
[{"$f":"IF(Settings_Language = \"English\",SectionJ_MusicRoom,SectionJ_MusicRoom_Arabic)","v":"غرفة موسيقى"}]
[{"$f":"IF(Settings_Language = \"English\",SectionJ_Library,SectionJ_Library_Arabic)","v":"مكتبه"}]
[{"$f":"IF(Settings_Language = \"English\",SectionJ_Hall,SectionJ_Hall_Arabic)","v":"صالة"}]
[{"$f":"IF(Settings_Language = \"English\",SectionJ_AdminBlock,SectionJ_AdminBlock_Arabic)","v":"جناح إداري"}]
[{"$f":"IF(Settings_Language = \"English\",SectionJ_StaffRoom,SectionJ_StaffRoom_Arabic)","v":"حجرة معلمين"}]
[{"$f":"IF(Settings_Language = \"English\",SectionJ_ToolStore,SectionJ_ToolStore_Arabic)","v":"مخزن معدات"}]
[{"$f":"IF(Settings_Language = \"English\",SectionJ_TuckShop,SectionJ_TuckShop_Arabic)","v":"مقصف"}]
[{"$f":"IF(Settings_Language = \"English\",SectionJ_MedicalRoom,SectionJ_MedicalRoom_Arabic)","v":"غرفة مداواة"}]
[]
[]
[{"$f":"IF(Settings_Language = \"English\",SectionJ_Facility,SectionJ_Facility_Arabic)","v":"مرافق النشاط"},null,null,null,null,null,null,null,{"$f":"IF(Settings_Language = \"English\",SectionJ_Number,SectionJ_Number_Arabic)","v":"العدد"}]
[{"$f":"IF(Settings_Language = \"English\",SectionJ_SportsField,SectionJ_SportsField_Arabic)","v":"ملعب رياضي"}]
[{"$f":"IF(Settings_Language = \"English\",SectionJ_NetballCourt,SectionJ_NetballCourt_Arabic)","v":"ملعب كرة مضرب"}]
[{"$f":"IF(Settings_Language = \"English\",SectionJ_SquashCourt,SectionJ_SquashCourt_Arabic)","v":"ملعب سكواش "}]
[{"$f":"IF(Settings_Language = \"English\",SectionJ_SwimmingPool,SectionJ_SwimmingPool_Arabic)","v":"مسبح"}]
[{"$f":"IF(Settings_Language = \"English\",SectionJ_TennisCourt,SectionJ_TennisCourt_Arabic)","v":"ملعب تنس ارضي"}]
[{"$f":"IF(Settings_Language = \"English\",SectionJ_VolleyballCourt,SectionJ_VolleyballCourt_Arabic)","v":"ملعب كرة طائرة"}]
[{"$f":"IF(Settings_Language = \"English\",SectionJ_Pavilion,SectionJ_Pavilion_Arabic)","v":"مسرح"}]
[{"$f":"IF(Settings_Language = \"English\",SectionJ_Gymnasium,SectionJ_Gymnasium_Arabic)","v":"صالة العاب قوى"}]
[{"$f":"IF(Settings_Language = \"English\",SectionJ_TherapyRoom,SectionJ_TherapyRoom_Arabic)","v":"صالة علاج طبيعي"}]
[{"$f":"IF(Settings_Language = \"English\",SectionJ_CultureCentre,SectionJ_CultureCentre_Arabic)","v":"مركز ثقافي"}]
[{"$f":"IF(Settings_Language = \"English\",SectionJ_AudiologicalRoom,SectionJ_AudiologicalRoom_Arabic)","v":"صالة دعم السمع"}]
[{"$f":"IF(Settings_Language = \"English\",SectionJ_BrailLaboratory,SectionJ_BrailLaboratory_Arabic)","v":"معمل بريل"}]
[{"$f":"IF(Settings_Language = \"English\",SectionJ_SickBayRoom,SectionJ_SickBayRoom_Arabic)","v":"حجرة إستراحة طبية"}]
[{"$f":"IF(Settings_Language = \"English\",SectionJ_StrongRoom,SectionJ_StrongRoom_Arabic)","v":"حجرة محمية"}]
[{"$f":"IF(Settings_Language = \"English\",SectionJ_Kitchen,SectionJ_Kitchen_Arabic)","v":"مطبخ"}]
[{"$f":"IF(Settings_Language = \"English\",SectionJ_DiningRoom,SectionJ_DiningRoom_Arabic)","v":"صالة أكل"}]
[{"$f":"IF(Settings_Language = \"English\",SectionJ_ComputerRoom,SectionJ_ComputerRoom_Arabic)","v":"فصل حجرة حاسوب"}]
[]
[{"$f":"IF(Settings_Language = \"English\",SectionJ_J4_1,SectionJ_J4_1_Arabic)","v":"1- هل المدرسة مجهزة بإمكانيات لذوي الاحتياجات الخاصة ؟"}]
[]
[{"$f":"IF(Settings_Language = \"English\",SectionJ_J2_2,SectionJ_J2_2_Arabic)","v":"2- هل المعدات مناسبة لإحتياجات طلاب االاحتياجات الخاصة"}]
[]
[{"$f":"IF(Settings_Language = \"English\",SectionJ_J5,SectionJ_J5_Arabic)","v":"ش.5: أماكن الجلوس والكتابة"}]
[{"$f":"IF(Settings_Language = \"English\",SectionJ_Instruction,SectionJ_Instruction_Arabic)","v":"التعليمات"}]
[{"$f":"IF(Settings_Language = \"English\",SectionJ_J5_InstructionDesc,SectionJ_J5_InstructionDesc_Arabic)","v":"المقاعد تعني المقاعد الزوجية او الفردية و تحسب بعدد الطلاب المناسب لاستخدامها"}]
[]
[]
[]
[null,null,null,null,null,{"$f":"IF(Settings_Language = \"English\",SectionJ_Grade1,SectionJ_Grade1_Arabic)","v":"سنة اولى"},null,null,{"$f":"IF(Settings_Language = \"English\",SectionJ_Grade2,SectionJ_Grade2_Arabic)","v":"سنة ثانية"},null,null,{"$f":"IF(Settings_Language = \"English\",SectionJ_Grade3,SectionJ_Grade3_Arabic)","v":"سنة ثالثة"},null,null,{"$f":"IF(Settings_Language = \"English\",SectionJ_Grade4,SectionJ_Grade4_Arabic)","v":"سنة رابعة"},null,null,{"$f":"IF(Settings_Language = \"English\",SectionJ_Grade5,SectionJ_Grade5_Arabic)","v":"سنة خامسة"},null,null,{"$f":"IF(Settings_Language = \"English\",SectionJ_Grade6,SectionJ_Grade6_Arabic)","v":"سنة سادسة"},null,null,{"$f":"IF(Settings_Language = \"English\",SectionJ_Grade7,SectionJ_Grade7_Arabic)","v":"سنة سابعة"},null,null,{"$f":"IF(Settings_Language = \"English\",SectionJ_Grade8,SectionJ_Grade8_Arabic)","v":"سنة ثامنة"},null,null,{"$f":"IF(Settings_Language = \"English\",SectionJ_Grade9,SectionJ_Grade9_Arabic)","v":"سنة تاسعة"}]
[{"$f":"IF(Settings_Language = \"English\",SectionJ_SittingsPlaces,SectionJ_SittingsPlaces_Arabic)","v":"أماكن جلوس (مقعد او كراسي)"}]
[{"$f":"IF(Settings_Language = \"English\",SectionJ_WritingsPlaces,SectionJ_WritingsPlaces_Arabic)","v":"أماكن  كتابة (مقعد او طاولة)"}]
[]
[{"$f":"IF(Settings_Language = \"English\",SectionJ_EnterNumOfTeachersFurniture,SectionJ_EnterNumOfTeachersFurniture_Arabic)","v":"أدخل قطع الاثاث الخاصة بالمعلم داخل الفصل"}]
[{"$f":"IF(Settings_Language = \"English\",SectionJ_Chairs,SectionJ_Chairs_Arabic)","v":"كراسي جلوس"},null,null,null,null,null,null,null,{"$f":"IF(Settings_Language = \"English\",SectionJ_Stools,SectionJ_Stools_Arabic)","v":"كرسي بدون متكئ"},null,null,null,null,null,null,null,{"$f":"IF(Settings_Language = \"English\",SectionJ_TablesDesks,SectionJ_TablesDesks_Arabic)","v":"طاولة / مقعد"}]
[{"$f":"IF(Settings_Language = \"English\",SectionJ_EWD,SectionJ_EWD_Arabic)","v":"سبورة ذكية"},null,null,null,null,null,null,null,{"$f":"IF(Settings_Language = \"English\",SectionJ_Blackboards,SectionJ_Blackboards_Arabic)","v":"سبورةعادية"},null,null,null,null,null,null,null,{"$f":"IF(Settings_Language = \"English\",SectionJ_Projector,SectionJ_Projector_Arabic)","v":"شاشة عرض مرئي"}]
[]
[{"$f":"IF(Settings_Language = \"English\",SectionJ_J6,SectionJ_J6_Arabic)","v":"ش.6: الكهرباء والاتصالات"}]
[{"$f":"IF(Settings_Language = \"English\",SectionJ_J6_1,SectionJ_J6_1_Arabic)","v":"1- في المتوسط كم عدد ساعات وفرة الكهرباء بالمدرسة ؟"}]
[]
[{"$f":"IF(Settings_Language = \"English\",SectionJ_J6_2,SectionJ_J6_2_Arabic)","v":"2- ما هو المصدر الرئيسي للكهرباء ؟"}]
[]
[]
[{"$f":"IF(Settings_Language = \"English\",SectionJ_J6_3,SectionJ_J6_3_Arabic)","v":"3-ما هو المصدر الثاني (الاحتياطي) للكهرباء بالمدرسة ؟"}]
[]
[]
[{"$f":"IF(Settings_Language = \"English\",SectionJ_J6_4,SectionJ_J6_4_Arabic)","v":" 4.هل يوجد بالمدرسة برج للإتصالات؟ لو الاجابة \"نعم\" إختر النوع"},null,null,null,null,null,null,null,null,null,null,null,null,null,null,null,null,null,null,null,null,null,{"$f":"IF(Settings_Language = \"English\",SectionJ_Almadar,SectionJ_Almadar_Arabic)","v":"المدار الجديد"},null,null,null,{"$f":"IF(Settings_Language = \"English\",SectionJ_Libyana,SectionJ_Libyana_Arabic)","v":"ليبيانا"},null,null,null,{"$f":"IF(Settings_Language = \"English\",SectionJ_LTT,SectionJ_LTT_Arabic)","v":"ال تي تي "}]
[]
[{"$f":"IF(Settings_Language = \"English\",SectionJ_J6_5,SectionJ_J6_5_Arabic)","v":"5. هل يوجد بالمدرسة برج ضغط عالي ؟"}]
[]
[{"$f":"IF(Settings_Language = \"English\",SectionJ_J7,SectionJ_J7_Arabic)","v":"ش.7: الرياضة والفنون والانشطة"}]
[{"$f":"IF(Settings_Language = \"English\",SectionJ_Instruction,SectionJ_Instruction_Arabic)","v":"التعليمات"}]
[{"$f":"IF(Settings_Language = \"English\",SectionJ_J7_InstructionDesc,SectionJ_J7_InstructionDesc_Arabic)","v":"إختر الرياضات والنشاطات التي تقام في المدرسة"}]
[]
[{"$f":"IF(Settings_Language = \"English\",SectionJ_Football,SectionJ_Football_Arabic)","v":"كرة قدم"},null,null,null,null,null,null,null,null,null,null,{"$f":"IF(Settings_Language = \"English\",SectionJ_NetballCourt,SectionJ_NetballCourt_Arabic)","v":"ملعب كرة مضرب"},null,null,null,null,null,null,null,null,null,null,null,{"$f":"IF(Settings_Language = \"English\",SectionJ_Tennis,SectionJ_Tennis_Arabic)","v":"تنس"}]
[{"$f":"IF(Settings_Language = \"English\",SectionJ_Athletics,SectionJ_Athletics_Arabic)","v":"العاب القوى"},null,null,null,null,null,null,null,null,null,null,{"$f":"IF(Settings_Language = \"English\",SectionJ_Rugby,SectionJ_Rugby_Arabic)","v":"رقبي"},null,null,null,null,null,null,null,null,null,null,null,{"$f":"IF(Settings_Language = \"English\",SectionJ_Volleyball,SectionJ_Volleyball_Arabic)","v":"كرة طارة"}]
[{"$f":"IF(Settings_Language = \"English\",SectionJ_Handball,SectionJ_Handball_Arabic)","v":"كرة اليد"},null,null,null,null,null,null,null,null,null,null,{"$f":"IF(Settings_Language = \"English\",SectionJ_Squash,SectionJ_Squash_Arabic)","v":"سكواش"},null,null,null,null,null,null,null,null,null,null,null,{"$f":"IF(Settings_Language = \"English\",SectionJ_Gymnastics,SectionJ_Gymnastics_Arabic)","v":"العاب القوى"}]
[{"$f":"IF(Settings_Language = \"English\",SectionJ_Basketball,SectionJ_Basketball_Arabic)","v":"كرة السلة"},null,null,null,null,null,null,null,null,null,null,{"$f":"IF(Settings_Language = \"English\",SectionJ_SwimingPool,SectionJ_SwimingPool_Arabic)","v":"سباحة"},null,null,null,null,null,null,null,null,null,null,null,{"$f":"IF(Settings_Language = \"English\",SectionJ_Chess,SectionJ_Chess_Arabic)","v":"شطرنج"}]
[{"$f":"IF(Settings_Language = \"English\",SectionJ_Theatre,SectionJ_Theatre_Arabic)","v":"مسرح"},null,null,null,null,null,null,null,null,null,null,{"$f":"IF(Settings_Language = \"English\",SectionJ_Others,SectionJ_Others_Arabic)","v":"غيرها"},null,null,null,null,null,null,null,null,null,null,null,{"$f":"IF(Settings_Language = \"English\",SectionJ_Others,SectionJ_Others_Arabic)","v":"غيرها"}]
[{"$f":"IF(Settings_Language = \"English\",SectionJ_Others,SectionJ_Others_Arabic)","v":"غيرها"}]

{"sheet":"SECTION K","index":11,"n_rows":51,"n_cols":31,"rows_kept":51,"cut":false,"hidden":false,"merged":[[7,0,7,7],[8,0,8,7],[9,0,9,7],[10,0,10,7],[2,0,2,31],[7,8,7,11],[7,12,7,15],[7,16,7,19],[7,20,7,23],[7,24,7,27],[8,8,8,11],[9,8,9,11],[10,8,10,11],[8,12,8,15],[9,12,9,15],[10,12,10,15],[41,0,41,26],[33,0,33,23],[35,0,35,31],[28,0,28,26],[29,0,29,26],[30,0,30,26],[31,0,31,26],[39,0,39,26],[40,0,40,26],[47,0,47,26],[48,0,48,26],[49,0,49,26],[50,0,50,26],[50,30,50,32],[50,27,50,29],[48,27,48,30],[0,0,0,31],[16,0,16,31],[4,8,6,15],[4,16,6,23],[4,24,6,31],[7,28,7,31],[9,16,9,19],[10,16,10,19],[8,20,8,23],[9,20,9,23],[10,20,10,23],[8,24,8,27],[9,24,9,27],[10,24,10,27],[8,28,8,31],[9,28,9,31],[8,16,8,19],[10,28,10,31],[12,27,12,30],[14,27,14,30],[19,27,19,30],[12,0,12,26],[13,0,13,26],[14,0,14,26],[17,0,17,23],[19,0,19,26],[17,24,17,30],[25,27,25,30],[27,27,27,30],[31,27,31,30],[33,24,33,30],[22,0,22,26],[23,0,23,26],[24,0,24,26],[25,0,25,26],[26,0,26,26],[27,0,27,26],[20,0,20,26],[21,0,21,26],[46,0,46,26],[37,0,37,26],[21,27,21,30],[23,27,23,30],[46,27,46,30],[29,27,29,30],[37,27,37,30],[39,27,39,30],[41,27,41,30],[44,27,44,30],[43,0,43,31],[44,0,44,26],[45,0,45,26],[38,0,38,26]]}
[{"$f":"IF(Settings_Language = \"English\",SectionK_Title,SectionK_Title_Arabic)","v":"القسم ص: البيئة والصحة المدرسية"}]
[]
[{"$f":"IF(Settings_Language = \"English\",SectionK_K1,SectionK_K1_Arabic)","v":"ص.1: عدد دورات المياه المخصصة للطلبة والمعلمين"}]
[]
[null,null,null,null,null,null,null,null,{"$f":"IF(Settings_Language = \"English\",SectionK_NumOfFunctioningToiletsKG,SectionK_NumOfFunctioningToiletsKG_Arabic)","v":"عدد المراحيض العاملة لطلاب رياض الاطفال"},null,null,null,null,null,null,null,{"$f":"IF(Settings_Language = \"English\",SectionK_NumOfFunctioningToiletsPrimary,SectionK_NumOfFunctioningToiletsPrimary_Arabic)","v":"عدد المراحيض العاملة لطلاب التعليم الاساسي"},null,null,null,null,null,null,null,{"$f":"IF(Settings_Language = \"English\",SectionK_NumOfFunctioningToiletsTeachers,SectionK_NumOfFunctioningToiletsTeachers_Arabic)","v":"عدد المراحيض العاملة للمعلمين"}]
[]
[]
[{"$f":"IF(Settings_Language = \"English\",SectionK_WaterClosets,SectionK_WaterClosets_Arabic)","v":0},null,null,null,null,null,null,null,{"$f":"IF(Settings_Language = \"English\",SectionI_Male,SectionI_Male_Arabic)","v":"ذكور"},null,null,null,{"$f":"IF(Settings_Language = \"English\",SectionI_Female,SectionI_Female_Arabic)","v":"إناث"},null,null,null,{"$f":"IF(Settings_Language = \"English\",SectionI_Male,SectionI_Male_Arabic)","v":"ذكور"},null,null,null,{"$f":"IF(Settings_Language = \"English\",SectionI_Female,SectionI_Female_Arabic)","v":"إناث"},null,null,null,{"$f":"IF(Settings_Language = \"English\",SectionI_Male,SectionI_Male_Arabic)","v":"ذكور"},null,null,null,{"$f":"IF(Settings_Language = \"English\",SectionI_Female,SectionI_Female_Arabic)","v":"إناث"}]
[{"$f":"IF(Settings_Language = \"English\",SectionK_BlairToilets,SectionK_BlairToilets_Arabic)","v":"مراحيض جلوس (عربي)"}]
[{"$f":"IF(Settings_Language = \"English\",SectionK_PitLatrines,SectionK_PitLatrines_Arabic)","v":"مراحيض جلوس (افرنجي)"}]
[{"$f":"IF(Settings_Language = \"English\",SectionK_Urinary,SectionK_Urinary_Arabic)","v":"مراحيض تبول"}]
[]
[{"$f":"IF(Settings_Language = \"English\",SectionK_DoesSchoolHaveToiletsForSpecialNeeds,SectionK_DoesSchoolHaveToiletsForSpecialNeeds_Arabic)","v":"هل لدى المدرسة مراحيض لذوي الاحتياجات الخاصة؟"}]
[]
[{"$f":"IF(Settings_Language = \"English\",SectionK_DoesSchoolHaveIncinerators,SectionK_DoesSchoolHaveIncinerators_Arabic)","v":"هل يوجد بالمدرسة محرقة (عادم) نفايات؟"}]
[]
[{"$f":"IF(Settings_Language = \"English\",SectionK_K2,SectionK_K2_Arabic)","v":"ص.2: المياه"}]
[{"$f":"IF(Settings_Language = \"English\",SectionK_K2_1,SectionK_K2_1_Arabic)","v":"1-: مصدر المياه ، يرجى إختيار مكان مصدر المياه"}]
[]
[{"$f":"IF(Settings_Language = \"English\",SectionK_K2_2,SectionK_K2_2_Arabic)","v":"2-: هل المياه صالحة للشرب؟"}]
[]
[{"$f":"IF(Settings_Language = \"English\",SectionK_K2_3,SectionK_K2_3_Arabic)","v":"3-: هل هناك ما يطفي من المياه للطلاب والمعلمين والموظفين؟"}]
[]
[{"$f":"IF(Settings_Language = \"English\",SectionK_K2_4,SectionK_K2_4_Arabic)","v":"4-: هل يوجد محطات غسل يدين عاملة؟"}]
[]
[{"$f":"IF(Settings_Language = \"English\",SectionK_K2_5,SectionK_K2_5_Arabic)","v":"5-: هل المياه متوفرة طيلة السنة؟"}]
[]
[{"$f":"IF(Settings_Language = \"English\",SectionK_K2_6,SectionK_K2_6_Arabic)","v":"6-: هل المنطقة المحيطة بالمدرسة تستخدم في مصدر المياه الموجود بالمدرسة؟"}]
[]
[{"$f":"IF(Settings_Language = \"English\",SectionK_K2_7,SectionK_K2_7_Arabic)","v":"7-: معالجة المياه"}]
[]
[{"$f":"IF(Settings_Language = \"English\",SectionK_K2_8,SectionK_K2_8_Arabic)","v":"8-: بعد مصدر المياه عن المدرسة"}]
[]
[{"$f":"IF(Settings_Language = \"English\",SectionK_K2_9,SectionK_K2_9_Arabic)","v":"9-: هل لدى المدرسة نظام إطفاء الحريق (اسطوانات)؟"}]
[]
[{"$f":"IF(Settings_Language = \"English\",SectionK_K3,SectionK_K3_Arabic)","v":"ص.3: الاطفال ذوي الاحتياجات الخاصة"}]
[]
[{"$f":"IF(Settings_Language = \"English\",SectionK_K3_1,SectionK_K3_1_Arabic)","v":"1-: هل يوجد مدخل خاص بذوي الاحتياجات الخاصة؟"}]
[]
[{"$f":"IF(Settings_Language = \"English\",SectionK_K3_2,SectionK_K3_2_Arabic)","v":"2-: هل لدى المدرسة فصول بالادوار الارضي؟"}]
[]
[{"$f":"IF(Settings_Language = \"English\",SectionK_K3_3,SectionK_K3_3_Arabic)","v":"3-: هل لدى المدرسة معامل في الادوار الارضية؟"}]
[]
[{"$f":"IF(Settings_Language = \"English\",SectionK_K4,SectionK_K4_Arabic)","v":"ص.4: التغذية والصحة"}]
[{"$f":"IF(Settings_Language = \"English\",SectionK_K4_1,SectionK_K4_1_Arabic)","v":"1-: هل يوجد نظام تغذية بالمدرسة؟"}]
[]
[{"$f":"IF(Settings_Language = \"English\",SectionK_K4_2,SectionK_K4_2_Arabic)","v":"2-: هل يوجد معل تغذية متخصص بالمدرسة؟"}]
[]
[{"$f":"IF(Settings_Language = \"English\",SectionK_K4_3,SectionK_K4_3_Arabic)","v":"3-: هل لدى المدرسة نادي صحي ؟"}]
[]
[{"$f":"IF(Settings_Language = \"English\",SectionK_K4_4,SectionK_K4_4_Arabic)","v":"4-: المسافة بالكيلومتر لاقرب مصحة او مستشفى من المدرسة "},null,null,null,null,null,null,null,null,null,null,null,null,null,null,null,null,null,null,null,null,null,null,null,null,null,null,null,null,null,{"$f":"IF(Settings_Language = \"English\",SectionK_KM,SectionK_KM_Arabic)","v":"كم"}]

{"sheet":"SECTION L","index":12,"n_rows":42,"n_cols":28,"rows_kept":42,"cut":false,"hidden":false,"merged":[[37,0,37,10],[38,0,38,10],[39,0,39,10],[41,0,41,10],[41,18,41,26],[36,18,36,26],[37,18,37,26],[38,18,38,26],[24,0,24,10],[25,0,25,10],[26,0,26,10],[27,0,27,10],[28,0,28,10],[29,0,29,10],[30,0,30,10],[31,0,31,10],[32,0,32,10],[33,0,33,10],[34,0,34,10],[35,0,35,10],[36,0,36,10],[31,18,31,26],[32,18,32,26],[33,18,33,26],[34,18,34,26],[35,18,35,26],[26,18,26,26],[27,18,27,26],[28,18,28,26],[29,18,29,26],[30,18,30,26],[24,18,24,26],[25,18,25,26],[24,11,24,15],[25,11,25,15],[24,27,24,31],[25,27,25,31],[31,27,31,31],[32,27,32,31],[33,27,33,31],[41,27,41,31],[41,11,41,15],[34,27,34,31],[35,27,35,31],[36,27,36,31],[37,27,37,31],[38,27,38,31],[36,11,36,15],[37,11,37,15],[38,11,38,15],[39,11,39,15],[35,11,35,15],[31,11,31,15],[26,27,26,31],[27,27,27,31],[28,27,28,31],[29,27,29,31],[30,27,30,31],[32,11,32,15],[33,11,33,15],[34,11,34,15],[26,11,26,15],[27,11,27,15],[28,11,28,15],[29,11,29,15],[30,11,30,15],[3,0,3,23],[3,24,3,31],[4,24,4,31],[5,24,5,31],[14,9,14,15],[13,0,13,8],[22,27,23,31],[17,9,17,15],[22,18,23,26],[18,9,18,15],[13,25,13,31],[14,25,14,31],[15,9,15,15],[16,9,16,15],[13,9,13,15],[17,0,17,8],[18,0,18,8],[20,0,20,31],[0,0,0,31],[22,11,23,15],[22,0,23,10],[8,0,8,30],[9,0,11,30],[2,0,2,23],[4,0,4,23],[5,0,5,23],[7,0,7,31],[14,18,14,24],[14,0,14,8],[15,0,15,8],[16,0,16,8]]}
[{"$f":"IF(Settings_Language = \"English\",SectionL_Title,SectionL_Title_Arabic)","v":"القسم ض: الشؤون المالية للمدرسة والانفاق"}]
[]
[{"$f":"IF(Settings_Language = \"English\",SectionL_L1,SectionL_L1_Arabic)","v":"ض.1: رسوم الدراسة للسنة الحالية"}]
[{"$f":"IF(Settings_Language = \"English\",SectionL_CurrentAcademicYear,SectionL_CurrentAcademicYear_Arabic)","v":"رسوم السنة الحالية (يرجى إدخال القيمة الكلية للرسوم المدفوعة من قبل الطالب)"},null,null,null,null,null,null,null,null,null,null,null,null,null,null,null,null,null,null,null,null,null,null,null,{"$f":"IF(Settings_Language = \"English\",SectionL_AmountLYD,SectionL_AmountLYD_Arabic)","v":"القيمة د.ل"}]
[{"$f":"IF(Settings_Language = \"English\",SectionL_L1_1,SectionL_L1_1_Arabic)","v":"رسوم التكاليف لكل طالب لهذه السنة"}]
[{"$f":"IF(Settings_Language = \"English\",SectionL_L1_2,SectionL_L1_2_Arabic)","v":"رسوم تكاليف إقامة الداخلي لكل طالب"}]
[]
[{"$f":"IF(Settings_Language = \"English\",SectionL_L2,SectionL_L2_Arabic)","v":"ض.2: الحسابات العامة للسنة الماضية"}]
[{"$f":"IF(Settings_Language = \"English\",SectionL_Instruction,SectionL_Instruction_Arabic)","v":"التعليمات"}]
[{"$f":"IF(Settings_Language = \"English\",SectionL_InstructionDesc,SectionL_InstructionDesc_Arabic)","v":"يرجى إستكمال المعلومات المالية للسنة الماضية، القسم التالي يجب تعبئته فقط بمعلومات حسابات التحصيل والانفاق الفعلية وليس الميزانيات ومبالغ التخطيط. لو يوجد اي بند تحصيل (دخل) او بند إنفاق غير مذكور في التفصيل يرجى إضافته تحت بند (أخرى)"}]
[]
[]
[]
[{"$f":"IF(Settings_Language = \"English\",SectionL_SourceOfRevenue,SectionL_SourceOfRevenue_Arabic)","v":"مصادر الدخل"},null,null,null,null,null,null,null,null,{"$f":"IF(Settings_Language = \"English\",SectionL_AmountDinar,SectionL_AmountDinar_Arabic)","v":"القيمة بالدينار"},null,null,null,null,null,null,null,null,null,null,null,null,null,null,null,{"$f":"IF(Settings_Language = \"English\",SectionL_AmountDinar,SectionL_AmountDinar_Arabic)","v":"القيمة بالدينار"}]
[{"$f":"IF(Settings_Language = \"English\",SectionL_FromParents,SectionL_FromParents_Arabic)","v":"من أولياء الامور"},null,null,null,null,null,null,null,null,null,null,null,null,null,null,null,null,null,{"$f":"IF(Settings_Language = \"English\",SectionL_TotalExpenditure,SectionL_TotalExpenditure_Arabic)","v":"إجمالي الانفاقات"}]
[{"$f":"IF(Settings_Language = \"English\",SectionL_FromCommunity,SectionL_FromCommunity_Arabic)","v":"من الحي"}]
[{"$f":"IF(Settings_Language = \"English\",SectionL_FromGovernment,SectionL_FromGovernment_Arabic)","v":"من الحكومة"}]
[{"$f":"IF(Settings_Language = \"English\",SectionL_FromOther,SectionL_FromOther_Arabic)","v":"من أخرين"}]
[{"$f":"IF(Settings_Language = \"English\",SectionL_TotalRevenue,SectionL_TotalRevenue_Arabic)","v":"إجمالي الدخل"},null,null,null,null,null,null,null,null,{"$f":"SUM(J15:P18)","v":0}]
[]
[{"$f":"IF(Settings_Language = \"English\",SectionL_L3,SectionL_L3_Arabic)","v":"ض.3: الحسابات التفصيلية للسنة الماضية"}]
[]
[{"$f":"IF(Settings_Language = \"English\",SectionL_SchoolRevenueIncome,SectionL_SchoolRevenueIncome_Arabic)","v":"دخل المدرسة"},null,null,null,null,null,null,null,null,null,null,{"$f":"IF(Settings_Language = \"English\",SectionL_AmountUSD,SectionL_AmountUSD_Arabic)","v":"القيمة بالدينار"},null,null,null,null,null,null,{"$f":"IF(Settings_Language = \"English\",SectionL_Expenditure,SectionL_Expenditure_Arabic)","v":"الانفاق"},null,null,null,null,null,null,null,null,{"$f":"IF(Settings_Language = \"English\",SectionL_AmountUSD,SectionL_AmountUSD_Arabic)","v":"القيمة بالدينار"}]
[]
[{"$f":"IF(Settings_Language = \"English\",SectionL_TuitionFees,SectionL_TuitionFees_Arabic)","v":"رسوم التسجيل بالمدرسة"},null,null,null,null,null,null,null,null,null,null,null,null,null,null,null,null,null,{"$f":"IF(Settings_Language = \"English\",SectionL_TextbookStationaryEtc,SectionL_TextbookStationaryEtc_Arabic)","v":"الكتب والقرطاسية"}]
[{"$f":"IF(Settings_Language = \"English\",SectionL_BuildingLevy,SectionL_BuildingLevy_Arabic)","v":"إعفاءات تراخيص البناء"},null,null,null,null,null,null,null,null,null,null,null,null,null,null,null,null,null,{"$f":"IF(Settings_Language = \"English\",SectionL_PracticalSubjEquipment,SectionL_PracticalSubjEquipment_Arabic)","v":"معدات خاصة بالمواد"}]
[{"$f":"IF(Settings_Language = \"English\",SectionL_SchoolSDCSDALevy,SectionL_SchoolSDCSDALevy_Arabic)","v":"إعفاءات تراخيص المدرسة"},null,null,null,null,null,null,null,null,null,null,null,null,null,null,null,null,null,{"$f":"IF(Settings_Language = \"English\",SectionL_WaterLightSanitaryCharges,SectionL_WaterLightSanitaryCharges_Arabic)","v":"تكاليف الكهرباء و الصرف الصحي"}]
[{"$f":"IF(Settings_Language = \"English\",SectionL_BoardingLevy,SectionL_BoardingLevy_Arabic)","v":"إعفاءات رسوم الداخلي"},null,null,null,null,null,null,null,null,null,null,null,null,null,null,null,null,null,{"$f":"IF(Settings_Language = \"English\",SectionL_CommunicationServices,SectionL_CommunicationServices_Arabic)","v":"خدمات الاتصالات"}]
[{"$f":"IF(Settings_Language = \"English\",SectionL_PerCapitaGrants,SectionL_PerCapitaGrants_Arabic)","v":"الدعم الفردي للمقيدين"},null,null,null,null,null,null,null,null,null,null,null,null,null,null,null,null,null,{"$f":"IF(Settings_Language = \"English\",SectionL_Salaries,SectionL_Salaries_Arabic)","v":"المرتبات"}]
[{"$f":"IF(Settings_Language = \"English\",SectionL_SalaryGrants,SectionL_SalaryGrants_Arabic)","v":"دعم المرتبات"},null,null,null,null,null,null,null,null,null,null,null,null,null,null,null,null,null,{"$f":"IF(Settings_Language = \"English\",SectionL_Trips,SectionL_Trips_Arabic)","v":"الرحلات"}]
[{"$f":"IF(Settings_Language = \"English\",SectionL_ExternalAid,SectionL_ExternalAid_Arabic)","v":"الدعم الخارجي"},null,null,null,null,null,null,null,null,null,null,null,null,null,null,null,null,null,{"$f":"IF(Settings_Language = \"English\",SectionL_Buildings,SectionL_Buildings_Arabic)","v":"المباني"}]
[{"$f":"IF(Settings_Language = \"English\",SectionL_BuildingGrants,SectionL_BuildingGrants_Arabic)","v":"الدعم الخاص بالبناء"},null,null,null,null,null,null,null,null,null,null,null,null,null,null,null,null,null,{"$f":"IF(Settings_Language = \"English\",SectionL_SchoolManagement,SectionL_SchoolManagement_Arabic)","v":"إدارة المدرسة"}]
[{"$f":"IF(Settings_Language = \"English\",SectionL_Rentals,SectionL_Rentals_Arabic)","v":"الايجارات (لمرافق المدرسة)"},null,null,null,null,null,null,null,null,null,null,null,null,null,null,null,null,null,{"$f":"IF(Settings_Language = \"English\",SectionL_FringeBenefits,SectionL_FringeBenefits_Arabic)","v":"إعانات أخرى"}]
[{"$f":"IF(Settings_Language = \"English\",SectionL_GeneralPurposeFund,SectionL_GeneralPurposeFund_Arabic)","v":"الدعم العام"},null,null,null,null,null,null,null,null,null,null,null,null,null,null,null,null,null,{"$f":"IF(Settings_Language = \"English\",SectionL_Repairs,SectionL_Repairs_Arabic)","v":"الصيانة"}]
[{"$f":"IF(Settings_Language = \"English\",SectionL_BoardingsFees,SectionL_BoardingsFees_Arabic)","v":"رسوم الداخلي"},null,null,null,null,null,null,null,null,null,null,null,null,null,null,null,null,null,{"$f":"IF(Settings_Language = \"English\",SectionL_SportArtsAndCulture,SectionL_SportArtsAndCulture_Arabic)","v":"الرياضة والفنون والثقافة"}]
[{"$f":"IF(Settings_Language = \"English\",SectionL_Transport,SectionL_Transport_Arabic)","v":"رسوم  النقل"},null,null,null,null,null,null,null,null,null,null,null,null,null,null,null,null,null,{"$f":"IF(Settings_Language = \"English\",SectionL_Boarding,SectionL_Boarding_Arabic)","v":"الداخلي"}]
[{"$f":"IF(Settings_Language = \"English\",SectionL_Exams,SectionL_Exams_Arabic)","v":"الامتحانات"},null,null,null,null,null,null,null,null,null,null,null,null,null,null,null,null,null,{"$f":"IF(Settings_Language = \"English\",SectionL_TeacherTraining,SectionL_TeacherTraining_Arabic)","v":"تدريب المعلمين"}]
[{"$f":"IF(Settings_Language = \"English\",SectionL_SchoolManagement,SectionL_SchoolManagement_Arabic)","v":"إدارة المدرسة"},null,null,null,null,null,null,null,null,null,null,null,null,null,null,null,null,null,{"$f":"IF(Settings_Language = \"English\",SectionL_Exams,SectionL_Exams_Arabic)","v":"الامتحانات"}]
[{"$f":"IF(Settings_Language = \"English\",SectionL_SchoolActivitiesIncludingSport,SectionL_SchoolActivitiesIncludingSport_Arabic)","v":"نشاطات المدرسة بما فيها الرياضية"},null,null,null,null,null,null,null,null,null,null,null,null,null,null,null,null,null,{"$f":"IF(Settings_Language = \"English\",SectionL_Other,SectionL_Other_Arabic)","v":"أخرى"}]
[{"$f":"IF(Settings_Language = \"English\",SectionL_Other,SectionL_Other_Arabic)","v":"أخرى"}]
[]
[{"$f":"IF(Settings_Language = \"English\",SectionL_TotalRevenue,SectionL_TotalRevenue_Arabic)","v":"إجمالي الدخل"},null,null,null,null,null,null,null,null,null,null,{"$f":"SUM(L25:P40)","v":0},null,null,null,null,null,null,{"$f":"IF(Settings_Language = \"English\",SectionL_TotalExpenditure,SectionL_TotalExpenditure_Arabic)","v":"إجمالي الانفاقات"},null,null,null,null,null,null,null,null,{"$f":"SUM(AB25:AF39)","v":0}]

{"sheet":"Info","index":13,"n_rows":118,"n_cols":16,"rows_kept":118,"cut":false,"hidden":false,"merged":[]}
["SectionB Responsible Authority","Translations","SectionC ","Translations","Section D","Translations","Section I","Translations","Section J","Translations","Section L","Translations","Municipality","Translations"]
["   ",null,"Level of School","مستويات التعليم بالمدرسة"]
["Government","حكومية","   ",null,"Does the school have any E-Learning Programmes? ","البرامج؟","Does the school have a school development plan?","هل لدى المدرسة خطة للتطوير ؟","Did the school suffer damages ","هل يوجد أضرار بالمدرسة","Source of Water ","مصدر المياه","Tobruk","طبرق","C 1. Level of School (tick one or more boxes as applicable)"]
["Mission","بعثة","KG (KG1 and KG2)","رياض أطفال (1،2)","   ",null,"   ",null,"   ",null,"   ",null,"Gobba","القبة","KG (KG1 and KG2)",false]
["Private Company","خاصة","Primary (1-6)","إبتدائي (1-6)","Yes","نعم","Yes","نعم","Yes","نعم","None","لا يوجد","Abrag","الابرق"," Primary (1-6)",false]
["City Council","البلدية","Intermediate (7-9)","إعدادي (7-9)","No","لا","No","لا","No","لا يوجد","Piped Water","مياه الشبكة العامة","Baida","البيضاء"," Intermediate (7-9)",false]
["Other ","غيرها",null,null,null,null,null,null,null,null,"Water Tank","مياه خزان","Shahhat","شحات"]
[null,null,"Number of Sessions the school operates ","عدد فترات الدراسة بالمدرسة","Are rooms with computers fitted with burglar bars? ",null,"Was the previous school development plan approved by the municipal authority?",null,"When did the school receive damage ","متى حدتث الاضرار بالمدرسة","Protected Well","بئر محمي","Marj","المرج","C 7. Offered Services"]
[null,null,"   ",null,"   ",null,"   ",null,"   ",null,"Unprotected Well","بئر غير محمي","Jardas Alabeed","جردس العبيد","KG",false]
[null,null,"One Session","فترة واحده","Yes","نعم","Yes","نعم","Before the revolution","قبل الثورة","Bottled Water","مياه قنينات","Gminis","قمينس"," Primary part 1",false]
[null,null,"Two (double) sessions","فترتين","No","لا","No","لا","During the revolution","أثناء الثورة",null,null,"Sloug","سلوق"," Primary part 2",false]
[null,null,null,null,null,null,null,null,"After the revolution","بعد الثورة","Treatment of water ","معالجة المياه","Benghazi","بنغازي"," Intermediate",false]
[null,null,"Service Type ","نوع الخدمة","Is internet connectivity",null,"Does the school have a Parent Teacher Association (PTA)? (tick one box)","هل لدى المدرسة مجلس للأباء (اختر صندوق واحد فقط)",null,null,"   ",null,"Ajdabia","اجدابيا"," Home study",false]
[null,null,"   ",null,"   ",null,"   ",null,"Extent of damage ","أثار الضرر","Treated","مياه معالجة","Koufra","الكفرة"," Adult Education",false]
[null,null,"Special School","مدرسة خاصة","None","لا يوجد","Yes","نعم","   ",null,"Not Treated","مباه غير معالجة","Tazerbo","تازربو"," Literacy"]
[null,null,"Non Special School","مدرسة غير خاصة","Dial-up","عبر الهاتف","No","لا","Partial","جزئي",null,null,"Aujla","اوجلة"]
[null,null,"Both","الاثنين","Broadband (WiMAX, DSL)","واي ماكس او دي اس ال",null,null,"Full","كلي","Distance  of water source from the schoo","مسافة مصدر المياه من المدرسة","Jalu","جالو","C 9. Tick boxes for grades involved in multi-grade teaching "]
[null,null,null,null,"Radio link","رابط لا سلكي","Current Pos",null,null,null,"   ",null,"Sirte","سرت"]
[null,null,"Mode of Operation ","طريقة عمل المدرسة",null,null,"   ",null,"Main source of electricity",null,"< 500 meters","اقل من 500 متر","Joufra","الجفرة","Grade 1",false]
[null,null,"   ",null,null,null,"School Head Teacher","مدير مدرسة","   ",null,"> 500 meters","اكثر من 500 متر","Brak Ashshati","براك الشاطي","Grade 2",false]
[null,null,"Day School","نهارية",null,null,"Deputy School Head Teacher for Morning Session","مساعد مدير مدرسة للفترة الصباحية","None","لا يوجد",null,null,"Idri Ashshati","ادري الشاطئ","Grade 3",false]
[null,null,"Boarding School","داخلية",null,null,"Deputy School Head Teacher for Evening Session","مساعد مدير مدرسة للفترة المسائية","Grid*","الشبكة العامة",null,null,"Shrgia","الشرقية","Grade 4",false]
[null,null,"Day and Boarding ","نهارية وداخلية",null,null,"Admin Supervisor","مشرف إداري","Generator","مولد",null,null,"Wadi Itba","وادي عتبة","Grade 5",false]
[null,null,null,null,null,null,"Data Entry","مدخل بيانات","Solar","طاقة شمسية",null,null,"Tragin","تراغن","Grade 6",false]
[null,null,"Location of school ",null,null,null,"Finance Supervisor","مشرف مالي","Other","غيرها",null,null,"Aubari","اوباري","Grade 7"]
[null,null,"   ",null,null,null,"Sociologist","اخصائي إجتماعي",null,null,null,null,"Ghat","غات","Grade 8",false]
[null,null,"Urban ","حضرية",null,null,"Psychiatrist","مرشد نفسي","Does the school have fire fighting cylinders? ","هل لدى المدرسة نظام لإطفاء الحريق",null,null,"Bint baia","بنت بيه","Grade 9",false]
[null,null,"Rural","ريفية",null,null,"Exam Affairs ","شؤون إمتحانات","   ",null,null,null,"Zlitin","زليتن"]
[null,null,"Desert","صحراوية",null,null,"Students Affairs","منسق شؤون الطلاب","Valid","صالح",null,null,"Msillatah","مسلاتة","D 8. Which of the following technologies do you use for educational purposes?"]
[null,null,"Mountainous","جبليه",null,null,"Education Supervisor","مشرف تربوي","Not Valid","غير صالح",null,null,"Garaboulli","القره بوللي"]
[null,null,null,null,null,null,"Subject Expert (Full-Time)","خبير مادة \"متفرغ\"","Does not exist","لا يوجد",null,null,"Tajoura","تاجوراء","None",false]
[null,null,"Classification of school ",null,null,null,"Special Needs Teacher","معلم فئات خاصه",null,null,null,null,"Swani","السواني","Radio",false]
[null,null,null,null,null,null,"Coordinator of Home Study","منسق منزلية التعليم","Room / Facility","الفصول / التجهيزات",null,null,"Janzour","جنزور","Television",false]
[null,null,"Government (Public)","حكومية (عامة)",null,null,"Coordinator of Training and Substitute Teachers","منسق الاحتياط العام والتدريب","   ",null,null,null,"Zahra","الزهراء","Multimedia",false]
[null,null,"Non Government (Private)","غير حكومية (خاصة)",null,null,"Coordinator of Quality and Performance","منسق برامج الجودة وتقييم الاداء","Ordinary classrooms","فصل دراسي",null,null,"Maya","الماية","Satellite",false]
[null,null,null,null,null,null,"Science Lab Supervisor","مشرف معمل علوم","Art & Craft","فصل صالة فنون",null,null,"Zwara","زوارة"]
[null,null,"School Type ",null,null,null,"IT Lab Supervisor","مشرف معمل حاسوب","Computer room","فصل حجرة حاسوب",null,null,"Ajilat","العجيلات","J 4. Does the school have telecom towers?  If so, note which type"]
[null,null,null,null,null,null,"Librarian","امين مكتبة","Metalwork","معمل ورشة حداده",null,null,"Zultn","زلطن","Almadar",false]
[null,null,"Male","بنين",null,null,"Activities Coordinator","منسق نشاط","Cookery","فصل تعليم طبخ",null,null,"Batin Aljabal","باطن الجبل","Libyana",false]
[null,null,"Female","بنات",null,null,"Health Practitioner and Supervisor","مشرف ومسعف صحي","Needlework","فصل أشغال يدوية",null,null,"Gharian","غريان","LTT",false]
[null,null,"Mixed","مختلطه",null,null,"Gardener","بستاني","Woodwork","فصل أعمال نجاره",null,null,"Kikla","ككلة"]
[null,null,null,null,null,null,"Nursery","حاضنة أطفال","Agriculture","فصل أعمال زراعية",null,null,"Galaa","القلعة"]
[null,null,"Does the school have multi-grade (composite) teaching",null,null,null,"Store Supervisor","أمين مخزن","Buildings","مبنى",null,null,"Ryayna","الرياينة"]
[null,null,null,null,null,null,"General Service","خدمات عامة","Music room","غرفة موسيقى",null,null,"Asabaa","الاصابعة"]
[null,null,"Yes ","نعم",null,null,"Maintenance Technician","فني صيانة","Library","مكتبه",null,null,"Rujban","الرجبان"]
[null,null,"No","لا",null,null,"Guard","فرد حراسة","Hall","صالة",null,null,"Zintan","الزنتان"]
[null,null,null,null,null,null,"Janitor","عامل نظافة","Admin. Block","جناح إداري",null,null,"Hraba","الحرابة"]
[null,null,null,null,null,null,"Teacher","معلم","Staff room","حجرة مدرسين",null,null,"Nalout","نالوت"]
[null,null,null,null,null,null,null,null,"Tool store","مخزن معدات",null,null,"Wazin","وازن"]
[null,null,null,null,null,null,"Nationality",null,"Tuck Shop","مقصف",null,null,"Hwamed","الحوامد"]
[null,null,null,null,null,null,"   ",null,"Medical Room","غرفة مداواة",null,null,"Kabaou","كاباو"]
[null,null,null,null,null,null,"Libyan","ليبي",null,null,null,null,"Nesma","نسمة"]
[null,null,null,null,null,null,"Egyptian","مصري","Facility",null,null,null,"Gdamis","غدامس"]
[null,null,null,null,null,null,"Iraq","عراقي","   ",null,null,null,"Gigib","القيقب"]
[null,null,null,null,null,null,"Palestinian","فلسطيني","Sports field (e.g.: football)","ملعب رياضي",null,null,"Beir Alashhar","بير الاشهب"]
[null,null,null,null,null,null,"Syrian","سوري","Basketball court","ملعب كرة سلة",null,null,"Gatroun","القطرون"]
[null,null,null,null,null,null,"Tunisian ","تونسي","Netball court","ملعب كرة مضرب",null,null,"Ghrifa","الغريفة"]
[null,null,null,null,null,null,"Other","غيرهم","Squash court","ملعب سكواش ",null,null,"Garda","القرضة"]
[null,null,null,null,null,null,null,null,"Swimming pool","مسبح",null,null,"Jmail","الجميل"]
[null,null,null,null,null,null,"Highest Qualification Code",null,"Tennis court","ملعب تنس ارضي",null,null,"Ein Zara","عين  زارة"]
[null,null,null,null,null,null,"   ",null,"Volleyball court","ملعب كرة طائرة",null,null,"Gharb Azzzawia","غرب الزاوية"]
[null,null,null,null,null,null,"01 - Graduate with Teaching Qualification","خريج  مع مؤهل تربوي","Pavilion","مسرح",null,null,"Abu Salim","ابوسليم"]
[null,null,null,null,null,null,"02 - Graduate without Teaching Qualification","خريج بدون مؤهل تربوي","Gymnasium","صالة العاب قوى",null,null,"Sahil Aljabal","ساحل الجبل"]
[null,null,null,null,null,null,"03 - Diploma or Certificate in Education","دبلوم تربوي","Therapy room","صالة علاج طبيعي",null,null,"Dhaher Aljabal","ظاهر الجبل"]
[null,null,null,null,null,null,"04 - KG Para-Professional","مساعد مهني لرياض الأطفال","Culture centre","مركز ثقافي",null,null,"Rigdaleen","رقدالين"]
[null,null,null,null,null,null,"05 - Non-teaching degree","مؤهل غير تربوي","Audiological room","صالة دعم السمع",null,null,"Gasr Ben Gasheir","قصر بن غشير"]
[null,null,null,null,null,null,"06 - Other (unqualified)","غيرهم","Brail Laboratory","معمل بريل",null,null,"Soug alkhamees","سوق الخميس"]
[null,null,null,null,null,null,null,null,"Sick bay room","حجرة إستراحة طبية",null,null,"Isbiaa","اسبيعة"]
[null,null,null,null,null,null,"Specialty",null,"Strong room","حجرة محمية",null,null,"Abiar","الابيار"]
[null,null,null,null,null,null,"   ",null,"Kitchen","مطبخ",null,null,"Hai Alandalous","حي الاندلس"]
[null,null,null,null,null,null,"Not applicable","غير مطابق","Dining Room","صالة أكل",null,null,"Kums","الخمس"]
[null,null,null,null,null,null,"Islamic studies","دراسات إسلامية",null,null,null,null,"Wadi Albawanees","وادي البوانيس"]
[null,null,null,null,null,null,"Arabic language","لغة عربية",null,null,"        ",null,"sidi assaeh","السائح"]
[null,null,null,null,null,null,"Mathematics","رياضيات",null,null,null,null,"Soug Aljuma","سوق الجمعة"]
[null,null,null,null,null,null,"Science","علوم",null,null,null,null,"Darna","درنة"]
[null,null,null,null,null,null,"History","تاريخ",null,null,null,null,"Murzug","مرزق"]
[null,null,null,null,null,null,"Geography","جغرافيا",null,null,null,null,"Shwerif","الشويرف"]
[null,null,null,null,null,null,"English","لغة إنجليزية",null,null,null,null,"Shgiga","الشقيقة"]
[null,null,null,null,null,null,"IT","حاسوب",null,null,null,null,"Gasr Akhyaar","قصر خيار"]
[null,null,null,null,null,null,"Arts Education","رسم",null,null,null,null,"Um Alruzum","ام الرزم"]
[null,null,null,null,null,null,"Musical Education","موسيقى",null,null,null,null,"Rhibat","الرحيبات"]
[null,null,null,null,null,null,"Physical Education","تربية بدنية",null,null,null,null,"Sebha","سبها"]
[null,null,null,null,null,null,"National and Civil Education","تربية وطنية",null,null,null,null,"Tripoli Center","طرابلس المركز"]
[null,null,null,null,null,null,null,null,null,null,null,null,"Musrata","مصراتة"]
[null,null,null,null,null,null,"Currently on leave ","حاليا في أجازة",null,null,null,null,"Zawia Janoubia","الزاوية الجنوب"]
[null,null,null,null,null,null,"   ",null,null,null,null,null,"Surman","صرمان"]
[null,null,null,null,null,null,"Yes","نعم",null,null,null,null,"Imsaad","امساعد"]
[null,null,null,null,null,null,"No","لا",null,null,null,null,"Sabrata","صبراته"]
[null,null,null,null,null,null,null,null,null,null,null,null,"Abu Grein","ابوقرين"]
[null,null,null,null,null,null,"Level of Specialisation   ","مستوى التخصص",null,null,null,null,"Azizia","العزيزية"]
[null,null,null,null,null,null,"   ",null,null,null,null,null,"Tarhouna"," ترهونة"]
[null,null,null,null,null,null,"01 - KG","رياض أطفال",null,null,null,null,"Bani Walid","بني وليد"]
[null,null,null,null,null,null,"02 - Primary","إبتدائي",null,null,null,null,"Mrada","مرادة"]
[null,null,null,null,null,null,"03 - KG and Primary","رياض أطفال وإبتدائي",null,null,null,null,"Brega","البريقة"]
[null,null,null,null,null,null,"04 - Intermediate (7-9) ","أعدادي",null,null,null,null,"Jado","جادو"]
[null,null,null,null,null,null,"05 - Intermediate and Primary","إبتدائي وأعدادي",null,null,null,null,"Toukra","توكرة"]
[null,null,null,null,null,null,"06 - Upper","أعلى",null,null,null,null,"Khaleej Sirte","خليج السدره"]
[null,null,null,null,null,null,null,null,null,null,null,null,"Hrawa","هراوة"]
[null,null,null,null,null,null,"Public Sector Payroll            ",null,null,null,null,null,"Derj","درج"]
[null,null,null,null,null,null,"   ",null,null,null,null,null,"Shamal zawia","الزاوية الشمال"]
[null,null,null,null,null,null,"01 – Permanent PSC","مصنف",null,null,null,null,"Sharg Zawia","الزاوية الشرق"]
[null,null,null,null,null,null,"02 – Contract PSC","بعفد",null,null,null,null,"Yefrin","يفرن"]
[null,null,null,null,null,null,"03 - Other ","غيرهما",null,null,null,null,"Zawia Center","الزاوية المركز"]
[null,null,null,null,null,null,null,null,null,null,null,null,"Ijkherra","اجخرة"]
[null,null,null,null,null,null,"Special Needs                        "]
[null,null,null,null,null,null,"   "]
[null,null,null,null,null,null,"Yes","نعم"]
[null,null,null,null,null,null,"No","لا"]
[]
[null,null,null,null,null,null,"GenderStuff"]
[null,null,null,null,null,null,"   "]
[null,null,null,null,null,null,"Male","ذكر"]
[null,null,null,null,null,null,"Female","أنثى"]
[]
[null,null,null,null,null,null,"IDP (Select Yes or No, Blank means No)"]
[null,null,null,null,null,null,"   "]
[null,null,null,null,null,null,"Yes","نعم"]
[null,null,null,null,null,null,"No","لا"]

{"sheet":"Labels","index":14,"n_rows":117,"n_cols":35,"rows_kept":117,"cut":false,"hidden":false,"merged":[[0,27,0,28],[0,30,0,31],[0,33,0,34],[0,18,0,19],[0,21,0,22],[0,24,0,25],[0,15,0,16],[0,0,0,1],[0,3,0,4],[0,6,0,7],[0,9,0,10],[0,12,0,13]]}
["Section A",null,null,"SECTION B",null,null,"SECTION C",null,null,"SECTION D",null,null,"SECTION E",null,null,"SECTION F",null,null,"SECTION G",null,null,"SECTION H",null,null,"SECTION I",null,null,"SECTION J",null,null,"SECTION K",null,null,"SECTION L"]
["English","Arabic",null,"English","Arabic",null,"English","Arabic",null,"English","Arabic",null,"English","Arabic",null,"English","Arabic",null,"English","Arabic",null,"English","Arabic",null,"English","Arabic",null,"English","Arabic",null,"English","Arabic",null,"English","Arabic"]
["SECTION A. SCHOOL IDENTIFICATION"," القسم أ: التعريف بالمدرسة",null,"SECTION B. SCHOOL ADDRESS AND HEAD TEACHER"," القسم ب: عنوان المدرسة ومديرها",null,"SECTION C. SCHOOL CHARACTERISTICS","القسم ت: وصف المدرسة",null,"SECTION D. SCHOOL INFORMATION COMMUNICATION TECHNOLOGY","القسم ث: تقنية المعلومات والاتصالات بالمدرسة",null,"SECTION E. KINDERGARDEN ENROLMENT","القسم جـ: القيد والالتحاق برياض الاطفال",null,"SECTION F. SECONDARY EDUCATION SCHOOL ENROLMENT","القسم حـ: القيد والالتحاق بالتعليم الاساسي",null,"SECTION G. CURRICULUM AND TEXTBOOKS","القسم ر.: الكتاب المدرسي",null,"SECTION H. EXAM RESULTS","القسم ز.: نتائج الامتحانات",null,"SECTION I. STAFF","القسم س: القوى العاملة والمعلمون",null,"SECTION J. FACILITIES AND BUILDINGS","القسم ش: المباني والمرافق التعليمية",null,"SECTION K. HEALTH, SAFETY AND SANITATION","القسم ص: البيئة والصحة المدرسية",null,"SECTION L. SCHOOL FINANCE AND EXPENDITURE","القسم ض: الشؤون المالية للمدرسة والانفاق"]
["Instruction","التعليمات",null,"B. 1 SCHOOL PHYSICAL AND POSTAL ADDRESS","ب.1: عنوان المدرسة  و صندوق البريد",null,"1. Level of School (tick one or more boxes as applicable)","1- مستويات الدراسة بالمدرسة (إختر الصناديق المناسبة)",null,"Please ener the number of computers below","يرجى إدخال اعداد الحواسيب",null,"Instruction","التعليمات",null,"F. 1 SUMMARY TABLE","حـ.1: جدول الاجماليات",null,"Instruction","التعليمات",null,"H.1 PREVIOUS YEAR'S GRADE 6 EXAMINATION RESUTLS","ز.1: نتائج إمتحانات السنة الماضية لطلاب الشهادة الابتدائية (سنة سادسة) ",null,"I. 1 TEACHER ATTRITION BY REASON AND SEX DURING THE PREVIOUS SCHOOL YEAR","س.1: معدل الفاقد في المعلمين وفق كل سبب وحسب الجنس بالسنة الماضية",null,"J.1 DAMAGE TO SCHOOL","الاضرار بالمدرسة",null,"K. 1 NUMBER OF TOILET FACILITIES FOR PUPILS AND TEACHERS BY SEX","ص.1: عدد دورات المياه المخصصة للطلبة والمعلمين",null,"L. 1 FEES FOR THE CURRENT ACADEMIC YEAR","ض.1: رسوم الدراسة للسنة الحالية"]
["Please write the name of the school in full and the year the school actually started operating, even if the school has relocated. If the school had a previous name then complete boxes 3. and 4. Pertaining to previous school name and code.","يرجى كتابة إسم المدرسة بالكامل و السنة الفعلية التي بدأت فيها المدرسة بالعمل حتى وإن حدث تغيير في مكان المدرسة لو ان المدرسة كان لها إسم أخر يرجى تعبئة الخانة رقم 3 و 4  والخاصة بالاسم السابق للمدرسة ورمزها",null,"1. Physical Address (eg: No. and Street)","1- العنوان الفعلي للمدرسة (الرقم ، إسم الشارع، الخ)",null,"KG (KG1 and KG2)","رياض الاطفال (1،2)",null,"1. Number of functional computers at the school (total)","1- إجمالي عدد الحواسيب العاملة بالمدرسة (الاجمالي الكلي)",null,"Please ensure that the total enrolment figures accurately sum the grade enrolments for each age category and represent the number of pupils in each grade. E.g. If in KG1 you had 10 boys aged 5 and 5 boys aged 6 then total enrolment is 10 + 5 = 15. You should confirm the total enrolments against the class total enrolments to confirm your calculations are correct.\n\nAge refers to the age of the pupil in the current calendar year. For example if the school census year is 2014 and the pupil was born in 2010 then the pupil is considered 4 years of age.","يرجى التاكد من أن الاجمالي العام للقيد يطابق إجمالي القيد وفق السنوات والاعمار.  يتم إحتساب عمر الطالب من خلال طرح سنة الولاده من السنة الحالية، فمواليد سنة 2013 للسنة الدراسية 2017 هم من عمر (4 سنوات) بغض النظر عن شهر الميلاد",null,"Instruction","التعليمات",null,"Please enter the total number of Basic Core textbooks (TB) and Syllabus Copies (SYL) for each subject and grade in the table below. Note that Syllabus may include photocopies. If there are subjects taught at your school which are not listed in the table below please add them at the bottom of the table next to \"Other Specify\" and note the total number of textbooks and syllabus for each.","يرجى إدخال إجمالي أعداد الكتب المدرسية الاساسية  و المذكرات المنهجية الرسمية و الصادرة عن الوزارة او المدرسة لكل مادة و لكل سنة دراسية .   المذكرات تتضمن نسخ من مذكرات ، في حالة وجود مادة لم يتم تضمينها بالجدول يرجى إضافتها بجانب {مواد أخرى) ",null,"Number of pupils who sat the exam and where enrolled at the school","عدد الطلاب الذين دخلوا للإمتحانات",null,"Instruction","التعليمات",null,"1. Did the school suffer damages?","1- هل تعرضت المدرسة لاضرار؟",null,"Number of functioning (working) toilets for KG","عدد المراحيض العاملة لطلاب رياض الاطفال",null,"Current Academic Year (Please enter full amount payable per year by each pupil)","رسوم السنة الحالية (يرجى إدخال القيمة الكلية للرسوم المدفوعة من قبل الطالب)"]
["1. School Name","إسم المدرسة",null,"2.District","2- المحلة",null,"Primary (1-6)","إبتدائي (1-6)",null,"2. Number of functional computers for use by learners","2- إجمالي عدد الحواسيب العاملة و المستخدمة من قبل الطلاب",null,"E. 1 PUPIL ENROLMENT IN KINDERGARDEN FOR EACH GRADE, AGE AND SEX","جـ.1 قيد الطلاب برياض الاطفال حسب السنة الدراسية والعمر والجنس",null,"District Education Officers are asked to confirm totals in this table with totals derived from other tables in this forms as indicated in the field \"Ref.\" An authorised special class(Aut Spec Cl) is a class authorised by the Schools Psychological Services","يرجى التأكد من أن  إلاجماليات الصادرة عن هذا الجدول مطابقة للإجماليات الصادرة عن الجداول الاخرى وفق ما هو موجود في الخانة المعرفة (مرجعية)",null,"Textbook","الكتب المدرسية",null,"Total ","الاجمالي",null,"Please enter the number of male and female who have left the school during the previous school year according to each of the reasons stated below. Attrition refers to a gradual, natural reduction in membership or personnel from the school.","يرجى ذكر عدد المعلمين من الذكور والاناث و الذين تركوا المدرسة العام الماضي وفق الاسباب الموضحة أدناه ",null,"2. When did the school receive damage?","2- متى تعرضت المدرسة للأضرار",null,"Number of functioning (working) toilets for Primary Pupils","عدد المراحيض العاملة لطلاب التعليم الاساسي",null,"Amount LYD","القيمة د.ل"]
["2. Year Opened","سنة الافتتاح",null,"3. Mailing/Postal Address (If different from above)","3- العنوان البريدي (لو انه يختلف)",null,"Intermediate (7-9)","أعدادي (7-9)",null,"3. Number of functional computers for use by teachers","3- إجمالي عدد الحواسيب العاملة و المستخدمة من قبل المعلمين",null,"Age","العمر",null,"School years","االقيد للعام الدراسي الحالي",null,"Grade 1","سنة اولى",null,"Grand Total","الاجمالي العام",null,"Male","ذكور",null,"3. Extent of damage","3- ما هو معدل الاضرار بالمدرسة",null,"Number of functioning (working) toilets for Teachers","عدد المراحيض العاملة للمعلمين",null,"1. Fees per pupil for the current academic year","رسوم التكاليف لكل طالب لهذه السنة"]
["3. Previous school name (if required)","الاسم السابق للمدرسة",null,"4. Suburb/Village","4- القرية",null,"2. Number of Sessions the school operates","2- عدد فترات الدراسة بالمدرسة",null,"4. Number of functional computers for use by administration","4- إجمالي عدد الحواسيب العاملة والمستخدمة من قبل الاداريين",null,"KG 1","رياض 1 (كي جي 1)",null,"Total","الاجمالي",null,"Grade 2","سنة ثانية",null,"Local","مقيمون",null,"Female","إناث",null,"J.2 Rooms for Teaching per grade","ش.2: إجمالي الفصول بالمدرسة حسب مراحل التعليم المختلفة",null,"Toilet Type",null,null,"2. Boarding fees per pupil for the current year","رسوم تكاليف إقامة الداخلي لكل طالب"]
["4. Previous school code (if applicable)","الرمز السابق للمدرسة",null,"5. Region","5- المنطقة",null,"3. Service type","3- نوع الخدمات",null,"5. Does the school have any E-Learning Programmes?","5- هل لدى المدرسة برنامج للتعليم الالكتروني",null,"KG 2","رياض 2 (كي جي 2)",null,"REF","المرجع",null,"Grade 3","سنة ثالثة",null,"IDP","نازحون",null,"Total","الاجمالي",null,"No classrooms used for instructional purposes","عدد الحجرات المستخدمة فصول للتدريس",null,"Blair toilets (holes)","مراحيض جلوس (عربي)",null,"L. 2 GENERAL FINANCES FOR THE PREVIOUS SCHOOL YEAR","ض.2: الحسابات العامة للسنة الماضية"]
["5. School registration info","معلومات تسجيل المدرسة",null,"6. Province","6- المحافظة",null,"4. Location of school","4- موقع المدرسة",null,"6. Are rooms with computers fitted with burglar bars?","6- هل حجرات الحواسيب بها حماية حديدية للابواب والنوافذ",null,"Total","الاجمالي",null,"CURRENT Years Enrolments","إجمالي القيد لهذه السنة",null,"Grade 4","سنة رابعة",null,"Local Pupils","الطلاب المقيمون",null,"Retirement","التقاعد",null,"No classrooms under construction","عدد الحجرات تحت الانشاء (فصول)",null,"Pit latrines (holes)","مراحيض جلوس (افرنجي)",null,"Instruction","التعليمات"]
["EMIS Code","رمز منظومة المعلومات",null,"7. Municipality","7- البلدية",null,"5. Classification of school","5- تصنيف المدرسة",null,"7. Is internet connectivity available to the school?","7- هل يوجد بالمدرسة وصلة لشبكة الانترنت",null,"Grand Total","الاجمالي العام",null,"Classes","عدد الفصول",null,"Grade 5","سنة خامسة",null,"IDP Pupils","الطلاب النازحون",null,"Resignation","الاستقاله",null,"Kindergarten (KG1 and KG2)","رياض الاطفال (1،2)",null,"Urinary","مراحيض تبول",null,"Please complete finances for the previous school year. The section below should only be completed with information on actual cash accounting received and spent and not on budgeted or planned. If an item of revenue (income) or expenditure is not included in the list below please include it under Other.","يرجى إستكمال المعلومات المالية للسنة الماضية، القسم التالي يجب تعبئته فقط بمعلومات حسابات التحصيل والانفاق الفعلية وليس الميزانيات ومبالغ التخطيط. لو يوجد اي بند تحصيل (دخل) او بند إنفاق غير مذكور في التفصيل يرجى إضافته تحت بند (أخرى)"]
["School Registration No","رقم تسجيل المدرسة",null,"8. Education Service office","8-  المراقبة التعليمية",null,"6. School Type","6- منتسبوا  المدرسة",null,"8. Which of the following technologies do you use for educational purposes?","8- ما المستخدم من التقنيات التالية  في عملية التعليم",null,"Local Pupils","طلاب مقيمون",null,"PREVIOUS years enrolments","إجمالي القيد بالسنة الماضية",null,"Grade 6","سنة سادسة",null,"Male","ذكور",null,"Abscondment","الغياب",null,"Primary (grade 1-6)","ابتدائي (1-6)",null,"M","ذكر",null,"SOURCE OF REVENUE","مصادر الدخل"]
["Census Year","سنة الاحصاء",null,"B. 2 SCHOOL CONTACT DETAILS","ب.2: تفاصيل الاتصال بالمدرسة",null,"7. Offered Services","7-الخدمات التي تقدمها المدرسة",null,"Instruction","التعلميات",null,"IDP Pupils","طلاب نازحون",null,"KG","رياض الاطفال",null,"Grade 7","سنة سابعة",null,"Female","إناث",null,"Death","الوفاة",null,"Intermediate (grade 7-9)","أعدادي (7-9)",null,"F","انثى",null,"AMOUNT DINAR","القيمة بالدينار"]
["School Examination Department Registration","رقم تسجيل المدرسة بمنظومة الامتحانات",null,"1. Phone Code (STD)","1- مفتاح هاتف المدينة",null,"KG","رياض الاطفال",null,"You may tick more than one box, but if you tick \"None\",leave out the rest.","يرجى إختيار الصناديق المناسبة (إن أخترت لا يوجد، اترك الباقي بدون إختيار)",null,"M","ذكور",null,"Basic","التعليم الاساسي",null,"Grade 8","سنة ثامنة",null,"Number of candidates who sat for exams","عدد الطلاب الذين دخلوا للإمتحانات",null,"Discharge","التسريح",null,"J.3 CONDITION OF BUILDINGS","ش.3: حالة المباني",null,"Does the school have toilets for special needs learners?","هل لدى المدرسة مراحيض لذوي الاحتياجات الخاصة؟",null,"From Parents","من أولياء الامور"]
["6. If the school is a Satellite school please include the EMIS code and school registration number of the 'Mother' School","لو ان المدرسة فرعية، يتم إدخال رمز منظومة الملومات و رقم تسجيل المدرسة الام",null,"Phone Number"," رقم الهاتف",null,"Home study","منزلية التعليم",null,"None","لا يوجد",null,"F","إناث",null,"Total number of teachers in post including school head and deputy, but excluding teachers on leave and student Teachers","إجمالي عدد المعلمين بوظائف بما في ذلك المدير ونائب المدير، بإستثناء من هم في أجازة او دراسة بالخارج او إعارة و غيرها",null,"Grade 9","سنة تاسعة",null,"Number of candidates who passed all mandatory subjects","عدد الطلاب الذين نجحوا في جميع المواد المقررة ",null,"Other","اسباب أخرى",null,"Instruction","التعليمات",null,"Does the school have incinerators?","هل يوجد بالمدرسة محرقة (عادم) نفايات؟",null,"From Community","من الحي"]
[null,null,null,"2. Fax","1- مفتاح هاتف المدينة",null,"Primary part 1","إبتدائي الشق الاول (1-3)",null,"Radio","الإذاعة المسموعة",null,"Below 4 years","اقل من 4 سنوات",null,"Total number of classrooms including surplus classrooms but excluding non specific grade classrooms (specialist rooms)","إجمالي عدد الفصول الدراسية بما في ذلك الفصول الإضافية، بإستثناء الفصول الخاصة    (مثل فصول التقوية و المجموعات الخاصة)",null,"TB","كتاب ",null,"LOCAL PUPILS ONLY","الطلاب المقيمون فقط",null,"I. 2 SCHOOL NON-TEACHING STAFF BY STATUS AND SEX","س.2: الموظفون بالمدرسة (من غير المعلمين) حسب الوظيفة والجنس ",null,"Please enter information on the condition of blocks below for each type of construction used. Include all blocks regardless of the use of the rooms in the block.\nFor each structure type\n-Enter the number of blocks.\n-Enter the total number of rooms in all blocks for each structure type.\n-Enter the total number of rooms used for instructional purposes regardless of grade or class level\n-Enter the total number of buildings a) in good condition b.) in need of minor repair c.) in need of major","يرجى إدخال حالة كل مبنى لكل نوع من أنواع البناء بغض النظر عن إستخدامات المبنى او الحجرات داخل المبنى.  لكل هيكل يرجى إدخال عدد المباني، إجمالي عدد الحجرات المستخدمة في العملية التعليمية، إجمالي عدد المباني التي بحالة جيدة، وعدد التي تحتاج الى صيانة بسيطة وعدد التي تحتاج الى صيانة كبيرة",null,"K. 2 WATER","ص.2: المياه",null,"From Government","من الحكومة"]
[null,null,null,"Fax Number","رقم الفاكس",null,"Adult Education","تعليم الكبار",null,"Television","الاذاعة المرئية",null,"4 years","4 سنوات",null,"F.2 NUMBER OF CLASSES BY SESSION FOR EACH GRADE LEVEL","حـ.2: عدد الفصول لكل فترة دراسية ولكل سنة دراسية",null,"SYL","مذكرة",null,"Islamic studies","التربية الاسلامية",null,"Libyan","ليبيون",null,"Main Structure Type","نوع البناء",null,"1. Source of Water. Select option relating only to where the watter comes (source)","1-: مصدر المياه ، يرجى إختيار مكان مصدر المياه",null,"From Other","من أخرين"]
[null,null,null,"3. Cell Phone Number","3- رقم الهاتف النقال للمدرسة",null,"Primary part 2","إيتدائ الشق الثاني (4-6)",null,"Multimedia","الوسائط المتعددة",null,"5 years","5 سنوات",null,"Session 1","الفترة الاولى",null,"Islamic studies","التربية الاسلامية",null,"Arabic language","اللغة العربية",null,"Non-Libyan","غير ليبيون",null,"No. of Buildings","عدد المباني",null,"2. Is the water safe for drinking?","2-: هل المياه صالحة للشرب؟",null,"TOTAL REVENUE","إجمالي الدخل"]
[null,null,null,"4. Cell Phone Owner Number","4- الاسم المسجل به هاتف المدرسة النقال",null,"Literacy","محو الامية",null,"Satellite","استقبال الستالايت",null,"Above 5 years","اكبر من 5 سنوات",null,"Session 2","الفترة الثانية",null,"Arabic language","اللغة العربية",null,"Math","الرياضيات",null,"Administration","إداريون",null,"No. of Rooms","عدد الحجرات ",null,"3. Is there sufficient water for all staff and students?","3-: هل هناك ما يطفي من المياه للطلاب والمعلمين والموظفين؟",null,"TOTAL EXPENDITURE","إجمالي الانفاقات"]
[null,null,null,"5. Email","5- البريد الالكتروني للمدرسة",null,"Intermediate","أعدادي",null,"9. Number of teachers currently responsible for teaching computer technology","9- عدد المعلمين المسؤولين على تعليم الحاسوب",null,"Present on census day","موجودون يوم الاحصاء",null,"F.3 NEW ENTRANTS INTO GRADE 1","حـ.3: عدد الملتحقين الجدد بالسنة الاولى من التعليم الابتدائي",null,"Math","الرياضيات",null,"Science","العلوم",null,"Maintenance","فنيوا صيانة",null,"No. of Rooms beings used for instructional purposes","عدد الحجرات المستخدمة في العملية التعليمية",null,"4. Are there functional hand washing stations?","4-: هل يوجد محطات غسل يدين عاملة؟",null,"L. 3 SPECIFIC FINANCES FOR THE PREVIOUS SCHOOL YEAR","ض.3: الحسابات التفصيلية للسنة الماضية"]
[null,null,null,"6. Distance by road to the Education Serviceoffice","6- المسافة بين المدرسة ومكتب الخدمات التعليمية",null,"8. Does the school have multi-grade (composite) teaching?","8- هل تقوم المدرسة  بتدريس مستويات تعليمية مختلفه",null,"10. Number of teachers receiving refresher training for ICT DURING service (employment)","10- عدد المعلمين الذين تلقوا تدريب تنشيطي على تقنيات الحاسوب (أثناء العمل)",null,"E.2 PUPIL ENROLMENT IN KINDERGARDEN FOR NATIONALITY AND SEX","جـ2: قيد الطلاب برياض الاطفال حسب الجنسية والجنس",null,"Entering from KG","الملتحقون عبر رياض الاطفال",null,"Science","العلوم",null,"History","التاريخ",null,"Security","سكرتاريه",null,"Number of Buildings","عدد المباني",null,"5. Is the water consistently available throughout the year?","5-: هل المياه متوفرة طيلة السنة؟",null,"SCHOOL REVENUE / INCOME","دخل المدرسة"]
[null,null,null,"7. EMIS code of Closest School","7- رمز منظومات المعلومات لاقرب مدرسة",null,"Instruction","التعليمات",null,"11. Number of teachers receiving refresher training for ICT DURING service (employment) in the past 24 MONTHS","11- عدد المعلمين الذين تلقوا تدريب تنشيطي على تقنيات الحاسوب خلال ال24 شهر الماضي (أثناء العمل)",null,"Libyan","ليبيون",null,"They have not attended kindergarten before","الملتحقون بدون الدخول الى  رياض الاطفال",null,"History","التاريخ",null,"Geography","الجغرافيا",null,"Others","غيرها",null,"Good Condition","حالة جيدة",null,"6. Does the surrounding community use the schools water source regularly?","6-: هل المنطقة المحيطة بالمدرسة تستخدم في مصدر المياه الموجود بالمدرسة؟",null,"AMOUNT USD","القيمة بالدينار"]
[null,null,null,"B. 3 RESPONSIBLE AUTHORITY","ب.3: الجهة المسؤولة على المدرسة",null,"If your school has multi-grade teaching then please indicate which grades are involved in multi-grade teaching by checking the boxes next to each grade below.","لو ان المدرسة تقوم بتعليم مستويات مختلفة، يرجى إختيار السنوات الدراسية الممنوحة من قبل المدرسة",null,"12. Number of teachers receiving trainingin ICT BEFORE entering service by NOT receiving a formal computer science degree or certificate","12- عدد المعلمين الذين تلقوا تدريب على تقنيات الحاسوب قبل العمل بالتعليم وليس لديهم شهادة معتمدة في علوم الحاسوب ",null,"Egyptian","مصريون",null,"Male","ذكور",null,"Geography","الجغرافيا",null,"English","اللغة الانجليزية",null,"I. 3 SCHOOL MANAGEMENT AND PLANNING","س.3: إدارة المدرسة والتخطيط",null,"Need Minor Repair","تحتاج الى صيانة خفيفة",null,"7. Treatment of water","7-: معالجة المياه",null,"EXPENDITURE","الانفاق"]
[null,null,null,"1. Responsible Authority Type","1- نوع الجهة المسؤولة على المدرسة",null,"9. Tick boxes for grades involved in multi-grade teaching","8- إختر سنوات الدراسة بالمدرسة",null,"13. Number of teachers who received training in ICT and obtained a Certificate/Diploma/Higher National Diploma in Computer Studies BEFORE entering service","13- عدد المعلمين الذين تلقوا تدريب على تقنيات الحاسوب قبل العمل بالتعليم و لديهم شهادة معتمدة في علوم الحاسوب ",null,"Iraq","عراقيون",null,"Female","إناث",null,"English","اللغة الانجليزية",null,"IT","الحاسوب",null,"1. Does the school have a school development plan?","1- هل لدى المدرسة خطة للتطوير",null,"Need Major Repair","تحتاج الى صيانة كبيرة",null,"8. Distance of water source from the school","8-: بعد مصدر المياه عن المدرسة",null,"Tuition Fees","رسوم التسجيل بالمدرسة"]
[null,null,null,"2. Name of Responsible Authority","2- إسم الجهة المسؤولة على المدرسة",null,"Grade 1","الصف الاول",null,null,null,null,"Palestinian","فلسطينيون",null,"Libyan","ليبيون",null,"IT","الحاسوب",null,"M","ذكور",null,"2. Was the previous school development plan approved by the municipal authority?","2- هل تمت الموافقة على خطة السنة الماضية ",null,"Derelict / dangerous","تم إخلائه (خطير)",null,"9. Does the school have fire fighting cylinders?","9-: هل لدى المدرسة نظام إطفاء الحريق (اسطوانات)؟",null,"Building Levy","إعفاءات تراخيص البناء"]
[null,null,null,"3. Physical Address (eg: No. and Street)","3- عنوان الجهة المسؤولة",null,"Grade 2","الصف الثاني",null,null,null,null,"Syrian","سوريون",null,"Egyptian","مصريون",null,"Arts Education","التربية الفنية",null,"F","اناث",null,"3. Does the school have a Parent Teacher Association (PTA)?","3- هل لدى المدرسة مجلس للأباء",null,"Cement / Brick","اسمني /طوب",null,"K. 3 CHILDREN WITH DISABILITIES","ص.3: الاطفال ذوي الاحتياجات الخاصة",null,"School/SDC/SDA Levy","إعفاءات تراخيص المدرسة"]
[null,null,null,"4. Phone Code (STD)","4- رمز الهاتف للمنطقة",null,"Grade 3","الصف الثالث",null,null,null,null,"Tunisians","تونسيون",null,"Iraq","عراقيون",null,"Musical Education","التربية الموسيقية",null,"Number of candidates who Passed","عدد الطلاب الذين نجحوا في جميع المواد المقررة ",null,"4. How many times did the PTA meet in the previous year?","4- كم مرة إنعقد مجلس الاباء في السنة الماضية",null,"Wood","خشبي",null,"1. Is there an entrance facility for disabled?","1-: هل يوجد مدخل خاص بذوي الاحتياجات الخاصة؟",null,"Boarding Levy","إعفاءات رسوم الداخلي"]
[null,null,null,"5. Fax Code","5-رمز الفاكس",null,"Grade 4","الصف الرابع",null,null,null,null,"Other","غيرهم",null,"Palestinian","فلسطينيون",null,"Physical Education","التربية البدنية",null,"IDP PUPILS ONLY","الطلاب النازحون فقط",null,"5. How many active members does the PTA have?","5- كم عدد الاعضاء الفاعلين بمجلس الاباء",null,"Mud","طيني",null,"2. Does the school have classrooms on the ground floor?","2-: هل لدى المدرسة فصول بالادوار الارضي؟",null,"Per Capita Grants","الدعم الفردي للمقيدين"]
[null,null,null,"6. Email","6- البريد الالكتروني ",null,"Grade 5","الصف الخامس",null,null,null,null,"E.3 NUMBER OF ORPHANS AND VULNERABLE CHILDREN BY GRADE AND SEX","هـ.3: عدد الاطفال الايتام والمعرضون حسب سنة الدراسة والجنس",null,"Syrian","سوريون",null,"National and Civil Education","التربية الوطنية",null,"H.2 PREVIOUS YEAR'S GRADE 9 EXAMINATION RESULTS","ز.2: نتائج إمتحانات شهادة إتمام التعليم الاساسي للسنة الماضية",null,"6. Did the PTA approved the school development plan?","6- هل إعتمد مجلس الاباء خطة تطوير المدرسة",null,"Other","غيرها",null,"3. Does the school have labs on the ground floor?","3-: هل لدى المدرسة معامل في الادوار الارضية؟",null,"Salary Grants","دعم المرتبات"]
[null,null,null,"B. 4 SCHOOL HEAD PERSONAL CONTACT DETAILS","ب.4: معلومات التواصل مع مدير المدرسة",null,"Grade 6","الصف السادس",null,null,null,null,"Single orphans (maternal)","يتيم الام",null,"Tunisians","تونسيون",null,null,null,null,"H.3 PREVIOUS YEAR'S GRADE 6 EXAMINATION RESULTS FOR HOUSE SITTING STUDENTS","ز.3: نتائج إمتحانات شهادة إتمام التعليم الابتدائي (منازل)  للسنة الماضية",null,"7. What is the total number of school administrators?","7- كم إجمالي عدد الاداريين بالمدرسة",null,"J.  4 ORDINARY CLASSROOMS, STAFF ROOMS, STORE ROOMS, WORKSHOPS AND OTHER FACILITIES","ش.4: الفصول، حجرات المعلمين، المخازن، المعامل والورش، وغيرها من المرافق",null,"K. 4 NUTRITION AND HEALTH","ص.4: التغذية والصحة",null,"External Aid","الدعم الخارجي"]
[null,null,null,"1. Full Name","1- إسم مدير المدرسة بالكامل",null,"Grade 7","الصف السابع",null,null,null,null,"Single orphans (paternal)","يتيم الاب",null,"Other","غيرهم",null,null,null,null,"H.4 PREVIOUS YEAR'S GRADE 9 EXAMINATION RESULTS FOR HOUSE SITTING STUDENTS","ز.4: نتائج متحانات شهادة إتمام التعليم الاساسي (منازل) للسنة الماضية",null,"8. How many school administrators are certified to national requirements?","8- كم عدد الاداريين المعتمدين وفق المتطلبات الوطنية للمهنة",null,"For each type of classroom, workshop, workroom or facility enter the number of rooms of each type available. Enter the total capacity of the Rooms in terms of either the total number of pupils or staff able to use all rooms of a type at a single time. If more than one room then sum the total pupil capacity.","لكل نوع من المرافق ، فصول، او المعامل او الورش او المرفق يرجى إدخال عدد الغرف المتاحة، يرجى إدخال السعة الاستيعابية (عدد الطلاب) القادرين على إستخدام المرفق، في حالة توفر اكثر من غرفة ، يذكر إجمالي السعة ",null,"1. Is there a supplementary school feeding programme?","1-: هل يوجد نظام تغذية بالمدرسة؟",null,"Building Grants","الدعم الخاص بالبناء"]
[null,null,null,"2. Cell No. (mobile)","2- رقم الهاتف النقال لمدير المدرسة",null,"Grade 8","الصف الثامن",null,null,null,null,"Double orphans","يتم الابوين",null,"Please ensure that the total enrolment figures accurately sum the grade enrolments for each age category and represent the number of pupils in each grade. E.g. If in Grade 1 you had 10 boys aged 5 and 5 boys aged 6 the total enrolment is 10 + 5 = 15. You should confirm the total enrolments against the class total enrolments to confirm your calculations are correct.\nAge refers to the age of the pupil in the current calendar year. For example if the school census year is 2014 and the pupil was born in 2007 then the pupil is considered 6 years of age.","يرجى التأكد من ان الاجماليات تطابق حاصل جمع أعداد الطلاب بسنوات الدراسة المختلفة لكل الاعمار و يمثلون عدد الطلاب بكل سنة دراسية.  يتم إحتساب عمر الطالب من خلال طرح سنة الولاده من السنة الحالية، فمواليد سنة 2010 للسنة الدراسية 2017 هم من عمر (7 سنوات) بغض النظر عن شهر الميلاد",null,null,null,null,null,null,null,"I. 4 TEACHING STAFF INFORMATION FOR THE CURRENT YEAR","س.4: معلومات المعلمين لهذه السنة ",null,"Room / Facility","الحجرة/ المرفق التعليمي",null,"2. Is there a trained school health teacher?","2-: هل يوجد معل تغذية متخصص بالمدرسة؟",null,"rentals","الايجارات (لمرافق المدرسة)"]
[null,null,null,"3. Email","3- البريد الالكتروني لمدير المدرسة",null,"Grade 9","الصف التاسع",null,null,null,null,"Vulnerable but not Orphaned","معرضون وليسوا يتامى",null,"F.4 PUPIL ENROLMENT FOR EACH GRADE, AGE AND SEX IN THE CURRENT YEAR","حـ.4: الطلاب الملتحقون بكل سنة دراسية حسب العمر و الجنس للسنة الدراسية الحالية",null,null,null,null,null,null,null,"Please enter information on all school staff currently in teaching KG, Primary or Para Professional regardless of whether on training, secondment, permanent or relief.","يرجى إدخال معلومات جميع المعلمين بالمدرسة بغض النظر عن وضعهم الحالي (موجودون، في أجازة، في تدريب ..الخ)",null,"Number of rooms","عدد الحجرات",null,"3. Does the school operate School Health Club?","3-: هل لدى المدرسة نادي صحي ؟",null,"General Purpose Fund","الدعم العام"]
[null,null,null,null,null,null,null,null,null,null,null,null,null,null,null,"Grade 1","سنة اولى ",null,null,null,null,null,null,null,"№","تسلسل",null,"Total Capacity","السعة الكلية",null,"4. Distance by road or track to the nearest Health Care provider on Kilometers","4-: المسافة بالكيلومتر لاقرب مصحة او مستشفى من المدرسة ",null,"Boarding fees","رسوم الداخلي"]
[null,null,null,null,null,null,null,null,null,null,null,null,null,null,null,"Grade 2","سنة ثانية",null,null,null,null,null,null,null,"National ID/Passport number","الرقم الوطني/ او/ رقم جواز السفر",null,"Ordinary classrooms","فصل دراسي",null,"KM","كم",null,"Transport","رسوم  النقل"]
[null,null,null,null,null,null,null,null,null,null,null,null,null,null,null,"Grade 3","سنة ثالثة",null,null,null,null,null,null,null,"Date Joined service (mm.dd.yy)","سنة بداية الخدمة (يوم.شهر.سنة)",null,"Art & Craft","فصل صالة فنون",null,null,null,null,"Exams","الامتحانات"]
[null,null,null,null,null,null,null,null,null,null,null,null,null,null,null,"Grade 4","سنة رابعة",null,null,null,null,null,null,null,"Current Post","الوظيفة الحالية وفق الهيكل",null,"Computer room","فصل حجرة حاسوب",null,null,null,null,"School management","إدارة المدرسة"]
[null,null,null,null,null,null,null,null,null,null,null,null,null,null,null,"Grade 5","سنة خامسة",null,null,null,null,null,null,null,"Nationality","الجنسية",null,"Metalwork","معمل ورشة حداده",null,null,null,null,"School activities including sport","نشاطات المدرسة بما فيها الرياضية"]
[null,null,null,null,null,null,null,null,null,null,null,null,null,null,null,"Grade 6","سنة سادسة",null,null,null,null,null,null,null,"Substantive Grade","الوظيفة الفعلية",null,"Cookery","فصل تعليم طبخ",null,null,null,null,"Other","أخرى"]
[null,null,null,null,null,null,null,null,null,null,null,null,null,null,null,"Grade 7","سنة سابعة",null,null,null,null,null,null,null,"Gender","الجنس ",null,"Needlework","فصل أشغال يدوية",null,null,null,null,"Textbooks, stationary etc.","الكتب والقرطاسية"]
[null,null,null,null,null,null,null,null,null,null,null,null,null,null,null,"Grade 8","سنة ثامنة",null,null,null,null,null,null,null,"Date of Birth (mm.dd.yy)","تاريخ الميلاد (يوم.شهر.سنة)",null,"Woodwork","فصل أعمال نجاره",null,null,null,null,"Practical subject equipment","معدات خاصة بالمواد"]
[null,null,null,null,null,null,null,null,null,null,null,null,null,null,null,"Grade 9","سنة تاسعة",null,null,null,null,null,null,null,"IDP (Select Yes or No, Blank means No)","نازح (إختر نعم او لا، تركها يعني لا)",null,"Agriculture","فصل أعمال زراعية",null,null,null,null,"Water, light, sanitary charges","تكاليف الكهرباء و الصرف الصحي"]
[null,null,null,null,null,null,null,null,null,null,null,null,null,null,null,"Younger than 6 years","اقل من 6 سنوات",null,null,null,null,null,null,null,"Highest Academic Qualification Code","اعلى درجة علمية",null,"Buildings","مبنى غير محدد",null,null,null,null,"Communication Services","خدمات الاتصالات"]
[null,null,null,null,null,null,null,null,null,null,null,null,null,null,null,"6 years","6  سنوات",null,null,null,null,null,null,null,"Education Degree","إسم الشهادة العلمية",null,"Music room","غرفة موسيقى",null,null,null,null,"Salaries","المرتبات"]
[null,null,null,null,null,null,null,null,null,null,null,null,null,null,null,"7 years","7  سنوات",null,null,null,null,null,null,null,"Specialty","التخصص",null,"Library","مكتبه",null,null,null,null,"Trips","الرحلات"]
[null,null,null,null,null,null,null,null,null,null,null,null,null,null,null,"8 years","8  سنوات",null,null,null,null,null,null,null,"Grade","الدرجة الوظيفية",null,"Hall","صالة",null,null,null,null,"Buildings","المباني"]
[null,null,null,null,null,null,null,null,null,null,null,null,null,null,null,"9 years","9  سنوات",null,null,null,null,null,null,null,"Public Sector Payroll","نوع التوظيف",null,"Admin. Block","جناح إداري",null,null,null,null,"Fringe benefits","إعانات أخرى"]
[null,null,null,null,null,null,null,null,null,null,null,null,null,null,null,"10 years","10   سنوات",null,null,null,null,null,null,null,"In-service training in past 2 years","التدريب خلال السنتين الماضيتين",null,"Staff room","حجرة معلمين",null,null,null,null,"Repairs","الصيانة"]
[null,null,null,null,null,null,null,null,null,null,null,null,null,null,null,"11 years","11  سنة",null,null,null,null,null,null,null,"Currently on Leave","حاليا في إجازة",null,"Tool store","مخزن معدات",null,null,null,null,"Sport, Arts and Culture","الرياضة والفنون والثقافة"]
[null,null,null,null,null,null,null,null,null,null,null,null,null,null,null,"12 years","12  سنة",null,null,null,null,null,null,null,"Level of Specialisation","مستوى التخصص",null,"Tuck Shop","مقصف",null,null,null,null,"Boarding","الداخلي"]
[null,null,null,null,null,null,null,null,null,null,null,null,null,null,null,"13 years","13  سنة",null,null,null,null,null,null,null,"Level currently teaching","مستوى التدريس الحالي",null,"Medical Room","غرفة مداواة",null,null,null,null,"Teacher Training","تدريب المعلمين"]
[null,null,null,null,null,null,null,null,null,null,null,null,null,null,null,"14 years","14  سنة",null,null,null,null,null,null,null,"Special Needs Teacher","مدرس إحتياجات خاصه",null,"Facility","مرافق النشاط"]
[null,null,null,null,null,null,null,null,null,null,null,null,null,null,null,"15 years or above","15 سنة او أكبر",null,null,null,null,null,null,null,"Subject Taught","المواد التي يقوم بتدريسها",null,"Number","العدد"]
[null,null,null,null,null,null,null,null,null,null,null,null,null,null,null,"Pupils present on the day of census","عدد الطلاب يوم الاحصاء",null,null,null,null,null,null,null,"Number of Lessons","عدد الحصص",null,"Sports field (e.g.: football)","ملعب رياضي"]
[null,null,null,null,null,null,null,null,null,null,null,null,null,null,null,"F.5 PUPIL ENROLMENT BY SESSION (Do not complete if only one session is conducted at the school)","حـ.5: عدد الطلبة المقيدون بكل فترة دراسية   (إذا كانت المدرسة تقدم فترة دراسية واحدة، فلا تقم بتعبة هذا الجزء)",null,null,null,null,null,null,null,"Number of Classes assigned","عدد الفصول",null,"Netball court","ملعب كرة مضرب"]
[null,null,null,null,null,null,null,null,null,null,null,null,null,null,null,"F.6 ENROLMENT BY NATIONALITY IN THE CURRENT YEAR","حـ.6: القيد حسب الجنسية للسنة الحالية",null,null,null,null,null,null,null,null,null,null,"Squash court","ملعب سكواش "]
[null,null,null,null,null,null,null,null,null,null,null,null,null,null,null,"F.7 NEW ENTRANTS INTO GRADE 1 BY AGE AND GENDER (do not include repeaters)","حـ.7: الملتحقون الجدد بالسنة الاولى حسب العمر و الجنس  (لا تحسب المعيدين)",null,null,null,null,null,null,null,null,null,null,"Swimming pool","مسبح"]
[null,null,null,null,null,null,null,null,null,null,null,null,null,null,null,"Below 5","اقل من 5 سنوات",null,null,null,null,null,null,null,null,null,null,"Tennis court","ملعب تنس ارضي"]
[null,null,null,null,null,null,null,null,null,null,null,null,null,null,null,"5 Years","5  سنوات",null,null,null,null,null,null,null,null,null,null,"Volleyball court","ملعب كرة طائرة"]
[null,null,null,null,null,null,null,null,null,null,null,null,null,null,null,"Above 11 yrs","اكبر من 11 سنة",null,null,null,null,null,null,null,null,null,null,"Pavilion","مسرح"]
[null,null,null,null,null,null,null,null,null,null,null,null,null,null,null,"M","ذكر ",null,null,null,null,null,null,null,null,null,null,"Gymnasium","صالة العاب قوى"]
[null,null,null,null,null,null,null,null,null,null,null,null,null,null,null,"F","أنثى",null,null,null,null,null,null,null,null,null,null,"Therapy room","صالة علاج طبيعي"]
[null,null,null,null,null,null,null,null,null,null,null,null,null,null,null,"F.8 REPEATERS BY GRADE AND SEX IN THE CURRENT YEAR","حـ.8: المعيدون حسب السنة و الجنس من المقيدين بهذه السنة الدراسية",null,null,null,null,null,null,null,null,null,null,"Culture centre","مركز ثقافي"]
[null,null,null,null,null,null,null,null,null,null,null,null,null,null,null,"Pupils","الطلاب",null,null,null,null,null,null,null,null,null,null,"Audiological room","صالة دعم السمع"]
[null,null,null,null,null,null,null,null,null,null,null,null,null,null,null,"F.9 REPEATERS BY AGE AND SEX AND NUMBER OF TIMES HAVING REPEATED IN THE CURRENT YEAR","حـ.9: المعيدون حسب العمر و الجنس و عدد مرات الاعادة  من المقيدين بهذا العام الدراسي",null,null,null,null,null,null,null,null,null,null,"Brail Laboratory","معمل بريل"]
[null,null,null,null,null,null,null,null,null,null,null,null,null,null,null,"Repeated once","معيد لمرة واحدة",null,null,null,null,null,null,null,null,null,null,"Sick bay room","حجرة إستراحة طبية"]
[null,null,null,null,null,null,null,null,null,null,null,null,null,null,null,"Repeated twice","معيد لمرتين",null,null,null,null,null,null,null,null,null,null,"Strong room","حجرة محمية"]
[null,null,null,null,null,null,null,null,null,null,null,null,null,null,null,"Repeated three Times","معيد لثلاث مرات",null,null,null,null,null,null,null,null,null,null,"Kitchen","مطبخ"]
[null,null,null,null,null,null,null,null,null,null,null,null,null,null,null,"F.10 DROPOUTS BY REASON FROM PREVIOUS YEAR (do not include pupils transferring to another school)","حـ.10: التسرب من الدراسة حسب السبب (لا يتضمن الرقم من انتقلوا الى مدارس اخرى)",null,null,null,null,null,null,null,null,null,null,"Dining Room","صالة أكل"]
[null,null,null,null,null,null,null,null,null,null,null,null,null,null,null,"Financial","أسباب مالية ",null,null,null,null,null,null,null,null,null,null,"1. Does the school have facilities for children with disabilities?","1- هل المدرسة مجهزة بإمكانيات لذوي الاحتياجات الخاصة ؟"]
[null,null,null,null,null,null,null,null,null,null,null,null,null,null,null,"Pregnancy","حمل",null,null,null,null,null,null,null,null,null,null,"2. Is the equipment adequate for the needs of children with disabilities at the school?","2- هل المعدات مناسبة لإحتياجات طلاب االاحتياجات الخاصة"]
[null,null,null,null,null,null,null,null,null,null,null,null,null,null,null,"Marriage","زواج",null,null,null,null,null,null,null,null,null,null,"J. 5 WRITING AND SITTING PLACES","ش.5: أماكن الجلوس والكتابة"]
[null,null,null,null,null,null,null,null,null,null,null,null,null,null,null,"Expulsion","طرد",null,null,null,null,null,null,null,null,null,null,"Sitting place means where the child sits (on a stool, chair bench (a bench can have two or more seating places). Writing place means where the child writes (on a desk or a table( a table or a desk can have one  or more writing places).","المقاعد تعني المقاعد الزوجية او الفردية و تحسب بعدد الطلاب المناسب لاستخدامها"]
[null,null,null,null,null,null,null,null,null,null,null,null,null,null,null,"Illness","مرض",null,null,null,null,null,null,null,null,null,null,"Grade 1","سنة اولى"]
[null,null,null,null,null,null,null,null,null,null,null,null,null,null,null,"Death","وفاه",null,null,null,null,null,null,null,null,null,null,"Grade 2","سنة ثانية"]
[null,null,null,null,null,null,null,null,null,null,null,null,null,null,null,"Absconded","إختفاء",null,null,null,null,null,null,null,null,null,null,"Grade 3 ","سنة ثالثة"]
[null,null,null,null,null,null,null,null,null,null,null,null,null,null,null,"F.11 NUMBER OF ORPHANS AND VULNERABLE CHILDREN BY GRADE AND SEX","حـ.11: الطلبة الايتام والمعرضون حسب العمر و الجنس",null,null,null,null,null,null,null,null,null,null,"Grade 4","سنة رابعة"]
[null,null,null,null,null,null,null,null,null,null,null,null,null,null,null,"Single Orphans (maternal)","يتيم الام",null,null,null,null,null,null,null,null,null,null,"Grade 5","سنة خامسة"]
[null,null,null,null,null,null,null,null,null,null,null,null,null,null,null,"Single Orphans (paternal)","يتيم الاب",null,null,null,null,null,null,null,null,null,null,"Grade 6","سنة سادسة"]
[null,null,null,null,null,null,null,null,null,null,null,null,null,null,null,"Double Orphans","يتيم الابوين",null,null,null,null,null,null,null,null,null,null,"Grade 7","سنة سابعة"]
[null,null,null,null,null,null,null,null,null,null,null,null,null,null,null,"Vulnerable but not Orphaned","معرض و غير يتيم",null,null,null,null,null,null,null,null,null,null,"Grade 8","سنة ثامنة"]
[null,null,null,null,null,null,null,null,null,null,null,null,null,null,null,"F.12 PUPIL ENROLMENT BY SPECIAL NEEDS INCLUDING NUMBER OF BOARDERS WITH SPECIAL NEEDS (list each student only in one category)","حـ.12: الطلبة ذوي الاحتياجات الخاصة متضمن طلبة الداخلي  (إن وجدوا)   (يجب ان يكون إحتساب اي طالب ضمن خانة واحدة فقط)",null,null,null,null,null,null,null,null,null,null,"Grade 9","سنة تاسعة"]
[null,null,null,null,null,null,null,null,null,null,null,null,null,null,null,"Visual and blind","إعاقة بصرية او عمى",null,null,null,null,null,null,null,null,null,null,"Sitting Places","أماكن جلوس (مقعد او كراسي)"]
[null,null,null,null,null,null,null,null,null,null,null,null,null,null,null,"Physical mobility","إعاقة حركية",null,null,null,null,null,null,null,null,null,null,"Writing Places","أماكن  كتابة (مقعد او طاولة)"]
[null,null,null,null,null,null,null,null,null,null,null,null,null,null,null,"Speech and Hearing","إعاقة نطق او سمع",null,null,null,null,null,null,null,null,null,null,"Enter the number of Teacher's furniture in the classrooms","أدخل قطع الاثاث الخاصة بالمعلم داخل الفصل"]
[null,null,null,null,null,null,null,null,null,null,null,null,null,null,null,"Mental","إعاقة عقلية",null,null,null,null,null,null,null,null,null,null,"Chairs","كراسي جلوس"]
[null,null,null,null,null,null,null,null,null,null,null,null,null,null,null,"Multi special needs","متعدد الاعاقات",null,null,null,null,null,null,null,null,null,null,"EWD","سبورة ذكية"]
[null,null,null,null,null,null,null,null,null,null,null,null,null,null,null,"F.13 PUPIL ENROLMENT FOR EACH GRADE, AGE AND SEX IN THE PREVIOUS YEAR","حـ.13: اعداد الطلبة المقيدون بالعام الماضي لكل سنة دراسية حسب العمر و الجنس",null,null,null,null,null,null,null,null,null,null,"Stools","كرسي بدون متكئ"]
[null,null,null,null,null,null,null,null,null,null,null,null,null,null,null,"Below 6 years","اقل من 6 سنوات",null,null,null,null,null,null,null,null,null,null,"Blackboards","سبورةعادية"]
[null,null,null,null,null,null,null,null,null,null,null,null,null,null,null,"Local","مقيمون",null,null,null,null,null,null,null,null,null,null,"Tables / desks","طاولة / مقعد"]
[null,null,null,null,null,null,null,null,null,null,null,null,null,null,null,"IDP","نازحون",null,null,null,null,null,null,null,null,null,null,"Projector","شاشة عرض مرئي"]
[null,null,null,null,null,null,null,null,null,null,null,null,null,null,null,null,null,null,null,null,null,null,null,null,null,null,null,"J. 6 ELECTRICITY AND COMMUNICATION","ش.6: الكهرباء والاتصالات"]
[null,null,null,null,null,null,null,null,null,null,null,null,null,null,null,null,null,null,null,null,null,null,null,null,null,null,null,"1. On average, how many hours per day do you have electricity at the school?","1- في المتوسط كم عدد ساعات وفرة الكهرباء بالمدرسة ؟"]
[null,null,null,null,null,null,null,null,null,null,null,null,null,null,null,null,null,null,null,null,null,null,null,null,null,null,null,"2. Main source of electricity","2- ما هو المصدر الرئيسي للكهرباء ؟"]
[null,null,null,null,null,null,null,null,null,null,null,null,null,null,null,null,null,null,null,null,null,null,null,null,null,null,null,"3. Secondary source of electricity\n","3-ما هو المصدر الثاني (الاحتياطي) للكهرباء بالمدرسة ؟"]
[null,null,null,null,null,null,null,null,null,null,null,null,null,null,null,null,null,null,null,null,null,null,null,null,null,null,null,"* Grid refers to electricity supply through electricity transmission lines"]
[null,null,null,null,null,null,null,null,null,null,null,null,null,null,null,null,null,null,null,null,null,null,null,null,null,null,null,"4. Does the school have telecom towers? If so, note which type"," 4.هل يوجد بالمدرسة برج للإتصالات؟ لو الاجابة \"نعم\" إختر النوع"]
[null,null,null,null,null,null,null,null,null,null,null,null,null,null,null,null,null,null,null,null,null,null,null,null,null,null,null,"5. Does the school have high voltage towers?","5. هل يوجد بالمدرسة برج ضغط عالي ؟"]
[null,null,null,null,null,null,null,null,null,null,null,null,null,null,null,null,null,null,null,null,null,null,null,null,null,null,null,"J. 7 SPORT, ARTS AND CULTURE","ش.7: الرياضة والفنون والانشطة"]
[null,null,null,null,null,null,null,null,null,null,null,null,null,null,null,null,null,null,null,null,null,null,null,null,null,null,null,"Choose which sport(s) or activity is conducted at your school","إختر الرياضات والنشاطات التي تقام في المدرسة"]
[null,null,null,null,null,null,null,null,null,null,null,null,null,null,null,null,null,null,null,null,null,null,null,null,null,null,null,"Football","كرة قدم"]
[null,null,null,null,null,null,null,null,null,null,null,null,null,null,null,null,null,null,null,null,null,null,null,null,null,null,null,"Athletics","العاب القوى"]
[null,null,null,null,null,null,null,null,null,null,null,null,null,null,null,null,null,null,null,null,null,null,null,null,null,null,null,"Handball","كرة اليد"]
[null,null,null,null,null,null,null,null,null,null,null,null,null,null,null,null,null,null,null,null,null,null,null,null,null,null,null,"Basketball","كرة السلة"]
[null,null,null,null,null,null,null,null,null,null,null,null,null,null,null,null,null,null,null,null,null,null,null,null,null,null,null,"Theatre","مسرح"]
[null,null,null,null,null,null,null,null,null,null,null,null,null,null,null,null,null,null,null,null,null,null,null,null,null,null,null,"Others","غيرها"]
[null,null,null,null,null,null,null,null,null,null,null,null,null,null,null,null,null,null,null,null,null,null,null,null,null,null,null,"Netball / Handball","كرة الشبكة (اليد)"]
[null,null,null,null,null,null,null,null,null,null,null,null,null,null,null,null,null,null,null,null,null,null,null,null,null,null,null,"Rugby","رقبي"]
[null,null,null,null,null,null,null,null,null,null,null,null,null,null,null,null,null,null,null,null,null,null,null,null,null,null,null,"Squash","سكواش"]
[null,null,null,null,null,null,null,null,null,null,null,null,null,null,null,null,null,null,null,null,null,null,null,null,null,null,null,"Swimming pool","سباحة"]
[null,null,null,null,null,null,null,null,null,null,null,null,null,null,null,null,null,null,null,null,null,null,null,null,null,null,null,"Tennis","تنس"]
[null,null,null,null,null,null,null,null,null,null,null,null,null,null,null,null,null,null,null,null,null,null,null,null,null,null,null,"Volleyball","كرة طارة"]
[null,null,null,null,null,null,null,null,null,null,null,null,null,null,null,null,null,null,null,null,null,null,null,null,null,null,null,"Gymnastics","العاب القوى"]
[null,null,null,null,null,null,null,null,null,null,null,null,null,null,null,null,null,null,null,null,null,null,null,null,null,null,null,"Chess","شطرنج"]
[null,null,null,null,null,null,null,null,null,null,null,null,null,null,null,null,null,null,null,null,null,null,null,null,null,null,null,"Almadar","المدار الجديد"]
[null,null,null,null,null,null,null,null,null,null,null,null,null,null,null,null,null,null,null,null,null,null,null,null,null,null,null,"Libyana","ليبيانا"]
[null,null,null,null,null,null,null,null,null,null,null,null,null,null,null,null,null,null,null,null,null,null,null,null,null,null,null,"LTT","ال تي تي "]

{"sheet":"Settings","index":15,"n_rows":2,"n_cols":2,"rows_kept":2,"cut":false,"hidden":false,"merged":[[0,0,0,1]]}
["Settings"]
["1. Language","Arabic"]

{"sheet":"ورقة1","index":16,"n_rows":0,"n_cols":0,"rows_kept":0,"cut":false,"hidden":false,"merged":[]}